{"text_format":"1","workbook":"xlsx","n_sheets":13,"sheets":["Cross Tab","Maintenance Tasks","Report Task Assignment","Sheet3","XTab Detail Task Schedule","Detail Task Schedule","Maintenance Task Assignments","Property Task Managers","Contractors","Working","Questions","Positions Per Joanne","Original"],"not_rendered":{"charts":0,"images":1,"macros":1,"external_links":0,"defined_names":12,"comments":1,"pivot_tables":2},"unopened":[],"bounds":{"document_bytes":16777216,"sheet_cells":100000,"rows_first":2000,"rows_last":500,"rows_between":2000,"halvings":0,"cell_chars":16384,"cell_head_chars":4096},"cells_cut":0,"cells_raw":0,"read":"whole","date_system":"1900"}

{"sheet":"Cross Tab","index":0,"n_rows":63,"n_cols":4,"rows_kept":63,"cut":false,"hidden":false,"merged":[]}
[]
[]
["Volunteer","Task Title","UpStream Repeating","Start Month"]
["BeverlyB","T11 Check Entrance Sign for Repainting","Annual, Mar","Mar"]
[null,"T12 Dryer Vent Cleaning","Semi-Annual","Jun"]
[null,"T20 Leaky Gutter Replacement","May, Jun, Jul, Aug","Apr"]
[null,"T25 Outside Lights and Fixtures","None","Jan"]
[null,"T27 Schecule Unit Painting ","None","Mar"]
[null,"T28 Pest Control Work Orders","None","Jan"]
[null,"T35 Roof Treatment for Moss","Semi-Annual, Apr, Nov","Apr"]
[null,"T39 Street Curb Repairs","None","Jan"]
[null,"T40 Street Reseal Cracks","None","Jan"]
[null,"T41 Street Seal Coat","None","Jan"]
[null,"T45 Supply Management","Bi-Monthly, Mar, Apr","Mar"]
[null,"T55 Welcome Committee","None","Jan"]
[null,"T57 Window Replacement ","None","Jan"]
[null,"T60 Windows Check for Dry Rot or Leakage","Feb","Feb"]
[null,"T34 Roof Replacement Review","None","Jan"]
["CarlG","T16 Garage Door Openers","None","Jan"]
[null,"T17 Garage Doors","None","Jan"]
["CharlotteM","T44 Sunshine Committee","None","Jan"]
["EarlS","T02 Annual Review","Annual","Dec"]
[null,"T04 Banking ","None","Jan"]
[null,"T05 Bill Payments","Monthly","Mar"]
[null,"T07 Budget","Annual, Oct","Oct"]
[null,"T21 HOA Collection","Monthly","Mar"]
[null,"T33 Resale Certificate","None","Jan"]
["JimT","T03 Back Flow Preventer Test","May","May"]
[null,"T06 Blow Out Irrigation System","Oct","Oct"]
[null,"T19 Clean Gutters","Nov","Jan"]
[null,"T22 Landscaping Work Orders","None","Jan"]
[null,"T24 Moss Check - Patios Curbs Sidewalks","Oct","Jun"]
[null,"T26 Outside Water Faucets","Apr, Oct","Apr"]
[null,"T29 Plant New Trees","Jan","Jan"]
[null,"T42 Street Snow Removal","None","Jan"]
[null,"T43 Stump Ginding","Jan","Jan"]
[null,"T46 Test Water System","Apr","Apr"]
[null,"T48 Tree Removal","Jan","Jan"]
[null,"T49 Turn Off Irrigation Water","Oct","Oct"]
[null,"T50 Turn On Irrigation Water","May","May"]
[null,"T52 Foundation Vents Close","Nov","Oct"]
[null,"T53 Foundation Vents Open","Mar","Mar"]
["JoanneW","T10 CC&R's, By-laws & Rules & Regs","None","Jan"]
[null,"T36 Santizier Refill - Daily Check","Weekly, Mar, Apr","Jan"]
["LynnK","T13 Emergency Preparedness","None","Jan"]
["NettieP","T09 Carpet Cleaning","Bi-Monthly, Mar, May, Jul, Sep, Nov","Apr"]
[null,"T18 General Cleaning","Bi-Monthly, Mar, Apr","Mar"]
[null,"T47 Trash to Curb","Weekly, Mar, Apr","Jan"]
["PattyL","T37 Secretary Responsibilities","None","Jan"]
[null,"T51 Update of Motion Log Book","Annual, Jan","Feb"]
[null,"T56 Welcome Homeowners Books","None","Jan"]
["PeggyC","T59 Window Washing ","Semi-Annual, May, Sep","Mar"]
["PeteA","T08 Calendar Setup/Printing","Monthly, Jan, Jul","Jun"]
[null,"T30 Project Performance Report","Annual, Jan","Jan"]
[null,"T31 Publish Printed Resident Lists","Semi-Annual, Apr, Oct","Mar"]
[null,"T32 Renew Web and Software Licenses","None ","Jan"]
[null,"T54 Website Files Update - Monthly","Monthly","Mar"]
["SheilaJ","T14 Fire Extinguisher Inspection","Bi-Annual","Jun"]
[null,"T23 Library Management","Weekly, Mar, Apr","Jan"]
[null,"T38 Social Scheduling","None","Jan"]
[null,"T62 Club house Furnace AC Fireplace Inspection","Bi-Annual","Jun"]
["UnAssigned","T01 Activity Director","None","Jan"]
[null,"T61 Xmas Lights","Dec","Dec"]

{"sheet":"Maintenance Tasks","index":1,"n_rows":62,"n_cols":24,"rows_kept":62,"cut":false,"hidden":false,"merged":[]}
["Calc Task Key","Task Key","VACNCA Maintenance Task","UpStream Project Grouping","Position?","Scope","Scheduling","Task Title","Task Responsible","2nd Task Resp","3rd Task Resp","UpStream Status","UpStream Repeating","Season","Month/Day/Date","Frequency","UpStream Start Date","UpStream End Date","Project Notes","Working Questions & Notes","Contractor Source","Task Responsible","2nd Task Resp","3rd Task Resp"]
["T01","T01","Activity Director","Clubhouse","Y",null,null,{"$f":"B2 & \" \" &C2","v":"T01 Activity Director"},"UnAssigned","CherieT",null,"Manage","None",null,"January","A/N","2021-01-01","2021-12-31",null,null,null,"UnAssigned","CherieT"]
["T02","T02","Annual Review","Management",null,"Assoc","Scheduled","T02 Annual Review","EarlS",null,null,"Scheduled","Annual","Winter","December","Annual","2021-12-10","2021-12-20",null,"Of What? More descriptive title needed",null,"EarlS"]
["T03","T03","Back Flow Preventer Test","Grounds",null,"Assoc","Scheduled","T03 Back Flow Preventer Test","JimT","DonW",null,"Scheduled","May","Spring","May","Spring","2021-05-01","2021-05-31",null,"Larry Green 9-22-20 Yearly Routine","Blythe Plumbing BFP","JimT","DonW"]
["T04","T04","Banking ","Treasurer",null,"Assoc","As Needed","T04 Banking ","EarlS","BeverlyB",null,"As Needed","None",null,null,"Monthly","2021-01-01","2021-12-31",null,null,null,"EarlS","BeverlyB"]
["T05","T05","Bill Payments","Treasurer",null,"Assoc","As Needed","T05 Bill Payments","EarlS",null,null,"Scheduled","Monthly",null,null,"Monthly","2021-03-25","2021-03-28",null,null,null,"EarlS"]
["T06","T06","Blow Out Irrigation System","Grounds",null,"Assoc","Scheduled","T06 Blow Out Irrigation System","JimT","DonW",null,"Scheduled","Oct","Fall","October","Fall","2021-10-01","2021-10-31",null,"Larry Green 9-22-20 Yearly Routine",null,"JimT","DonW"]
["T07","T07","Budget","Treasurer",null,"Assoc","Scheduled","T07 Budget","EarlS","Committee",null,"Scheduled","Annual, Oct","Fall","October","Annual","2021-10-01","2021-11-15",null,null,null,"EarlS","Committee"]
["T08","T08","Calendar Setup/Printing","InfoTech",null,"Assoc","Scheduled","T08 Calendar Setup/Printing","Pete A",null,null,"Repeating ","Monthly, Jan, Jul",null,"January/July","Bi-Annual","2021-06-16","2021-06-26","IT Update; birthdays; social","Clubhouse Print & Website",null,"PeteA"]
["T09","T09","Carpet Cleaning","Clubhouse",null,"Assoc","As Needed","T09 Carpet Cleaning","NettieP",null,null,"Repeating ","Bi-Monthly, Mar, May, Jul, Sep, Nov",null,"Every Other Mo","Bi-Monthly","2021-04-03","2021-04-03","As needed; check monthly",null,null,"NettieP"]
["T10","T10","CC&R's, By-laws & Rules & Regs","Management",null,"Assoc","As Needed","T10 CC&R's, By-laws & Rules & Regs","JoanneW","LindaS",null,"As Needed","None",null,null,"A/N","2021-01-01","2021-12-31",null,null,null,"JoanneW","LindaS"]
["T11","T11","Check Entrance Sign for Repainting","Sitewide",null,"Assoc","Scheduled","T11 Check Entrance Sign for Repainting","BeverlyB","JoanneW",null,"Scheduled","Annual, Mar","Spring","March","A/N","2021-03-10","2021-03-31",null,"Larry Green 9-22-20 Yearly Routine",null,"BeverlyB","JoanneW"]
["T12","T12","Dryer Vent Cleaning","Sitewide",null,"Assoc","Scheduled","T12 Dryer Vent Cleaning","BeverlyB",null,null,"Scheduled","Semi-Annual","Even Years","March","Semi-Annual","2022-06-02","2022-06-30","Every other year Even Number","Larry Green 9-22-20 Yearly Routine","Andgar Corp","BeverlyB"]
["T13","T13","Emergency Preparedness","Units",null,"Unit","As Needed","T13 Emergency Preparedness","CherieT","LynnK",null,"As Needed","None",null,null,"A/N","2021-01-01","2021-12-31",null,null,null,"LynnK","SherieT"]
["T14","T14","Fire Extinguisher Inspection","Clubhouse",null,"Assoc","Scheduled","T14 Fire Extinguisher Inspection","SheilaJ",null,null,"Scheduled","Bi-Annual",null,"February/July","Bi-Annual","2021-06-01","2021-06-30","Check",null,"Security Solutions","SheilaJ"]
["T16","T16","Garage Door Openers","Units",null,"Unit","As Needed","T16 Garage Door Openers","CarlG",null,null,"As Needed","None",null,null,"A/N","2021-01-01","2021-12-31","Replace if not repairable",null,null,"CarlG"]
["T17","T17","Garage Doors","Units",null,"Unit","As Needed","T17 Garage Doors","CarlG",null,null,"As Needed","None",null,null,"A/N","2021-01-01","2021-12-31","Replace old style ",null,null,"CarlG"]
["T18","T18","General Cleaning","Clubhouse",null,"Assoc","Scheduled","T18 General Cleaning","NettieP",null,null,"Scheduled","Bi-Monthly, Mar, Apr",null,"Every Other Mo","Bi-Monthly","2021-03-01","2021-03-01",null,null,null,"NettieP"]
["T19","T19","Clean Gutters","Units",null,"Unit","As Needed","T19 Clean Gutters","JimT","DonW",null,"Scheduled","Nov","Fall","November","Annual","2021-01-01","2021-12-31","When All the Leaves Are Down","Larry Green 9-22-20 Yearly Routine ","Custom Cut Landscaping","JimT","DonW"]
["T20","T20","Leaky Gutter Replacement","Units",null,"Unit","Scheduled","T20 Leaky Gutter Replacement","BeverlyB","DaleB",null,"Scheduled","May, Jun, Jul, Aug",null,"May/June/July/August","Monthly","2021-04-15","2021-04-15","Replace Leaky Gutters as Necessary","Larry Green 9-22-20 Yearly Routine ",null,"BeverlyB","DaleB"]
["T21","T21","HOA Collection","Treasurer",null,"Assoc","Scheduled","T21 HOA Collection","EarlS","BeverlyB",null,"Scheduled","Monthly",null,null,"Monthly","2021-03-01","2021-03-10",null,null,null,"EarlS","BeverlyB"]
["T22","T22","Landscaping Work Orders","Grounds","Y",null,null,"T22 Landscaping Work Orders","JimT","DonW",null,"Manage","None",null,null,"A/N","2021-01-01","2021-12-31",null,null,null,"JimT","DonW"]
["T23","T23","Library Management","Clubhouse",null,"Assoc","As Needed","T23 Library Management","SheilaJ",null,null,"As Needed","Weekly, Mar, Apr",null,"Monday","Weekly","2021-01-01","2021-12-31",null,null,null,"SheilaJ"]
["T24","T24","Moss Check - Patios Curbs Sidewalks","Sitewide",null,"Assoc","As Needed","T24 Moss Check - Patios Curbs Sidewalks","JimT",null,null,"Repeating ","Oct","Fall","October","Fall","2021-06-01","2021-06-01"," Clean as needed","Larry Green 9-22-20 Yearly Routine",null,"JimT"]
["T25","T25","Outside Lights and Fixtures","Units",null,"Unit","As Needed","T25 Outside Lights and Fixtures","BeverlyB","RonR",null,"As Needed","None",null,null,"A/N","2021-01-01","2021-12-31","Check and when reported","Larry Green 9-22-20 Yearly Routine",null,"BeverlyB","RonR"]
["T26","T26","Outside Water Faucets","Sitewide",null,"Assoc","Scheduled","T26 Outside Water Faucets","JimT","DonW",null,"Scheduled","Apr, Oct","Spring/Fall","April/October","Bi-Annual","2021-04-15","2021-04-15",null,null,null,"JimT","DonW"]
["T27","T27","Schecule Unit Painting ","Units",null,"Unit","Scheduled","T27 Schecule Unit Painting ","BeverlyB","JoanneW",null,"Scheduled","None",null,"February/July","Bi-Annual","2021-03-01","2021-12-31","Schedule as needed","Larry Green 9-22-20 Yearly Routine",null,"BeverlyB","JoanneW"]
["T28","T28","Pest Control Work Orders","Sitewide",null,"Assoc","As Needed","T28 Pest Control Work Orders","BeverlyB","DaleB",null,"As Needed","None",null,null,"A/N","2021-01-01","2021-12-31",null,null,null,"BeverlyB","DaleB"]
["T29","T29","Plant New Trees","Grounds",null,"Assoc","As Needed","T29 Plant New Trees","JimT","DonW",null,"Scheduled","Jan","Winter","January","A/N","2021-01-01","2021-12-31",null,"Larry Green 9-22-20 Yearly Routine",null,"JimT","DonW"]
["T30","T30","Project Performance Report","InfoTech",null,"Assoc","Scheduled","T30 Project Performance Report","Pete A",null,null,"Scheduled","Annual, Jan",null,"January","Annual","2021-01-01","2021-01-10","IT Update",null,null,"PeteA"]
["T31","T31","Publish Printed Resident Lists","InfoTech",null,"Assoc","Scheduled","T31 Publish Printed Resident Lists","Pete A",null,null,"Repeating ","Semi-Annual, Apr, Oct","Spring Fall","March/September","Bi-Annual","2021-03-20","2021-03-25","IT Update",null,null,"PeteA"]
["T32","T32","Renew Web and Software Licenses","InfoTech",null,"Assoc","As Needed","T32 Renew Web and Software Licenses","Pete A",null,null,"As Needed","None ",null,"January","Annual","2021-01-01","2021-12-31",null,null,null,"PeteA"]
["T33","T33","Resale Certificate","Management",null,"Unit","As Needed","T33 Resale Certificate","EarlS","JoanneW",null,"As Needed","None",null,null,"A/N","2021-01-01","2021-12-31",null,null,null,"EarlS","JoanneW"]
["T34","T34","Roof Replacement Review","Units",null,"Unit","Scheduled",{"$f":"B34 & \" \" &C34","v":"T34 Roof Replacement Review"},"BeverlyB","DaleB",null,"Scheduled","None","20 Years","May","Annual","2021-01-01","2021-01-01","Was $75K approx last time  2006","Larry Green 9-22-20 Yearly Routine",null,"BeverlyB","DaleB"]
["T35","T35","Roof Treatment for Moss","Units",null,"Unit","Scheduled","T35 Roof Treatment for Moss","BeverlyB","DaleB",null,"Repeating ","Semi-Annual, Apr, Nov","Spring/Fall","April/November","Bi-Annual","2021-04-01","2021-04-30","Check roofs for moss, treat as needed","Larry Green 9-22-20 Yearly Routine",null,"BeverlyB","DaleB"]
["T36","T36","Santizier Refill - Daily Check","Clubhouse",null,"Assoc","Scheduled","T36 Santizier Refill - Daily Check","JoanneW",null,null,"As Needed","Weekly, Mar, Apr",null,"Monday","Weekly","2021-01-03","2021-04-30","Check daily;  refill as needed",null,null,"JoanneW"]
["T37","T37","Secretary Responsibilities","Management","Y",null,null,"T37 Secretary Responsibilities","PattyL",null,"none","Manage","None",null,null,"A/N","2021-01-01","2021-12-31",null,null,null,"PattyL"]
["T38","T38","Social Scheduling","Clubhouse",null,"Assoc","As Needed","T38 Social Scheduling","SheilaJ",null,null,"As Needed","None",null,null,"A/N","2021-01-01","2021-12-31",null,null,null,"SheilaJ"]
["T39","T39","Street Curb Repairs","Sitewide",null,"Assoc","As Needed","T39 Street Curb Repairs","BeverlyB","DaleB",null,"As Needed","None",null,null,"A/N","2021-01-01","2021-12-31",null,"Larry Green 9-22-20 Yearly Routine",null,"BeverlyB","DaleB"]
["T40","T40","Street Reseal Cracks","Sitewide",null,"Assoc","As Needed","T40 Street Reseal Cracks","BeverlyB","DaleB",null,"As Needed","None",null,"April","Annual","2021-01-01","2021-12-31","Check street for cracks, re-seal as needed","Larry Green 9-22-20 Yearly Routine",null,"BeverlyB","DaleB"]
["T41","T41","Street Seal Coat","Sitewide",null,"Assoc","As Needed","T41 Street Seal Coat","BeverlyB","DaleB",null,"As Needed","None",null,null,"A/N","2021-01-01","2021-12-31",null,"Larry Green 9-22-20 Yearly Routine",null,"BeverlyB","DaleB"]
["T42","T42","Street Snow Removal","Sitewide",null,"Assoc","As Needed","T42 Street Snow Removal","JimT","DonW",null,"As Needed","None",null,null,"A/N","2021-01-01","2021-12-31",null,null,null,"JimT","DonW"]
["T43","T43","Stump Ginding","Grounds",null,"Assoc","As Needed","T43 Stump Ginding","JimT",null,null,"As Needed","Jan","Winter","January","A/N","2021-01-01","2021-12-31",null,"Larry Green 9-22-20 Yearly Routine",null,"JimT"]
["T44","T44","Sunshine Committee","Management","Y",null,null,"T44 Sunshine Committee","CharlotteM",null,null,"Manage","None",null,null,"A/N","2021-01-01","2021-12-31",null,null,null,"CharlotteM"]
["T45","T45","Supply Management","Clubhouse",null,"Assoc","Scheduled","T45 Supply Management","BeverlyB",null,null,"Scheduled","Bi-Monthly, Mar, Apr",null,"Every Other Mo","Bi-Monthly","2021-03-08","2021-03-08","Inventory & Purchase as Needed",null,null,"BeverlyB"]
["T46","T46","Test Water System","Grounds",null,"Assoc","Scheduled","T46 Test Water System","JimT","DonW",null,"Scheduled","Apr","Spring","May","Spring","2021-04-01","2021-04-20",null,null,"Custom Cut Landscaping","JimT","DonW"]
["T47","T47","Trash to Curb","Clubhouse",null,"Assoc","Scheduled","T47 Trash to Curb","NettieP",null,null,"Scheduled","Weekly, Mar, Apr",null,"Monday","Weekly","2021-01-03","2021-04-30","Empty ",null,null,"NettieP"]
["T48","T48","Tree Removal","Grounds",null,"Assoc","Scheduled","T48 Tree Removal","JimT",null,null,"Scheduled","Jan","Winter","January","A/N","2021-01-01","2021-12-31",null,"Larry Green 9-22-20 Yearly Routine",null,"JimT"]
["T49","T49","Turn Off Irrigation Water","Grounds",null,"Assoc","Scheduled","T49 Turn Off Irrigation Water","JimT","DonW",null,"Scheduled","Oct","Fall","October","Fall","2021-10-01","2021-10-31","City","Larry Green 9-22-20 Yearly Routine","City","JimT","DonW"]
["T50","T50","Turn On Irrigation Water","Grounds",null,"Assoc","Scheduled","T50 Turn On Irrigation Water","JimT","DonW",null,"Scheduled","May","Spring","May","Spring","2021-05-01","2021-05-31","City","Larry Green 9-22-20 Yearly Routine","City","JimT","DonW"]
["T51","T51","Update of Motion Log Book","Management",null,"Assoc","Scheduled","T51 Update of Motion Log Book","PattyL","PeteA",null,"Scheduled","Annual, Jan","Spring","January","Annual","2021-02-10","2021-02-20","Secretary to extract; IT Update",null,null,"PattyL","PeteA"]
["T52","T52","Foundation Vents Close","Sitewide",null,"Assoc","Scheduled","T52 Foundation Vents Close","JimT","DonW",null,"Scheduled","Nov","Fall","November","Fall","2021-10-10","2021-10-10","Close foundation vents","Larry Green 9-22-20 Yearly Routine","Custom Cut Landscaping","JimT","DonW"]
["T53","T53","Foundation Vents Open","Sitewide",null,"Assoc","Scheduled","T53 Foundation Vents Open","JimT","DonW",null,"Scheduled","Mar","Spring","March","Spring","2021-03-01","2021-03-30","Open foundation vents, check for broken screens","Larry Green 9-22-20 Yearly Routine","Custom Cut Landscaping","JimT","DonW"]
["T54","T54","Website Files Update - Monthly","InfoTech",null,"Assoc","Scheduled","T54 Website Files Update - Monthly","Pete A",null,null,"Repeating ","Monthly",null,null,"Monthly","2021-03-01","2021-03-01","IT Update","Combine previous year files; Clubhouse Print & Website",null,"PeteA"]
["T55","T55","Welcome Committee","Management","Y",null,null,"T55 Welcome Committee","BeverlyB","EarlS",null,"Manage","None",null,"January","A/N","2021-01-01","2021-12-31",null,null,null,"BeverlyB","EarlS"]
["T56","T56","Welcome Homeowners Books","Management",null,"Assoc","As Needed","T56 Welcome Homeowners Books","PattyL","EarlS","JoanneW","As Needed","None",null,"January","A/N","2021-01-01","2021-12-31",null,null,null,"PattyL","EarlS","JoanneW"]
["T57","T57","Window Replacement ","Units",null,"Unit","Scheduled","T57 Window Replacement ","BeverlyB","LindaS",null,"Scheduled","None","Summer","June","Summer","2021-01-01","2021-01-01",null,null,null,"BeverlyB","LindaS"]
["T59","T59","Window Washing ","Sitewide",null,"Unit","Scheduled","T59 Window Washing ","PeggyC",null,null,"Scheduled","Semi-Annual, May, Sep","Spring/Fall","March/September","Bi-Annual","2021-03-01","2021-03-01","Include Clubhouse Windows Outside","Larry Green 9-22-20 Yearly Routine",null,"PeggyC"]
["T60","T60","Windows Check for Dry Rot or Leakage","Units",null,"Assoc","Scheduled","T60 Windows Check for Dry Rot or Leakage","BeverlyB","LindaS",null,"Scheduled","Feb","Spring","February","Spring","2021-02-01","2021-02-28","Prepare Replacement List","Larry Green 9-22-20 Yearly Routine","Country Glass","BeverlyB","LindaS"]
["T61","T61","Xmas Lights","Clubhouse",null,"Assoc","Scheduled","T61 Xmas Lights","UnAssigned",null,null,"Scheduled","Dec",null,"December","Annual","2021-12-01","2021-12-31","Setup and Take Down",null,null,"UnAssigned"]
["T62","T62","Club house Furnace AC Fireplace Inspection","Clubhouse",null,"Assoc","Scheduled","T62 Club house Furnace AC Fireplace Inspection","SheilaJ",null,null,"Scheduled","Bi-Annual",null,"June","Semi-Annual","2021-06-01","2021-06-30","Check","Larry Green 9-22-20 Yearly Routine","Lynden Sheet Metal","SheilaJ"]
["T63","T63","Send Email Task Reminders","InfoTech",null,"Assoc","Scheduled","T63 Send Email Task Reminders","Pete A",null,null,"Scheduled","Monthly",null,null,"Monthly","2021-01-25","2021-01-29","Use Mmerge to send reminders",null,null,"PeteA"]

{"sheet":"Report Task Assignment","index":2,"n_rows":781,"n_cols":12,"rows_kept":781,"cut":false,"hidden":false,"merged":[]}
["project.title","task.title","task.assignedTo:byUsername","task.assignedTo:byName","task.responsibility","task.status","task.notes","task.startDate","task.endDate","task.progress","Task ID","TaskManager.email"]
[{"$f":"VLOOKUP($K2,'Maintenance Tasks'!$B$2:$X$61,3,FALSE)","v":"Clubhouse"},{"$f":"VLOOKUP(K2,'Maintenance Tasks'!$B$2:$X$61,7,FALSE)","v":"T01 Activity Director"},{"$f":"VLOOKUP($K2,'Maintenance Tasks'!$B$2:$X$61,3,FALSE)","v":"Clubhouse"},{"$f":"IF('Maintenance Task Assignments'!B2<>\"\", 'Maintenance Task Assignments'!A2,\"\")","v":"UnAssigned"},{"$f":"IF('Maintenance Task Assignments'!B2<>\"\", 'Maintenance Task Assignments'!D2,\"\")","v":"1st"},{"$f":"VLOOKUP($K2,'Maintenance Tasks'!$B$2:$X$61,11,FALSE)","v":"Manage"},{"$f":"\"Repeating: \" & 'Maintenance Tasks'!M2 & CHAR(10) &\n\" Project Tasks: \" & 'Maintenance Tasks'!S2 & CHAR(10) &\n\"Working Questions & Notes: \" &'Maintenance Tasks'!T2& CHAR(10) &\n\" Contractor: \" &'Maintenance Tasks'!U2","v":"Repeating: None\n Project Tasks: \nWorking Questions & Notes: \n Contractor: "},{"$f":"TEXT(VLOOKUP($K2,'Maintenance Tasks'!$B$2:$X$61,16,FALSE), \"YYYY-MM-DD\")","v":"2021-01-01"},{"$f":"TEXT(VLOOKUP($K2,'Maintenance Tasks'!$B$2:$X$61,17,FALSE), \"YYYY-MM-DD\")","v":"2021-12-31"},{"$f":"\"Repeating: \" & 'Maintenance Tasks'!M2 & CHAR(10) &\n\" Project Tasks: \" & 'Maintenance Tasks'!S2 & CHAR(10) &\n\"Working Questions & Notes: \" &'Maintenance Tasks'!T2& CHAR(10) &\n\" Contractor: \" &'Maintenance Tasks'!U2","v":"Repeating: None\n Project Tasks: \nWorking Questions & Notes: \n Contractor: "},{"$f":"IF('Maintenance Task Assignments'!B2<>\"\", 'Maintenance Task Assignments'!B2,\"\")","v":"T01"},{"$f":"IFERROR(VLOOKUP($D2,'Property Task Managers'!$A$1:$O$31,7,FALSE),\"\")","v":"VACNCABoard@gmail.com"}]
[{"$f":"VLOOKUP($K3,'Maintenance Tasks'!$B$2:$X$61,3,FALSE)","v":"Clubhouse"},{"$f":"VLOOKUP(K3,'Maintenance Tasks'!$B$2:$X$61,7,FALSE)","v":"T01 Activity Director"},{"$f":"VLOOKUP($K3,'Maintenance Tasks'!$B$2:$X$61,3,FALSE)","v":"Clubhouse"},{"$f":"IF('Maintenance Task Assignments'!B62<>\"\", 'Maintenance Task Assignments'!A62,\"\")","v":"CherieT"},{"$f":"IF('Maintenance Task Assignments'!B62<>\"\", 'Maintenance Task Assignments'!D62,\"\")","v":"2nd"},{"$f":"VLOOKUP($K3,'Maintenance Tasks'!$B$2:$X$61,11,FALSE)","v":"Manage"},{"$f":"\"Repeating: \" & 'Maintenance Tasks'!M62 & CHAR(10) &\n\" Project Tasks: \" & 'Maintenance Tasks'!S62 & CHAR(10) &\n\"Working Questions & Notes: \" &'Maintenance Tasks'!T62& CHAR(10) &\n\" Contractor: \" &'Maintenance Tasks'!U62","v":"Repeating: Monthly\n Project Tasks: Use Mmerge to send reminders\nWorking Questions & Notes: \n Contractor: "},{"$f":"TEXT(VLOOKUP($K3,'Maintenance Tasks'!$B$2:$X$61,16,FALSE), \"YYYY-MM-DD\")","v":"2021-01-01"},{"$f":"TEXT(VLOOKUP($K3,'Maintenance Tasks'!$B$2:$X$61,17,FALSE), \"YYYY-MM-DD\")","v":"2021-12-31"},{"$f":"\"Repeating: \" & 'Maintenance Tasks'!M62 & CHAR(10) &\n\" Project Tasks: \" & 'Maintenance Tasks'!S62 & CHAR(10) &\n\"Working Questions & Notes: \" &'Maintenance Tasks'!T62& CHAR(10) &\n\" Contractor: \" &'Maintenance Tasks'!U62","v":"Repeating: Monthly\n Project Tasks: Use Mmerge to send reminders\nWorking Questions & Notes: \n Contractor: "},{"$f":"IF('Maintenance Task Assignments'!B62<>\"\", 'Maintenance Task Assignments'!B62,\"\")","v":"T01"},{"$f":"IFERROR(VLOOKUP($D3,'Property Task Managers'!$A$1:$O$31,7,FALSE),\"\")","v":"cheriethomas49@comcast.net"}]
[{"$f":"VLOOKUP($K4,'Maintenance Tasks'!$B$2:$X$61,3,FALSE)","v":"Management"},{"$f":"VLOOKUP(K4,'Maintenance Tasks'!$B$2:$X$61,7,FALSE)","v":"T02 Annual Review"},{"$f":"VLOOKUP($K4,'Maintenance Tasks'!$B$2:$X$61,3,FALSE)","v":"Management"},{"$f":"IF('Maintenance Task Assignments'!B3<>\"\", 'Maintenance Task Assignments'!A3,\"\")","v":"EarlS"},{"$f":"IF('Maintenance Task Assignments'!B3<>\"\", 'Maintenance Task Assignments'!D3,\"\")","v":"1st"},{"$f":"VLOOKUP($K4,'Maintenance Tasks'!$B$2:$X$61,11,FALSE)","v":"Scheduled"},{"$f":"\"Repeating: \" & 'Maintenance Tasks'!M3 & CHAR(10) &\n\" Project Tasks: \" & 'Maintenance Tasks'!S3 & CHAR(10) &\n\"Working Questions & Notes: \" &'Maintenance Tasks'!T3& CHAR(10) &\n\" Contractor: \" &'Maintenance Tasks'!U3","v":"Repeating: Annual\n Project Tasks: \nWorking Questions & Notes: Of What? More descriptive title needed\n Contractor: "},{"$f":"TEXT(VLOOKUP($K4,'Maintenance Tasks'!$B$2:$X$61,16,FALSE), \"YYYY-MM-DD\")","v":"2021-12-10"},{"$f":"TEXT(VLOOKUP($K4,'Maintenance Tasks'!$B$2:$X$61,17,FALSE), \"YYYY-MM-DD\")","v":"2021-12-20"},{"$f":"\"Repeating: \" & 'Maintenance Tasks'!M3 & CHAR(10) &\n\" Project Tasks: \" & 'Maintenance Tasks'!S3 & CHAR(10) &\n\"Working Questions & Notes: \" &'Maintenance Tasks'!T3& CHAR(10) &\n\" Contractor: \" &'Maintenance Tasks'!U3","v":"Repeating: Annual\n Project Tasks: \nWorking Questions & Notes: Of What? More descriptive title needed\n Contractor: "},{"$f":"IF('Maintenance Task Assignments'!B3<>\"\", 'Maintenance Task Assignments'!B3,\"\")","v":"T02"},{"$f":"IFERROR(VLOOKUP($D4,'Property Task Managers'!$A$1:$O$31,7,FALSE),\"\")","v":"ecsheneman@msn.com"}]
[{"$f":"VLOOKUP($K5,'Maintenance Tasks'!$B$2:$X$61,3,FALSE)","v":"Grounds"},{"$f":"VLOOKUP(K5,'Maintenance Tasks'!$B$2:$X$61,7,FALSE)","v":"T03 Back Flow Preventer Test"},{"$f":"VLOOKUP($K5,'Maintenance Tasks'!$B$2:$X$61,3,FALSE)","v":"Grounds"},{"$f":"IF('Maintenance Task Assignments'!B4<>\"\", 'Maintenance Task Assignments'!A4,\"\")","v":"JimT"},{"$f":"IF('Maintenance Task Assignments'!B4<>\"\", 'Maintenance Task Assignments'!D4,\"\")","v":"1st"},{"$f":"VLOOKUP($K5,'Maintenance Tasks'!$B$2:$X$61,11,FALSE)","v":"Scheduled"},{"$f":"\"Repeating: \" & 'Maintenance Tasks'!M4 & CHAR(10) &\n\" Project Tasks: \" & 'Maintenance Tasks'!S4 & CHAR(10) &\n\"Working Questions & Notes: \" &'Maintenance Tasks'!T4& CHAR(10) &\n\" Contractor: \" &'Maintenance Tasks'!U4","v":"Repeating: May\n Project Tasks: \nWorking Questions & Notes: Larry Green 9-22-20 Yearly Routine\n Contractor: Blythe Plumbing BFP"},{"$f":"TEXT(VLOOKUP($K5,'Maintenance Tasks'!$B$2:$X$61,16,FALSE), \"YYYY-MM-DD\")","v":"2021-05-01"},{"$f":"TEXT(VLOOKUP($K5,'Maintenance Tasks'!$B$2:$X$61,17,FALSE), \"YYYY-MM-DD\")","v":"2021-05-31"},{"$f":"\"Repeating: \" & 'Maintenance Tasks'!M4 & CHAR(10) &\n\" Project Tasks: \" & 'Maintenance Tasks'!S4 & CHAR(10) &\n\"Working Questions & Notes: \" &'Maintenance Tasks'!T4& CHAR(10) &\n\" Contractor: \" &'Maintenance Tasks'!U4","v":"Repeating: May\n Project Tasks: \nWorking Questions & Notes: Larry Green 9-22-20 Yearly Routine\n Contractor: Blythe Plumbing BFP"},{"$f":"IF('Maintenance Task Assignments'!B4<>\"\", 'Maintenance Task Assignments'!B4,\"\")","v":"T03"},{"$f":"IFERROR(VLOOKUP($D5,'Property Task Managers'!$A$1:$O$31,7,FALSE),\"\")","v":"jim@tragesser.net   "}]
[{"$f":"VLOOKUP($K6,'Maintenance Tasks'!$B$2:$X$61,3,FALSE)","v":"Grounds"},{"$f":"VLOOKUP(K6,'Maintenance Tasks'!$B$2:$X$61,7,FALSE)","v":"T03 Back Flow Preventer Test"},{"$f":"VLOOKUP($K6,'Maintenance Tasks'!$B$2:$X$61,3,FALSE)","v":"Grounds"},{"$f":"IF('Maintenance Task Assignments'!B63<>\"\", 'Maintenance Task Assignments'!A63,\"\")","v":"DonW"},{"$f":"IF('Maintenance Task Assignments'!B63<>\"\", 'Maintenance Task Assignments'!D63,\"\")","v":"2nd"},{"$f":"VLOOKUP($K6,'Maintenance Tasks'!$B$2:$X$61,11,FALSE)","v":"Scheduled"},{"$f":"\"Repeating: \" & 'Maintenance Tasks'!M63 & CHAR(10) &\n\" Project Tasks: \" & 'Maintenance Tasks'!S63 & CHAR(10) &\n\"Working Questions & Notes: \" &'Maintenance Tasks'!T63& CHAR(10) &\n\" Contractor: \" &'Maintenance Tasks'!U63","v":"Repeating: \n Project Tasks: \nWorking Questions & Notes: \n Contractor: "},{"$f":"TEXT(VLOOKUP($K6,'Maintenance Tasks'!$B$2:$X$61,16,FALSE), \"YYYY-MM-DD\")","v":"2021-05-01"},{"$f":"TEXT(VLOOKUP($K6,'Maintenance Tasks'!$B$2:$X$61,17,FALSE), \"YYYY-MM-DD\")","v":"2021-05-31"},{"$f":"\"Repeating: \" & 'Maintenance Tasks'!M63 & CHAR(10) &\n\" Project Tasks: \" & 'Maintenance Tasks'!S63 & CHAR(10) &\n\"Working Questions & Notes: \" &'Maintenance Tasks'!T63& CHAR(10) &\n\" Contractor: \" &'Maintenance Tasks'!U63","v":"Repeating: \n Project Tasks: \nWorking Questions & Notes: \n Contractor: "},{"$f":"IF('Maintenance Task Assignments'!B63<>\"\", 'Maintenance Task Assignments'!B63,\"\")","v":"T03"},{"$f":"IFERROR(VLOOKUP($D6,'Property Task Managers'!$A$1:$O$31,7,FALSE),\"\")","v":"searigg@comcast.net"}]
[{"$f":"VLOOKUP($K7,'Maintenance Tasks'!$B$2:$X$61,3,FALSE)","v":"Treasurer"},{"$f":"VLOOKUP(K7,'Maintenance Tasks'!$B$2:$X$61,7,FALSE)","v":"T04 Banking "},{"$f":"VLOOKUP($K7,'Maintenance Tasks'!$B$2:$X$61,3,FALSE)","v":"Treasurer"},{"$f":"IF('Maintenance Task Assignments'!B5<>\"\", 'Maintenance Task Assignments'!A5,\"\")","v":"EarlS"},{"$f":"IF('Maintenance Task Assignments'!B5<>\"\", 'Maintenance Task Assignments'!D5,\"\")","v":"1st"},{"$f":"VLOOKUP($K7,'Maintenance Tasks'!$B$2:$X$61,11,FALSE)","v":"As Needed"},{"$f":"\"Repeating: \" & 'Maintenance Tasks'!M5 & CHAR(10) &\n\" Project Tasks: \" & 'Maintenance Tasks'!S5 & CHAR(10) &\n\"Working Questions & Notes: \" &'Maintenance Tasks'!T5& CHAR(10) &\n\" Contractor: \" &'Maintenance Tasks'!U5","v":"Repeating: None\n Project Tasks: \nWorking Questions & Notes: \n Contractor: "},{"$f":"TEXT(VLOOKUP($K7,'Maintenance Tasks'!$B$2:$X$61,16,FALSE), \"YYYY-MM-DD\")","v":"2021-01-01"},{"$f":"TEXT(VLOOKUP($K7,'Maintenance Tasks'!$B$2:$X$61,17,FALSE), \"YYYY-MM-DD\")","v":"2021-12-31"},{"$f":"\"Repeating: \" & 'Maintenance Tasks'!M5 & CHAR(10) &\n\" Project Tasks: \" & 'Maintenance Tasks'!S5 & CHAR(10) &\n\"Working Questions & Notes: \" &'Maintenance Tasks'!T5& CHAR(10) &\n\" Contractor: \" &'Maintenance Tasks'!U5","v":"Repeating: None\n Project Tasks: \nWorking Questions & Notes: \n Contractor: "},{"$f":"IF('Maintenance Task Assignments'!B5<>\"\", 'Maintenance Task Assignments'!B5,\"\")","v":"T04"},{"$f":"IFERROR(VLOOKUP($D7,'Property Task Managers'!$A$1:$O$31,7,FALSE),\"\")","v":"ecsheneman@msn.com"}]
[{"$f":"VLOOKUP($K8,'Maintenance Tasks'!$B$2:$X$61,3,FALSE)","v":"Treasurer"},{"$f":"VLOOKUP(K8,'Maintenance Tasks'!$B$2:$X$61,7,FALSE)","v":"T04 Banking "},{"$f":"VLOOKUP($K8,'Maintenance Tasks'!$B$2:$X$61,3,FALSE)","v":"Treasurer"},{"$f":"IF('Maintenance Task Assignments'!B64<>\"\", 'Maintenance Task Assignments'!A64,\"\")","v":"BeverlyB"},{"$f":"IF('Maintenance Task Assignments'!B64<>\"\", 'Maintenance Task Assignments'!D64,\"\")","v":"2nd"},{"$f":"VLOOKUP($K8,'Maintenance Tasks'!$B$2:$X$61,11,FALSE)","v":"As Needed"},{"$f":"\"Repeating: \" & 'Maintenance Tasks'!M64 & CHAR(10) &\n\" Project Tasks: \" & 'Maintenance Tasks'!S64 & CHAR(10) &\n\"Working Questions & Notes: \" &'Maintenance Tasks'!T64& CHAR(10) &\n\" Contractor: \" &'Maintenance Tasks'!U64","v":"Repeating: \n Project Tasks: \nWorking Questions & Notes: \n Contractor: "},{"$f":"TEXT(VLOOKUP($K8,'Maintenance Tasks'!$B$2:$X$61,16,FALSE), \"YYYY-MM-DD\")","v":"2021-01-01"},{"$f":"TEXT(VLOOKUP($K8,'Maintenance Tasks'!$B$2:$X$61,17,FALSE), \"YYYY-MM-DD\")","v":"2021-12-31"},{"$f":"\"Repeating: \" & 'Maintenance Tasks'!M64 & CHAR(10) &\n\" Project Tasks: \" & 'Maintenance Tasks'!S64 & CHAR(10) &\n\"Working Questions & Notes: \" &'Maintenance Tasks'!T64& CHAR(10) &\n\" Contractor: \" &'Maintenance Tasks'!U64","v":"Repeating: \n Project Tasks: \nWorking Questions & Notes: \n Contractor: "},{"$f":"IF('Maintenance Task Assignments'!B64<>\"\", 'Maintenance Task Assignments'!B64,\"\")","v":"T04"},{"$f":"IFERROR(VLOOKUP($D8,'Property Task Managers'!$A$1:$O$31,7,FALSE),\"\")","v":"searigg@comcast.net"}]
[{"$f":"VLOOKUP($K9,'Maintenance Tasks'!$B$2:$X$61,3,FALSE)","v":"Treasurer"},{"$f":"VLOOKUP(K9,'Maintenance Tasks'!$B$2:$X$61,7,FALSE)","v":"T05 Bill Payments"},{"$f":"VLOOKUP($K9,'Maintenance Tasks'!$B$2:$X$61,3,FALSE)","v":"Treasurer"},{"$f":"IF('Maintenance Task Assignments'!B6<>\"\", 'Maintenance Task Assignments'!A6,\"\")","v":"EarlS"},{"$f":"IF('Maintenance Task Assignments'!B6<>\"\", 'Maintenance Task Assignments'!D6,\"\")","v":"1st"},{"$f":"VLOOKUP($K9,'Maintenance Tasks'!$B$2:$X$61,11,FALSE)","v":"Scheduled"},{"$f":"\"Repeating: \" & 'Maintenance Tasks'!M6 & CHAR(10) &\n\" Project Tasks: \" & 'Maintenance Tasks'!S6 & CHAR(10) &\n\"Working Questions & Notes: \" &'Maintenance Tasks'!T6& CHAR(10) &\n\" Contractor: \" &'Maintenance Tasks'!U6","v":"Repeating: Monthly\n Project Tasks: \nWorking Questions & Notes: \n Contractor: "},{"$f":"TEXT(VLOOKUP($K9,'Maintenance Tasks'!$B$2:$X$61,16,FALSE), \"YYYY-MM-DD\")","v":"2021-03-25"},{"$f":"TEXT(VLOOKUP($K9,'Maintenance Tasks'!$B$2:$X$61,17,FALSE), \"YYYY-MM-DD\")","v":"2021-03-28"},{"$f":"\"Repeating: \" & 'Maintenance Tasks'!M6 & CHAR(10) &\n\" Project Tasks: \" & 'Maintenance Tasks'!S6 & CHAR(10) &\n\"Working Questions & Notes: \" &'Maintenance Tasks'!T6& CHAR(10) &\n\" Contractor: \" &'Maintenance Tasks'!U6","v":"Repeating: Monthly\n Project Tasks: \nWorking Questions & Notes: \n Contractor: "},{"$f":"IF('Maintenance Task Assignments'!B6<>\"\", 'Maintenance Task Assignments'!B6,\"\")","v":"T05"},{"$f":"IFERROR(VLOOKUP($D9,'Property Task Managers'!$A$1:$O$31,7,FALSE),\"\")","v":"ecsheneman@msn.com"}]
[{"$f":"VLOOKUP($K10,'Maintenance Tasks'!$B$2:$X$61,3,FALSE)","v":"Grounds"},{"$f":"VLOOKUP(K10,'Maintenance Tasks'!$B$2:$X$61,7,FALSE)","v":"T06 Blow Out Irrigation System"},{"$f":"VLOOKUP($K10,'Maintenance Tasks'!$B$2:$X$61,3,FALSE)","v":"Grounds"},{"$f":"IF('Maintenance Task Assignments'!B7<>\"\", 'Maintenance Task Assignments'!A7,\"\")","v":"JimT"},{"$f":"IF('Maintenance Task Assignments'!B7<>\"\", 'Maintenance Task Assignments'!D7,\"\")","v":"1st"},{"$f":"VLOOKUP($K10,'Maintenance Tasks'!$B$2:$X$61,11,FALSE)","v":"Scheduled"},{"$f":"\"Repeating: \" & 'Maintenance Tasks'!M7 & CHAR(10) &\n\" Project Tasks: \" & 'Maintenance Tasks'!S7 & CHAR(10) &\n\"Working Questions & Notes: \" &'Maintenance Tasks'!T7& CHAR(10) &\n\" Contractor: \" &'Maintenance Tasks'!U7","v":"Repeating: Oct\n Project Tasks: \nWorking Questions & Notes: Larry Green 9-22-20 Yearly Routine\n Contractor: "},{"$f":"TEXT(VLOOKUP($K10,'Maintenance Tasks'!$B$2:$X$61,16,FALSE), \"YYYY-MM-DD\")","v":"2021-10-01"},{"$f":"TEXT(VLOOKUP($K10,'Maintenance Tasks'!$B$2:$X$61,17,FALSE), \"YYYY-MM-DD\")","v":"2021-10-31"},{"$f":"\"Repeating: \" & 'Maintenance Tasks'!M7 & CHAR(10) &\n\" Project Tasks: \" & 'Maintenance Tasks'!S7 & CHAR(10) &\n\"Working Questions & Notes: \" &'Maintenance Tasks'!T7& CHAR(10) &\n\" Contractor: \" &'Maintenance Tasks'!U7","v":"Repeating: Oct\n Project Tasks: \nWorking Questions & Notes: Larry Green 9-22-20 Yearly Routine\n Contractor: "},{"$f":"IF('Maintenance Task Assignments'!B7<>\"\", 'Maintenance Task Assignments'!B7,\"\")","v":"T06"},{"$f":"IFERROR(VLOOKUP($D10,'Property Task Managers'!$A$1:$O$31,7,FALSE),\"\")","v":"jim@tragesser.net   "}]
[{"$f":"VLOOKUP($K11,'Maintenance Tasks'!$B$2:$X$61,3,FALSE)","v":"Grounds"},{"$f":"VLOOKUP(K11,'Maintenance Tasks'!$B$2:$X$61,7,FALSE)","v":"T06 Blow Out Irrigation System"},{"$f":"VLOOKUP($K11,'Maintenance Tasks'!$B$2:$X$61,3,FALSE)","v":"Grounds"},{"$f":"IF('Maintenance Task Assignments'!B65<>\"\", 'Maintenance Task Assignments'!A65,\"\")","v":"DonW"},{"$f":"IF('Maintenance Task Assignments'!B65<>\"\", 'Maintenance Task Assignments'!D65,\"\")","v":"2nd"},{"$f":"VLOOKUP($K11,'Maintenance Tasks'!$B$2:$X$61,11,FALSE)","v":"Scheduled"},{"$f":"\"Repeating: \" & 'Maintenance Tasks'!M65 & CHAR(10) &\n\" Project Tasks: \" & 'Maintenance Tasks'!S65 & CHAR(10) &\n\"Working Questions & Notes: \" &'Maintenance Tasks'!T65& CHAR(10) &\n\" Contractor: \" &'Maintenance Tasks'!U65","v":"Repeating: \n Project Tasks: \nWorking Questions & Notes: \n Contractor: "},{"$f":"TEXT(VLOOKUP($K11,'Maintenance Tasks'!$B$2:$X$61,16,FALSE), \"YYYY-MM-DD\")","v":"2021-10-01"},{"$f":"TEXT(VLOOKUP($K11,'Maintenance Tasks'!$B$2:$X$61,17,FALSE), \"YYYY-MM-DD\")","v":"2021-10-31"},{"$f":"\"Repeating: \" & 'Maintenance Tasks'!M65 & CHAR(10) &\n\" Project Tasks: \" & 'Maintenance Tasks'!S65 & CHAR(10) &\n\"Working Questions & Notes: \" &'Maintenance Tasks'!T65& CHAR(10) &\n\" Contractor: \" &'Maintenance Tasks'!U65","v":"Repeating: \n Project Tasks: \nWorking Questions & Notes: \n Contractor: "},{"$f":"IF('Maintenance Task Assignments'!B65<>\"\", 'Maintenance Task Assignments'!B65,\"\")","v":"T06"},{"$f":"IFERROR(VLOOKUP($D11,'Property Task Managers'!$A$1:$O$31,7,FALSE),\"\")","v":"searigg@comcast.net"}]
[{"$f":"VLOOKUP($K12,'Maintenance Tasks'!$B$2:$X$61,3,FALSE)","v":"Treasurer"},{"$f":"VLOOKUP(K12,'Maintenance Tasks'!$B$2:$X$61,7,FALSE)","v":"T07 Budget"},{"$f":"VLOOKUP($K12,'Maintenance Tasks'!$B$2:$X$61,3,FALSE)","v":"Treasurer"},{"$f":"IF('Maintenance Task Assignments'!B8<>\"\", 'Maintenance Task Assignments'!A8,\"\")","v":"EarlS"},{"$f":"IF('Maintenance Task Assignments'!B8<>\"\", 'Maintenance Task Assignments'!D8,\"\")","v":"1st"},{"$f":"VLOOKUP($K12,'Maintenance Tasks'!$B$2:$X$61,11,FALSE)","v":"Scheduled"},{"$f":"\"Repeating: \" & 'Maintenance Tasks'!M8 & CHAR(10) &\n\" Project Tasks: \" & 'Maintenance Tasks'!S8 & CHAR(10) &\n\"Working Questions & Notes: \" &'Maintenance Tasks'!T8& CHAR(10) &\n\" Contractor: \" &'Maintenance Tasks'!U8","v":"Repeating: Annual, Oct\n Project Tasks: \nWorking Questions & Notes: \n Contractor: "},{"$f":"TEXT(VLOOKUP($K12,'Maintenance Tasks'!$B$2:$X$61,16,FALSE), \"YYYY-MM-DD\")","v":"2021-10-01"},{"$f":"TEXT(VLOOKUP($K12,'Maintenance Tasks'!$B$2:$X$61,17,FALSE), \"YYYY-MM-DD\")","v":"2021-11-15"},{"$f":"\"Repeating: \" & 'Maintenance Tasks'!M8 & CHAR(10) &\n\" Project Tasks: \" & 'Maintenance Tasks'!S8 & CHAR(10) &\n\"Working Questions & Notes: \" &'Maintenance Tasks'!T8& CHAR(10) &\n\" Contractor: \" &'Maintenance Tasks'!U8","v":"Repeating: Annual, Oct\n Project Tasks: \nWorking Questions & Notes: \n Contractor: "},{"$f":"IF('Maintenance Task Assignments'!B8<>\"\", 'Maintenance Task Assignments'!B8,\"\")","v":"T07"},{"$f":"IFERROR(VLOOKUP($D12,'Property Task Managers'!$A$1:$O$31,7,FALSE),\"\")","v":"ecsheneman@msn.com"}]
[{"$f":"VLOOKUP($K13,'Maintenance Tasks'!$B$2:$X$61,3,FALSE)","v":"Treasurer"},{"$f":"VLOOKUP(K13,'Maintenance Tasks'!$B$2:$X$61,7,FALSE)","v":"T07 Budget"},{"$f":"VLOOKUP($K13,'Maintenance Tasks'!$B$2:$X$61,3,FALSE)","v":"Treasurer"},{"$f":"IF('Maintenance Task Assignments'!B66<>\"\", 'Maintenance Task Assignments'!A66,\"\")","v":"Committee"},{"$f":"IF('Maintenance Task Assignments'!B66<>\"\", 'Maintenance Task Assignments'!D66,\"\")","v":"2nd"},{"$f":"VLOOKUP($K13,'Maintenance Tasks'!$B$2:$X$61,11,FALSE)","v":"Scheduled"},{"$f":"\"Repeating: \" & 'Maintenance Tasks'!M66 & CHAR(10) &\n\" Project Tasks: \" & 'Maintenance Tasks'!S66 & CHAR(10) &\n\"Working Questions & Notes: \" &'Maintenance Tasks'!T66& CHAR(10) &\n\" Contractor: \" &'Maintenance Tasks'!U66","v":"Repeating: \n Project Tasks: \nWorking Questions & Notes: \n Contractor: "},{"$f":"TEXT(VLOOKUP($K13,'Maintenance Tasks'!$B$2:$X$61,16,FALSE), \"YYYY-MM-DD\")","v":"2021-10-01"},{"$f":"TEXT(VLOOKUP($K13,'Maintenance Tasks'!$B$2:$X$61,17,FALSE), \"YYYY-MM-DD\")","v":"2021-11-15"},{"$f":"\"Repeating: \" & 'Maintenance Tasks'!M66 & CHAR(10) &\n\" Project Tasks: \" & 'Maintenance Tasks'!S66 & CHAR(10) &\n\"Working Questions & Notes: \" &'Maintenance Tasks'!T66& CHAR(10) &\n\" Contractor: \" &'Maintenance Tasks'!U66","v":"Repeating: \n Project Tasks: \nWorking Questions & Notes: \n Contractor: "},{"$f":"IF('Maintenance Task Assignments'!B66<>\"\", 'Maintenance Task Assignments'!B66,\"\")","v":"T07"},{"$f":"IFERROR(VLOOKUP($D13,'Property Task Managers'!$A$1:$O$31,7,FALSE),\"\")","v":""}]
[{"$f":"VLOOKUP($K14,'Maintenance Tasks'!$B$2:$X$61,3,FALSE)","v":"InfoTech"},{"$f":"VLOOKUP(K14,'Maintenance Tasks'!$B$2:$X$61,7,FALSE)","v":"T08 Calendar Setup/Printing"},{"$f":"VLOOKUP($K14,'Maintenance Tasks'!$B$2:$X$61,3,FALSE)","v":"InfoTech"},{"$f":"IF('Maintenance Task Assignments'!B9<>\"\", 'Maintenance Task Assignments'!A9,\"\")","v":"Pete A"},{"$f":"IF('Maintenance Task Assignments'!B9<>\"\", 'Maintenance Task Assignments'!D9,\"\")","v":"1st"},{"$f":"VLOOKUP($K14,'Maintenance Tasks'!$B$2:$X$61,11,FALSE)","v":"Repeating "},{"$f":"\"Repeating: \" & 'Maintenance Tasks'!M9 & CHAR(10) &\n\" Project Tasks: \" & 'Maintenance Tasks'!S9 & CHAR(10) &\n\"Working Questions & Notes: \" &'Maintenance Tasks'!T9& CHAR(10) &\n\" Contractor: \" &'Maintenance Tasks'!U9","v":"Repeating: Monthly, Jan, Jul\n Project Tasks: IT Update; birthdays; social\nWorking Questions & Notes: Clubhouse Print & Website\n Contractor: "},{"$f":"TEXT(VLOOKUP($K14,'Maintenance Tasks'!$B$2:$X$61,16,FALSE), \"YYYY-MM-DD\")","v":"2021-06-16"},{"$f":"TEXT(VLOOKUP($K14,'Maintenance Tasks'!$B$2:$X$61,17,FALSE), \"YYYY-MM-DD\")","v":"2021-06-26"},{"$f":"\"Repeating: \" & 'Maintenance Tasks'!M9 & CHAR(10) &\n\" Project Tasks: \" & 'Maintenance Tasks'!S9 & CHAR(10) &\n\"Working Questions & Notes: \" &'Maintenance Tasks'!T9& CHAR(10) &\n\" Contractor: \" &'Maintenance Tasks'!U9","v":"Repeating: Monthly, Jan, Jul\n Project Tasks: IT Update; birthdays; social\nWorking Questions & Notes: Clubhouse Print & Website\n Contractor: "},{"$f":"IF('Maintenance Task Assignments'!B9<>\"\", 'Maintenance Task Assignments'!B9,\"\")","v":"T08"},{"$f":"IFERROR(VLOOKUP($D14,'Property Task Managers'!$A$1:$O$31,7,FALSE),\"\")","v":"optionzz@outlook.com"}]
[{"$f":"VLOOKUP($K15,'Maintenance Tasks'!$B$2:$X$61,3,FALSE)","v":"Clubhouse"},{"$f":"VLOOKUP(K15,'Maintenance Tasks'!$B$2:$X$61,7,FALSE)","v":"T09 Carpet Cleaning"},{"$f":"VLOOKUP($K15,'Maintenance Tasks'!$B$2:$X$61,3,FALSE)","v":"Clubhouse"},{"$f":"IF('Maintenance Task Assignments'!B10<>\"\", 'Maintenance Task Assignments'!A10,\"\")","v":"NettieP"},{"$f":"IF('Maintenance Task Assignments'!B10<>\"\", 'Maintenance Task Assignments'!D10,\"\")","v":"1st"},{"$f":"VLOOKUP($K15,'Maintenance Tasks'!$B$2:$X$61,11,FALSE)","v":"Repeating "},{"$f":"\"Repeating: \" & 'Maintenance Tasks'!M10 & CHAR(10) &\n\" Project Tasks: \" & 'Maintenance Tasks'!S10 & CHAR(10) &\n\"Working Questions & Notes: \" &'Maintenance Tasks'!T10& CHAR(10) &\n\" Contractor: \" &'Maintenance Tasks'!U10","v":"Repeating: Bi-Monthly, Mar, May, Jul, Sep, Nov\n Project Tasks: As needed; check monthly\nWorking Questions & Notes: \n Contractor: "},{"$f":"TEXT(VLOOKUP($K15,'Maintenance Tasks'!$B$2:$X$61,16,FALSE), \"YYYY-MM-DD\")","v":"2021-04-03"},{"$f":"TEXT(VLOOKUP($K15,'Maintenance Tasks'!$B$2:$X$61,17,FALSE), \"YYYY-MM-DD\")","v":"2021-04-03"},{"$f":"\"Repeating: \" & 'Maintenance Tasks'!M10 & CHAR(10) &\n\" Project Tasks: \" & 'Maintenance Tasks'!S10 & CHAR(10) &\n\"Working Questions & Notes: \" &'Maintenance Tasks'!T10& CHAR(10) &\n\" Contractor: \" &'Maintenance Tasks'!U10","v":"Repeating: Bi-Monthly, Mar, May, Jul, Sep, Nov\n Project Tasks: As needed; check monthly\nWorking Questions & Notes: \n Contractor: "},{"$f":"IF('Maintenance Task Assignments'!B10<>\"\", 'Maintenance Task Assignments'!B10,\"\")","v":"T09"},{"$f":"IFERROR(VLOOKUP($D15,'Property Task Managers'!$A$1:$O$31,7,FALSE),\"\")","v":"nettie.p@comcast.net"}]
[{"$f":"VLOOKUP($K16,'Maintenance Tasks'!$B$2:$X$61,3,FALSE)","v":"Management"},{"$f":"VLOOKUP(K16,'Maintenance Tasks'!$B$2:$X$61,7,FALSE)","v":"T10 CC&R's, By-laws & Rules & Regs"},{"$f":"VLOOKUP($K16,'Maintenance Tasks'!$B$2:$X$61,3,FALSE)","v":"Management"},{"$f":"IF('Maintenance Task Assignments'!B11<>\"\", 'Maintenance Task Assignments'!A11,\"\")","v":"JoanneW"},{"$f":"IF('Maintenance Task Assignments'!B11<>\"\", 'Maintenance Task Assignments'!D11,\"\")","v":"1st"},{"$f":"VLOOKUP($K16,'Maintenance Tasks'!$B$2:$X$61,11,FALSE)","v":"As Needed"},{"$f":"\"Repeating: \" & 'Maintenance Tasks'!M11 & CHAR(10) &\n\" Project Tasks: \" & 'Maintenance Tasks'!S11 & CHAR(10) &\n\"Working Questions & Notes: \" &'Maintenance Tasks'!T11& CHAR(10) &\n\" Contractor: \" &'Maintenance Tasks'!U11","v":"Repeating: None\n Project Tasks: \nWorking Questions & Notes: \n Contractor: "},{"$f":"TEXT(VLOOKUP($K16,'Maintenance Tasks'!$B$2:$X$61,16,FALSE), \"YYYY-MM-DD\")","v":"2021-01-01"},{"$f":"TEXT(VLOOKUP($K16,'Maintenance Tasks'!$B$2:$X$61,17,FALSE), \"YYYY-MM-DD\")","v":"2021-12-31"},{"$f":"\"Repeating: \" & 'Maintenance Tasks'!M11 & CHAR(10) &\n\" Project Tasks: \" & 'Maintenance Tasks'!S11 & CHAR(10) &\n\"Working Questions & Notes: \" &'Maintenance Tasks'!T11& CHAR(10) &\n\" Contractor: \" &'Maintenance Tasks'!U11","v":"Repeating: None\n Project Tasks: \nWorking Questions & Notes: \n Contractor: "},{"$f":"IF('Maintenance Task Assignments'!B11<>\"\", 'Maintenance Task Assignments'!B11,\"\")","v":"T10"},{"$f":"IFERROR(VLOOKUP($D16,'Property Task Managers'!$A$1:$O$31,7,FALSE),\"\")","v":"jsw4804@gmail.com"}]
[{"$f":"VLOOKUP($K17,'Maintenance Tasks'!$B$2:$X$61,3,FALSE)","v":"Management"},{"$f":"VLOOKUP(K17,'Maintenance Tasks'!$B$2:$X$61,7,FALSE)","v":"T10 CC&R's, By-laws & Rules & Regs"},{"$f":"VLOOKUP($K17,'Maintenance Tasks'!$B$2:$X$61,3,FALSE)","v":"Management"},{"$f":"IF('Maintenance Task Assignments'!B67<>\"\", 'Maintenance Task Assignments'!A67,\"\")","v":"LindaS"},{"$f":"IF('Maintenance Task Assignments'!B67<>\"\", 'Maintenance Task Assignments'!D67,\"\")","v":"2nd"},{"$f":"VLOOKUP($K17,'Maintenance Tasks'!$B$2:$X$61,11,FALSE)","v":"As Needed"},{"$f":"\"Repeating: \" & 'Maintenance Tasks'!M67 & CHAR(10) &\n\" Project Tasks: \" & 'Maintenance Tasks'!S67 & CHAR(10) &\n\"Working Questions & Notes: \" &'Maintenance Tasks'!T67& CHAR(10) &\n\" Contractor: \" &'Maintenance Tasks'!U67","v":"Repeating: \n Project Tasks: \nWorking Questions & Notes: \n Contractor: "},{"$f":"TEXT(VLOOKUP($K17,'Maintenance Tasks'!$B$2:$X$61,16,FALSE), \"YYYY-MM-DD\")","v":"2021-01-01"},{"$f":"TEXT(VLOOKUP($K17,'Maintenance Tasks'!$B$2:$X$61,17,FALSE), \"YYYY-MM-DD\")","v":"2021-12-31"},{"$f":"\"Repeating: \" & 'Maintenance Tasks'!M67 & CHAR(10) &\n\" Project Tasks: \" & 'Maintenance Tasks'!S67 & CHAR(10) &\n\"Working Questions & Notes: \" &'Maintenance Tasks'!T67& CHAR(10) &\n\" Contractor: \" &'Maintenance Tasks'!U67","v":"Repeating: \n Project Tasks: \nWorking Questions & Notes: \n Contractor: "},{"$f":"IF('Maintenance Task Assignments'!B67<>\"\", 'Maintenance Task Assignments'!B67,\"\")","v":"T10"},{"$f":"IFERROR(VLOOKUP($D17,'Property Task Managers'!$A$1:$O$31,7,FALSE),\"\")","v":"LindaLSheeks@gmail.com"}]
[{"$f":"VLOOKUP($K18,'Maintenance Tasks'!$B$2:$X$61,3,FALSE)","v":"Sitewide"},{"$f":"VLOOKUP(K18,'Maintenance Tasks'!$B$2:$X$61,7,FALSE)","v":"T11 Check Entrance Sign for Repainting"},{"$f":"VLOOKUP($K18,'Maintenance Tasks'!$B$2:$X$61,3,FALSE)","v":"Sitewide"},{"$f":"IF('Maintenance Task Assignments'!B12<>\"\", 'Maintenance Task Assignments'!A12,\"\")","v":"BeverlyB"},{"$f":"IF('Maintenance Task Assignments'!B12<>\"\", 'Maintenance Task Assignments'!D12,\"\")","v":"1st"},{"$f":"VLOOKUP($K18,'Maintenance Tasks'!$B$2:$X$61,11,FALSE)","v":"Scheduled"},{"$f":"\"Repeating: \" & 'Maintenance Tasks'!M12 & CHAR(10) & \" Project Tasks: \" & 'Maintenance Tasks'!S12 & CHAR(10) & \"Working Questions & Notes: \" &'Maintenance Tasks'!T12& CHAR(10) & \" Contractor: \" &'Maintenance Tasks'!U12","v":"Repeating: Annual, Mar\n Project Tasks: \nWorking Questions & Notes: Larry Green 9-22-20 Yearly Routine\n Contractor: "},{"$f":"TEXT(VLOOKUP($K18,'Maintenance Tasks'!$B$2:$X$61,16,FALSE), \"YYYY-MM-DD\")","v":"2021-03-10"},{"$f":"TEXT(VLOOKUP($K18,'Maintenance Tasks'!$B$2:$X$61,17,FALSE), \"YYYY-MM-DD\")","v":"2021-03-31"},{"$f":"\"Repeating: \" & 'Maintenance Tasks'!M12 & CHAR(10) &\n\" Project Tasks: \" & 'Maintenance Tasks'!S12 & CHAR(10) &\n\"Working Questions & Notes: \" &'Maintenance Tasks'!T12& CHAR(10) &\n\" Contractor: \" &'Maintenance Tasks'!U12","v":"Repeating: Annual, Mar\n Project Tasks: \nWorking Questions & Notes: Larry Green 9-22-20 Yearly Routine\n Contractor: "},{"$f":"IF('Maintenance Task Assignments'!B12<>\"\", 'Maintenance Task Assignments'!B12,\"\")","v":"T11"},{"$f":"IFERROR(VLOOKUP($D18,'Property Task Managers'!$A$1:$O$31,7,FALSE),\"\")","v":"searigg@comcast.net"}]
[{"$f":"VLOOKUP($K19,'Maintenance Tasks'!$B$2:$X$61,3,FALSE)","v":"Sitewide"},{"$f":"VLOOKUP(K19,'Maintenance Tasks'!$B$2:$X$61,7,FALSE)","v":"T11 Check Entrance Sign for Repainting"},{"$f":"VLOOKUP($K19,'Maintenance Tasks'!$B$2:$X$61,3,FALSE)","v":"Sitewide"},{"$f":"IF('Maintenance Task Assignments'!B68<>\"\", 'Maintenance Task Assignments'!A68,\"\")","v":"JoanneW"},{"$f":"IF('Maintenance Task Assignments'!B68<>\"\", 'Maintenance Task Assignments'!D68,\"\")","v":"2nd"},{"$f":"VLOOKUP($K19,'Maintenance Tasks'!$B$2:$X$61,11,FALSE)","v":"Scheduled"},{"$f":"\"Repeating: \" & 'Maintenance Tasks'!M68 & CHAR(10) &\n\" Project Tasks: \" & 'Maintenance Tasks'!S68 & CHAR(10) &\n\"Working Questions & Notes: \" &'Maintenance Tasks'!T68& CHAR(10) &\n\" Contractor: \" &'Maintenance Tasks'!U68","v":"Repeating: \n Project Tasks: \nWorking Questions & Notes: \n Contractor: "},{"$f":"TEXT(VLOOKUP($K19,'Maintenance Tasks'!$B$2:$X$61,16,FALSE), \"YYYY-MM-DD\")","v":"2021-03-10"},{"$f":"TEXT(VLOOKUP($K19,'Maintenance Tasks'!$B$2:$X$61,17,FALSE), \"YYYY-MM-DD\")","v":"2021-03-31"},{"$f":"\"Repeating: \" & 'Maintenance Tasks'!M68 & CHAR(10) &\n\" Project Tasks: \" & 'Maintenance Tasks'!S68 & CHAR(10) &\n\"Working Questions & Notes: \" &'Maintenance Tasks'!T68& CHAR(10) &\n\" Contractor: \" &'Maintenance Tasks'!U68","v":"Repeating: \n Project Tasks: \nWorking Questions & Notes: \n Contractor: "},{"$f":"IF('Maintenance Task Assignments'!B68<>\"\", 'Maintenance Task Assignments'!B68,\"\")","v":"T11"},{"$f":"IFERROR(VLOOKUP($D19,'Property Task Managers'!$A$1:$O$31,7,FALSE),\"\")","v":"jsw4804@gmail.com"}]
[{"$f":"VLOOKUP($K20,'Maintenance Tasks'!$B$2:$X$61,3,FALSE)","v":"Sitewide"},{"$f":"VLOOKUP(K20,'Maintenance Tasks'!$B$2:$X$61,7,FALSE)","v":"T12 Dryer Vent Cleaning"},{"$f":"VLOOKUP($K20,'Maintenance Tasks'!$B$2:$X$61,3,FALSE)","v":"Sitewide"},{"$f":"IF('Maintenance Task Assignments'!B13<>\"\", 'Maintenance Task Assignments'!A13,\"\")","v":"BeverlyB"},{"$f":"IF('Maintenance Task Assignments'!B13<>\"\", 'Maintenance Task Assignments'!D13,\"\")","v":"1st"},{"$f":"VLOOKUP($K20,'Maintenance Tasks'!$B$2:$X$61,11,FALSE)","v":"Scheduled"},{"$f":"\"Repeating: \" & 'Maintenance Tasks'!M13 & CHAR(10) &\n\" Project Tasks: \" & 'Maintenance Tasks'!S13 & CHAR(10) &\n\"Working Questions & Notes: \" &'Maintenance Tasks'!T13& CHAR(10) &\n\" Contractor: \" &'Maintenance Tasks'!U13","v":"Repeating: Semi-Annual\n Project Tasks: Every other year Even Number\nWorking Questions & Notes: Larry Green 9-22-20 Yearly Routine\n Contractor: Andgar Corp"},{"$f":"TEXT(VLOOKUP($K20,'Maintenance Tasks'!$B$2:$X$61,16,FALSE), \"YYYY-MM-DD\")","v":"2022-06-02"},{"$f":"TEXT(VLOOKUP($K20,'Maintenance Tasks'!$B$2:$X$61,17,FALSE), \"YYYY-MM-DD\")","v":"2022-06-30"},{"$f":"\"Repeating: \" & 'Maintenance Tasks'!M13 & CHAR(10) &\n\" Project Tasks: \" & 'Maintenance Tasks'!S13 & CHAR(10) &\n\"Working Questions & Notes: \" &'Maintenance Tasks'!T13& CHAR(10) &\n\" Contractor: \" &'Maintenance Tasks'!U13","v":"Repeating: Semi-Annual\n Project Tasks: Every other year Even Number\nWorking Questions & Notes: Larry Green 9-22-20 Yearly Routine\n Contractor: Andgar Corp"},{"$f":"IF('Maintenance Task Assignments'!B13<>\"\", 'Maintenance Task Assignments'!B13,\"\")","v":"T12"},{"$f":"IFERROR(VLOOKUP($D20,'Property Task Managers'!$A$1:$O$31,7,FALSE),\"\")","v":"searigg@comcast.net"}]
[{"$f":"VLOOKUP($K21,'Maintenance Tasks'!$B$2:$X$61,3,FALSE)","v":"Units"},{"$f":"VLOOKUP(K21,'Maintenance Tasks'!$B$2:$X$61,7,FALSE)","v":"T13 Emergency Preparedness"},{"$f":"VLOOKUP($K21,'Maintenance Tasks'!$B$2:$X$61,3,FALSE)","v":"Units"},{"$f":"IF('Maintenance Task Assignments'!B14<>\"\", 'Maintenance Task Assignments'!A14,\"\")","v":"CherieT"},{"$f":"IF('Maintenance Task Assignments'!B14<>\"\", 'Maintenance Task Assignments'!D14,\"\")","v":"1st"},{"$f":"VLOOKUP($K21,'Maintenance Tasks'!$B$2:$X$61,11,FALSE)","v":"As Needed"},{"$f":"\"Repeating: \" & 'Maintenance Tasks'!M14 & CHAR(10) &\n\" Project Tasks: \" & 'Maintenance Tasks'!S14 & CHAR(10) &\n\"Working Questions & Notes: \" &'Maintenance Tasks'!T14& CHAR(10) &\n\" Contractor: \" &'Maintenance Tasks'!U14","v":"Repeating: None\n Project Tasks: \nWorking Questions & Notes: \n Contractor: "},{"$f":"TEXT(VLOOKUP($K21,'Maintenance Tasks'!$B$2:$X$61,16,FALSE), \"YYYY-MM-DD\")","v":"2021-01-01"},{"$f":"TEXT(VLOOKUP($K21,'Maintenance Tasks'!$B$2:$X$61,17,FALSE), \"YYYY-MM-DD\")","v":"2021-12-31"},{"$f":"\"Repeating: \" & 'Maintenance Tasks'!M14 & CHAR(10) &\n\" Project Tasks: \" & 'Maintenance Tasks'!S14 & CHAR(10) &\n\"Working Questions & Notes: \" &'Maintenance Tasks'!T14& CHAR(10) &\n\" Contractor: \" &'Maintenance Tasks'!U14","v":"Repeating: None\n Project Tasks: \nWorking Questions & Notes: \n Contractor: "},{"$f":"IF('Maintenance Task Assignments'!B14<>\"\", 'Maintenance Task Assignments'!B14,\"\")","v":"T13"},{"$f":"IFERROR(VLOOKUP($D21,'Property Task Managers'!$A$1:$O$31,7,FALSE),\"\")","v":"cheriethomas49@comcast.net"}]
[{"$f":"VLOOKUP($K22,'Maintenance Tasks'!$B$2:$X$61,3,FALSE)","v":"Units"},{"$f":"VLOOKUP(K22,'Maintenance Tasks'!$B$2:$X$61,7,FALSE)","v":"T13 Emergency Preparedness"},{"$f":"VLOOKUP($K22,'Maintenance Tasks'!$B$2:$X$61,3,FALSE)","v":"Units"},{"$f":"IF('Maintenance Task Assignments'!B69<>\"\", 'Maintenance Task Assignments'!A69,\"\")","v":"LynnK"},{"$f":"IF('Maintenance Task Assignments'!B69<>\"\", 'Maintenance Task Assignments'!D69,\"\")","v":"2nd"},{"$f":"VLOOKUP($K22,'Maintenance Tasks'!$B$2:$X$61,11,FALSE)","v":"As Needed"},{"$f":"\"Repeating: \" & 'Maintenance Tasks'!M69 & CHAR(10) &\n\" Project Tasks: \" & 'Maintenance Tasks'!S69 & CHAR(10) &\n\"Working Questions & Notes: \" &'Maintenance Tasks'!T69& CHAR(10) &\n\" Contractor: \" &'Maintenance Tasks'!U69","v":"Repeating: \n Project Tasks: \nWorking Questions & Notes: \n Contractor: "},{"$f":"TEXT(VLOOKUP($K22,'Maintenance Tasks'!$B$2:$X$61,16,FALSE), \"YYYY-MM-DD\")","v":"2021-01-01"},{"$f":"TEXT(VLOOKUP($K22,'Maintenance Tasks'!$B$2:$X$61,17,FALSE), \"YYYY-MM-DD\")","v":"2021-12-31"},{"$f":"\"Repeating: \" & 'Maintenance Tasks'!M69 & CHAR(10) &\n\" Project Tasks: \" & 'Maintenance Tasks'!S69 & CHAR(10) &\n\"Working Questions & Notes: \" &'Maintenance Tasks'!T69& CHAR(10) &\n\" Contractor: \" &'Maintenance Tasks'!U69","v":"Repeating: \n Project Tasks: \nWorking Questions & Notes: \n Contractor: "},{"$f":"IF('Maintenance Task Assignments'!B69<>\"\", 'Maintenance Task Assignments'!B69,\"\")","v":"T13"},{"$f":"IFERROR(VLOOKUP($D22,'Property Task Managers'!$A$1:$O$31,7,FALSE),\"\")","v":"l.kirlin@icloud.com"}]
[{"$f":"VLOOKUP($K23,'Maintenance Tasks'!$B$2:$X$61,3,FALSE)","v":"Clubhouse"},{"$f":"VLOOKUP(K23,'Maintenance Tasks'!$B$2:$X$61,7,FALSE)","v":"T14 Fire Extinguisher Inspection"},{"$f":"VLOOKUP($K23,'Maintenance Tasks'!$B$2:$X$61,3,FALSE)","v":"Clubhouse"},{"$f":"IF('Maintenance Task Assignments'!B15<>\"\", 'Maintenance Task Assignments'!A15,\"\")","v":"SheilaJ"},{"$f":"IF('Maintenance Task Assignments'!B15<>\"\", 'Maintenance Task Assignments'!D15,\"\")","v":"1st"},{"$f":"VLOOKUP($K23,'Maintenance Tasks'!$B$2:$X$61,11,FALSE)","v":"Scheduled"},{"$f":"\"Repeating: \" & 'Maintenance Tasks'!M15 & CHAR(10) &\n\" Project Tasks: \" & 'Maintenance Tasks'!S15 & CHAR(10) &\n\"Working Questions & Notes: \" &'Maintenance Tasks'!T15& CHAR(10) &\n\" Contractor: \" &'Maintenance Tasks'!U15","v":"Repeating: Bi-Annual\n Project Tasks: Check\nWorking Questions & Notes: \n Contractor: Security Solutions"},{"$f":"TEXT(VLOOKUP($K23,'Maintenance Tasks'!$B$2:$X$61,16,FALSE), \"YYYY-MM-DD\")","v":"2021-06-01"},{"$f":"TEXT(VLOOKUP($K23,'Maintenance Tasks'!$B$2:$X$61,17,FALSE), \"YYYY-MM-DD\")","v":"2021-06-30"},{"$f":"\"Repeating: \" & 'Maintenance Tasks'!M15 & CHAR(10) &\n\" Project Tasks: \" & 'Maintenance Tasks'!S15 & CHAR(10) &\n\"Working Questions & Notes: \" &'Maintenance Tasks'!T15& CHAR(10) &\n\" Contractor: \" &'Maintenance Tasks'!U15","v":"Repeating: Bi-Annual\n Project Tasks: Check\nWorking Questions & Notes: \n Contractor: Security Solutions"},{"$f":"IF('Maintenance Task Assignments'!B15<>\"\", 'Maintenance Task Assignments'!B15,\"\")","v":"T14"},{"$f":"IFERROR(VLOOKUP($D23,'Property Task Managers'!$A$1:$O$31,7,FALSE),\"\")","v":"sheilajohansen47@gmail.com"}]
[{"$f":"VLOOKUP($K24,'Maintenance Tasks'!$B$2:$X$61,3,FALSE)","v":"Units"},{"$f":"VLOOKUP(K24,'Maintenance Tasks'!$B$2:$X$61,7,FALSE)","v":"T16 Garage Door Openers"},{"$f":"VLOOKUP($K24,'Maintenance Tasks'!$B$2:$X$61,3,FALSE)","v":"Units"},{"$f":"IF('Maintenance Task Assignments'!B16<>\"\", 'Maintenance Task Assignments'!A16,\"\")","v":"CarlG"},{"$f":"IF('Maintenance Task Assignments'!B16<>\"\", 'Maintenance Task Assignments'!D16,\"\")","v":"1st"},{"$f":"VLOOKUP($K24,'Maintenance Tasks'!$B$2:$X$61,11,FALSE)","v":"As Needed"},{"$f":"\"Repeating: \" & 'Maintenance Tasks'!M16 & CHAR(10) &\n\" Project Tasks: \" & 'Maintenance Tasks'!S16 & CHAR(10) &\n\"Working Questions & Notes: \" &'Maintenance Tasks'!T16& CHAR(10) &\n\" Contractor: \" &'Maintenance Tasks'!U16","v":"Repeating: None\n Project Tasks: Replace if not repairable\nWorking Questions & Notes: \n Contractor: "},{"$f":"TEXT(VLOOKUP($K24,'Maintenance Tasks'!$B$2:$X$61,16,FALSE), \"YYYY-MM-DD\")","v":"2021-01-01"},{"$f":"TEXT(VLOOKUP($K24,'Maintenance Tasks'!$B$2:$X$61,17,FALSE), \"YYYY-MM-DD\")","v":"2021-12-31"},{"$f":"\"Repeating: \" & 'Maintenance Tasks'!M16 & CHAR(10) &\n\" Project Tasks: \" & 'Maintenance Tasks'!S16 & CHAR(10) &\n\"Working Questions & Notes: \" &'Maintenance Tasks'!T16& CHAR(10) &\n\" Contractor: \" &'Maintenance Tasks'!U16","v":"Repeating: None\n Project Tasks: Replace if not repairable\nWorking Questions & Notes: \n Contractor: "},{"$f":"IF('Maintenance Task Assignments'!B16<>\"\", 'Maintenance Task Assignments'!B16,\"\")","v":"T16"},{"$f":"IFERROR(VLOOKUP($D24,'Property Task Managers'!$A$1:$O$31,7,FALSE),\"\")","v":"grant_carl@hotmail.com"}]
[{"$f":"VLOOKUP($K25,'Maintenance Tasks'!$B$2:$X$61,3,FALSE)","v":"Units"},{"$f":"VLOOKUP(K25,'Maintenance Tasks'!$B$2:$X$61,7,FALSE)","v":"T17 Garage Doors"},{"$f":"VLOOKUP($K25,'Maintenance Tasks'!$B$2:$X$61,3,FALSE)","v":"Units"},{"$f":"IF('Maintenance Task Assignments'!B17<>\"\", 'Maintenance Task Assignments'!A17,\"\")","v":"CarlG"},{"$f":"IF('Maintenance Task Assignments'!B17<>\"\", 'Maintenance Task Assignments'!D17,\"\")","v":"1st"},{"$f":"VLOOKUP($K25,'Maintenance Tasks'!$B$2:$X$61,11,FALSE)","v":"As Needed"},{"$f":"\"Repeating: \" & 'Maintenance Tasks'!M17 & CHAR(10) &\n\" Project Tasks: \" & 'Maintenance Tasks'!S17 & CHAR(10) &\n\"Working Questions & Notes: \" &'Maintenance Tasks'!T17& CHAR(10) &\n\" Contractor: \" &'Maintenance Tasks'!U17","v":"Repeating: None\n Project Tasks: Replace old style \nWorking Questions & Notes: \n Contractor: "},{"$f":"TEXT(VLOOKUP($K25,'Maintenance Tasks'!$B$2:$X$61,16,FALSE), \"YYYY-MM-DD\")","v":"2021-01-01"},{"$f":"TEXT(VLOOKUP($K25,'Maintenance Tasks'!$B$2:$X$61,17,FALSE), \"YYYY-MM-DD\")","v":"2021-12-31"},{"$f":"\"Repeating: \" & 'Maintenance Tasks'!M17 & CHAR(10) &\n\" Project Tasks: \" & 'Maintenance Tasks'!S17 & CHAR(10) &\n\"Working Questions & Notes: \" &'Maintenance Tasks'!T17& CHAR(10) &\n\" Contractor: \" &'Maintenance Tasks'!U17","v":"Repeating: None\n Project Tasks: Replace old style \nWorking Questions & Notes: \n Contractor: "},{"$f":"IF('Maintenance Task Assignments'!B17<>\"\", 'Maintenance Task Assignments'!B17,\"\")","v":"T17"},{"$f":"IFERROR(VLOOKUP($D25,'Property Task Managers'!$A$1:$O$31,7,FALSE),\"\")","v":"grant_carl@hotmail.com"}]
[{"$f":"VLOOKUP($K26,'Maintenance Tasks'!$B$2:$X$61,3,FALSE)","v":"Clubhouse"},{"$f":"VLOOKUP(K26,'Maintenance Tasks'!$B$2:$X$61,7,FALSE)","v":"T18 General Cleaning"},{"$f":"VLOOKUP($K26,'Maintenance Tasks'!$B$2:$X$61,3,FALSE)","v":"Clubhouse"},{"$f":"IF('Maintenance Task Assignments'!B18<>\"\", 'Maintenance Task Assignments'!A18,\"\")","v":"NettieP"},{"$f":"IF('Maintenance Task Assignments'!B18<>\"\", 'Maintenance Task Assignments'!D18,\"\")","v":"1st"},{"$f":"VLOOKUP($K26,'Maintenance Tasks'!$B$2:$X$61,11,FALSE)","v":"Scheduled"},{"$f":"\"Repeating: \" & 'Maintenance Tasks'!M18 & CHAR(10) &\n\" Project Tasks: \" & 'Maintenance Tasks'!S18 & CHAR(10) &\n\"Working Questions & Notes: \" &'Maintenance Tasks'!T18& CHAR(10) &\n\" Contractor: \" &'Maintenance Tasks'!U18","v":"Repeating: Bi-Monthly, Mar, Apr\n Project Tasks: \nWorking Questions & Notes: \n Contractor: "},{"$f":"TEXT(VLOOKUP($K26,'Maintenance Tasks'!$B$2:$X$61,16,FALSE), \"YYYY-MM-DD\")","v":"2021-03-01"},{"$f":"TEXT(VLOOKUP($K26,'Maintenance Tasks'!$B$2:$X$61,17,FALSE), \"YYYY-MM-DD\")","v":"2021-03-01"},{"$f":"\"Repeating: \" & 'Maintenance Tasks'!M18 & CHAR(10) &\n\" Project Tasks: \" & 'Maintenance Tasks'!S18 & CHAR(10) &\n\"Working Questions & Notes: \" &'Maintenance Tasks'!T18& CHAR(10) &\n\" Contractor: \" &'Maintenance Tasks'!U18","v":"Repeating: Bi-Monthly, Mar, Apr\n Project Tasks: \nWorking Questions & Notes: \n Contractor: "},{"$f":"IF('Maintenance Task Assignments'!B18<>\"\", 'Maintenance Task Assignments'!B18,\"\")","v":"T18"},{"$f":"IFERROR(VLOOKUP($D26,'Property Task Managers'!$A$1:$O$31,7,FALSE),\"\")","v":"nettie.p@comcast.net"}]
[{"$f":"VLOOKUP($K27,'Maintenance Tasks'!$B$2:$X$61,3,FALSE)","v":"Units"},{"$f":"VLOOKUP(K27,'Maintenance Tasks'!$B$2:$X$61,7,FALSE)","v":"T19 Clean Gutters"},{"$f":"VLOOKUP($K27,'Maintenance Tasks'!$B$2:$X$61,3,FALSE)","v":"Units"},{"$f":"IF('Maintenance Task Assignments'!B19<>\"\", 'Maintenance Task Assignments'!A19,\"\")","v":"JimT"},{"$f":"IF('Maintenance Task Assignments'!B19<>\"\", 'Maintenance Task Assignments'!D19,\"\")","v":"1st"},{"$f":"VLOOKUP($K27,'Maintenance Tasks'!$B$2:$X$61,11,FALSE)","v":"Scheduled"},{"$f":"\"Repeating: \" & 'Maintenance Tasks'!M19 & CHAR(10) &\n\" Project Tasks: \" & 'Maintenance Tasks'!S19 & CHAR(10) &\n\"Working Questions & Notes: \" &'Maintenance Tasks'!T19& CHAR(10) &\n\" Contractor: \" &'Maintenance Tasks'!U19","v":"Repeating: Nov\n Project Tasks: When All the Leaves Are Down\nWorking Questions & Notes: Larry Green 9-22-20 Yearly Routine \n Contractor: Custom Cut Landscaping"},{"$f":"TEXT(VLOOKUP($K27,'Maintenance Tasks'!$B$2:$X$61,16,FALSE), \"YYYY-MM-DD\")","v":"2021-01-01"},{"$f":"TEXT(VLOOKUP($K27,'Maintenance Tasks'!$B$2:$X$61,17,FALSE), \"YYYY-MM-DD\")","v":"2021-12-31"},{"$f":"\"Repeating: \" & 'Maintenance Tasks'!M19 & CHAR(10) &\n\" Project Tasks: \" & 'Maintenance Tasks'!S19 & CHAR(10) &\n\"Working Questions & Notes: \" &'Maintenance Tasks'!T19& CHAR(10) &\n\" Contractor: \" &'Maintenance Tasks'!U19","v":"Repeating: Nov\n Project Tasks: When All the Leaves Are Down\nWorking Questions & Notes: Larry Green 9-22-20 Yearly Routine \n Contractor: Custom Cut Landscaping"},{"$f":"IF('Maintenance Task Assignments'!B19<>\"\", 'Maintenance Task Assignments'!B19,\"\")","v":"T19"},{"$f":"IFERROR(VLOOKUP($D27,'Property Task Managers'!$A$1:$O$31,7,FALSE),\"\")","v":"jim@tragesser.net   "}]
[{"$f":"VLOOKUP($K28,'Maintenance Tasks'!$B$2:$X$61,3,FALSE)","v":"Units"},{"$f":"VLOOKUP(K28,'Maintenance Tasks'!$B$2:$X$61,7,FALSE)","v":"T19 Clean Gutters"},{"$f":"VLOOKUP($K28,'Maintenance Tasks'!$B$2:$X$61,3,FALSE)","v":"Units"},{"$f":"IF('Maintenance Task Assignments'!B70<>\"\", 'Maintenance Task Assignments'!A70,\"\")","v":"DonW"},{"$f":"IF('Maintenance Task Assignments'!B70<>\"\", 'Maintenance Task Assignments'!D70,\"\")","v":"2nd"},{"$f":"VLOOKUP($K28,'Maintenance Tasks'!$B$2:$X$61,11,FALSE)","v":"Scheduled"},{"$f":"\"Repeating: \" & 'Maintenance Tasks'!M70 & CHAR(10) &\n\" Project Tasks: \" & 'Maintenance Tasks'!S70 & CHAR(10) &\n\"Working Questions & Notes: \" &'Maintenance Tasks'!T70& CHAR(10) &\n\" Contractor: \" &'Maintenance Tasks'!U70","v":"Repeating: \n Project Tasks: \nWorking Questions & Notes: \n Contractor: "},{"$f":"TEXT(VLOOKUP($K28,'Maintenance Tasks'!$B$2:$X$61,16,FALSE), \"YYYY-MM-DD\")","v":"2021-01-01"},{"$f":"TEXT(VLOOKUP($K28,'Maintenance Tasks'!$B$2:$X$61,17,FALSE), \"YYYY-MM-DD\")","v":"2021-12-31"},{"$f":"\"Repeating: \" & 'Maintenance Tasks'!M70 & CHAR(10) &\n\" Project Tasks: \" & 'Maintenance Tasks'!S70 & CHAR(10) &\n\"Working Questions & Notes: \" &'Maintenance Tasks'!T70& CHAR(10) &\n\" Contractor: \" &'Maintenance Tasks'!U70","v":"Repeating: \n Project Tasks: \nWorking Questions & Notes: \n Contractor: "},{"$f":"IF('Maintenance Task Assignments'!B70<>\"\", 'Maintenance Task Assignments'!B70,\"\")","v":"T19"},{"$f":"IFERROR(VLOOKUP($D28,'Property Task Managers'!$A$1:$O$31,7,FALSE),\"\")","v":"searigg@comcast.net"}]
[{"$f":"VLOOKUP($K29,'Maintenance Tasks'!$B$2:$X$61,3,FALSE)","v":"Units"},{"$f":"VLOOKUP(K29,'Maintenance Tasks'!$B$2:$X$61,7,FALSE)","v":"T20 Leaky Gutter Replacement"},{"$f":"VLOOKUP($K29,'Maintenance Tasks'!$B$2:$X$61,3,FALSE)","v":"Units"},{"$f":"IF('Maintenance Task Assignments'!B20<>\"\", 'Maintenance Task Assignments'!A20,\"\")","v":"BeverlyB"},{"$f":"IF('Maintenance Task Assignments'!B20<>\"\", 'Maintenance Task Assignments'!D20,\"\")","v":"1st"},{"$f":"VLOOKUP($K29,'Maintenance Tasks'!$B$2:$X$61,11,FALSE)","v":"Scheduled"},{"$f":"\"Repeating: \" & 'Maintenance Tasks'!M20 & CHAR(10) &\n\" Project Tasks: \" & 'Maintenance Tasks'!S20 & CHAR(10) &\n\"Working Questions & Notes: \" &'Maintenance Tasks'!T20& CHAR(10) &\n\" Contractor: \" &'Maintenance Tasks'!U20","v":"Repeating: May, Jun, Jul, Aug\n Project Tasks: Replace Leaky Gutters as Necessary\nWorking Questions & Notes: Larry Green 9-22-20 Yearly Routine \n Contractor: "},{"$f":"TEXT(VLOOKUP($K29,'Maintenance Tasks'!$B$2:$X$61,16,FALSE), \"YYYY-MM-DD\")","v":"2021-04-15"},{"$f":"TEXT(VLOOKUP($K29,'Maintenance Tasks'!$B$2:$X$61,17,FALSE), \"YYYY-MM-DD\")","v":"2021-04-15"},{"$f":"\"Repeating: \" & 'Maintenance Tasks'!M20 & CHAR(10) &\n\" Project Tasks: \" & 'Maintenance Tasks'!S20 & CHAR(10) &\n\"Working Questions & Notes: \" &'Maintenance Tasks'!T20& CHAR(10) &\n\" Contractor: \" &'Maintenance Tasks'!U20","v":"Repeating: May, Jun, Jul, Aug\n Project Tasks: Replace Leaky Gutters as Necessary\nWorking Questions & Notes: Larry Green 9-22-20 Yearly Routine \n Contractor: "},{"$f":"IF('Maintenance Task Assignments'!B20<>\"\", 'Maintenance Task Assignments'!B20,\"\")","v":"T20"},{"$f":"IFERROR(VLOOKUP($D29,'Property Task Managers'!$A$1:$O$31,7,FALSE),\"\")","v":"searigg@comcast.net"}]
[{"$f":"VLOOKUP($K30,'Maintenance Tasks'!$B$2:$X$61,3,FALSE)","v":"Units"},{"$f":"VLOOKUP(K30,'Maintenance Tasks'!$B$2:$X$61,7,FALSE)","v":"T20 Leaky Gutter Replacement"},{"$f":"VLOOKUP($K30,'Maintenance Tasks'!$B$2:$X$61,3,FALSE)","v":"Units"},{"$f":"IF('Maintenance Task Assignments'!B71<>\"\", 'Maintenance Task Assignments'!A71,\"\")","v":"DaleB"},{"$f":"IF('Maintenance Task Assignments'!B71<>\"\", 'Maintenance Task Assignments'!D71,\"\")","v":"2nd"},{"$f":"VLOOKUP($K30,'Maintenance Tasks'!$B$2:$X$61,11,FALSE)","v":"Scheduled"},{"$f":"\"Repeating: \" & 'Maintenance Tasks'!M71 & CHAR(10) &\n\" Project Tasks: \" & 'Maintenance Tasks'!S71 & CHAR(10) &\n\"Working Questions & Notes: \" &'Maintenance Tasks'!T71& CHAR(10) &\n\" Contractor: \" &'Maintenance Tasks'!U71","v":"Repeating: \n Project Tasks: \nWorking Questions & Notes: \n Contractor: "},{"$f":"TEXT(VLOOKUP($K30,'Maintenance Tasks'!$B$2:$X$61,16,FALSE), \"YYYY-MM-DD\")","v":"2021-04-15"},{"$f":"TEXT(VLOOKUP($K30,'Maintenance Tasks'!$B$2:$X$61,17,FALSE), \"YYYY-MM-DD\")","v":"2021-04-15"},{"$f":"\"Repeating: \" & 'Maintenance Tasks'!M71 & CHAR(10) &\n\" Project Tasks: \" & 'Maintenance Tasks'!S71 & CHAR(10) &\n\"Working Questions & Notes: \" &'Maintenance Tasks'!T71& CHAR(10) &\n\" Contractor: \" &'Maintenance Tasks'!U71","v":"Repeating: \n Project Tasks: \nWorking Questions & Notes: \n Contractor: "},{"$f":"IF('Maintenance Task Assignments'!B71<>\"\", 'Maintenance Task Assignments'!B71,\"\")","v":"T20"},{"$f":"IFERROR(VLOOKUP($D30,'Property Task Managers'!$A$1:$O$31,7,FALSE),\"\")","v":"searigg@comcast.net"}]
[{"$f":"VLOOKUP($K31,'Maintenance Tasks'!$B$2:$X$61,3,FALSE)","v":"Treasurer"},{"$f":"VLOOKUP(K31,'Maintenance Tasks'!$B$2:$X$61,7,FALSE)","v":"T21 HOA Collection"},{"$f":"VLOOKUP($K31,'Maintenance Tasks'!$B$2:$X$61,3,FALSE)","v":"Treasurer"},{"$f":"IF('Maintenance Task Assignments'!B21<>\"\", 'Maintenance Task Assignments'!A21,\"\")","v":"EarlS"},{"$f":"IF('Maintenance Task Assignments'!B21<>\"\", 'Maintenance Task Assignments'!D21,\"\")","v":"1st"},{"$f":"VLOOKUP($K31,'Maintenance Tasks'!$B$2:$X$61,11,FALSE)","v":"Scheduled"},{"$f":"\"Repeating: \" & 'Maintenance Tasks'!M21 & CHAR(10) &\n\" Project Tasks: \" & 'Maintenance Tasks'!S21 & CHAR(10) &\n\"Working Questions & Notes: \" &'Maintenance Tasks'!T21& CHAR(10) &\n\" Contractor: \" &'Maintenance Tasks'!U21","v":"Repeating: Monthly\n Project Tasks: \nWorking Questions & Notes: \n Contractor: "},{"$f":"TEXT(VLOOKUP($K31,'Maintenance Tasks'!$B$2:$X$61,16,FALSE), \"YYYY-MM-DD\")","v":"2021-03-01"},{"$f":"TEXT(VLOOKUP($K31,'Maintenance Tasks'!$B$2:$X$61,17,FALSE), \"YYYY-MM-DD\")","v":"2021-03-10"},{"$f":"\"Repeating: \" & 'Maintenance Tasks'!M21 & CHAR(10) &\n\" Project Tasks: \" & 'Maintenance Tasks'!S21 & CHAR(10) &\n\"Working Questions & Notes: \" &'Maintenance Tasks'!T21& CHAR(10) &\n\" Contractor: \" &'Maintenance Tasks'!U21","v":"Repeating: Monthly\n Project Tasks: \nWorking Questions & Notes: \n Contractor: "},{"$f":"IF('Maintenance Task Assignments'!B21<>\"\", 'Maintenance Task Assignments'!B21,\"\")","v":"T21"},{"$f":"IFERROR(VLOOKUP($D31,'Property Task Managers'!$A$1:$O$31,7,FALSE),\"\")","v":"ecsheneman@msn.com"}]
[{"$f":"VLOOKUP($K32,'Maintenance Tasks'!$B$2:$X$61,3,FALSE)","v":"Treasurer"},{"$f":"VLOOKUP(K32,'Maintenance Tasks'!$B$2:$X$61,7,FALSE)","v":"T21 HOA Collection"},{"$f":"VLOOKUP($K32,'Maintenance Tasks'!$B$2:$X$61,3,FALSE)","v":"Treasurer"},{"$f":"IF('Maintenance Task Assignments'!B72<>\"\", 'Maintenance Task Assignments'!A72,\"\")","v":"BeverlyB"},{"$f":"IF('Maintenance Task Assignments'!B72<>\"\", 'Maintenance Task Assignments'!D72,\"\")","v":"2nd"},{"$f":"VLOOKUP($K32,'Maintenance Tasks'!$B$2:$X$61,11,FALSE)","v":"Scheduled"},{"$f":"\"Repeating: \" & 'Maintenance Tasks'!M72 & CHAR(10) &\n\" Project Tasks: \" & 'Maintenance Tasks'!S72 & CHAR(10) &\n\"Working Questions & Notes: \" &'Maintenance Tasks'!T72& CHAR(10) &\n\" Contractor: \" &'Maintenance Tasks'!U72","v":"Repeating: \n Project Tasks: \nWorking Questions & Notes: \n Contractor: "},{"$f":"TEXT(VLOOKUP($K32,'Maintenance Tasks'!$B$2:$X$61,16,FALSE), \"YYYY-MM-DD\")","v":"2021-03-01"},{"$f":"TEXT(VLOOKUP($K32,'Maintenance Tasks'!$B$2:$X$61,17,FALSE), \"YYYY-MM-DD\")","v":"2021-03-10"},{"$f":"\"Repeating: \" & 'Maintenance Tasks'!M72 & CHAR(10) &\n\" Project Tasks: \" & 'Maintenance Tasks'!S72 & CHAR(10) &\n\"Working Questions & Notes: \" &'Maintenance Tasks'!T72& CHAR(10) &\n\" Contractor: \" &'Maintenance Tasks'!U72","v":"Repeating: \n Project Tasks: \nWorking Questions & Notes: \n Contractor: "},{"$f":"IF('Maintenance Task Assignments'!B72<>\"\", 'Maintenance Task Assignments'!B72,\"\")","v":"T21"},{"$f":"IFERROR(VLOOKUP($D32,'Property Task Managers'!$A$1:$O$31,7,FALSE),\"\")","v":"searigg@comcast.net"}]
[{"$f":"VLOOKUP($K33,'Maintenance Tasks'!$B$2:$X$61,3,FALSE)","v":"Grounds"},{"$f":"VLOOKUP(K33,'Maintenance Tasks'!$B$2:$X$61,7,FALSE)","v":"T22 Landscaping Work Orders"},{"$f":"VLOOKUP($K33,'Maintenance Tasks'!$B$2:$X$61,3,FALSE)","v":"Grounds"},{"$f":"IF('Maintenance Task Assignments'!B22<>\"\", 'Maintenance Task Assignments'!A22,\"\")","v":"JimT"},{"$f":"IF('Maintenance Task Assignments'!B22<>\"\", 'Maintenance Task Assignments'!D22,\"\")","v":"1st"},{"$f":"VLOOKUP($K33,'Maintenance Tasks'!$B$2:$X$61,11,FALSE)","v":"Manage"},{"$f":"\"Repeating: \" & 'Maintenance Tasks'!M22 & CHAR(10) &\n\" Project Tasks: \" & 'Maintenance Tasks'!S22 & CHAR(10) &\n\"Working Questions & Notes: \" &'Maintenance Tasks'!T22& CHAR(10) &\n\" Contractor: \" &'Maintenance Tasks'!U22","v":"Repeating: None\n Project Tasks: \nWorking Questions & Notes: \n Contractor: "},{"$f":"TEXT(VLOOKUP($K33,'Maintenance Tasks'!$B$2:$X$61,16,FALSE), \"YYYY-MM-DD\")","v":"2021-01-01"},{"$f":"TEXT(VLOOKUP($K33,'Maintenance Tasks'!$B$2:$X$61,17,FALSE), \"YYYY-MM-DD\")","v":"2021-12-31"},{"$f":"\"Repeating: \" & 'Maintenance Tasks'!M22 & CHAR(10) &\n\" Project Tasks: \" & 'Maintenance Tasks'!S22 & CHAR(10) &\n\"Working Questions & Notes: \" &'Maintenance Tasks'!T22& CHAR(10) &\n\" Contractor: \" &'Maintenance Tasks'!U22","v":"Repeating: None\n Project Tasks: \nWorking Questions & Notes: \n Contractor: "},{"$f":"IF('Maintenance Task Assignments'!B22<>\"\", 'Maintenance Task Assignments'!B22,\"\")","v":"T22"},{"$f":"IFERROR(VLOOKUP($D33,'Property Task Managers'!$A$1:$O$31,7,FALSE),\"\")","v":"jim@tragesser.net   "}]
[{"$f":"VLOOKUP($K34,'Maintenance Tasks'!$B$2:$X$61,3,FALSE)","v":"Grounds"},{"$f":"VLOOKUP(K34,'Maintenance Tasks'!$B$2:$X$61,7,FALSE)","v":"T22 Landscaping Work Orders"},{"$f":"VLOOKUP($K34,'Maintenance Tasks'!$B$2:$X$61,3,FALSE)","v":"Grounds"},{"$f":"IF('Maintenance Task Assignments'!B73<>\"\", 'Maintenance Task Assignments'!A73,\"\")","v":"DonW"},{"$f":"IF('Maintenance Task Assignments'!B73<>\"\", 'Maintenance Task Assignments'!D73,\"\")","v":"2nd"},{"$f":"VLOOKUP($K34,'Maintenance Tasks'!$B$2:$X$61,11,FALSE)","v":"Manage"},{"$f":"\"Repeating: \" & 'Maintenance Tasks'!M73 & CHAR(10) &\n\" Project Tasks: \" & 'Maintenance Tasks'!S73 & CHAR(10) &\n\"Working Questions & Notes: \" &'Maintenance Tasks'!T73& CHAR(10) &\n\" Contractor: \" &'Maintenance Tasks'!U73","v":"Repeating: \n Project Tasks: \nWorking Questions & Notes: \n Contractor: "},{"$f":"TEXT(VLOOKUP($K34,'Maintenance Tasks'!$B$2:$X$61,16,FALSE), \"YYYY-MM-DD\")","v":"2021-01-01"},{"$f":"TEXT(VLOOKUP($K34,'Maintenance Tasks'!$B$2:$X$61,17,FALSE), \"YYYY-MM-DD\")","v":"2021-12-31"},{"$f":"\"Repeating: \" & 'Maintenance Tasks'!M73 & CHAR(10) &\n\" Project Tasks: \" & 'Maintenance Tasks'!S73 & CHAR(10) &\n\"Working Questions & Notes: \" &'Maintenance Tasks'!T73& CHAR(10) &\n\" Contractor: \" &'Maintenance Tasks'!U73","v":"Repeating: \n Project Tasks: \nWorking Questions & Notes: \n Contractor: "},{"$f":"IF('Maintenance Task Assignments'!B73<>\"\", 'Maintenance Task Assignments'!B73,\"\")","v":"T22"},{"$f":"IFERROR(VLOOKUP($D34,'Property Task Managers'!$A$1:$O$31,7,FALSE),\"\")","v":"searigg@comcast.net"}]
[{"$f":"VLOOKUP($K35,'Maintenance Tasks'!$B$2:$X$61,3,FALSE)","v":"Clubhouse"},{"$f":"VLOOKUP(K35,'Maintenance Tasks'!$B$2:$X$61,7,FALSE)","v":"T23 Library Management"},{"$f":"VLOOKUP($K35,'Maintenance Tasks'!$B$2:$X$61,3,FALSE)","v":"Clubhouse"},{"$f":"IF('Maintenance Task Assignments'!B23<>\"\", 'Maintenance Task Assignments'!A23,\"\")","v":"SheilaJ"},{"$f":"IF('Maintenance Task Assignments'!B23<>\"\", 'Maintenance Task Assignments'!D23,\"\")","v":"1st"},{"$f":"VLOOKUP($K35,'Maintenance Tasks'!$B$2:$X$61,11,FALSE)","v":"As Needed"},{"$f":"\"Repeating: \" & 'Maintenance Tasks'!M23 & CHAR(10) &\n\" Project Tasks: \" & 'Maintenance Tasks'!S23 & CHAR(10) &\n\"Working Questions & Notes: \" &'Maintenance Tasks'!T23& CHAR(10) &\n\" Contractor: \" &'Maintenance Tasks'!U23","v":"Repeating: Weekly, Mar, Apr\n Project Tasks: \nWorking Questions & Notes: \n Contractor: "},{"$f":"TEXT(VLOOKUP($K35,'Maintenance Tasks'!$B$2:$X$61,16,FALSE), \"YYYY-MM-DD\")","v":"2021-01-01"},{"$f":"TEXT(VLOOKUP($K35,'Maintenance Tasks'!$B$2:$X$61,17,FALSE), \"YYYY-MM-DD\")","v":"2021-12-31"},{"$f":"\"Repeating: \" & 'Maintenance Tasks'!M23 & CHAR(10) &\n\" Project Tasks: \" & 'Maintenance Tasks'!S23 & CHAR(10) &\n\"Working Questions & Notes: \" &'Maintenance Tasks'!T23& CHAR(10) &\n\" Contractor: \" &'Maintenance Tasks'!U23","v":"Repeating: Weekly, Mar, Apr\n Project Tasks: \nWorking Questions & Notes: \n Contractor: "},{"$f":"IF('Maintenance Task Assignments'!B23<>\"\", 'Maintenance Task Assignments'!B23,\"\")","v":"T23"},{"$f":"IFERROR(VLOOKUP($D35,'Property Task Managers'!$A$1:$O$31,7,FALSE),\"\")","v":"sheilajohansen47@gmail.com"}]
[{"$f":"VLOOKUP($K36,'Maintenance Tasks'!$B$2:$X$61,3,FALSE)","v":"Sitewide"},{"$f":"VLOOKUP(K36,'Maintenance Tasks'!$B$2:$X$61,7,FALSE)","v":"T24 Moss Check - Patios Curbs Sidewalks"},{"$f":"VLOOKUP($K36,'Maintenance Tasks'!$B$2:$X$61,3,FALSE)","v":"Sitewide"},{"$f":"IF('Maintenance Task Assignments'!B24<>\"\", 'Maintenance Task Assignments'!A24,\"\")","v":"JimT"},{"$f":"IF('Maintenance Task Assignments'!B24<>\"\", 'Maintenance Task Assignments'!D24,\"\")","v":"1st"},{"$f":"VLOOKUP($K36,'Maintenance Tasks'!$B$2:$X$61,11,FALSE)","v":"Repeating "},{"$f":"\"Repeating: \" & 'Maintenance Tasks'!M24 & CHAR(10) &\n\" Project Tasks: \" & 'Maintenance Tasks'!S24 & CHAR(10) &\n\"Working Questions & Notes: \" &'Maintenance Tasks'!T24& CHAR(10) &\n\" Contractor: \" &'Maintenance Tasks'!U24","v":"Repeating: Oct\n Project Tasks:  Clean as needed\nWorking Questions & Notes: Larry Green 9-22-20 Yearly Routine\n Contractor: "},{"$f":"TEXT(VLOOKUP($K36,'Maintenance Tasks'!$B$2:$X$61,16,FALSE), \"YYYY-MM-DD\")","v":"2021-06-01"},{"$f":"TEXT(VLOOKUP($K36,'Maintenance Tasks'!$B$2:$X$61,17,FALSE), \"YYYY-MM-DD\")","v":"2021-06-01"},{"$f":"\"Repeating: \" & 'Maintenance Tasks'!M24 & CHAR(10) &\n\" Project Tasks: \" & 'Maintenance Tasks'!S24 & CHAR(10) &\n\"Working Questions & Notes: \" &'Maintenance Tasks'!T24& CHAR(10) &\n\" Contractor: \" &'Maintenance Tasks'!U24","v":"Repeating: Oct\n Project Tasks:  Clean as needed\nWorking Questions & Notes: Larry Green 9-22-20 Yearly Routine\n Contractor: "},{"$f":"IF('Maintenance Task Assignments'!B24<>\"\", 'Maintenance Task Assignments'!B24,\"\")","v":"T24"},{"$f":"IFERROR(VLOOKUP($D36,'Property Task Managers'!$A$1:$O$31,7,FALSE),\"\")","v":"jim@tragesser.net   "}]
[{"$f":"VLOOKUP($K37,'Maintenance Tasks'!$B$2:$X$61,3,FALSE)","v":"Units"},{"$f":"VLOOKUP(K37,'Maintenance Tasks'!$B$2:$X$61,7,FALSE)","v":"T25 Outside Lights and Fixtures"},{"$f":"VLOOKUP($K37,'Maintenance Tasks'!$B$2:$X$61,3,FALSE)","v":"Units"},{"$f":"IF('Maintenance Task Assignments'!B25<>\"\", 'Maintenance Task Assignments'!A25,\"\")","v":"BeverlyB"},{"$f":"IF('Maintenance Task Assignments'!B25<>\"\", 'Maintenance Task Assignments'!D25,\"\")","v":"1st"},{"$f":"VLOOKUP($K37,'Maintenance Tasks'!$B$2:$X$61,11,FALSE)","v":"As Needed"},{"$f":"\"Repeating: \" & 'Maintenance Tasks'!M25 & CHAR(10) &\n\" Project Tasks: \" & 'Maintenance Tasks'!S25 & CHAR(10) &\n\"Working Questions & Notes: \" &'Maintenance Tasks'!T25& CHAR(10) &\n\" Contractor: \" &'Maintenance Tasks'!U25","v":"Repeating: None\n Project Tasks: Check and when reported\nWorking Questions & Notes: Larry Green 9-22-20 Yearly Routine\n Contractor: "},{"$f":"TEXT(VLOOKUP($K37,'Maintenance Tasks'!$B$2:$X$61,16,FALSE), \"YYYY-MM-DD\")","v":"2021-01-01"},{"$f":"TEXT(VLOOKUP($K37,'Maintenance Tasks'!$B$2:$X$61,17,FALSE), \"YYYY-MM-DD\")","v":"2021-12-31"},{"$f":"\"Repeating: \" & 'Maintenance Tasks'!M25 & CHAR(10) &\n\" Project Tasks: \" & 'Maintenance Tasks'!S25 & CHAR(10) &\n\"Working Questions & Notes: \" &'Maintenance Tasks'!T25& CHAR(10) &\n\" Contractor: \" &'Maintenance Tasks'!U25","v":"Repeating: None\n Project Tasks: Check and when reported\nWorking Questions & Notes: Larry Green 9-22-20 Yearly Routine\n Contractor: "},{"$f":"IF('Maintenance Task Assignments'!B25<>\"\", 'Maintenance Task Assignments'!B25,\"\")","v":"T25"},{"$f":"IFERROR(VLOOKUP($D37,'Property Task Managers'!$A$1:$O$31,7,FALSE),\"\")","v":"searigg@comcast.net"}]
[{"$f":"VLOOKUP($K38,'Maintenance Tasks'!$B$2:$X$61,3,FALSE)","v":"Units"},{"$f":"VLOOKUP(K38,'Maintenance Tasks'!$B$2:$X$61,7,FALSE)","v":"T25 Outside Lights and Fixtures"},{"$f":"VLOOKUP($K38,'Maintenance Tasks'!$B$2:$X$61,3,FALSE)","v":"Units"},{"$f":"IF('Maintenance Task Assignments'!B74<>\"\", 'Maintenance Task Assignments'!A74,\"\")","v":"RonR"},{"$f":"IF('Maintenance Task Assignments'!B74<>\"\", 'Maintenance Task Assignments'!D74,\"\")","v":"2nd"},{"$f":"VLOOKUP($K38,'Maintenance Tasks'!$B$2:$X$61,11,FALSE)","v":"As Needed"},{"$f":"\"Repeating: \" & 'Maintenance Tasks'!M74 & CHAR(10) &\n\" Project Tasks: \" & 'Maintenance Tasks'!S74 & CHAR(10) &\n\"Working Questions & Notes: \" &'Maintenance Tasks'!T74& CHAR(10) &\n\" Contractor: \" &'Maintenance Tasks'!U74","v":"Repeating: \n Project Tasks: \nWorking Questions & Notes: \n Contractor: "},{"$f":"TEXT(VLOOKUP($K38,'Maintenance Tasks'!$B$2:$X$61,16,FALSE), \"YYYY-MM-DD\")","v":"2021-01-01"},{"$f":"TEXT(VLOOKUP($K38,'Maintenance Tasks'!$B$2:$X$61,17,FALSE), \"YYYY-MM-DD\")","v":"2021-12-31"},{"$f":"\"Repeating: \" & 'Maintenance Tasks'!M74 & CHAR(10) &\n\" Project Tasks: \" & 'Maintenance Tasks'!S74 & CHAR(10) &\n\"Working Questions & Notes: \" &'Maintenance Tasks'!T74& CHAR(10) &\n\" Contractor: \" &'Maintenance Tasks'!U74","v":"Repeating: \n Project Tasks: \nWorking Questions & Notes: \n Contractor: "},{"$f":"IF('Maintenance Task Assignments'!B74<>\"\", 'Maintenance Task Assignments'!B74,\"\")","v":"T25"},{"$f":"IFERROR(VLOOKUP($D38,'Property Task Managers'!$A$1:$O$31,7,FALSE),\"\")","v":"r.h.roberts2@comcast.net"}]
[{"$f":"VLOOKUP($K39,'Maintenance Tasks'!$B$2:$X$61,3,FALSE)","v":"Sitewide"},{"$f":"VLOOKUP(K39,'Maintenance Tasks'!$B$2:$X$61,7,FALSE)","v":"T26 Outside Water Faucets"},{"$f":"VLOOKUP($K39,'Maintenance Tasks'!$B$2:$X$61,3,FALSE)","v":"Sitewide"},{"$f":"IF('Maintenance Task Assignments'!B26<>\"\", 'Maintenance Task Assignments'!A26,\"\")","v":"JimT"},{"$f":"IF('Maintenance Task Assignments'!B26<>\"\", 'Maintenance Task Assignments'!D26,\"\")","v":"1st"},{"$f":"VLOOKUP($K39,'Maintenance Tasks'!$B$2:$X$61,11,FALSE)","v":"Scheduled"},{"$f":"\"Repeating: \" & 'Maintenance Tasks'!M26 & CHAR(10) &\n\" Project Tasks: \" & 'Maintenance Tasks'!S26 & CHAR(10) &\n\"Working Questions & Notes: \" &'Maintenance Tasks'!T26& CHAR(10) &\n\" Contractor: \" &'Maintenance Tasks'!U26","v":"Repeating: Apr, Oct\n Project Tasks: \nWorking Questions & Notes: \n Contractor: "},{"$f":"TEXT(VLOOKUP($K39,'Maintenance Tasks'!$B$2:$X$61,16,FALSE), \"YYYY-MM-DD\")","v":"2021-04-15"},{"$f":"TEXT(VLOOKUP($K39,'Maintenance Tasks'!$B$2:$X$61,17,FALSE), \"YYYY-MM-DD\")","v":"2021-04-15"},{"$f":"\"Repeating: \" & 'Maintenance Tasks'!M26 & CHAR(10) &\n\" Project Tasks: \" & 'Maintenance Tasks'!S26 & CHAR(10) &\n\"Working Questions & Notes: \" &'Maintenance Tasks'!T26& CHAR(10) &\n\" Contractor: \" &'Maintenance Tasks'!U26","v":"Repeating: Apr, Oct\n Project Tasks: \nWorking Questions & Notes: \n Contractor: "},{"$f":"IF('Maintenance Task Assignments'!B26<>\"\", 'Maintenance Task Assignments'!B26,\"\")","v":"T26"},{"$f":"IFERROR(VLOOKUP($D39,'Property Task Managers'!$A$1:$O$31,7,FALSE),\"\")","v":"jim@tragesser.net   "}]
[{"$f":"VLOOKUP($K40,'Maintenance Tasks'!$B$2:$X$61,3,FALSE)","v":"Sitewide"},{"$f":"VLOOKUP(K40,'Maintenance Tasks'!$B$2:$X$61,7,FALSE)","v":"T26 Outside Water Faucets"},{"$f":"VLOOKUP($K40,'Maintenance Tasks'!$B$2:$X$61,3,FALSE)","v":"Sitewide"},{"$f":"IF('Maintenance Task Assignments'!B75<>\"\", 'Maintenance Task Assignments'!A75,\"\")","v":"DonW"},{"$f":"IF('Maintenance Task Assignments'!B75<>\"\", 'Maintenance Task Assignments'!D75,\"\")","v":"2nd"},{"$f":"VLOOKUP($K40,'Maintenance Tasks'!$B$2:$X$61,11,FALSE)","v":"Scheduled"},{"$f":"\"Repeating: \" & 'Maintenance Tasks'!M75 & CHAR(10) &\n\" Project Tasks: \" & 'Maintenance Tasks'!S75 & CHAR(10) &\n\"Working Questions & Notes: \" &'Maintenance Tasks'!T75& CHAR(10) &\n\" Contractor: \" &'Maintenance Tasks'!U75","v":"Repeating: \n Project Tasks: \nWorking Questions & Notes: \n Contractor: "},{"$f":"TEXT(VLOOKUP($K40,'Maintenance Tasks'!$B$2:$X$61,16,FALSE), \"YYYY-MM-DD\")","v":"2021-04-15"},{"$f":"TEXT(VLOOKUP($K40,'Maintenance Tasks'!$B$2:$X$61,17,FALSE), \"YYYY-MM-DD\")","v":"2021-04-15"},{"$f":"\"Repeating: \" & 'Maintenance Tasks'!M75 & CHAR(10) &\n\" Project Tasks: \" & 'Maintenance Tasks'!S75 & CHAR(10) &\n\"Working Questions & Notes: \" &'Maintenance Tasks'!T75& CHAR(10) &\n\" Contractor: \" &'Maintenance Tasks'!U75","v":"Repeating: \n Project Tasks: \nWorking Questions & Notes: \n Contractor: "},{"$f":"IF('Maintenance Task Assignments'!B75<>\"\", 'Maintenance Task Assignments'!B75,\"\")","v":"T26"},{"$f":"IFERROR(VLOOKUP($D40,'Property Task Managers'!$A$1:$O$31,7,FALSE),\"\")","v":"searigg@comcast.net"}]
[{"$f":"VLOOKUP($K41,'Maintenance Tasks'!$B$2:$X$61,3,FALSE)","v":"Units"},{"$f":"VLOOKUP(K41,'Maintenance Tasks'!$B$2:$X$61,7,FALSE)","v":"T27 Schecule Unit Painting "},{"$f":"VLOOKUP($K41,'Maintenance Tasks'!$B$2:$X$61,3,FALSE)","v":"Units"},{"$f":"IF('Maintenance Task Assignments'!B27<>\"\", 'Maintenance Task Assignments'!A27,\"\")","v":"BeverlyB"},{"$f":"IF('Maintenance Task Assignments'!B27<>\"\", 'Maintenance Task Assignments'!D27,\"\")","v":"1st"},{"$f":"VLOOKUP($K41,'Maintenance Tasks'!$B$2:$X$61,11,FALSE)","v":"Scheduled"},{"$f":"\"Repeating: \" & 'Maintenance Tasks'!M27 & CHAR(10) &\n\" Project Tasks: \" & 'Maintenance Tasks'!S27 & CHAR(10) &\n\"Working Questions & Notes: \" &'Maintenance Tasks'!T27& CHAR(10) &\n\" Contractor: \" &'Maintenance Tasks'!U27","v":"Repeating: None\n Project Tasks: Schedule as needed\nWorking Questions & Notes: Larry Green 9-22-20 Yearly Routine\n Contractor: "},{"$f":"TEXT(VLOOKUP($K41,'Maintenance Tasks'!$B$2:$X$61,16,FALSE), \"YYYY-MM-DD\")","v":"2021-03-01"},{"$f":"TEXT(VLOOKUP($K41,'Maintenance Tasks'!$B$2:$X$61,17,FALSE), \"YYYY-MM-DD\")","v":"2021-12-31"},{"$f":"\"Repeating: \" & 'Maintenance Tasks'!M27 & CHAR(10) &\n\" Project Tasks: \" & 'Maintenance Tasks'!S27 & CHAR(10) &\n\"Working Questions & Notes: \" &'Maintenance Tasks'!T27& CHAR(10) &\n\" Contractor: \" &'Maintenance Tasks'!U27","v":"Repeating: None\n Project Tasks: Schedule as needed\nWorking Questions & Notes: Larry Green 9-22-20 Yearly Routine\n Contractor: "},{"$f":"IF('Maintenance Task Assignments'!B27<>\"\", 'Maintenance Task Assignments'!B27,\"\")","v":"T27"},{"$f":"IFERROR(VLOOKUP($D41,'Property Task Managers'!$A$1:$O$31,7,FALSE),\"\")","v":"searigg@comcast.net"}]
[{"$f":"VLOOKUP($K42,'Maintenance Tasks'!$B$2:$X$61,3,FALSE)","v":"Units"},{"$f":"VLOOKUP(K42,'Maintenance Tasks'!$B$2:$X$61,7,FALSE)","v":"T27 Schecule Unit Painting "},{"$f":"VLOOKUP($K42,'Maintenance Tasks'!$B$2:$X$61,3,FALSE)","v":"Units"},{"$f":"IF('Maintenance Task Assignments'!B76<>\"\", 'Maintenance Task Assignments'!A76,\"\")","v":"JoanneW"},{"$f":"IF('Maintenance Task Assignments'!B76<>\"\", 'Maintenance Task Assignments'!D76,\"\")","v":"2nd"},{"$f":"VLOOKUP($K42,'Maintenance Tasks'!$B$2:$X$61,11,FALSE)","v":"Scheduled"},{"$f":"\"Repeating: \" & 'Maintenance Tasks'!M76 & CHAR(10) &\n\" Project Tasks: \" & 'Maintenance Tasks'!S76 & CHAR(10) &\n\"Working Questions & Notes: \" &'Maintenance Tasks'!T76& CHAR(10) &\n\" Contractor: \" &'Maintenance Tasks'!U76","v":"Repeating: \n Project Tasks: \nWorking Questions & Notes: \n Contractor: "},{"$f":"TEXT(VLOOKUP($K42,'Maintenance Tasks'!$B$2:$X$61,16,FALSE), \"YYYY-MM-DD\")","v":"2021-03-01"},{"$f":"TEXT(VLOOKUP($K42,'Maintenance Tasks'!$B$2:$X$61,17,FALSE), \"YYYY-MM-DD\")","v":"2021-12-31"},{"$f":"\"Repeating: \" & 'Maintenance Tasks'!M76 & CHAR(10) &\n\" Project Tasks: \" & 'Maintenance Tasks'!S76 & CHAR(10) &\n\"Working Questions & Notes: \" &'Maintenance Tasks'!T76& CHAR(10) &\n\" Contractor: \" &'Maintenance Tasks'!U76","v":"Repeating: \n Project Tasks: \nWorking Questions & Notes: \n Contractor: "},{"$f":"IF('Maintenance Task Assignments'!B76<>\"\", 'Maintenance Task Assignments'!B76,\"\")","v":"T27"},{"$f":"IFERROR(VLOOKUP($D42,'Property Task Managers'!$A$1:$O$31,7,FALSE),\"\")","v":"jsw4804@gmail.com"}]
[{"$f":"VLOOKUP($K43,'Maintenance Tasks'!$B$2:$X$61,3,FALSE)","v":"Sitewide"},{"$f":"VLOOKUP(K43,'Maintenance Tasks'!$B$2:$X$61,7,FALSE)","v":"T28 Pest Control Work Orders"},{"$f":"VLOOKUP($K43,'Maintenance Tasks'!$B$2:$X$61,3,FALSE)","v":"Sitewide"},{"$f":"IF('Maintenance Task Assignments'!B28<>\"\", 'Maintenance Task Assignments'!A28,\"\")","v":"BeverlyB"},{"$f":"IF('Maintenance Task Assignments'!B28<>\"\", 'Maintenance Task Assignments'!D28,\"\")","v":"1st"},{"$f":"VLOOKUP($K43,'Maintenance Tasks'!$B$2:$X$61,11,FALSE)","v":"As Needed"},{"$f":"\"Repeating: \" & 'Maintenance Tasks'!M28 & CHAR(10) &\n\" Project Tasks: \" & 'Maintenance Tasks'!S28 & CHAR(10) &\n\"Working Questions & Notes: \" &'Maintenance Tasks'!T28& CHAR(10) &\n\" Contractor: \" &'Maintenance Tasks'!U28","v":"Repeating: None\n Project Tasks: \nWorking Questions & Notes: \n Contractor: "},{"$f":"TEXT(VLOOKUP($K43,'Maintenance Tasks'!$B$2:$X$61,16,FALSE), \"YYYY-MM-DD\")","v":"2021-01-01"},{"$f":"TEXT(VLOOKUP($K43,'Maintenance Tasks'!$B$2:$X$61,17,FALSE), \"YYYY-MM-DD\")","v":"2021-12-31"},{"$f":"\"Repeating: \" & 'Maintenance Tasks'!M28 & CHAR(10) &\n\" Project Tasks: \" & 'Maintenance Tasks'!S28 & CHAR(10) &\n\"Working Questions & Notes: \" &'Maintenance Tasks'!T28& CHAR(10) &\n\" Contractor: \" &'Maintenance Tasks'!U28","v":"Repeating: None\n Project Tasks: \nWorking Questions & Notes: \n Contractor: "},{"$f":"IF('Maintenance Task Assignments'!B28<>\"\", 'Maintenance Task Assignments'!B28,\"\")","v":"T28"},{"$f":"IFERROR(VLOOKUP($D43,'Property Task Managers'!$A$1:$O$31,7,FALSE),\"\")","v":"searigg@comcast.net"}]
[{"$f":"VLOOKUP($K44,'Maintenance Tasks'!$B$2:$X$61,3,FALSE)","v":"Sitewide"},{"$f":"VLOOKUP(K44,'Maintenance Tasks'!$B$2:$X$61,7,FALSE)","v":"T28 Pest Control Work Orders"},{"$f":"VLOOKUP($K44,'Maintenance Tasks'!$B$2:$X$61,3,FALSE)","v":"Sitewide"},{"$f":"IF('Maintenance Task Assignments'!B77<>\"\", 'Maintenance Task Assignments'!A77,\"\")","v":"DaleB"},{"$f":"IF('Maintenance Task Assignments'!B77<>\"\", 'Maintenance Task Assignments'!D77,\"\")","v":"2nd"},{"$f":"VLOOKUP($K44,'Maintenance Tasks'!$B$2:$X$61,11,FALSE)","v":"As Needed"},{"$f":"\"Repeating: \" & 'Maintenance Tasks'!M77 & CHAR(10) &\n\" Project Tasks: \" & 'Maintenance Tasks'!S77 & CHAR(10) &\n\"Working Questions & Notes: \" &'Maintenance Tasks'!T77& CHAR(10) &\n\" Contractor: \" &'Maintenance Tasks'!U77","v":"Repeating: \n Project Tasks: \nWorking Questions & Notes: \n Contractor: "},{"$f":"TEXT(VLOOKUP($K44,'Maintenance Tasks'!$B$2:$X$61,16,FALSE), \"YYYY-MM-DD\")","v":"2021-01-01"},{"$f":"TEXT(VLOOKUP($K44,'Maintenance Tasks'!$B$2:$X$61,17,FALSE), \"YYYY-MM-DD\")","v":"2021-12-31"},{"$f":"\"Repeating: \" & 'Maintenance Tasks'!M77 & CHAR(10) &\n\" Project Tasks: \" & 'Maintenance Tasks'!S77 & CHAR(10) &\n\"Working Questions & Notes: \" &'Maintenance Tasks'!T77& CHAR(10) &\n\" Contractor: \" &'Maintenance Tasks'!U77","v":"Repeating: \n Project Tasks: \nWorking Questions & Notes: \n Contractor: "},{"$f":"IF('Maintenance Task Assignments'!B77<>\"\", 'Maintenance Task Assignments'!B77,\"\")","v":"T28"},{"$f":"IFERROR(VLOOKUP($D44,'Property Task Managers'!$A$1:$O$31,7,FALSE),\"\")","v":"searigg@comcast.net"}]
[{"$f":"VLOOKUP($K45,'Maintenance Tasks'!$B$2:$X$61,3,FALSE)","v":"Grounds"},{"$f":"VLOOKUP(K45,'Maintenance Tasks'!$B$2:$X$61,7,FALSE)","v":"T29 Plant New Trees"},{"$f":"VLOOKUP($K45,'Maintenance Tasks'!$B$2:$X$61,3,FALSE)","v":"Grounds"},{"$f":"IF('Maintenance Task Assignments'!B29<>\"\", 'Maintenance Task Assignments'!A29,\"\")","v":"JimT"},{"$f":"IF('Maintenance Task Assignments'!B29<>\"\", 'Maintenance Task Assignments'!D29,\"\")","v":"1st"},{"$f":"VLOOKUP($K45,'Maintenance Tasks'!$B$2:$X$61,11,FALSE)","v":"Scheduled"},{"$f":"\"Repeating: \" & 'Maintenance Tasks'!M29 & CHAR(10) &\n\" Project Tasks: \" & 'Maintenance Tasks'!S29 & CHAR(10) &\n\"Working Questions & Notes: \" &'Maintenance Tasks'!T29& CHAR(10) &\n\" Contractor: \" &'Maintenance Tasks'!U29","v":"Repeating: Jan\n Project Tasks: \nWorking Questions & Notes: Larry Green 9-22-20 Yearly Routine\n Contractor: "},{"$f":"TEXT(VLOOKUP($K45,'Maintenance Tasks'!$B$2:$X$61,16,FALSE), \"YYYY-MM-DD\")","v":"2021-01-01"},{"$f":"TEXT(VLOOKUP($K45,'Maintenance Tasks'!$B$2:$X$61,17,FALSE), \"YYYY-MM-DD\")","v":"2021-12-31"},{"$f":"\"Repeating: \" & 'Maintenance Tasks'!M29 & CHAR(10) &\n\" Project Tasks: \" & 'Maintenance Tasks'!S29 & CHAR(10) &\n\"Working Questions & Notes: \" &'Maintenance Tasks'!T29& CHAR(10) &\n\" Contractor: \" &'Maintenance Tasks'!U29","v":"Repeating: Jan\n Project Tasks: \nWorking Questions & Notes: Larry Green 9-22-20 Yearly Routine\n Contractor: "},{"$f":"IF('Maintenance Task Assignments'!B29<>\"\", 'Maintenance Task Assignments'!B29,\"\")","v":"T29"},{"$f":"IFERROR(VLOOKUP($D45,'Property Task Managers'!$A$1:$O$31,7,FALSE),\"\")","v":"jim@tragesser.net   "}]
[{"$f":"VLOOKUP($K46,'Maintenance Tasks'!$B$2:$X$61,3,FALSE)","v":"Grounds"},{"$f":"VLOOKUP(K46,'Maintenance Tasks'!$B$2:$X$61,7,FALSE)","v":"T29 Plant New Trees"},{"$f":"VLOOKUP($K46,'Maintenance Tasks'!$B$2:$X$61,3,FALSE)","v":"Grounds"},{"$f":"IF('Maintenance Task Assignments'!B78<>\"\", 'Maintenance Task Assignments'!A78,\"\")","v":"DonW"},{"$f":"IF('Maintenance Task Assignments'!B78<>\"\", 'Maintenance Task Assignments'!D78,\"\")","v":"2nd"},{"$f":"VLOOKUP($K46,'Maintenance Tasks'!$B$2:$X$61,11,FALSE)","v":"Scheduled"},{"$f":"\"Repeating: \" & 'Maintenance Tasks'!M78 & CHAR(10) &\n\" Project Tasks: \" & 'Maintenance Tasks'!S78 & CHAR(10) &\n\"Working Questions & Notes: \" &'Maintenance Tasks'!T78& CHAR(10) &\n\" Contractor: \" &'Maintenance Tasks'!U78","v":"Repeating: \n Project Tasks: \nWorking Questions & Notes: \n Contractor: "},{"$f":"TEXT(VLOOKUP($K46,'Maintenance Tasks'!$B$2:$X$61,16,FALSE), \"YYYY-MM-DD\")","v":"2021-01-01"},{"$f":"TEXT(VLOOKUP($K46,'Maintenance Tasks'!$B$2:$X$61,17,FALSE), \"YYYY-MM-DD\")","v":"2021-12-31"},{"$f":"\"Repeating: \" & 'Maintenance Tasks'!M78 & CHAR(10) &\n\" Project Tasks: \" & 'Maintenance Tasks'!S78 & CHAR(10) &\n\"Working Questions & Notes: \" &'Maintenance Tasks'!T78& CHAR(10) &\n\" Contractor: \" &'Maintenance Tasks'!U78","v":"Repeating: \n Project Tasks: \nWorking Questions & Notes: \n Contractor: "},{"$f":"IF('Maintenance Task Assignments'!B78<>\"\", 'Maintenance Task Assignments'!B78,\"\")","v":"T29"},{"$f":"IFERROR(VLOOKUP($D46,'Property Task Managers'!$A$1:$O$31,7,FALSE),\"\")","v":"searigg@comcast.net"}]
[{"$f":"VLOOKUP($K47,'Maintenance Tasks'!$B$2:$X$61,3,FALSE)","v":"InfoTech"},{"$f":"VLOOKUP(K47,'Maintenance Tasks'!$B$2:$X$61,7,FALSE)","v":"T30 Project Performance Report"},{"$f":"VLOOKUP($K47,'Maintenance Tasks'!$B$2:$X$61,3,FALSE)","v":"InfoTech"},{"$f":"IF('Maintenance Task Assignments'!B30<>\"\", 'Maintenance Task Assignments'!A30,\"\")","v":"Pete A"},{"$f":"IF('Maintenance Task Assignments'!B30<>\"\", 'Maintenance Task Assignments'!D30,\"\")","v":"1st"},{"$f":"VLOOKUP($K47,'Maintenance Tasks'!$B$2:$X$61,11,FALSE)","v":"Scheduled"},{"$f":"\"Repeating: \" & 'Maintenance Tasks'!M30 & CHAR(10) &\n\" Project Tasks: \" & 'Maintenance Tasks'!S30 & CHAR(10) &\n\"Working Questions & Notes: \" &'Maintenance Tasks'!T30& CHAR(10) &\n\" Contractor: \" &'Maintenance Tasks'!U30","v":"Repeating: Annual, Jan\n Project Tasks: IT Update\nWorking Questions & Notes: \n Contractor: "},{"$f":"TEXT(VLOOKUP($K47,'Maintenance Tasks'!$B$2:$X$61,16,FALSE), \"YYYY-MM-DD\")","v":"2021-01-01"},{"$f":"TEXT(VLOOKUP($K47,'Maintenance Tasks'!$B$2:$X$61,17,FALSE), \"YYYY-MM-DD\")","v":"2021-01-10"},{"$f":"\"Repeating: \" & 'Maintenance Tasks'!M30 & CHAR(10) &\n\" Project Tasks: \" & 'Maintenance Tasks'!S30 & CHAR(10) &\n\"Working Questions & Notes: \" &'Maintenance Tasks'!T30& CHAR(10) &\n\" Contractor: \" &'Maintenance Tasks'!U30","v":"Repeating: Annual, Jan\n Project Tasks: IT Update\nWorking Questions & Notes: \n Contractor: "},{"$f":"IF('Maintenance Task Assignments'!B30<>\"\", 'Maintenance Task Assignments'!B30,\"\")","v":"T30"},{"$f":"IFERROR(VLOOKUP($D47,'Property Task Managers'!$A$1:$O$31,7,FALSE),\"\")","v":"optionzz@outlook.com"}]
[{"$f":"VLOOKUP($K48,'Maintenance Tasks'!$B$2:$X$61,3,FALSE)","v":"InfoTech"},{"$f":"VLOOKUP(K48,'Maintenance Tasks'!$B$2:$X$61,7,FALSE)","v":"T31 Publish Printed Resident Lists"},{"$f":"VLOOKUP($K48,'Maintenance Tasks'!$B$2:$X$61,3,FALSE)","v":"InfoTech"},{"$f":"IF('Maintenance Task Assignments'!B31<>\"\", 'Maintenance Task Assignments'!A31,\"\")","v":"Pete A"},{"$f":"IF('Maintenance Task Assignments'!B31<>\"\", 'Maintenance Task Assignments'!D31,\"\")","v":"1st"},{"$f":"VLOOKUP($K48,'Maintenance Tasks'!$B$2:$X$61,11,FALSE)","v":"Repeating "},{"$f":"\"Repeating: \" & 'Maintenance Tasks'!M31 & CHAR(10) &\n\" Project Tasks: \" & 'Maintenance Tasks'!S31 & CHAR(10) &\n\"Working Questions & Notes: \" &'Maintenance Tasks'!T31& CHAR(10) &\n\" Contractor: \" &'Maintenance Tasks'!U31","v":"Repeating: Semi-Annual, Apr, Oct\n Project Tasks: IT Update\nWorking Questions & Notes: \n Contractor: "},{"$f":"TEXT(VLOOKUP($K48,'Maintenance Tasks'!$B$2:$X$61,16,FALSE), \"YYYY-MM-DD\")","v":"2021-03-20"},{"$f":"TEXT(VLOOKUP($K48,'Maintenance Tasks'!$B$2:$X$61,17,FALSE), \"YYYY-MM-DD\")","v":"2021-03-25"},{"$f":"\"Repeating: \" & 'Maintenance Tasks'!M31 & CHAR(10) &\n\" Project Tasks: \" & 'Maintenance Tasks'!S31 & CHAR(10) &\n\"Working Questions & Notes: \" &'Maintenance Tasks'!T31& CHAR(10) &\n\" Contractor: \" &'Maintenance Tasks'!U31","v":"Repeating: Semi-Annual, Apr, Oct\n Project Tasks: IT Update\nWorking Questions & Notes: \n Contractor: "},{"$f":"IF('Maintenance Task Assignments'!B31<>\"\", 'Maintenance Task Assignments'!B31,\"\")","v":"T31"},{"$f":"IFERROR(VLOOKUP($D48,'Property Task Managers'!$A$1:$O$31,7,FALSE),\"\")","v":"optionzz@outlook.com"}]
[{"$f":"VLOOKUP($K49,'Maintenance Tasks'!$B$2:$X$61,3,FALSE)","v":"InfoTech"},{"$f":"VLOOKUP(K49,'Maintenance Tasks'!$B$2:$X$61,7,FALSE)","v":"T32 Renew Web and Software Licenses"},{"$f":"VLOOKUP($K49,'Maintenance Tasks'!$B$2:$X$61,3,FALSE)","v":"InfoTech"},{"$f":"IF('Maintenance Task Assignments'!B32<>\"\", 'Maintenance Task Assignments'!A32,\"\")","v":"Pete A"},{"$f":"IF('Maintenance Task Assignments'!B32<>\"\", 'Maintenance Task Assignments'!D32,\"\")","v":"1st"},{"$f":"VLOOKUP($K49,'Maintenance Tasks'!$B$2:$X$61,11,FALSE)","v":"As Needed"},{"$f":"\"Repeating: \" & 'Maintenance Tasks'!M32 & CHAR(10) &\n\" Project Tasks: \" & 'Maintenance Tasks'!S32 & CHAR(10) &\n\"Working Questions & Notes: \" &'Maintenance Tasks'!T32& CHAR(10) &\n\" Contractor: \" &'Maintenance Tasks'!U32","v":"Repeating: None \n Project Tasks: \nWorking Questions & Notes: \n Contractor: "},{"$f":"TEXT(VLOOKUP($K49,'Maintenance Tasks'!$B$2:$X$61,16,FALSE), \"YYYY-MM-DD\")","v":"2021-01-01"},{"$f":"TEXT(VLOOKUP($K49,'Maintenance Tasks'!$B$2:$X$61,17,FALSE), \"YYYY-MM-DD\")","v":"2021-12-31"},{"$f":"\"Repeating: \" & 'Maintenance Tasks'!M32 & CHAR(10) &\n\" Project Tasks: \" & 'Maintenance Tasks'!S32 & CHAR(10) &\n\"Working Questions & Notes: \" &'Maintenance Tasks'!T32& CHAR(10) &\n\" Contractor: \" &'Maintenance Tasks'!U32","v":"Repeating: None \n Project Tasks: \nWorking Questions & Notes: \n Contractor: "},{"$f":"IF('Maintenance Task Assignments'!B32<>\"\", 'Maintenance Task Assignments'!B32,\"\")","v":"T32"},{"$f":"IFERROR(VLOOKUP($D49,'Property Task Managers'!$A$1:$O$31,7,FALSE),\"\")","v":"optionzz@outlook.com"}]
[{"$f":"VLOOKUP($K50,'Maintenance Tasks'!$B$2:$X$61,3,FALSE)","v":"Management"},{"$f":"VLOOKUP(K50,'Maintenance Tasks'!$B$2:$X$61,7,FALSE)","v":"T33 Resale Certificate"},{"$f":"VLOOKUP($K50,'Maintenance Tasks'!$B$2:$X$61,3,FALSE)","v":"Management"},{"$f":"IF('Maintenance Task Assignments'!B33<>\"\", 'Maintenance Task Assignments'!A33,\"\")","v":"EarlS"},{"$f":"IF('Maintenance Task Assignments'!B33<>\"\", 'Maintenance Task Assignments'!D33,\"\")","v":"1st"},{"$f":"VLOOKUP($K50,'Maintenance Tasks'!$B$2:$X$61,11,FALSE)","v":"As Needed"},{"$f":"\"Repeating: \" & 'Maintenance Tasks'!M33 & CHAR(10) &\n\" Project Tasks: \" & 'Maintenance Tasks'!S33 & CHAR(10) &\n\"Working Questions & Notes: \" &'Maintenance Tasks'!T33& CHAR(10) &\n\" Contractor: \" &'Maintenance Tasks'!U33","v":"Repeating: None\n Project Tasks: \nWorking Questions & Notes: \n Contractor: "},{"$f":"TEXT(VLOOKUP($K50,'Maintenance Tasks'!$B$2:$X$61,16,FALSE), \"YYYY-MM-DD\")","v":"2021-01-01"},{"$f":"TEXT(VLOOKUP($K50,'Maintenance Tasks'!$B$2:$X$61,17,FALSE), \"YYYY-MM-DD\")","v":"2021-12-31"},{"$f":"\"Repeating: \" & 'Maintenance Tasks'!M33 & CHAR(10) &\n\" Project Tasks: \" & 'Maintenance Tasks'!S33 & CHAR(10) &\n\"Working Questions & Notes: \" &'Maintenance Tasks'!T33& CHAR(10) &\n\" Contractor: \" &'Maintenance Tasks'!U33","v":"Repeating: None\n Project Tasks: \nWorking Questions & Notes: \n Contractor: "},{"$f":"IF('Maintenance Task Assignments'!B33<>\"\", 'Maintenance Task Assignments'!B33,\"\")","v":"T33"},{"$f":"IFERROR(VLOOKUP($D50,'Property Task Managers'!$A$1:$O$31,7,FALSE),\"\")","v":"ecsheneman@msn.com"}]
[{"$f":"VLOOKUP($K51,'Maintenance Tasks'!$B$2:$X$61,3,FALSE)","v":"Management"},{"$f":"VLOOKUP(K51,'Maintenance Tasks'!$B$2:$X$61,7,FALSE)","v":"T33 Resale Certificate"},{"$f":"VLOOKUP($K51,'Maintenance Tasks'!$B$2:$X$61,3,FALSE)","v":"Management"},{"$f":"IF('Maintenance Task Assignments'!B79<>\"\", 'Maintenance Task Assignments'!A79,\"\")","v":"JoanneW"},{"$f":"IF('Maintenance Task Assignments'!B79<>\"\", 'Maintenance Task Assignments'!D79,\"\")","v":"2nd"},{"$f":"VLOOKUP($K51,'Maintenance Tasks'!$B$2:$X$61,11,FALSE)","v":"As Needed"},{"$f":"\"Repeating: \" & 'Maintenance Tasks'!M79 & CHAR(10) &\n\" Project Tasks: \" & 'Maintenance Tasks'!S79 & CHAR(10) &\n\"Working Questions & Notes: \" &'Maintenance Tasks'!T79& CHAR(10) &\n\" Contractor: \" &'Maintenance Tasks'!U79","v":"Repeating: \n Project Tasks: \nWorking Questions & Notes: \n Contractor: "},{"$f":"TEXT(VLOOKUP($K51,'Maintenance Tasks'!$B$2:$X$61,16,FALSE), \"YYYY-MM-DD\")","v":"2021-01-01"},{"$f":"TEXT(VLOOKUP($K51,'Maintenance Tasks'!$B$2:$X$61,17,FALSE), \"YYYY-MM-DD\")","v":"2021-12-31"},{"$f":"\"Repeating: \" & 'Maintenance Tasks'!M79 & CHAR(10) &\n\" Project Tasks: \" & 'Maintenance Tasks'!S79 & CHAR(10) &\n\"Working Questions & Notes: \" &'Maintenance Tasks'!T79& CHAR(10) &\n\" Contractor: \" &'Maintenance Tasks'!U79","v":"Repeating: \n Project Tasks: \nWorking Questions & Notes: \n Contractor: "},{"$f":"IF('Maintenance Task Assignments'!B79<>\"\", 'Maintenance Task Assignments'!B79,\"\")","v":"T33"},{"$f":"IFERROR(VLOOKUP($D51,'Property Task Managers'!$A$1:$O$31,7,FALSE),\"\")","v":"jsw4804@gmail.com"}]
[{"$f":"VLOOKUP($K52,'Maintenance Tasks'!$B$2:$X$61,3,FALSE)","v":"Units"},{"$f":"VLOOKUP(K52,'Maintenance Tasks'!$B$2:$X$61,7,FALSE)","v":"T34 Roof Replacement Review"},{"$f":"VLOOKUP($K52,'Maintenance Tasks'!$B$2:$X$61,3,FALSE)","v":"Units"},{"$f":"IF('Maintenance Task Assignments'!B34<>\"\", 'Maintenance Task Assignments'!A34,\"\")","v":"BeverlyB"},{"$f":"IF('Maintenance Task Assignments'!B34<>\"\", 'Maintenance Task Assignments'!D34,\"\")","v":"1st"},{"$f":"VLOOKUP($K52,'Maintenance Tasks'!$B$2:$X$61,11,FALSE)","v":"Scheduled"},{"$f":"\"Repeating: \" & 'Maintenance Tasks'!M34 & CHAR(10) &\n\" Project Tasks: \" & 'Maintenance Tasks'!S34 & CHAR(10) &\n\"Working Questions & Notes: \" &'Maintenance Tasks'!T34& CHAR(10) &\n\" Contractor: \" &'Maintenance Tasks'!U34","v":"Repeating: None\n Project Tasks: Was $75K approx last time  2006\nWorking Questions & Notes: Larry Green 9-22-20 Yearly Routine\n Contractor: "},{"$f":"TEXT(VLOOKUP($K52,'Maintenance Tasks'!$B$2:$X$61,16,FALSE), \"YYYY-MM-DD\")","v":"2021-01-01"},{"$f":"TEXT(VLOOKUP($K52,'Maintenance Tasks'!$B$2:$X$61,17,FALSE), \"YYYY-MM-DD\")","v":"2021-01-01"},{"$f":"\"Repeating: \" & 'Maintenance Tasks'!M34 & CHAR(10) &\n\" Project Tasks: \" & 'Maintenance Tasks'!S34 & CHAR(10) &\n\"Working Questions & Notes: \" &'Maintenance Tasks'!T34& CHAR(10) &\n\" Contractor: \" &'Maintenance Tasks'!U34","v":"Repeating: None\n Project Tasks: Was $75K approx last time  2006\nWorking Questions & Notes: Larry Green 9-22-20 Yearly Routine\n Contractor: "},{"$f":"IF('Maintenance Task Assignments'!B34<>\"\", 'Maintenance Task Assignments'!B34,\"\")","v":"T34"},{"$f":"IFERROR(VLOOKUP($D52,'Property Task Managers'!$A$1:$O$31,7,FALSE),\"\")","v":"searigg@comcast.net"}]
[{"$f":"VLOOKUP($K53,'Maintenance Tasks'!$B$2:$X$61,3,FALSE)","v":"Units"},{"$f":"VLOOKUP(K53,'Maintenance Tasks'!$B$2:$X$61,7,FALSE)","v":"T34 Roof Replacement Review"},{"$f":"VLOOKUP($K53,'Maintenance Tasks'!$B$2:$X$61,3,FALSE)","v":"Units"},{"$f":"IF('Maintenance Task Assignments'!B80<>\"\", 'Maintenance Task Assignments'!A80,\"\")","v":"DaleB"},{"$f":"IF('Maintenance Task Assignments'!B80<>\"\", 'Maintenance Task Assignments'!D80,\"\")","v":"2nd"},{"$f":"VLOOKUP($K53,'Maintenance Tasks'!$B$2:$X$61,11,FALSE)","v":"Scheduled"},{"$f":"\"Repeating: \" & 'Maintenance Tasks'!M80 & CHAR(10) &\n\" Project Tasks: \" & 'Maintenance Tasks'!S80 & CHAR(10) &\n\"Working Questions & Notes: \" &'Maintenance Tasks'!T80& CHAR(10) &\n\" Contractor: \" &'Maintenance Tasks'!U80","v":"Repeating: \n Project Tasks: \nWorking Questions & Notes: \n Contractor: "},{"$f":"TEXT(VLOOKUP($K53,'Maintenance Tasks'!$B$2:$X$61,16,FALSE), \"YYYY-MM-DD\")","v":"2021-01-01"},{"$f":"TEXT(VLOOKUP($K53,'Maintenance Tasks'!$B$2:$X$61,17,FALSE), \"YYYY-MM-DD\")","v":"2021-01-01"},{"$f":"\"Repeating: \" & 'Maintenance Tasks'!M80 & CHAR(10) &\n\" Project Tasks: \" & 'Maintenance Tasks'!S80 & CHAR(10) &\n\"Working Questions & Notes: \" &'Maintenance Tasks'!T80& CHAR(10) &\n\" Contractor: \" &'Maintenance Tasks'!U80","v":"Repeating: \n Project Tasks: \nWorking Questions & Notes: \n Contractor: "},{"$f":"IF('Maintenance Task Assignments'!B80<>\"\", 'Maintenance Task Assignments'!B80,\"\")","v":"T34"},{"$f":"IFERROR(VLOOKUP($D53,'Property Task Managers'!$A$1:$O$31,7,FALSE),\"\")","v":"searigg@comcast.net"}]
[{"$f":"VLOOKUP($K54,'Maintenance Tasks'!$B$2:$X$61,3,FALSE)","v":"Units"},{"$f":"VLOOKUP(K54,'Maintenance Tasks'!$B$2:$X$61,7,FALSE)","v":"T35 Roof Treatment for Moss"},{"$f":"VLOOKUP($K54,'Maintenance Tasks'!$B$2:$X$61,3,FALSE)","v":"Units"},{"$f":"IF('Maintenance Task Assignments'!B35<>\"\", 'Maintenance Task Assignments'!A35,\"\")","v":"BeverlyB"},{"$f":"IF('Maintenance Task Assignments'!B35<>\"\", 'Maintenance Task Assignments'!D35,\"\")","v":"1st"},{"$f":"VLOOKUP($K54,'Maintenance Tasks'!$B$2:$X$61,11,FALSE)","v":"Repeating "},{"$f":"\"Repeating: \" & 'Maintenance Tasks'!M35 & CHAR(10) &\n\" Project Tasks: \" & 'Maintenance Tasks'!S35 & CHAR(10) &\n\"Working Questions & Notes: \" &'Maintenance Tasks'!T35& CHAR(10) &\n\" Contractor: \" &'Maintenance Tasks'!U35","v":"Repeating: Semi-Annual, Apr, Nov\n Project Tasks: Check roofs for moss, treat as needed\nWorking Questions & Notes: Larry Green 9-22-20 Yearly Routine\n Contractor: "},{"$f":"TEXT(VLOOKUP($K54,'Maintenance Tasks'!$B$2:$X$61,16,FALSE), \"YYYY-MM-DD\")","v":"2021-04-01"},{"$f":"TEXT(VLOOKUP($K54,'Maintenance Tasks'!$B$2:$X$61,17,FALSE), \"YYYY-MM-DD\")","v":"2021-04-30"},{"$f":"\"Repeating: \" & 'Maintenance Tasks'!M35 & CHAR(10) &\n\" Project Tasks: \" & 'Maintenance Tasks'!S35 & CHAR(10) &\n\"Working Questions & Notes: \" &'Maintenance Tasks'!T35& CHAR(10) &\n\" Contractor: \" &'Maintenance Tasks'!U35","v":"Repeating: Semi-Annual, Apr, Nov\n Project Tasks: Check roofs for moss, treat as needed\nWorking Questions & Notes: Larry Green 9-22-20 Yearly Routine\n Contractor: "},{"$f":"IF('Maintenance Task Assignments'!B35<>\"\", 'Maintenance Task Assignments'!B35,\"\")","v":"T35"},{"$f":"IFERROR(VLOOKUP($D54,'Property Task Managers'!$A$1:$O$31,7,FALSE),\"\")","v":"searigg@comcast.net"}]
[{"$f":"VLOOKUP($K55,'Maintenance Tasks'!$B$2:$X$61,3,FALSE)","v":"Units"},{"$f":"VLOOKUP(K55,'Maintenance Tasks'!$B$2:$X$61,7,FALSE)","v":"T35 Roof Treatment for Moss"},{"$f":"VLOOKUP($K55,'Maintenance Tasks'!$B$2:$X$61,3,FALSE)","v":"Units"},{"$f":"IF('Maintenance Task Assignments'!B81<>\"\", 'Maintenance Task Assignments'!A81,\"\")","v":"DaleB"},{"$f":"IF('Maintenance Task Assignments'!B81<>\"\", 'Maintenance Task Assignments'!D81,\"\")","v":"2nd"},{"$f":"VLOOKUP($K55,'Maintenance Tasks'!$B$2:$X$61,11,FALSE)","v":"Repeating "},{"$f":"\"Repeating: \" & 'Maintenance Tasks'!M81 & CHAR(10) &\n\" Project Tasks: \" & 'Maintenance Tasks'!S81 & CHAR(10) &\n\"Working Questions & Notes: \" &'Maintenance Tasks'!T81& CHAR(10) &\n\" Contractor: \" &'Maintenance Tasks'!U81","v":"Repeating: \n Project Tasks: \nWorking Questions & Notes: \n Contractor: "},{"$f":"TEXT(VLOOKUP($K55,'Maintenance Tasks'!$B$2:$X$61,16,FALSE), \"YYYY-MM-DD\")","v":"2021-04-01"},{"$f":"TEXT(VLOOKUP($K55,'Maintenance Tasks'!$B$2:$X$61,17,FALSE), \"YYYY-MM-DD\")","v":"2021-04-30"},{"$f":"\"Repeating: \" & 'Maintenance Tasks'!M81 & CHAR(10) &\n\" Project Tasks: \" & 'Maintenance Tasks'!S81 & CHAR(10) &\n\"Working Questions & Notes: \" &'Maintenance Tasks'!T81& CHAR(10) &\n\" Contractor: \" &'Maintenance Tasks'!U81","v":"Repeating: \n Project Tasks: \nWorking Questions & Notes: \n Contractor: "},{"$f":"IF('Maintenance Task Assignments'!B81<>\"\", 'Maintenance Task Assignments'!B81,\"\")","v":"T35"},{"$f":"IFERROR(VLOOKUP($D55,'Property Task Managers'!$A$1:$O$31,7,FALSE),\"\")","v":"searigg@comcast.net"}]
[{"$f":"VLOOKUP($K56,'Maintenance Tasks'!$B$2:$X$61,3,FALSE)","v":"Clubhouse"},{"$f":"VLOOKUP(K56,'Maintenance Tasks'!$B$2:$X$61,7,FALSE)","v":"T36 Santizier Refill - Daily Check"},{"$f":"VLOOKUP($K56,'Maintenance Tasks'!$B$2:$X$61,3,FALSE)","v":"Clubhouse"},{"$f":"IF('Maintenance Task Assignments'!B36<>\"\", 'Maintenance Task Assignments'!A36,\"\")","v":"JoanneW"},{"$f":"IF('Maintenance Task Assignments'!B36<>\"\", 'Maintenance Task Assignments'!D36,\"\")","v":"1st"},{"$f":"VLOOKUP($K56,'Maintenance Tasks'!$B$2:$X$61,11,FALSE)","v":"As Needed"},{"$f":"\"Repeating: \" & 'Maintenance Tasks'!M36 & CHAR(10) &\n\" Project Tasks: \" & 'Maintenance Tasks'!S36 & CHAR(10) &\n\"Working Questions & Notes: \" &'Maintenance Tasks'!T36& CHAR(10) &\n\" Contractor: \" &'Maintenance Tasks'!U36","v":"Repeating: Weekly, Mar, Apr\n Project Tasks: Check daily;  refill as needed\nWorking Questions & Notes: \n Contractor: "},{"$f":"TEXT(VLOOKUP($K56,'Maintenance Tasks'!$B$2:$X$61,16,FALSE), \"YYYY-MM-DD\")","v":"2021-01-03"},{"$f":"TEXT(VLOOKUP($K56,'Maintenance Tasks'!$B$2:$X$61,17,FALSE), \"YYYY-MM-DD\")","v":"2021-04-30"},{"$f":"\"Repeating: \" & 'Maintenance Tasks'!M36 & CHAR(10) &\n\" Project Tasks: \" & 'Maintenance Tasks'!S36 & CHAR(10) &\n\"Working Questions & Notes: \" &'Maintenance Tasks'!T36& CHAR(10) &\n\" Contractor: \" &'Maintenance Tasks'!U36","v":"Repeating: Weekly, Mar, Apr\n Project Tasks: Check daily;  refill as needed\nWorking Questions & Notes: \n Contractor: "},{"$f":"IF('Maintenance Task Assignments'!B36<>\"\", 'Maintenance Task Assignments'!B36,\"\")","v":"T36"},{"$f":"IFERROR(VLOOKUP($D56,'Property Task Managers'!$A$1:$O$31,7,FALSE),\"\")","v":"jsw4804@gmail.com"}]
[{"$f":"VLOOKUP($K57,'Maintenance Tasks'!$B$2:$X$61,3,FALSE)","v":"Management"},{"$f":"VLOOKUP(K57,'Maintenance Tasks'!$B$2:$X$61,7,FALSE)","v":"T37 Secretary Responsibilities"},{"$f":"VLOOKUP($K57,'Maintenance Tasks'!$B$2:$X$61,3,FALSE)","v":"Management"},{"$f":"IF('Maintenance Task Assignments'!B37<>\"\", 'Maintenance Task Assignments'!A37,\"\")","v":"PattyL"},{"$f":"IF('Maintenance Task Assignments'!B37<>\"\", 'Maintenance Task Assignments'!D37,\"\")","v":"1st"},{"$f":"VLOOKUP($K57,'Maintenance Tasks'!$B$2:$X$61,11,FALSE)","v":"Manage"},{"$f":"\"Repeating: \" & 'Maintenance Tasks'!M37 & CHAR(10) &\n\" Project Tasks: \" & 'Maintenance Tasks'!S37 & CHAR(10) &\n\"Working Questions & Notes: \" &'Maintenance Tasks'!T37& CHAR(10) &\n\" Contractor: \" &'Maintenance Tasks'!U37","v":"Repeating: None\n Project Tasks: \nWorking Questions & Notes: \n Contractor: "},{"$f":"TEXT(VLOOKUP($K57,'Maintenance Tasks'!$B$2:$X$61,16,FALSE), \"YYYY-MM-DD\")","v":"2021-01-01"},{"$f":"TEXT(VLOOKUP($K57,'Maintenance Tasks'!$B$2:$X$61,17,FALSE), \"YYYY-MM-DD\")","v":"2021-12-31"},{"$f":"\"Repeating: \" & 'Maintenance Tasks'!M37 & CHAR(10) &\n\" Project Tasks: \" & 'Maintenance Tasks'!S37 & CHAR(10) &\n\"Working Questions & Notes: \" &'Maintenance Tasks'!T37& CHAR(10) &\n\" Contractor: \" &'Maintenance Tasks'!U37","v":"Repeating: None\n Project Tasks: \nWorking Questions & Notes: \n Contractor: "},{"$f":"IF('Maintenance Task Assignments'!B37<>\"\", 'Maintenance Task Assignments'!B37,\"\")","v":"T37"},{"$f":"IFERROR(VLOOKUP($D57,'Property Task Managers'!$A$1:$O$31,7,FALSE),\"\")","v":"pjlteach@yahoo.com"}]
[{"$f":"VLOOKUP($K58,'Maintenance Tasks'!$B$2:$X$61,3,FALSE)","v":"Management"},{"$f":"VLOOKUP(K58,'Maintenance Tasks'!$B$2:$X$61,7,FALSE)","v":"T37 Secretary Responsibilities"},{"$f":"VLOOKUP($K58,'Maintenance Tasks'!$B$2:$X$61,3,FALSE)","v":"Management"},{"$f":"IF('Maintenance Task Assignments'!B95<>\"\", 'Maintenance Task Assignments'!A95,\"\")","v":"none"},{"$f":"IF('Maintenance Task Assignments'!B95<>\"\", 'Maintenance Task Assignments'!D95,\"\")","v":"3rd"},{"$f":"VLOOKUP($K58,'Maintenance Tasks'!$B$2:$X$61,11,FALSE)","v":"Manage"},{"$f":"\"Repeating: \" & 'Maintenance Tasks'!M95 & CHAR(10) &\n\" Project Tasks: \" & 'Maintenance Tasks'!S95 & CHAR(10) &\n\"Working Questions & Notes: \" &'Maintenance Tasks'!T95& CHAR(10) &\n\" Contractor: \" &'Maintenance Tasks'!U95","v":"Repeating: \n Project Tasks: \nWorking Questions & Notes: \n Contractor: "},{"$f":"TEXT(VLOOKUP($K58,'Maintenance Tasks'!$B$2:$X$61,16,FALSE), \"YYYY-MM-DD\")","v":"2021-01-01"},{"$f":"TEXT(VLOOKUP($K58,'Maintenance Tasks'!$B$2:$X$61,17,FALSE), \"YYYY-MM-DD\")","v":"2021-12-31"},{"$f":"\"Repeating: \" & 'Maintenance Tasks'!M95 & CHAR(10) &\n\" Project Tasks: \" & 'Maintenance Tasks'!S95 & CHAR(10) &\n\"Working Questions & Notes: \" &'Maintenance Tasks'!T95& CHAR(10) &\n\" Contractor: \" &'Maintenance Tasks'!U95","v":"Repeating: \n Project Tasks: \nWorking Questions & Notes: \n Contractor: "},{"$f":"IF('Maintenance Task Assignments'!B95<>\"\", 'Maintenance Task Assignments'!B95,\"\")","v":"T37"},{"$f":"IFERROR(VLOOKUP($D58,'Property Task Managers'!$A$1:$O$31,7,FALSE),\"\")","v":""}]
[{"$f":"VLOOKUP($K59,'Maintenance Tasks'!$B$2:$X$61,3,FALSE)","v":"Clubhouse"},{"$f":"VLOOKUP(K59,'Maintenance Tasks'!$B$2:$X$61,7,FALSE)","v":"T38 Social Scheduling"},{"$f":"VLOOKUP($K59,'Maintenance Tasks'!$B$2:$X$61,3,FALSE)","v":"Clubhouse"},{"$f":"IF('Maintenance Task Assignments'!B38<>\"\", 'Maintenance Task Assignments'!A38,\"\")","v":"SheilaJ"},{"$f":"IF('Maintenance Task Assignments'!B38<>\"\", 'Maintenance Task Assignments'!D38,\"\")","v":"1st"},{"$f":"VLOOKUP($K59,'Maintenance Tasks'!$B$2:$X$61,11,FALSE)","v":"As Needed"},{"$f":"\"Repeating: \" & 'Maintenance Tasks'!M38 & CHAR(10) &\n\" Project Tasks: \" & 'Maintenance Tasks'!S38 & CHAR(10) &\n\"Working Questions & Notes: \" &'Maintenance Tasks'!T38& CHAR(10) &\n\" Contractor: \" &'Maintenance Tasks'!U38","v":"Repeating: None\n Project Tasks: \nWorking Questions & Notes: \n Contractor: "},{"$f":"TEXT(VLOOKUP($K59,'Maintenance Tasks'!$B$2:$X$61,16,FALSE), \"YYYY-MM-DD\")","v":"2021-01-01"},{"$f":"TEXT(VLOOKUP($K59,'Maintenance Tasks'!$B$2:$X$61,17,FALSE), \"YYYY-MM-DD\")","v":"2021-12-31"},{"$f":"\"Repeating: \" & 'Maintenance Tasks'!M38 & CHAR(10) &\n\" Project Tasks: \" & 'Maintenance Tasks'!S38 & CHAR(10) &\n\"Working Questions & Notes: \" &'Maintenance Tasks'!T38& CHAR(10) &\n\" Contractor: \" &'Maintenance Tasks'!U38","v":"Repeating: None\n Project Tasks: \nWorking Questions & Notes: \n Contractor: "},{"$f":"IF('Maintenance Task Assignments'!B38<>\"\", 'Maintenance Task Assignments'!B38,\"\")","v":"T38"},{"$f":"IFERROR(VLOOKUP($D59,'Property Task Managers'!$A$1:$O$31,7,FALSE),\"\")","v":"sheilajohansen47@gmail.com"}]
[{"$f":"VLOOKUP($K60,'Maintenance Tasks'!$B$2:$X$61,3,FALSE)","v":"Sitewide"},{"$f":"VLOOKUP(K60,'Maintenance Tasks'!$B$2:$X$61,7,FALSE)","v":"T39 Street Curb Repairs"},{"$f":"VLOOKUP($K60,'Maintenance Tasks'!$B$2:$X$61,3,FALSE)","v":"Sitewide"},{"$f":"IF('Maintenance Task Assignments'!B39<>\"\", 'Maintenance Task Assignments'!A39,\"\")","v":"BeverlyB"},{"$f":"IF('Maintenance Task Assignments'!B39<>\"\", 'Maintenance Task Assignments'!D39,\"\")","v":"1st"},{"$f":"VLOOKUP($K60,'Maintenance Tasks'!$B$2:$X$61,11,FALSE)","v":"As Needed"},{"$f":"\"Repeating: \" & 'Maintenance Tasks'!M39 & CHAR(10) &\n\" Project Tasks: \" & 'Maintenance Tasks'!S39 & CHAR(10) &\n\"Working Questions & Notes: \" &'Maintenance Tasks'!T39& CHAR(10) &\n\" Contractor: \" &'Maintenance Tasks'!U39","v":"Repeating: None\n Project Tasks: \nWorking Questions & Notes: Larry Green 9-22-20 Yearly Routine\n Contractor: "},{"$f":"TEXT(VLOOKUP($K60,'Maintenance Tasks'!$B$2:$X$61,16,FALSE), \"YYYY-MM-DD\")","v":"2021-01-01"},{"$f":"TEXT(VLOOKUP($K60,'Maintenance Tasks'!$B$2:$X$61,17,FALSE), \"YYYY-MM-DD\")","v":"2021-12-31"},{"$f":"\"Repeating: \" & 'Maintenance Tasks'!M39 & CHAR(10) &\n\" Project Tasks: \" & 'Maintenance Tasks'!S39 & CHAR(10) &\n\"Working Questions & Notes: \" &'Maintenance Tasks'!T39& CHAR(10) &\n\" Contractor: \" &'Maintenance Tasks'!U39","v":"Repeating: None\n Project Tasks: \nWorking Questions & Notes: Larry Green 9-22-20 Yearly Routine\n Contractor: "},{"$f":"IF('Maintenance Task Assignments'!B39<>\"\", 'Maintenance Task Assignments'!B39,\"\")","v":"T39"},{"$f":"IFERROR(VLOOKUP($D60,'Property Task Managers'!$A$1:$O$31,7,FALSE),\"\")","v":"searigg@comcast.net"}]
[{"$f":"VLOOKUP($K61,'Maintenance Tasks'!$B$2:$X$61,3,FALSE)","v":"Sitewide"},{"$f":"VLOOKUP(K61,'Maintenance Tasks'!$B$2:$X$61,7,FALSE)","v":"T39 Street Curb Repairs"},{"$f":"VLOOKUP($K61,'Maintenance Tasks'!$B$2:$X$61,3,FALSE)","v":"Sitewide"},{"$f":"IF('Maintenance Task Assignments'!B82<>\"\", 'Maintenance Task Assignments'!A82,\"\")","v":"DaleB"},{"$f":"IF('Maintenance Task Assignments'!B82<>\"\", 'Maintenance Task Assignments'!D82,\"\")","v":"2nd"},{"$f":"VLOOKUP($K61,'Maintenance Tasks'!$B$2:$X$61,11,FALSE)","v":"As Needed"},{"$f":"\"Repeating: \" & 'Maintenance Tasks'!M82 & CHAR(10) &\n\" Project Tasks: \" & 'Maintenance Tasks'!S82 & CHAR(10) &\n\"Working Questions & Notes: \" &'Maintenance Tasks'!T82& CHAR(10) &\n\" Contractor: \" &'Maintenance Tasks'!U82","v":"Repeating: \n Project Tasks: \nWorking Questions & Notes: \n Contractor: "},{"$f":"TEXT(VLOOKUP($K61,'Maintenance Tasks'!$B$2:$X$61,16,FALSE), \"YYYY-MM-DD\")","v":"2021-01-01"},{"$f":"TEXT(VLOOKUP($K61,'Maintenance Tasks'!$B$2:$X$61,17,FALSE), \"YYYY-MM-DD\")","v":"2021-12-31"},{"$f":"\"Repeating: \" & 'Maintenance Tasks'!M82 & CHAR(10) &\n\" Project Tasks: \" & 'Maintenance Tasks'!S82 & CHAR(10) &\n\"Working Questions & Notes: \" &'Maintenance Tasks'!T82& CHAR(10) &\n\" Contractor: \" &'Maintenance Tasks'!U82","v":"Repeating: \n Project Tasks: \nWorking Questions & Notes: \n Contractor: "},{"$f":"IF('Maintenance Task Assignments'!B82<>\"\", 'Maintenance Task Assignments'!B82,\"\")","v":"T39"},{"$f":"IFERROR(VLOOKUP($D61,'Property Task Managers'!$A$1:$O$31,7,FALSE),\"\")","v":"searigg@comcast.net"}]
[{"$f":"VLOOKUP($K62,'Maintenance Tasks'!$B$2:$X$61,3,FALSE)","v":"Sitewide"},{"$f":"VLOOKUP(K62,'Maintenance Tasks'!$B$2:$X$61,7,FALSE)","v":"T40 Street Reseal Cracks"},{"$f":"VLOOKUP($K62,'Maintenance Tasks'!$B$2:$X$61,3,FALSE)","v":"Sitewide"},{"$f":"IF('Maintenance Task Assignments'!B40<>\"\", 'Maintenance Task Assignments'!A40,\"\")","v":"BeverlyB"},{"$f":"IF('Maintenance Task Assignments'!B40<>\"\", 'Maintenance Task Assignments'!D40,\"\")","v":"1st"},{"$f":"VLOOKUP($K62,'Maintenance Tasks'!$B$2:$X$61,11,FALSE)","v":"As Needed"},{"$f":"\"Repeating: \" & 'Maintenance Tasks'!M40 & CHAR(10) &\n\" Project Tasks: \" & 'Maintenance Tasks'!S40 & CHAR(10) &\n\"Working Questions & Notes: \" &'Maintenance Tasks'!T40& CHAR(10) &\n\" Contractor: \" &'Maintenance Tasks'!U40","v":"Repeating: None\n Project Tasks: Check street for cracks, re-seal as needed\nWorking Questions & Notes: Larry Green 9-22-20 Yearly Routine\n Contractor: "},{"$f":"TEXT(VLOOKUP($K62,'Maintenance Tasks'!$B$2:$X$61,16,FALSE), \"YYYY-MM-DD\")","v":"2021-01-01"},{"$f":"TEXT(VLOOKUP($K62,'Maintenance Tasks'!$B$2:$X$61,17,FALSE), \"YYYY-MM-DD\")","v":"2021-12-31"},{"$f":"\"Repeating: \" & 'Maintenance Tasks'!M40 & CHAR(10) &\n\" Project Tasks: \" & 'Maintenance Tasks'!S40 & CHAR(10) &\n\"Working Questions & Notes: \" &'Maintenance Tasks'!T40& CHAR(10) &\n\" Contractor: \" &'Maintenance Tasks'!U40","v":"Repeating: None\n Project Tasks: Check street for cracks, re-seal as needed\nWorking Questions & Notes: Larry Green 9-22-20 Yearly Routine\n Contractor: "},{"$f":"IF('Maintenance Task Assignments'!B40<>\"\", 'Maintenance Task Assignments'!B40,\"\")","v":"T40"},{"$f":"IFERROR(VLOOKUP($D62,'Property Task Managers'!$A$1:$O$31,7,FALSE),\"\")","v":"searigg@comcast.net"}]
[{"$f":"VLOOKUP($K63,'Maintenance Tasks'!$B$2:$X$61,3,FALSE)","v":"Sitewide"},{"$f":"VLOOKUP(K63,'Maintenance Tasks'!$B$2:$X$61,7,FALSE)","v":"T40 Street Reseal Cracks"},{"$f":"VLOOKUP($K63,'Maintenance Tasks'!$B$2:$X$61,3,FALSE)","v":"Sitewide"},{"$f":"IF('Maintenance Task Assignments'!B83<>\"\", 'Maintenance Task Assignments'!A83,\"\")","v":"DaleB"},{"$f":"IF('Maintenance Task Assignments'!B83<>\"\", 'Maintenance Task Assignments'!D83,\"\")","v":"2nd"},{"$f":"VLOOKUP($K63,'Maintenance Tasks'!$B$2:$X$61,11,FALSE)","v":"As Needed"},{"$f":"\"Repeating: \" & 'Maintenance Tasks'!M83 & CHAR(10) &\n\" Project Tasks: \" & 'Maintenance Tasks'!S83 & CHAR(10) &\n\"Working Questions & Notes: \" &'Maintenance Tasks'!T83& CHAR(10) &\n\" Contractor: \" &'Maintenance Tasks'!U83","v":"Repeating: \n Project Tasks: \nWorking Questions & Notes: \n Contractor: "},{"$f":"TEXT(VLOOKUP($K63,'Maintenance Tasks'!$B$2:$X$61,16,FALSE), \"YYYY-MM-DD\")","v":"2021-01-01"},{"$f":"TEXT(VLOOKUP($K63,'Maintenance Tasks'!$B$2:$X$61,17,FALSE), \"YYYY-MM-DD\")","v":"2021-12-31"},{"$f":"\"Repeating: \" & 'Maintenance Tasks'!M83 & CHAR(10) &\n\" Project Tasks: \" & 'Maintenance Tasks'!S83 & CHAR(10) &\n\"Working Questions & Notes: \" &'Maintenance Tasks'!T83& CHAR(10) &\n\" Contractor: \" &'Maintenance Tasks'!U83","v":"Repeating: \n Project Tasks: \nWorking Questions & Notes: \n Contractor: "},{"$f":"IF('Maintenance Task Assignments'!B83<>\"\", 'Maintenance Task Assignments'!B83,\"\")","v":"T40"},{"$f":"IFERROR(VLOOKUP($D63,'Property Task Managers'!$A$1:$O$31,7,FALSE),\"\")","v":"searigg@comcast.net"}]
[{"$f":"VLOOKUP($K64,'Maintenance Tasks'!$B$2:$X$61,3,FALSE)","v":"Sitewide"},{"$f":"VLOOKUP(K64,'Maintenance Tasks'!$B$2:$X$61,7,FALSE)","v":"T41 Street Seal Coat"},{"$f":"VLOOKUP($K64,'Maintenance Tasks'!$B$2:$X$61,3,FALSE)","v":"Sitewide"},{"$f":"IF('Maintenance Task Assignments'!B41<>\"\", 'Maintenance Task Assignments'!A41,\"\")","v":"BeverlyB"},{"$f":"IF('Maintenance Task Assignments'!B41<>\"\", 'Maintenance Task Assignments'!D41,\"\")","v":"1st"},{"$f":"VLOOKUP($K64,'Maintenance Tasks'!$B$2:$X$61,11,FALSE)","v":"As Needed"},{"$f":"\"Repeating: \" & 'Maintenance Tasks'!M41 & CHAR(10) &\n\" Project Tasks: \" & 'Maintenance Tasks'!S41 & CHAR(10) &\n\"Working Questions & Notes: \" &'Maintenance Tasks'!T41& CHAR(10) &\n\" Contractor: \" &'Maintenance Tasks'!U41","v":"Repeating: None\n Project Tasks: \nWorking Questions & Notes: Larry Green 9-22-20 Yearly Routine\n Contractor: "},{"$f":"TEXT(VLOOKUP($K64,'Maintenance Tasks'!$B$2:$X$61,16,FALSE), \"YYYY-MM-DD\")","v":"2021-01-01"},{"$f":"TEXT(VLOOKUP($K64,'Maintenance Tasks'!$B$2:$X$61,17,FALSE), \"YYYY-MM-DD\")","v":"2021-12-31"},{"$f":"\"Repeating: \" & 'Maintenance Tasks'!M41 & CHAR(10) &\n\" Project Tasks: \" & 'Maintenance Tasks'!S41 & CHAR(10) &\n\"Working Questions & Notes: \" &'Maintenance Tasks'!T41& CHAR(10) &\n\" Contractor: \" &'Maintenance Tasks'!U41","v":"Repeating: None\n Project Tasks: \nWorking Questions & Notes: Larry Green 9-22-20 Yearly Routine\n Contractor: "},{"$f":"IF('Maintenance Task Assignments'!B41<>\"\", 'Maintenance Task Assignments'!B41,\"\")","v":"T41"},{"$f":"IFERROR(VLOOKUP($D64,'Property Task Managers'!$A$1:$O$31,7,FALSE),\"\")","v":"searigg@comcast.net"}]
[{"$f":"VLOOKUP($K65,'Maintenance Tasks'!$B$2:$X$61,3,FALSE)","v":"Sitewide"},{"$f":"VLOOKUP(K65,'Maintenance Tasks'!$B$2:$X$61,7,FALSE)","v":"T41 Street Seal Coat"},{"$f":"VLOOKUP($K65,'Maintenance Tasks'!$B$2:$X$61,3,FALSE)","v":"Sitewide"},{"$f":"IF('Maintenance Task Assignments'!B84<>\"\", 'Maintenance Task Assignments'!A84,\"\")","v":"DaleB"},{"$f":"IF('Maintenance Task Assignments'!B84<>\"\", 'Maintenance Task Assignments'!D84,\"\")","v":"2nd"},{"$f":"VLOOKUP($K65,'Maintenance Tasks'!$B$2:$X$61,11,FALSE)","v":"As Needed"},{"$f":"\"Repeating: \" & 'Maintenance Tasks'!M84 & CHAR(10) &\n\" Project Tasks: \" & 'Maintenance Tasks'!S84 & CHAR(10) &\n\"Working Questions & Notes: \" &'Maintenance Tasks'!T84& CHAR(10) &\n\" Contractor: \" &'Maintenance Tasks'!U84","v":"Repeating: \n Project Tasks: \nWorking Questions & Notes: \n Contractor: "},{"$f":"TEXT(VLOOKUP($K65,'Maintenance Tasks'!$B$2:$X$61,16,FALSE), \"YYYY-MM-DD\")","v":"2021-01-01"},{"$f":"TEXT(VLOOKUP($K65,'Maintenance Tasks'!$B$2:$X$61,17,FALSE), \"YYYY-MM-DD\")","v":"2021-12-31"},{"$f":"\"Repeating: \" & 'Maintenance Tasks'!M84 & CHAR(10) &\n\" Project Tasks: \" & 'Maintenance Tasks'!S84 & CHAR(10) &\n\"Working Questions & Notes: \" &'Maintenance Tasks'!T84& CHAR(10) &\n\" Contractor: \" &'Maintenance Tasks'!U84","v":"Repeating: \n Project Tasks: \nWorking Questions & Notes: \n Contractor: "},{"$f":"IF('Maintenance Task Assignments'!B84<>\"\", 'Maintenance Task Assignments'!B84,\"\")","v":"T41"},{"$f":"IFERROR(VLOOKUP($D65,'Property Task Managers'!$A$1:$O$31,7,FALSE),\"\")","v":"searigg@comcast.net"}]
[{"$f":"VLOOKUP($K66,'Maintenance Tasks'!$B$2:$X$61,3,FALSE)","v":"Sitewide"},{"$f":"VLOOKUP(K66,'Maintenance Tasks'!$B$2:$X$61,7,FALSE)","v":"T42 Street Snow Removal"},{"$f":"VLOOKUP($K66,'Maintenance Tasks'!$B$2:$X$61,3,FALSE)","v":"Sitewide"},{"$f":"IF('Maintenance Task Assignments'!B42<>\"\", 'Maintenance Task Assignments'!A42,\"\")","v":"JimT"},{"$f":"IF('Maintenance Task Assignments'!B42<>\"\", 'Maintenance Task Assignments'!D42,\"\")","v":"1st"},{"$f":"VLOOKUP($K66,'Maintenance Tasks'!$B$2:$X$61,11,FALSE)","v":"As Needed"},{"$f":"\"Repeating: \" & 'Maintenance Tasks'!M42 & CHAR(10) &\n\" Project Tasks: \" & 'Maintenance Tasks'!S42 & CHAR(10) &\n\"Working Questions & Notes: \" &'Maintenance Tasks'!T42& CHAR(10) &\n\" Contractor: \" &'Maintenance Tasks'!U42","v":"Repeating: None\n Project Tasks: \nWorking Questions & Notes: \n Contractor: "},{"$f":"TEXT(VLOOKUP($K66,'Maintenance Tasks'!$B$2:$X$61,16,FALSE), \"YYYY-MM-DD\")","v":"2021-01-01"},{"$f":"TEXT(VLOOKUP($K66,'Maintenance Tasks'!$B$2:$X$61,17,FALSE), \"YYYY-MM-DD\")","v":"2021-12-31"},{"$f":"\"Repeating: \" & 'Maintenance Tasks'!M42 & CHAR(10) &\n\" Project Tasks: \" & 'Maintenance Tasks'!S42 & CHAR(10) &\n\"Working Questions & Notes: \" &'Maintenance Tasks'!T42& CHAR(10) &\n\" Contractor: \" &'Maintenance Tasks'!U42","v":"Repeating: None\n Project Tasks: \nWorking Questions & Notes: \n Contractor: "},{"$f":"IF('Maintenance Task Assignments'!B42<>\"\", 'Maintenance Task Assignments'!B42,\"\")","v":"T42"},{"$f":"IFERROR(VLOOKUP($D66,'Property Task Managers'!$A$1:$O$31,7,FALSE),\"\")","v":"jim@tragesser.net   "}]
[{"$f":"VLOOKUP($K67,'Maintenance Tasks'!$B$2:$X$61,3,FALSE)","v":"Sitewide"},{"$f":"VLOOKUP(K67,'Maintenance Tasks'!$B$2:$X$61,7,FALSE)","v":"T42 Street Snow Removal"},{"$f":"VLOOKUP($K67,'Maintenance Tasks'!$B$2:$X$61,3,FALSE)","v":"Sitewide"},{"$f":"IF('Maintenance Task Assignments'!B85<>\"\", 'Maintenance Task Assignments'!A85,\"\")","v":"DonW"},{"$f":"IF('Maintenance Task Assignments'!B85<>\"\", 'Maintenance Task Assignments'!D85,\"\")","v":"2nd"},{"$f":"VLOOKUP($K67,'Maintenance Tasks'!$B$2:$X$61,11,FALSE)","v":"As Needed"},{"$f":"\"Repeating: \" & 'Maintenance Tasks'!M85 & CHAR(10) &\n\" Project Tasks: \" & 'Maintenance Tasks'!S85 & CHAR(10) &\n\"Working Questions & Notes: \" &'Maintenance Tasks'!T85& CHAR(10) &\n\" Contractor: \" &'Maintenance Tasks'!U85","v":"Repeating: \n Project Tasks: \nWorking Questions & Notes: \n Contractor: "},{"$f":"TEXT(VLOOKUP($K67,'Maintenance Tasks'!$B$2:$X$61,16,FALSE), \"YYYY-MM-DD\")","v":"2021-01-01"},{"$f":"TEXT(VLOOKUP($K67,'Maintenance Tasks'!$B$2:$X$61,17,FALSE), \"YYYY-MM-DD\")","v":"2021-12-31"},{"$f":"\"Repeating: \" & 'Maintenance Tasks'!M85 & CHAR(10) &\n\" Project Tasks: \" & 'Maintenance Tasks'!S85 & CHAR(10) &\n\"Working Questions & Notes: \" &'Maintenance Tasks'!T85& CHAR(10) &\n\" Contractor: \" &'Maintenance Tasks'!U85","v":"Repeating: \n Project Tasks: \nWorking Questions & Notes: \n Contractor: "},{"$f":"IF('Maintenance Task Assignments'!B85<>\"\", 'Maintenance Task Assignments'!B85,\"\")","v":"T42"},{"$f":"IFERROR(VLOOKUP($D67,'Property Task Managers'!$A$1:$O$31,7,FALSE),\"\")","v":"searigg@comcast.net"}]
[{"$f":"VLOOKUP($K68,'Maintenance Tasks'!$B$2:$X$61,3,FALSE)","v":"Grounds"},{"$f":"VLOOKUP(K68,'Maintenance Tasks'!$B$2:$X$61,7,FALSE)","v":"T43 Stump Ginding"},{"$f":"VLOOKUP($K68,'Maintenance Tasks'!$B$2:$X$61,3,FALSE)","v":"Grounds"},{"$f":"IF('Maintenance Task Assignments'!B43<>\"\", 'Maintenance Task Assignments'!A43,\"\")","v":"JimT"},{"$f":"IF('Maintenance Task Assignments'!B43<>\"\", 'Maintenance Task Assignments'!D43,\"\")","v":"1st"},{"$f":"VLOOKUP($K68,'Maintenance Tasks'!$B$2:$X$61,11,FALSE)","v":"As Needed"},{"$f":"\"Repeating: \" & 'Maintenance Tasks'!M43 & CHAR(10) &\n\" Project Tasks: \" & 'Maintenance Tasks'!S43 & CHAR(10) &\n\"Working Questions & Notes: \" &'Maintenance Tasks'!T43& CHAR(10) &\n\" Contractor: \" &'Maintenance Tasks'!U43","v":"Repeating: Jan\n Project Tasks: \nWorking Questions & Notes: Larry Green 9-22-20 Yearly Routine\n Contractor: "},{"$f":"TEXT(VLOOKUP($K68,'Maintenance Tasks'!$B$2:$X$61,16,FALSE), \"YYYY-MM-DD\")","v":"2021-01-01"},{"$f":"TEXT(VLOOKUP($K68,'Maintenance Tasks'!$B$2:$X$61,17,FALSE), \"YYYY-MM-DD\")","v":"2021-12-31"},{"$f":"\"Repeating: \" & 'Maintenance Tasks'!M43 & CHAR(10) &\n\" Project Tasks: \" & 'Maintenance Tasks'!S43 & CHAR(10) &\n\"Working Questions & Notes: \" &'Maintenance Tasks'!T43& CHAR(10) &\n\" Contractor: \" &'Maintenance Tasks'!U43","v":"Repeating: Jan\n Project Tasks: \nWorking Questions & Notes: Larry Green 9-22-20 Yearly Routine\n Contractor: "},{"$f":"IF('Maintenance Task Assignments'!B43<>\"\", 'Maintenance Task Assignments'!B43,\"\")","v":"T43"},{"$f":"IFERROR(VLOOKUP($D68,'Property Task Managers'!$A$1:$O$31,7,FALSE),\"\")","v":"jim@tragesser.net   "}]
[{"$f":"VLOOKUP($K69,'Maintenance Tasks'!$B$2:$X$61,3,FALSE)","v":"Management"},{"$f":"VLOOKUP(K69,'Maintenance Tasks'!$B$2:$X$61,7,FALSE)","v":"T44 Sunshine Committee"},{"$f":"VLOOKUP($K69,'Maintenance Tasks'!$B$2:$X$61,3,FALSE)","v":"Management"},{"$f":"IF('Maintenance Task Assignments'!B44<>\"\", 'Maintenance Task Assignments'!A44,\"\")","v":"CharlotteM"},{"$f":"IF('Maintenance Task Assignments'!B44<>\"\", 'Maintenance Task Assignments'!D44,\"\")","v":"1st"},{"$f":"VLOOKUP($K69,'Maintenance Tasks'!$B$2:$X$61,11,FALSE)","v":"Manage"},{"$f":"\"Repeating: \" & 'Maintenance Tasks'!M44 & CHAR(10) &\n\" Project Tasks: \" & 'Maintenance Tasks'!S44 & CHAR(10) &\n\"Working Questions & Notes: \" &'Maintenance Tasks'!T44& CHAR(10) &\n\" Contractor: \" &'Maintenance Tasks'!U44","v":"Repeating: None\n Project Tasks: \nWorking Questions & Notes: \n Contractor: "},{"$f":"TEXT(VLOOKUP($K69,'Maintenance Tasks'!$B$2:$X$61,16,FALSE), \"YYYY-MM-DD\")","v":"2021-01-01"},{"$f":"TEXT(VLOOKUP($K69,'Maintenance Tasks'!$B$2:$X$61,17,FALSE), \"YYYY-MM-DD\")","v":"2021-12-31"},{"$f":"\"Repeating: \" & 'Maintenance Tasks'!M44 & CHAR(10) &\n\" Project Tasks: \" & 'Maintenance Tasks'!S44 & CHAR(10) &\n\"Working Questions & Notes: \" &'Maintenance Tasks'!T44& CHAR(10) &\n\" Contractor: \" &'Maintenance Tasks'!U44","v":"Repeating: None\n Project Tasks: \nWorking Questions & Notes: \n Contractor: "},{"$f":"IF('Maintenance Task Assignments'!B44<>\"\", 'Maintenance Task Assignments'!B44,\"\")","v":"T44"},{"$f":"IFERROR(VLOOKUP($D69,'Property Task Managers'!$A$1:$O$31,7,FALSE),\"\")","v":"clakelimerick@msn.com"}]
[{"$f":"VLOOKUP($K70,'Maintenance Tasks'!$B$2:$X$61,3,FALSE)","v":"Clubhouse"},{"$f":"VLOOKUP(K70,'Maintenance Tasks'!$B$2:$X$61,7,FALSE)","v":"T45 Supply Management"},{"$f":"VLOOKUP($K70,'Maintenance Tasks'!$B$2:$X$61,3,FALSE)","v":"Clubhouse"},{"$f":"IF('Maintenance Task Assignments'!B45<>\"\", 'Maintenance Task Assignments'!A45,\"\")","v":"BeverlyB"},{"$f":"IF('Maintenance Task Assignments'!B45<>\"\", 'Maintenance Task Assignments'!D45,\"\")","v":"1st"},{"$f":"VLOOKUP($K70,'Maintenance Tasks'!$B$2:$X$61,11,FALSE)","v":"Scheduled"},{"$f":"\"Repeating: \" & 'Maintenance Tasks'!M45 & CHAR(10) &\n\" Project Tasks: \" & 'Maintenance Tasks'!S45 & CHAR(10) &\n\"Working Questions & Notes: \" &'Maintenance Tasks'!T45& CHAR(10) &\n\" Contractor: \" &'Maintenance Tasks'!U45","v":"Repeating: Bi-Monthly, Mar, Apr\n Project Tasks: Inventory & Purchase as Needed\nWorking Questions & Notes: \n Contractor: "},{"$f":"TEXT(VLOOKUP($K70,'Maintenance Tasks'!$B$2:$X$61,16,FALSE), \"YYYY-MM-DD\")","v":"2021-03-08"},{"$f":"TEXT(VLOOKUP($K70,'Maintenance Tasks'!$B$2:$X$61,17,FALSE), \"YYYY-MM-DD\")","v":"2021-03-08"},{"$f":"\"Repeating: \" & 'Maintenance Tasks'!M45 & CHAR(10) &\n\" Project Tasks: \" & 'Maintenance Tasks'!S45 & CHAR(10) &\n\"Working Questions & Notes: \" &'Maintenance Tasks'!T45& CHAR(10) &\n\" Contractor: \" &'Maintenance Tasks'!U45","v":"Repeating: Bi-Monthly, Mar, Apr\n Project Tasks: Inventory & Purchase as Needed\nWorking Questions & Notes: \n Contractor: "},{"$f":"IF('Maintenance Task Assignments'!B45<>\"\", 'Maintenance Task Assignments'!B45,\"\")","v":"T45"},{"$f":"IFERROR(VLOOKUP($D70,'Property Task Managers'!$A$1:$O$31,7,FALSE),\"\")","v":"searigg@comcast.net"}]
[{"$f":"VLOOKUP($K71,'Maintenance Tasks'!$B$2:$X$61,3,FALSE)","v":"Grounds"},{"$f":"VLOOKUP(K71,'Maintenance Tasks'!$B$2:$X$61,7,FALSE)","v":"T46 Test Water System"},{"$f":"VLOOKUP($K71,'Maintenance Tasks'!$B$2:$X$61,3,FALSE)","v":"Grounds"},{"$f":"IF('Maintenance Task Assignments'!B46<>\"\", 'Maintenance Task Assignments'!A46,\"\")","v":"JimT"},{"$f":"IF('Maintenance Task Assignments'!B46<>\"\", 'Maintenance Task Assignments'!D46,\"\")","v":"1st"},{"$f":"VLOOKUP($K71,'Maintenance Tasks'!$B$2:$X$61,11,FALSE)","v":"Scheduled"},{"$f":"\"Repeating: \" & 'Maintenance Tasks'!M46 & CHAR(10) &\n\" Project Tasks: \" & 'Maintenance Tasks'!S46 & CHAR(10) &\n\"Working Questions & Notes: \" &'Maintenance Tasks'!T46& CHAR(10) &\n\" Contractor: \" &'Maintenance Tasks'!U46","v":"Repeating: Apr\n Project Tasks: \nWorking Questions & Notes: \n Contractor: Custom Cut Landscaping"},{"$f":"TEXT(VLOOKUP($K71,'Maintenance Tasks'!$B$2:$X$61,16,FALSE), \"YYYY-MM-DD\")","v":"2021-04-01"},{"$f":"TEXT(VLOOKUP($K71,'Maintenance Tasks'!$B$2:$X$61,17,FALSE), \"YYYY-MM-DD\")","v":"2021-04-20"},{"$f":"\"Repeating: \" & 'Maintenance Tasks'!M46 & CHAR(10) &\n\" Project Tasks: \" & 'Maintenance Tasks'!S46 & CHAR(10) &\n\"Working Questions & Notes: \" &'Maintenance Tasks'!T46& CHAR(10) &\n\" Contractor: \" &'Maintenance Tasks'!U46","v":"Repeating: Apr\n Project Tasks: \nWorking Questions & Notes: \n Contractor: Custom Cut Landscaping"},{"$f":"IF('Maintenance Task Assignments'!B46<>\"\", 'Maintenance Task Assignments'!B46,\"\")","v":"T46"},{"$f":"IFERROR(VLOOKUP($D71,'Property Task Managers'!$A$1:$O$31,7,FALSE),\"\")","v":"jim@tragesser.net   "}]
[{"$f":"VLOOKUP($K72,'Maintenance Tasks'!$B$2:$X$61,3,FALSE)","v":"Grounds"},{"$f":"VLOOKUP(K72,'Maintenance Tasks'!$B$2:$X$61,7,FALSE)","v":"T46 Test Water System"},{"$f":"VLOOKUP($K72,'Maintenance Tasks'!$B$2:$X$61,3,FALSE)","v":"Grounds"},{"$f":"IF('Maintenance Task Assignments'!B86<>\"\", 'Maintenance Task Assignments'!A86,\"\")","v":"DonW"},{"$f":"IF('Maintenance Task Assignments'!B86<>\"\", 'Maintenance Task Assignments'!D86,\"\")","v":"2nd"},{"$f":"VLOOKUP($K72,'Maintenance Tasks'!$B$2:$X$61,11,FALSE)","v":"Scheduled"},{"$f":"\"Repeating: \" & 'Maintenance Tasks'!M86 & CHAR(10) &\n\" Project Tasks: \" & 'Maintenance Tasks'!S86 & CHAR(10) &\n\"Working Questions & Notes: \" &'Maintenance Tasks'!T86& CHAR(10) &\n\" Contractor: \" &'Maintenance Tasks'!U86","v":"Repeating: \n Project Tasks: \nWorking Questions & Notes: \n Contractor: "},{"$f":"TEXT(VLOOKUP($K72,'Maintenance Tasks'!$B$2:$X$61,16,FALSE), \"YYYY-MM-DD\")","v":"2021-04-01"},{"$f":"TEXT(VLOOKUP($K72,'Maintenance Tasks'!$B$2:$X$61,17,FALSE), \"YYYY-MM-DD\")","v":"2021-04-20"},{"$f":"\"Repeating: \" & 'Maintenance Tasks'!M86 & CHAR(10) &\n\" Project Tasks: \" & 'Maintenance Tasks'!S86 & CHAR(10) &\n\"Working Questions & Notes: \" &'Maintenance Tasks'!T86& CHAR(10) &\n\" Contractor: \" &'Maintenance Tasks'!U86","v":"Repeating: \n Project Tasks: \nWorking Questions & Notes: \n Contractor: "},{"$f":"IF('Maintenance Task Assignments'!B86<>\"\", 'Maintenance Task Assignments'!B86,\"\")","v":"T46"},{"$f":"IFERROR(VLOOKUP($D72,'Property Task Managers'!$A$1:$O$31,7,FALSE),\"\")","v":"searigg@comcast.net"}]
[{"$f":"VLOOKUP($K73,'Maintenance Tasks'!$B$2:$X$61,3,FALSE)","v":"Clubhouse"},{"$f":"VLOOKUP(K73,'Maintenance Tasks'!$B$2:$X$61,7,FALSE)","v":"T47 Trash to Curb"},{"$f":"VLOOKUP($K73,'Maintenance Tasks'!$B$2:$X$61,3,FALSE)","v":"Clubhouse"},{"$f":"IF('Maintenance Task Assignments'!B47<>\"\", 'Maintenance Task Assignments'!A47,\"\")","v":"NettieP"},{"$f":"IF('Maintenance Task Assignments'!B47<>\"\", 'Maintenance Task Assignments'!D47,\"\")","v":"1st"},{"$f":"VLOOKUP($K73,'Maintenance Tasks'!$B$2:$X$61,11,FALSE)","v":"Scheduled"},{"$f":"\"Repeating: \" & 'Maintenance Tasks'!M47 & CHAR(10) &\n\" Project Tasks: \" & 'Maintenance Tasks'!S47 & CHAR(10) &\n\"Working Questions & Notes: \" &'Maintenance Tasks'!T47& CHAR(10) &\n\" Contractor: \" &'Maintenance Tasks'!U47","v":"Repeating: Weekly, Mar, Apr\n Project Tasks: Empty \nWorking Questions & Notes: \n Contractor: "},{"$f":"TEXT(VLOOKUP($K73,'Maintenance Tasks'!$B$2:$X$61,16,FALSE), \"YYYY-MM-DD\")","v":"2021-01-03"},{"$f":"TEXT(VLOOKUP($K73,'Maintenance Tasks'!$B$2:$X$61,17,FALSE), \"YYYY-MM-DD\")","v":"2021-04-30"},{"$f":"\"Repeating: \" & 'Maintenance Tasks'!M47 & CHAR(10) &\n\" Project Tasks: \" & 'Maintenance Tasks'!S47 & CHAR(10) &\n\"Working Questions & Notes: \" &'Maintenance Tasks'!T47& CHAR(10) &\n\" Contractor: \" &'Maintenance Tasks'!U47","v":"Repeating: Weekly, Mar, Apr\n Project Tasks: Empty \nWorking Questions & Notes: \n Contractor: "},{"$f":"IF('Maintenance Task Assignments'!B47<>\"\", 'Maintenance Task Assignments'!B47,\"\")","v":"T47"},{"$f":"IFERROR(VLOOKUP($D73,'Property Task Managers'!$A$1:$O$31,7,FALSE),\"\")","v":"nettie.p@comcast.net"}]
[{"$f":"VLOOKUP($K74,'Maintenance Tasks'!$B$2:$X$61,3,FALSE)","v":"Grounds"},{"$f":"VLOOKUP(K74,'Maintenance Tasks'!$B$2:$X$61,7,FALSE)","v":"T48 Tree Removal"},{"$f":"VLOOKUP($K74,'Maintenance Tasks'!$B$2:$X$61,3,FALSE)","v":"Grounds"},{"$f":"IF('Maintenance Task Assignments'!B48<>\"\", 'Maintenance Task Assignments'!A48,\"\")","v":"JimT"},{"$f":"IF('Maintenance Task Assignments'!B48<>\"\", 'Maintenance Task Assignments'!D48,\"\")","v":"1st"},{"$f":"VLOOKUP($K74,'Maintenance Tasks'!$B$2:$X$61,11,FALSE)","v":"Scheduled"},{"$f":"\"Repeating: \" & 'Maintenance Tasks'!M48 & CHAR(10) &\n\" Project Tasks: \" & 'Maintenance Tasks'!S48 & CHAR(10) &\n\"Working Questions & Notes: \" &'Maintenance Tasks'!T48& CHAR(10) &\n\" Contractor: \" &'Maintenance Tasks'!U48","v":"Repeating: Jan\n Project Tasks: \nWorking Questions & Notes: Larry Green 9-22-20 Yearly Routine\n Contractor: "},{"$f":"TEXT(VLOOKUP($K74,'Maintenance Tasks'!$B$2:$X$61,16,FALSE), \"YYYY-MM-DD\")","v":"2021-01-01"},{"$f":"TEXT(VLOOKUP($K74,'Maintenance Tasks'!$B$2:$X$61,17,FALSE), \"YYYY-MM-DD\")","v":"2021-12-31"},{"$f":"\"Repeating: \" & 'Maintenance Tasks'!M48 & CHAR(10) &\n\" Project Tasks: \" & 'Maintenance Tasks'!S48 & CHAR(10) &\n\"Working Questions & Notes: \" &'Maintenance Tasks'!T48& CHAR(10) &\n\" Contractor: \" &'Maintenance Tasks'!U48","v":"Repeating: Jan\n Project Tasks: \nWorking Questions & Notes: Larry Green 9-22-20 Yearly Routine\n Contractor: "},{"$f":"IF('Maintenance Task Assignments'!B48<>\"\", 'Maintenance Task Assignments'!B48,\"\")","v":"T48"},{"$f":"IFERROR(VLOOKUP($D74,'Property Task Managers'!$A$1:$O$31,7,FALSE),\"\")","v":"jim@tragesser.net   "}]
[{"$f":"VLOOKUP($K75,'Maintenance Tasks'!$B$2:$X$61,3,FALSE)","v":"Grounds"},{"$f":"VLOOKUP(K75,'Maintenance Tasks'!$B$2:$X$61,7,FALSE)","v":"T49 Turn Off Irrigation Water"},{"$f":"VLOOKUP($K75,'Maintenance Tasks'!$B$2:$X$61,3,FALSE)","v":"Grounds"},{"$f":"IF('Maintenance Task Assignments'!B49<>\"\", 'Maintenance Task Assignments'!A49,\"\")","v":"JimT"},{"$f":"IF('Maintenance Task Assignments'!B49<>\"\", 'Maintenance Task Assignments'!D49,\"\")","v":"1st"},{"$f":"VLOOKUP($K75,'Maintenance Tasks'!$B$2:$X$61,11,FALSE)","v":"Scheduled"},{"$f":"\"Repeating: \" & 'Maintenance Tasks'!M49 & CHAR(10) &\n\" Project Tasks: \" & 'Maintenance Tasks'!S49 & CHAR(10) &\n\"Working Questions & Notes: \" &'Maintenance Tasks'!T49& CHAR(10) &\n\" Contractor: \" &'Maintenance Tasks'!U49","v":"Repeating: Oct\n Project Tasks: City\nWorking Questions & Notes: Larry Green 9-22-20 Yearly Routine\n Contractor: City"},{"$f":"TEXT(VLOOKUP($K75,'Maintenance Tasks'!$B$2:$X$61,16,FALSE), \"YYYY-MM-DD\")","v":"2021-10-01"},{"$f":"TEXT(VLOOKUP($K75,'Maintenance Tasks'!$B$2:$X$61,17,FALSE), \"YYYY-MM-DD\")","v":"2021-10-31"},{"$f":"\"Repeating: \" & 'Maintenance Tasks'!M49 & CHAR(10) &\n\" Project Tasks: \" & 'Maintenance Tasks'!S49 & CHAR(10) &\n\"Working Questions & Notes: \" &'Maintenance Tasks'!T49& CHAR(10) &\n\" Contractor: \" &'Maintenance Tasks'!U49","v":"Repeating: Oct\n Project Tasks: City\nWorking Questions & Notes: Larry Green 9-22-20 Yearly Routine\n Contractor: City"},{"$f":"IF('Maintenance Task Assignments'!B49<>\"\", 'Maintenance Task Assignments'!B49,\"\")","v":"T49"},{"$f":"IFERROR(VLOOKUP($D75,'Property Task Managers'!$A$1:$O$31,7,FALSE),\"\")","v":"jim@tragesser.net   "}]
[{"$f":"VLOOKUP($K76,'Maintenance Tasks'!$B$2:$X$61,3,FALSE)","v":"Grounds"},{"$f":"VLOOKUP(K76,'Maintenance Tasks'!$B$2:$X$61,7,FALSE)","v":"T49 Turn Off Irrigation Water"},{"$f":"VLOOKUP($K76,'Maintenance Tasks'!$B$2:$X$61,3,FALSE)","v":"Grounds"},{"$f":"IF('Maintenance Task Assignments'!B87<>\"\", 'Maintenance Task Assignments'!A87,\"\")","v":"DonW"},{"$f":"IF('Maintenance Task Assignments'!B87<>\"\", 'Maintenance Task Assignments'!D87,\"\")","v":"2nd"},{"$f":"VLOOKUP($K76,'Maintenance Tasks'!$B$2:$X$61,11,FALSE)","v":"Scheduled"},{"$f":"\"Repeating: \" & 'Maintenance Tasks'!M87 & CHAR(10) &\n\" Project Tasks: \" & 'Maintenance Tasks'!S87 & CHAR(10) &\n\"Working Questions & Notes: \" &'Maintenance Tasks'!T87& CHAR(10) &\n\" Contractor: \" &'Maintenance Tasks'!U87","v":"Repeating: \n Project Tasks: \nWorking Questions & Notes: \n Contractor: "},{"$f":"TEXT(VLOOKUP($K76,'Maintenance Tasks'!$B$2:$X$61,16,FALSE), \"YYYY-MM-DD\")","v":"2021-10-01"},{"$f":"TEXT(VLOOKUP($K76,'Maintenance Tasks'!$B$2:$X$61,17,FALSE), \"YYYY-MM-DD\")","v":"2021-10-31"},{"$f":"\"Repeating: \" & 'Maintenance Tasks'!M87 & CHAR(10) &\n\" Project Tasks: \" & 'Maintenance Tasks'!S87 & CHAR(10) &\n\"Working Questions & Notes: \" &'Maintenance Tasks'!T87& CHAR(10) &\n\" Contractor: \" &'Maintenance Tasks'!U87","v":"Repeating: \n Project Tasks: \nWorking Questions & Notes: \n Contractor: "},{"$f":"IF('Maintenance Task Assignments'!B87<>\"\", 'Maintenance Task Assignments'!B87,\"\")","v":"T49"},{"$f":"IFERROR(VLOOKUP($D76,'Property Task Managers'!$A$1:$O$31,7,FALSE),\"\")","v":"searigg@comcast.net"}]
[{"$f":"VLOOKUP($K77,'Maintenance Tasks'!$B$2:$X$61,3,FALSE)","v":"Grounds"},{"$f":"VLOOKUP(K77,'Maintenance Tasks'!$B$2:$X$61,7,FALSE)","v":"T50 Turn On Irrigation Water"},{"$f":"VLOOKUP($K77,'Maintenance Tasks'!$B$2:$X$61,3,FALSE)","v":"Grounds"},{"$f":"IF('Maintenance Task Assignments'!B50<>\"\", 'Maintenance Task Assignments'!A50,\"\")","v":"JimT"},{"$f":"IF('Maintenance Task Assignments'!B50<>\"\", 'Maintenance Task Assignments'!D50,\"\")","v":"1st"},{"$f":"VLOOKUP($K77,'Maintenance Tasks'!$B$2:$X$61,11,FALSE)","v":"Scheduled"},{"$f":"\"Repeating: \" & 'Maintenance Tasks'!M50 & CHAR(10) &\n\" Project Tasks: \" & 'Maintenance Tasks'!S50 & CHAR(10) &\n\"Working Questions & Notes: \" &'Maintenance Tasks'!T50& CHAR(10) &\n\" Contractor: \" &'Maintenance Tasks'!U50","v":"Repeating: May\n Project Tasks: City\nWorking Questions & Notes: Larry Green 9-22-20 Yearly Routine\n Contractor: City"},{"$f":"TEXT(VLOOKUP($K77,'Maintenance Tasks'!$B$2:$X$61,16,FALSE), \"YYYY-MM-DD\")","v":"2021-05-01"},{"$f":"TEXT(VLOOKUP($K77,'Maintenance Tasks'!$B$2:$X$61,17,FALSE), \"YYYY-MM-DD\")","v":"2021-05-31"},{"$f":"\"Repeating: \" & 'Maintenance Tasks'!M50 & CHAR(10) &\n\" Project Tasks: \" & 'Maintenance Tasks'!S50 & CHAR(10) &\n\"Working Questions & Notes: \" &'Maintenance Tasks'!T50& CHAR(10) &\n\" Contractor: \" &'Maintenance Tasks'!U50","v":"Repeating: May\n Project Tasks: City\nWorking Questions & Notes: Larry Green 9-22-20 Yearly Routine\n Contractor: City"},{"$f":"IF('Maintenance Task Assignments'!B50<>\"\", 'Maintenance Task Assignments'!B50,\"\")","v":"T50"},{"$f":"IFERROR(VLOOKUP($D77,'Property Task Managers'!$A$1:$O$31,7,FALSE),\"\")","v":"jim@tragesser.net   "}]
[{"$f":"VLOOKUP($K78,'Maintenance Tasks'!$B$2:$X$61,3,FALSE)","v":"Grounds"},{"$f":"VLOOKUP(K78,'Maintenance Tasks'!$B$2:$X$61,7,FALSE)","v":"T50 Turn On Irrigation Water"},{"$f":"VLOOKUP($K78,'Maintenance Tasks'!$B$2:$X$61,3,FALSE)","v":"Grounds"},{"$f":"IF('Maintenance Task Assignments'!B88<>\"\", 'Maintenance Task Assignments'!A88,\"\")","v":"DonW"},{"$f":"IF('Maintenance Task Assignments'!B88<>\"\", 'Maintenance Task Assignments'!D88,\"\")","v":"2nd"},{"$f":"VLOOKUP($K78,'Maintenance Tasks'!$B$2:$X$61,11,FALSE)","v":"Scheduled"},{"$f":"\"Repeating: \" & 'Maintenance Tasks'!M88 & CHAR(10) &\n\" Project Tasks: \" & 'Maintenance Tasks'!S88 & CHAR(10) &\n\"Working Questions & Notes: \" &'Maintenance Tasks'!T88& CHAR(10) &\n\" Contractor: \" &'Maintenance Tasks'!U88","v":"Repeating: \n Project Tasks: \nWorking Questions & Notes: \n Contractor: "},{"$f":"TEXT(VLOOKUP($K78,'Maintenance Tasks'!$B$2:$X$61,16,FALSE), \"YYYY-MM-DD\")","v":"2021-05-01"},{"$f":"TEXT(VLOOKUP($K78,'Maintenance Tasks'!$B$2:$X$61,17,FALSE), \"YYYY-MM-DD\")","v":"2021-05-31"},{"$f":"\"Repeating: \" & 'Maintenance Tasks'!M88 & CHAR(10) &\n\" Project Tasks: \" & 'Maintenance Tasks'!S88 & CHAR(10) &\n\"Working Questions & Notes: \" &'Maintenance Tasks'!T88& CHAR(10) &\n\" Contractor: \" &'Maintenance Tasks'!U88","v":"Repeating: \n Project Tasks: \nWorking Questions & Notes: \n Contractor: "},{"$f":"IF('Maintenance Task Assignments'!B88<>\"\", 'Maintenance Task Assignments'!B88,\"\")","v":"T50"},{"$f":"IFERROR(VLOOKUP($D78,'Property Task Managers'!$A$1:$O$31,7,FALSE),\"\")","v":"searigg@comcast.net"}]
[{"$f":"VLOOKUP($K79,'Maintenance Tasks'!$B$2:$X$61,3,FALSE)","v":"Management"},{"$f":"VLOOKUP(K79,'Maintenance Tasks'!$B$2:$X$61,7,FALSE)","v":"T51 Update of Motion Log Book"},{"$f":"VLOOKUP($K79,'Maintenance Tasks'!$B$2:$X$61,3,FALSE)","v":"Management"},{"$f":"IF('Maintenance Task Assignments'!B51<>\"\", 'Maintenance Task Assignments'!A51,\"\")","v":"PattyL"},{"$f":"IF('Maintenance Task Assignments'!B51<>\"\", 'Maintenance Task Assignments'!D51,\"\")","v":"1st"},{"$f":"VLOOKUP($K79,'Maintenance Tasks'!$B$2:$X$61,11,FALSE)","v":"Scheduled"},{"$f":"\"Repeating: \" & 'Maintenance Tasks'!M51 & CHAR(10) &\n\" Project Tasks: \" & 'Maintenance Tasks'!S51 & CHAR(10) &\n\"Working Questions & Notes: \" &'Maintenance Tasks'!T51& CHAR(10) &\n\" Contractor: \" &'Maintenance Tasks'!U51","v":"Repeating: Annual, Jan\n Project Tasks: Secretary to extract; IT Update\nWorking Questions & Notes: \n Contractor: "},{"$f":"TEXT(VLOOKUP($K79,'Maintenance Tasks'!$B$2:$X$61,16,FALSE), \"YYYY-MM-DD\")","v":"2021-02-10"},{"$f":"TEXT(VLOOKUP($K79,'Maintenance Tasks'!$B$2:$X$61,17,FALSE), \"YYYY-MM-DD\")","v":"2021-02-20"},{"$f":"\"Repeating: \" & 'Maintenance Tasks'!M51 & CHAR(10) &\n\" Project Tasks: \" & 'Maintenance Tasks'!S51 & CHAR(10) &\n\"Working Questions & Notes: \" &'Maintenance Tasks'!T51& CHAR(10) &\n\" Contractor: \" &'Maintenance Tasks'!U51","v":"Repeating: Annual, Jan\n Project Tasks: Secretary to extract; IT Update\nWorking Questions & Notes: \n Contractor: "},{"$f":"IF('Maintenance Task Assignments'!B51<>\"\", 'Maintenance Task Assignments'!B51,\"\")","v":"T51"},{"$f":"IFERROR(VLOOKUP($D79,'Property Task Managers'!$A$1:$O$31,7,FALSE),\"\")","v":"pjlteach@yahoo.com"}]
[{"$f":"VLOOKUP($K80,'Maintenance Tasks'!$B$2:$X$61,3,FALSE)","v":"Management"},{"$f":"VLOOKUP(K80,'Maintenance Tasks'!$B$2:$X$61,7,FALSE)","v":"T51 Update of Motion Log Book"},{"$f":"VLOOKUP($K80,'Maintenance Tasks'!$B$2:$X$61,3,FALSE)","v":"Management"},{"$f":"IF('Maintenance Task Assignments'!B89<>\"\", 'Maintenance Task Assignments'!A89,\"\")","v":"PeteA"},{"$f":"IF('Maintenance Task Assignments'!B89<>\"\", 'Maintenance Task Assignments'!D89,\"\")","v":"2nd"},{"$f":"VLOOKUP($K80,'Maintenance Tasks'!$B$2:$X$61,11,FALSE)","v":"Scheduled"},{"$f":"\"Repeating: \" & 'Maintenance Tasks'!M89 & CHAR(10) &\n\" Project Tasks: \" & 'Maintenance Tasks'!S89 & CHAR(10) &\n\"Working Questions & Notes: \" &'Maintenance Tasks'!T89& CHAR(10) &\n\" Contractor: \" &'Maintenance Tasks'!U89","v":"Repeating: \n Project Tasks: \nWorking Questions & Notes: \n Contractor: "},{"$f":"TEXT(VLOOKUP($K80,'Maintenance Tasks'!$B$2:$X$61,16,FALSE), \"YYYY-MM-DD\")","v":"2021-02-10"},{"$f":"TEXT(VLOOKUP($K80,'Maintenance Tasks'!$B$2:$X$61,17,FALSE), \"YYYY-MM-DD\")","v":"2021-02-20"},{"$f":"\"Repeating: \" & 'Maintenance Tasks'!M89 & CHAR(10) &\n\" Project Tasks: \" & 'Maintenance Tasks'!S89 & CHAR(10) &\n\"Working Questions & Notes: \" &'Maintenance Tasks'!T89& CHAR(10) &\n\" Contractor: \" &'Maintenance Tasks'!U89","v":"Repeating: \n Project Tasks: \nWorking Questions & Notes: \n Contractor: "},{"$f":"IF('Maintenance Task Assignments'!B89<>\"\", 'Maintenance Task Assignments'!B89,\"\")","v":"T51"},{"$f":"IFERROR(VLOOKUP($D80,'Property Task Managers'!$A$1:$O$31,7,FALSE),\"\")","v":"optionzz@outlook.com"}]
[{"$f":"VLOOKUP($K81,'Maintenance Tasks'!$B$2:$X$61,3,FALSE)","v":"Sitewide"},{"$f":"VLOOKUP(K81,'Maintenance Tasks'!$B$2:$X$61,7,FALSE)","v":"T52 Foundation Vents Close"},{"$f":"VLOOKUP($K81,'Maintenance Tasks'!$B$2:$X$61,3,FALSE)","v":"Sitewide"},{"$f":"IF('Maintenance Task Assignments'!B52<>\"\", 'Maintenance Task Assignments'!A52,\"\")","v":"JimT"},{"$f":"IF('Maintenance Task Assignments'!B52<>\"\", 'Maintenance Task Assignments'!D52,\"\")","v":"1st"},{"$f":"VLOOKUP($K81,'Maintenance Tasks'!$B$2:$X$61,11,FALSE)","v":"Scheduled"},{"$f":"\"Repeating: \" & 'Maintenance Tasks'!M52 & CHAR(10) &\n\" Project Tasks: \" & 'Maintenance Tasks'!S52 & CHAR(10) &\n\"Working Questions & Notes: \" &'Maintenance Tasks'!T52& CHAR(10) &\n\" Contractor: \" &'Maintenance Tasks'!U52","v":"Repeating: Nov\n Project Tasks: Close foundation vents\nWorking Questions & Notes: Larry Green 9-22-20 Yearly Routine\n Contractor: Custom Cut Landscaping"},{"$f":"TEXT(VLOOKUP($K81,'Maintenance Tasks'!$B$2:$X$61,16,FALSE), \"YYYY-MM-DD\")","v":"2021-10-10"},{"$f":"TEXT(VLOOKUP($K81,'Maintenance Tasks'!$B$2:$X$61,17,FALSE), \"YYYY-MM-DD\")","v":"2021-10-10"},{"$f":"\"Repeating: \" & 'Maintenance Tasks'!M52 & CHAR(10) &\n\" Project Tasks: \" & 'Maintenance Tasks'!S52 & CHAR(10) &\n\"Working Questions & Notes: \" &'Maintenance Tasks'!T52& CHAR(10) &\n\" Contractor: \" &'Maintenance Tasks'!U52","v":"Repeating: Nov\n Project Tasks: Close foundation vents\nWorking Questions & Notes: Larry Green 9-22-20 Yearly Routine\n Contractor: Custom Cut Landscaping"},{"$f":"IF('Maintenance Task Assignments'!B52<>\"\", 'Maintenance Task Assignments'!B52,\"\")","v":"T52"},{"$f":"IFERROR(VLOOKUP($D81,'Property Task Managers'!$A$1:$O$31,7,FALSE),\"\")","v":"jim@tragesser.net   "}]
[{"$f":"VLOOKUP($K82,'Maintenance Tasks'!$B$2:$X$61,3,FALSE)","v":"Sitewide"},{"$f":"VLOOKUP(K82,'Maintenance Tasks'!$B$2:$X$61,7,FALSE)","v":"T52 Foundation Vents Close"},{"$f":"VLOOKUP($K82,'Maintenance Tasks'!$B$2:$X$61,3,FALSE)","v":"Sitewide"},{"$f":"IF('Maintenance Task Assignments'!B90<>\"\", 'Maintenance Task Assignments'!A90,\"\")","v":"DonW"},{"$f":"IF('Maintenance Task Assignments'!B90<>\"\", 'Maintenance Task Assignments'!D90,\"\")","v":"2nd"},{"$f":"VLOOKUP($K82,'Maintenance Tasks'!$B$2:$X$61,11,FALSE)","v":"Scheduled"},{"$f":"\"Repeating: \" & 'Maintenance Tasks'!M90 & CHAR(10) &\n\" Project Tasks: \" & 'Maintenance Tasks'!S90 & CHAR(10) &\n\"Working Questions & Notes: \" &'Maintenance Tasks'!T90& CHAR(10) &\n\" Contractor: \" &'Maintenance Tasks'!U90","v":"Repeating: \n Project Tasks: \nWorking Questions & Notes: \n Contractor: "},{"$f":"TEXT(VLOOKUP($K82,'Maintenance Tasks'!$B$2:$X$61,16,FALSE), \"YYYY-MM-DD\")","v":"2021-10-10"},{"$f":"TEXT(VLOOKUP($K82,'Maintenance Tasks'!$B$2:$X$61,17,FALSE), \"YYYY-MM-DD\")","v":"2021-10-10"},{"$f":"\"Repeating: \" & 'Maintenance Tasks'!M90 & CHAR(10) &\n\" Project Tasks: \" & 'Maintenance Tasks'!S90 & CHAR(10) &\n\"Working Questions & Notes: \" &'Maintenance Tasks'!T90& CHAR(10) &\n\" Contractor: \" &'Maintenance Tasks'!U90","v":"Repeating: \n Project Tasks: \nWorking Questions & Notes: \n Contractor: "},{"$f":"IF('Maintenance Task Assignments'!B90<>\"\", 'Maintenance Task Assignments'!B90,\"\")","v":"T52"},{"$f":"IFERROR(VLOOKUP($D82,'Property Task Managers'!$A$1:$O$31,7,FALSE),\"\")","v":"searigg@comcast.net"}]
[{"$f":"VLOOKUP($K83,'Maintenance Tasks'!$B$2:$X$61,3,FALSE)","v":"Sitewide"},{"$f":"VLOOKUP(K83,'Maintenance Tasks'!$B$2:$X$61,7,FALSE)","v":"T53 Foundation Vents Open"},{"$f":"VLOOKUP($K83,'Maintenance Tasks'!$B$2:$X$61,3,FALSE)","v":"Sitewide"},{"$f":"IF('Maintenance Task Assignments'!B53<>\"\", 'Maintenance Task Assignments'!A53,\"\")","v":"JimT"},{"$f":"IF('Maintenance Task Assignments'!B53<>\"\", 'Maintenance Task Assignments'!D53,\"\")","v":"1st"},{"$f":"VLOOKUP($K83,'Maintenance Tasks'!$B$2:$X$61,11,FALSE)","v":"Scheduled"},{"$f":"\"Repeating: \" & 'Maintenance Tasks'!M53 & CHAR(10) &\n\" Project Tasks: \" & 'Maintenance Tasks'!S53 & CHAR(10) &\n\"Working Questions & Notes: \" &'Maintenance Tasks'!T53& CHAR(10) &\n\" Contractor: \" &'Maintenance Tasks'!U53","v":"Repeating: Mar\n Project Tasks: Open foundation vents, check for broken screens\nWorking Questions & Notes: Larry Green 9-22-20 Yearly Routine\n Contractor: Custom Cut Landscaping"},{"$f":"TEXT(VLOOKUP($K83,'Maintenance Tasks'!$B$2:$X$61,16,FALSE), \"YYYY-MM-DD\")","v":"2021-03-01"},{"$f":"TEXT(VLOOKUP($K83,'Maintenance Tasks'!$B$2:$X$61,17,FALSE), \"YYYY-MM-DD\")","v":"2021-03-30"},{"$f":"\"Repeating: \" & 'Maintenance Tasks'!M53 & CHAR(10) &\n\" Project Tasks: \" & 'Maintenance Tasks'!S53 & CHAR(10) &\n\"Working Questions & Notes: \" &'Maintenance Tasks'!T53& CHAR(10) &\n\" Contractor: \" &'Maintenance Tasks'!U53","v":"Repeating: Mar\n Project Tasks: Open foundation vents, check for broken screens\nWorking Questions & Notes: Larry Green 9-22-20 Yearly Routine\n Contractor: Custom Cut Landscaping"},{"$f":"IF('Maintenance Task Assignments'!B53<>\"\", 'Maintenance Task Assignments'!B53,\"\")","v":"T53"},{"$f":"IFERROR(VLOOKUP($D83,'Property Task Managers'!$A$1:$O$31,7,FALSE),\"\")","v":"jim@tragesser.net   "}]
[{"$f":"VLOOKUP($K84,'Maintenance Tasks'!$B$2:$X$61,3,FALSE)","v":"Sitewide"},{"$f":"VLOOKUP(K84,'Maintenance Tasks'!$B$2:$X$61,7,FALSE)","v":"T53 Foundation Vents Open"},{"$f":"VLOOKUP($K84,'Maintenance Tasks'!$B$2:$X$61,3,FALSE)","v":"Sitewide"},{"$f":"IF('Maintenance Task Assignments'!B91<>\"\", 'Maintenance Task Assignments'!A91,\"\")","v":"DonW"},{"$f":"IF('Maintenance Task Assignments'!B91<>\"\", 'Maintenance Task Assignments'!D91,\"\")","v":"2nd"},{"$f":"VLOOKUP($K84,'Maintenance Tasks'!$B$2:$X$61,11,FALSE)","v":"Scheduled"},{"$f":"\"Repeating: \" & 'Maintenance Tasks'!M91 & CHAR(10) &\n\" Project Tasks: \" & 'Maintenance Tasks'!S91 & CHAR(10) &\n\"Working Questions & Notes: \" &'Maintenance Tasks'!T91& CHAR(10) &\n\" Contractor: \" &'Maintenance Tasks'!U91","v":"Repeating: \n Project Tasks: \nWorking Questions & Notes: \n Contractor: "},{"$f":"TEXT(VLOOKUP($K84,'Maintenance Tasks'!$B$2:$X$61,16,FALSE), \"YYYY-MM-DD\")","v":"2021-03-01"},{"$f":"TEXT(VLOOKUP($K84,'Maintenance Tasks'!$B$2:$X$61,17,FALSE), \"YYYY-MM-DD\")","v":"2021-03-30"},{"$f":"\"Repeating: \" & 'Maintenance Tasks'!M91 & CHAR(10) &\n\" Project Tasks: \" & 'Maintenance Tasks'!S91 & CHAR(10) &\n\"Working Questions & Notes: \" &'Maintenance Tasks'!T91& CHAR(10) &\n\" Contractor: \" &'Maintenance Tasks'!U91","v":"Repeating: \n Project Tasks: \nWorking Questions & Notes: \n Contractor: "},{"$f":"IF('Maintenance Task Assignments'!B91<>\"\", 'Maintenance Task Assignments'!B91,\"\")","v":"T53"},{"$f":"IFERROR(VLOOKUP($D84,'Property Task Managers'!$A$1:$O$31,7,FALSE),\"\")","v":"searigg@comcast.net"}]
[{"$f":"VLOOKUP($K85,'Maintenance Tasks'!$B$2:$X$61,3,FALSE)","v":"InfoTech"},{"$f":"VLOOKUP(K85,'Maintenance Tasks'!$B$2:$X$61,7,FALSE)","v":"T54 Website Files Update - Monthly"},{"$f":"VLOOKUP($K85,'Maintenance Tasks'!$B$2:$X$61,3,FALSE)","v":"InfoTech"},{"$f":"IF('Maintenance Task Assignments'!B54<>\"\", 'Maintenance Task Assignments'!A54,\"\")","v":"Pete A"},{"$f":"IF('Maintenance Task Assignments'!B54<>\"\", 'Maintenance Task Assignments'!D54,\"\")","v":"1st"},{"$f":"VLOOKUP($K85,'Maintenance Tasks'!$B$2:$X$61,11,FALSE)","v":"Repeating "},{"$f":"\"Repeating: \" & 'Maintenance Tasks'!M54 & CHAR(10) &\n\" Project Tasks: \" & 'Maintenance Tasks'!S54 & CHAR(10) &\n\"Working Questions & Notes: \" &'Maintenance Tasks'!T54& CHAR(10) &\n\" Contractor: \" &'Maintenance Tasks'!U54","v":"Repeating: Monthly\n Project Tasks: IT Update\nWorking Questions & Notes: Combine previous year files; Clubhouse Print & Website\n Contractor: "},{"$f":"TEXT(VLOOKUP($K85,'Maintenance Tasks'!$B$2:$X$61,16,FALSE), \"YYYY-MM-DD\")","v":"2021-03-01"},{"$f":"TEXT(VLOOKUP($K85,'Maintenance Tasks'!$B$2:$X$61,17,FALSE), \"YYYY-MM-DD\")","v":"2021-03-01"},{"$f":"\"Repeating: \" & 'Maintenance Tasks'!M54 & CHAR(10) &\n\" Project Tasks: \" & 'Maintenance Tasks'!S54 & CHAR(10) &\n\"Working Questions & Notes: \" &'Maintenance Tasks'!T54& CHAR(10) &\n\" Contractor: \" &'Maintenance Tasks'!U54","v":"Repeating: Monthly\n Project Tasks: IT Update\nWorking Questions & Notes: Combine previous year files; Clubhouse Print & Website\n Contractor: "},{"$f":"IF('Maintenance Task Assignments'!B54<>\"\", 'Maintenance Task Assignments'!B54,\"\")","v":"T54"},{"$f":"IFERROR(VLOOKUP($D85,'Property Task Managers'!$A$1:$O$31,7,FALSE),\"\")","v":"optionzz@outlook.com"}]
[{"$f":"VLOOKUP($K86,'Maintenance Tasks'!$B$2:$X$61,3,FALSE)","v":"Management"},{"$f":"VLOOKUP(K86,'Maintenance Tasks'!$B$2:$X$61,7,FALSE)","v":"T55 Welcome Committee"},{"$f":"VLOOKUP($K86,'Maintenance Tasks'!$B$2:$X$61,3,FALSE)","v":"Management"},{"$f":"IF('Maintenance Task Assignments'!B55<>\"\", 'Maintenance Task Assignments'!A55,\"\")","v":"BeverlyB"},{"$f":"IF('Maintenance Task Assignments'!B55<>\"\", 'Maintenance Task Assignments'!D55,\"\")","v":"1st"},{"$f":"VLOOKUP($K86,'Maintenance Tasks'!$B$2:$X$61,11,FALSE)","v":"Manage"},{"$f":"\"Repeating: \" & 'Maintenance Tasks'!M55 & CHAR(10) &\n\" Project Tasks: \" & 'Maintenance Tasks'!S55 & CHAR(10) &\n\"Working Questions & Notes: \" &'Maintenance Tasks'!T55& CHAR(10) &\n\" Contractor: \" &'Maintenance Tasks'!U55","v":"Repeating: None\n Project Tasks: \nWorking Questions & Notes: \n Contractor: "},{"$f":"TEXT(VLOOKUP($K86,'Maintenance Tasks'!$B$2:$X$61,16,FALSE), \"YYYY-MM-DD\")","v":"2021-01-01"},{"$f":"TEXT(VLOOKUP($K86,'Maintenance Tasks'!$B$2:$X$61,17,FALSE), \"YYYY-MM-DD\")","v":"2021-12-31"},{"$f":"\"Repeating: \" & 'Maintenance Tasks'!M55 & CHAR(10) &\n\" Project Tasks: \" & 'Maintenance Tasks'!S55 & CHAR(10) &\n\"Working Questions & Notes: \" &'Maintenance Tasks'!T55& CHAR(10) &\n\" Contractor: \" &'Maintenance Tasks'!U55","v":"Repeating: None\n Project Tasks: \nWorking Questions & Notes: \n Contractor: "},{"$f":"IF('Maintenance Task Assignments'!B55<>\"\", 'Maintenance Task Assignments'!B55,\"\")","v":"T55"},{"$f":"IFERROR(VLOOKUP($D86,'Property Task Managers'!$A$1:$O$31,7,FALSE),\"\")","v":"searigg@comcast.net"}]
[{"$f":"VLOOKUP($K87,'Maintenance Tasks'!$B$2:$X$61,3,FALSE)","v":"Management"},{"$f":"VLOOKUP(K87,'Maintenance Tasks'!$B$2:$X$61,7,FALSE)","v":"T55 Welcome Committee"},{"$f":"VLOOKUP($K87,'Maintenance Tasks'!$B$2:$X$61,3,FALSE)","v":"Management"},{"$f":"IF('Maintenance Task Assignments'!B92<>\"\", 'Maintenance Task Assignments'!A92,\"\")","v":"EarlS"},{"$f":"IF('Maintenance Task Assignments'!B92<>\"\", 'Maintenance Task Assignments'!D92,\"\")","v":"2nd"},{"$f":"VLOOKUP($K87,'Maintenance Tasks'!$B$2:$X$61,11,FALSE)","v":"Manage"},{"$f":"\"Repeating: \" & 'Maintenance Tasks'!M92 & CHAR(10) &\n\" Project Tasks: \" & 'Maintenance Tasks'!S92 & CHAR(10) &\n\"Working Questions & Notes: \" &'Maintenance Tasks'!T92& CHAR(10) &\n\" Contractor: \" &'Maintenance Tasks'!U92","v":"Repeating: \n Project Tasks: \nWorking Questions & Notes: \n Contractor: "},{"$f":"TEXT(VLOOKUP($K87,'Maintenance Tasks'!$B$2:$X$61,16,FALSE), \"YYYY-MM-DD\")","v":"2021-01-01"},{"$f":"TEXT(VLOOKUP($K87,'Maintenance Tasks'!$B$2:$X$61,17,FALSE), \"YYYY-MM-DD\")","v":"2021-12-31"},{"$f":"\"Repeating: \" & 'Maintenance Tasks'!M92 & CHAR(10) &\n\" Project Tasks: \" & 'Maintenance Tasks'!S92 & CHAR(10) &\n\"Working Questions & Notes: \" &'Maintenance Tasks'!T92& CHAR(10) &\n\" Contractor: \" &'Maintenance Tasks'!U92","v":"Repeating: \n Project Tasks: \nWorking Questions & Notes: \n Contractor: "},{"$f":"IF('Maintenance Task Assignments'!B92<>\"\", 'Maintenance Task Assignments'!B92,\"\")","v":"T55"},{"$f":"IFERROR(VLOOKUP($D87,'Property Task Managers'!$A$1:$O$31,7,FALSE),\"\")","v":"ecsheneman@msn.com"}]
[{"$f":"VLOOKUP($K88,'Maintenance Tasks'!$B$2:$X$61,3,FALSE)","v":"Management"},{"$f":"VLOOKUP(K88,'Maintenance Tasks'!$B$2:$X$61,7,FALSE)","v":"T56 Welcome Homeowners Books"},{"$f":"VLOOKUP($K88,'Maintenance Tasks'!$B$2:$X$61,3,FALSE)","v":"Management"},{"$f":"IF('Maintenance Task Assignments'!B56<>\"\", 'Maintenance Task Assignments'!A56,\"\")","v":"PattyL"},{"$f":"IF('Maintenance Task Assignments'!B56<>\"\", 'Maintenance Task Assignments'!D56,\"\")","v":"1st"},{"$f":"VLOOKUP($K88,'Maintenance Tasks'!$B$2:$X$61,11,FALSE)","v":"As Needed"},{"$f":"\"Repeating: \" & 'Maintenance Tasks'!M56 & CHAR(10) &\n\" Project Tasks: \" & 'Maintenance Tasks'!S56 & CHAR(10) &\n\"Working Questions & Notes: \" &'Maintenance Tasks'!T56& CHAR(10) &\n\" Contractor: \" &'Maintenance Tasks'!U56","v":"Repeating: None\n Project Tasks: \nWorking Questions & Notes: \n Contractor: "},{"$f":"TEXT(VLOOKUP($K88,'Maintenance Tasks'!$B$2:$X$61,16,FALSE), \"YYYY-MM-DD\")","v":"2021-01-01"},{"$f":"TEXT(VLOOKUP($K88,'Maintenance Tasks'!$B$2:$X$61,17,FALSE), \"YYYY-MM-DD\")","v":"2021-12-31"},{"$f":"\"Repeating: \" & 'Maintenance Tasks'!M56 & CHAR(10) &\n\" Project Tasks: \" & 'Maintenance Tasks'!S56 & CHAR(10) &\n\"Working Questions & Notes: \" &'Maintenance Tasks'!T56& CHAR(10) &\n\" Contractor: \" &'Maintenance Tasks'!U56","v":"Repeating: None\n Project Tasks: \nWorking Questions & Notes: \n Contractor: "},{"$f":"IF('Maintenance Task Assignments'!B56<>\"\", 'Maintenance Task Assignments'!B56,\"\")","v":"T56"},{"$f":"IFERROR(VLOOKUP($D88,'Property Task Managers'!$A$1:$O$31,7,FALSE),\"\")","v":"pjlteach@yahoo.com"}]
[{"$f":"VLOOKUP($K89,'Maintenance Tasks'!$B$2:$X$61,3,FALSE)","v":"Management"},{"$f":"VLOOKUP(K89,'Maintenance Tasks'!$B$2:$X$61,7,FALSE)","v":"T56 Welcome Homeowners Books"},{"$f":"VLOOKUP($K89,'Maintenance Tasks'!$B$2:$X$61,3,FALSE)","v":"Management"},{"$f":"IF('Maintenance Task Assignments'!B93<>\"\", 'Maintenance Task Assignments'!A93,\"\")","v":"EarlS"},{"$f":"IF('Maintenance Task Assignments'!B93<>\"\", 'Maintenance Task Assignments'!D93,\"\")","v":"2nd"},{"$f":"VLOOKUP($K89,'Maintenance Tasks'!$B$2:$X$61,11,FALSE)","v":"As Needed"},{"$f":"\"Repeating: \" & 'Maintenance Tasks'!M93 & CHAR(10) &\n\" Project Tasks: \" & 'Maintenance Tasks'!S93 & CHAR(10) &\n\"Working Questions & Notes: \" &'Maintenance Tasks'!T93& CHAR(10) &\n\" Contractor: \" &'Maintenance Tasks'!U93","v":"Repeating: \n Project Tasks: \nWorking Questions & Notes: \n Contractor: "},{"$f":"TEXT(VLOOKUP($K89,'Maintenance Tasks'!$B$2:$X$61,16,FALSE), \"YYYY-MM-DD\")","v":"2021-01-01"},{"$f":"TEXT(VLOOKUP($K89,'Maintenance Tasks'!$B$2:$X$61,17,FALSE), \"YYYY-MM-DD\")","v":"2021-12-31"},{"$f":"\"Repeating: \" & 'Maintenance Tasks'!M93 & CHAR(10) &\n\" Project Tasks: \" & 'Maintenance Tasks'!S93 & CHAR(10) &\n\"Working Questions & Notes: \" &'Maintenance Tasks'!T93& CHAR(10) &\n\" Contractor: \" &'Maintenance Tasks'!U93","v":"Repeating: \n Project Tasks: \nWorking Questions & Notes: \n Contractor: "},{"$f":"IF('Maintenance Task Assignments'!B93<>\"\", 'Maintenance Task Assignments'!B93,\"\")","v":"T56"},{"$f":"IFERROR(VLOOKUP($D89,'Property Task Managers'!$A$1:$O$31,7,FALSE),\"\")","v":"ecsheneman@msn.com"}]
[{"$f":"VLOOKUP($K90,'Maintenance Tasks'!$B$2:$X$61,3,FALSE)","v":"Units"},{"$f":"VLOOKUP(K90,'Maintenance Tasks'!$B$2:$X$61,7,FALSE)","v":"T57 Window Replacement "},{"$f":"VLOOKUP($K90,'Maintenance Tasks'!$B$2:$X$61,3,FALSE)","v":"Units"},{"$f":"IF('Maintenance Task Assignments'!B57<>\"\", 'Maintenance Task Assignments'!A57,\"\")","v":"BeverlyB"},{"$f":"IF('Maintenance Task Assignments'!B57<>\"\", 'Maintenance Task Assignments'!D57,\"\")","v":"1st"},{"$f":"VLOOKUP($K90,'Maintenance Tasks'!$B$2:$X$61,11,FALSE)","v":"Scheduled"},{"$f":"\"Repeating: \" & 'Maintenance Tasks'!M57 & CHAR(10) &\n\" Project Tasks: \" & 'Maintenance Tasks'!S57 & CHAR(10) &\n\"Working Questions & Notes: \" &'Maintenance Tasks'!T57& CHAR(10) &\n\" Contractor: \" &'Maintenance Tasks'!U57","v":"Repeating: None\n Project Tasks: \nWorking Questions & Notes: \n Contractor: "},{"$f":"TEXT(VLOOKUP($K90,'Maintenance Tasks'!$B$2:$X$61,16,FALSE), \"YYYY-MM-DD\")","v":"2021-01-01"},{"$f":"TEXT(VLOOKUP($K90,'Maintenance Tasks'!$B$2:$X$61,17,FALSE), \"YYYY-MM-DD\")","v":"2021-01-01"},{"$f":"\"Repeating: \" & 'Maintenance Tasks'!M57 & CHAR(10) &\n\" Project Tasks: \" & 'Maintenance Tasks'!S57 & CHAR(10) &\n\"Working Questions & Notes: \" &'Maintenance Tasks'!T57& CHAR(10) &\n\" Contractor: \" &'Maintenance Tasks'!U57","v":"Repeating: None\n Project Tasks: \nWorking Questions & Notes: \n Contractor: "},{"$f":"IF('Maintenance Task Assignments'!B57<>\"\", 'Maintenance Task Assignments'!B57,\"\")","v":"T57"},{"$f":"IFERROR(VLOOKUP($D90,'Property Task Managers'!$A$1:$O$31,7,FALSE),\"\")","v":"searigg@comcast.net"}]
[{"$f":"VLOOKUP($K91,'Maintenance Tasks'!$B$2:$X$61,3,FALSE)","v":"Units"},{"$f":"VLOOKUP(K91,'Maintenance Tasks'!$B$2:$X$61,7,FALSE)","v":"T57 Window Replacement "},{"$f":"VLOOKUP($K91,'Maintenance Tasks'!$B$2:$X$61,3,FALSE)","v":"Units"},{"$f":"IF('Maintenance Task Assignments'!B94<>\"\", 'Maintenance Task Assignments'!A94,\"\")","v":"LindaS"},{"$f":"IF('Maintenance Task Assignments'!B94<>\"\", 'Maintenance Task Assignments'!D94,\"\")","v":"2nd"},{"$f":"VLOOKUP($K91,'Maintenance Tasks'!$B$2:$X$61,11,FALSE)","v":"Scheduled"},{"$f":"\"Repeating: \" & 'Maintenance Tasks'!M94 & CHAR(10) &\n\" Project Tasks: \" & 'Maintenance Tasks'!S94 & CHAR(10) &\n\"Working Questions & Notes: \" &'Maintenance Tasks'!T94& CHAR(10) &\n\" Contractor: \" &'Maintenance Tasks'!U94","v":"Repeating: \n Project Tasks: \nWorking Questions & Notes: \n Contractor: "},{"$f":"TEXT(VLOOKUP($K91,'Maintenance Tasks'!$B$2:$X$61,16,FALSE), \"YYYY-MM-DD\")","v":"2021-01-01"},{"$f":"TEXT(VLOOKUP($K91,'Maintenance Tasks'!$B$2:$X$61,17,FALSE), \"YYYY-MM-DD\")","v":"2021-01-01"},{"$f":"\"Repeating: \" & 'Maintenance Tasks'!M94 & CHAR(10) &\n\" Project Tasks: \" & 'Maintenance Tasks'!S94 & CHAR(10) &\n\"Working Questions & Notes: \" &'Maintenance Tasks'!T94& CHAR(10) &\n\" Contractor: \" &'Maintenance Tasks'!U94","v":"Repeating: \n Project Tasks: \nWorking Questions & Notes: \n Contractor: "},{"$f":"IF('Maintenance Task Assignments'!B94<>\"\", 'Maintenance Task Assignments'!B94,\"\")","v":"T57"},{"$f":"IFERROR(VLOOKUP($D91,'Property Task Managers'!$A$1:$O$31,7,FALSE),\"\")","v":"LindaLSheeks@gmail.com"}]
[{"$f":"VLOOKUP($K92,'Maintenance Tasks'!$B$2:$X$61,3,FALSE)","v":"Sitewide"},{"$f":"VLOOKUP(K92,'Maintenance Tasks'!$B$2:$X$61,7,FALSE)","v":"T59 Window Washing "},{"$f":"VLOOKUP($K92,'Maintenance Tasks'!$B$2:$X$61,3,FALSE)","v":"Sitewide"},{"$f":"IF('Maintenance Task Assignments'!B58<>\"\", 'Maintenance Task Assignments'!A58,\"\")","v":"PeggyC"},{"$f":"IF('Maintenance Task Assignments'!B58<>\"\", 'Maintenance Task Assignments'!D58,\"\")","v":"1st"},{"$f":"VLOOKUP($K92,'Maintenance Tasks'!$B$2:$X$61,11,FALSE)","v":"Scheduled"},{"$f":"\"Repeating: \" & 'Maintenance Tasks'!M58 & CHAR(10) &\n\" Project Tasks: \" & 'Maintenance Tasks'!S58 & CHAR(10) &\n\"Working Questions & Notes: \" &'Maintenance Tasks'!T58& CHAR(10) &\n\" Contractor: \" &'Maintenance Tasks'!U58","v":"Repeating: Semi-Annual, May, Sep\n Project Tasks: Include Clubhouse Windows Outside\nWorking Questions & Notes: Larry Green 9-22-20 Yearly Routine\n Contractor: "},{"$f":"TEXT(VLOOKUP($K92,'Maintenance Tasks'!$B$2:$X$61,16,FALSE), \"YYYY-MM-DD\")","v":"2021-03-01"},{"$f":"TEXT(VLOOKUP($K92,'Maintenance Tasks'!$B$2:$X$61,17,FALSE), \"YYYY-MM-DD\")","v":"2021-03-01"},{"$f":"\"Repeating: \" & 'Maintenance Tasks'!M58 & CHAR(10) &\n\" Project Tasks: \" & 'Maintenance Tasks'!S58 & CHAR(10) &\n\"Working Questions & Notes: \" &'Maintenance Tasks'!T58& CHAR(10) &\n\" Contractor: \" &'Maintenance Tasks'!U58","v":"Repeating: Semi-Annual, May, Sep\n Project Tasks: Include Clubhouse Windows Outside\nWorking Questions & Notes: Larry Green 9-22-20 Yearly Routine\n Contractor: "},{"$f":"IF('Maintenance Task Assignments'!B58<>\"\", 'Maintenance Task Assignments'!B58,\"\")","v":"T59"},{"$f":"IFERROR(VLOOKUP($D92,'Property Task Managers'!$A$1:$O$31,7,FALSE),\"\")","v":"grandmapeggy1226@gmail.com"}]
[{"$f":"VLOOKUP($K93,'Maintenance Tasks'!$B$2:$X$61,3,FALSE)","v":"Units"},{"$f":"VLOOKUP(K93,'Maintenance Tasks'!$B$2:$X$61,7,FALSE)","v":"T60 Windows Check for Dry Rot or Leakage"},{"$f":"VLOOKUP($K93,'Maintenance Tasks'!$B$2:$X$61,3,FALSE)","v":"Units"},{"$f":"IF('Maintenance Task Assignments'!B59<>\"\", 'Maintenance Task Assignments'!A59,\"\")","v":"BeverlyB"},{"$f":"IF('Maintenance Task Assignments'!B59<>\"\", 'Maintenance Task Assignments'!D59,\"\")","v":"1st"},{"$f":"VLOOKUP($K93,'Maintenance Tasks'!$B$2:$X$61,11,FALSE)","v":"Scheduled"},{"$f":"\"Repeating: \" & 'Maintenance Tasks'!M59 & CHAR(10) &\n\" Project Tasks: \" & 'Maintenance Tasks'!S59 & CHAR(10) &\n\"Working Questions & Notes: \" &'Maintenance Tasks'!T59& CHAR(10) &\n\" Contractor: \" &'Maintenance Tasks'!U59","v":"Repeating: Feb\n Project Tasks: Prepare Replacement List\nWorking Questions & Notes: Larry Green 9-22-20 Yearly Routine\n Contractor: Country Glass"},{"$f":"TEXT(VLOOKUP($K93,'Maintenance Tasks'!$B$2:$X$61,16,FALSE), \"YYYY-MM-DD\")","v":"2021-02-01"},{"$f":"TEXT(VLOOKUP($K93,'Maintenance Tasks'!$B$2:$X$61,17,FALSE), \"YYYY-MM-DD\")","v":"2021-02-28"},{"$f":"\"Repeating: \" & 'Maintenance Tasks'!M59 & CHAR(10) &\n\" Project Tasks: \" & 'Maintenance Tasks'!S59 & CHAR(10) &\n\"Working Questions & Notes: \" &'Maintenance Tasks'!T59& CHAR(10) &\n\" Contractor: \" &'Maintenance Tasks'!U59","v":"Repeating: Feb\n Project Tasks: Prepare Replacement List\nWorking Questions & Notes: Larry Green 9-22-20 Yearly Routine\n Contractor: Country Glass"},{"$f":"IF('Maintenance Task Assignments'!B59<>\"\", 'Maintenance Task Assignments'!B59,\"\")","v":"T60"},{"$f":"IFERROR(VLOOKUP($D93,'Property Task Managers'!$A$1:$O$31,7,FALSE),\"\")","v":"searigg@comcast.net"}]
[{"$f":"VLOOKUP($K94,'Maintenance Tasks'!$B$2:$X$61,3,FALSE)","v":"Clubhouse"},{"$f":"VLOOKUP(K94,'Maintenance Tasks'!$B$2:$X$61,7,FALSE)","v":"T61 Xmas Lights"},{"$f":"VLOOKUP($K94,'Maintenance Tasks'!$B$2:$X$61,3,FALSE)","v":"Clubhouse"},{"$f":"IF('Maintenance Task Assignments'!B60<>\"\", 'Maintenance Task Assignments'!A60,\"\")","v":"UnAssigned"},{"$f":"IF('Maintenance Task Assignments'!B60<>\"\", 'Maintenance Task Assignments'!D60,\"\")","v":"1st"},{"$f":"VLOOKUP($K94,'Maintenance Tasks'!$B$2:$X$61,11,FALSE)","v":"Scheduled"},{"$f":"\"Repeating: \" & 'Maintenance Tasks'!M60 & CHAR(10) &\n\" Project Tasks: \" & 'Maintenance Tasks'!S60 & CHAR(10) &\n\"Working Questions & Notes: \" &'Maintenance Tasks'!T60& CHAR(10) &\n\" Contractor: \" &'Maintenance Tasks'!U60","v":"Repeating: Dec\n Project Tasks: Setup and Take Down\nWorking Questions & Notes: \n Contractor: "},{"$f":"TEXT(VLOOKUP($K94,'Maintenance Tasks'!$B$2:$X$61,16,FALSE), \"YYYY-MM-DD\")","v":"2021-12-01"},{"$f":"TEXT(VLOOKUP($K94,'Maintenance Tasks'!$B$2:$X$61,17,FALSE), \"YYYY-MM-DD\")","v":"2021-12-31"},{"$f":"\"Repeating: \" & 'Maintenance Tasks'!M60 & CHAR(10) &\n\" Project Tasks: \" & 'Maintenance Tasks'!S60 & CHAR(10) &\n\"Working Questions & Notes: \" &'Maintenance Tasks'!T60& CHAR(10) &\n\" Contractor: \" &'Maintenance Tasks'!U60","v":"Repeating: Dec\n Project Tasks: Setup and Take Down\nWorking Questions & Notes: \n Contractor: "},{"$f":"IF('Maintenance Task Assignments'!B60<>\"\", 'Maintenance Task Assignments'!B60,\"\")","v":"T61"},{"$f":"IFERROR(VLOOKUP($D94,'Property Task Managers'!$A$1:$O$31,7,FALSE),\"\")","v":"VACNCABoard@gmail.com"}]
[{"$f":"VLOOKUP($K95,'Maintenance Tasks'!$B$2:$X$61,3,FALSE)","v":"Clubhouse"},{"$f":"VLOOKUP(K95,'Maintenance Tasks'!$B$2:$X$61,7,FALSE)","v":"T62 Club house Furnace AC Fireplace Inspection"},{"$f":"VLOOKUP($K95,'Maintenance Tasks'!$B$2:$X$61,3,FALSE)","v":"Clubhouse"},{"$f":"IF('Maintenance Task Assignments'!B61<>\"\", 'Maintenance Task Assignments'!A61,\"\")","v":"SheilaJ"},{"$f":"IF('Maintenance Task Assignments'!B61<>\"\", 'Maintenance Task Assignments'!D61,\"\")","v":"1st"},{"$f":"VLOOKUP($K95,'Maintenance Tasks'!$B$2:$X$61,11,FALSE)","v":"Scheduled"},{"$f":"\"Repeating: \" & 'Maintenance Tasks'!M61 & CHAR(10) &\n\" Project Tasks: \" & 'Maintenance Tasks'!S61 & CHAR(10) &\n\"Working Questions & Notes: \" &'Maintenance Tasks'!T61& CHAR(10) &\n\" Contractor: \" &'Maintenance Tasks'!U61","v":"Repeating: Bi-Annual\n Project Tasks: Check\nWorking Questions & Notes: Larry Green 9-22-20 Yearly Routine\n Contractor: Lynden Sheet Metal"},{"$f":"TEXT(VLOOKUP($K95,'Maintenance Tasks'!$B$2:$X$61,16,FALSE), \"YYYY-MM-DD\")","v":"2021-06-01"},{"$f":"TEXT(VLOOKUP($K95,'Maintenance Tasks'!$B$2:$X$61,17,FALSE), \"YYYY-MM-DD\")","v":"2021-06-30"},{"$f":"\"Repeating: \" & 'Maintenance Tasks'!M61 & CHAR(10) &\n\" Project Tasks: \" & 'Maintenance Tasks'!S61 & CHAR(10) &\n\"Working Questions & Notes: \" &'Maintenance Tasks'!T61& CHAR(10) &\n\" Contractor: \" &'Maintenance Tasks'!U61","v":"Repeating: Bi-Annual\n Project Tasks: Check\nWorking Questions & Notes: Larry Green 9-22-20 Yearly Routine\n Contractor: Lynden Sheet Metal"},{"$f":"IF('Maintenance Task Assignments'!B61<>\"\", 'Maintenance Task Assignments'!B61,\"\")","v":"T62"},{"$f":"IFERROR(VLOOKUP($D95,'Property Task Managers'!$A$1:$O$31,7,FALSE),\"\")","v":"sheilajohansen47@gmail.com"}]
[null,null,null,null,null,null,null,null,null,null,null,{"$f":"IFERROR(VLOOKUP($D96,'Property Task Managers'!$A$1:$O$31,7,FALSE),\"\")","v":""}]
[]
[]
[]
[]
[]
[]
[]
[]
[]
[]
[]
[]
[]
[]
[]
[]
[]
[]
[]
[]
[]
[]
[]
[]
[]
[]
[]
[]
[]
[]
[]
[]
[]
[]
[]
[]
[]
[]
[]
[]
[]
[]
[]
[]
[]
[]
[]
[]
[]
[]
[]
[]
[]
[]
[]
[]
[]
[]
[]
[]
[]
[]
[]
[]
[]
[]
[]
[]
[]
[]
[]
[]
[]
[]
[]
[]
[]
[]
[]
[]
[]
[]
[]
[]
[]
[]
[]
[]
[]
[]
[]
[]
[]
[]
[]
[]
[]
[]
[]
[]
[]
[]
[]
[]
[]
[]
[]
[]
[]
[]
[]
[]
[]
[]
[]
[]
[]
[]
[]
[]
[]
[]
[]
[]
[]
[]
[]
[]
[]
[]
[]
[]
[]
[]
[]
[]
[]
[]
[]
[]
[]
[]
[]
[]
[]
[]
[]
[]
[]
[]
[]
[]
[]
[]
[]
[]
[]
[]
[]
[]
[]
[]
[]
[]
[]
[]
[]
[]
[]
[]
[]
[]
[]
[]
[]
[]
[]
[]
[]
[]
[]
[]
[]
[]
[]
[]
[]
[]
[]
[]
[]
[]
[]
[]
[]
[]
[]
[]
[]
[]
[]
[]
[]
[]
[]
[]
[]
[]
[]
[]
[]
[]
[]
[]
[]
[]
[]
[]
[]
[]
[]
[]
[]
[]
[]
[]
[]
[]
[]
[]
[]
[]
[]
[]
[]
[]
[]
[]
[]
[]
[]
[]
[]
[]
[]
[]
[]
[]
[]
[]
[]
[]
[]
[]
[]
[]
[]
[]
[]
[]
[]
[]
[]
[]
[]
[]
[]
[]
[]
[]
[]
[]
[]
[]
[]
[]
[]
[]
[]
[]
[]
[]
[]
[]
[]
[]
[]
[]
[]
[]
[]
[]
[]
[]
[]
[]
[]
[]
[]
[]
[]
[]
[]
[]
[]
[]
[]
[]
[]
[]
[]
[]
[]
[]
[]
[]
[]
[]
[]
[]
[]
[]
[]
[]
[]
[]
[]
[]
[]
[]
[]
[]
[]
[]
[]
[]
[]
[]
[]
[]
[]
[]
[]
[]
[]
[]
[]
[]
[]
[]
[]
[]
[]
[]
[]
[]
[]
[]
[]
[]
[]
[]
[]
[]
[]
[]
[]
[]
[]
[]
[]
[]
[]
[]
[]
[]
[]
[]
[]
[]
[]
[]
[]
[]
[]
[]
[]
[]
[]
[]
[]
[]
[]
[]
[]
[]
[]
[]
[]
[]
[]
[]
[]
[]
[]
[]
[]
[]
[]
[]
[]
[]
[]
[]
[]
[]
[]
[]
[]
[]
[]
[]
[]
[]
[]
[]
[]
[]
[]
[]
[]
[]
[]
[]
[]
[]
[]
[]
[]
[]
[]
[]
[]
[]
[]
[]
[]
[]
[]
[]
[]
[]
[]
[]
[]
[]
[]
[]
[]
[]
[]
[]
[]
[]
[]
[]
[]
[]
[]
[]
[]
[]
[]
[]
[]
[]
[]
[null,null,null,null,null,null,null,null,null,null,{"$f":"IF('Maintenance Task Assignments'!B574<>\"\", 'Maintenance Task Assignments'!B574,\"\")","v":""}]
[null,null,null,null,null,null,null,null,null,null,{"$f":"IF('Maintenance Task Assignments'!B575<>\"\", 'Maintenance Task Assignments'!B575,\"\")","v":""}]
[null,null,null,null,null,null,null,null,null,null,{"$f":"IF('Maintenance Task Assignments'!B576<>\"\", 'Maintenance Task Assignments'!B576,\"\")","v":""}]
[null,null,null,null,null,null,null,null,null,null,{"$f":"IF('Maintenance Task Assignments'!B577<>\"\", 'Maintenance Task Assignments'!B577,\"\")","v":""}]
[null,null,null,null,null,null,null,null,null,null,{"$f":"IF('Maintenance Task Assignments'!B578<>\"\", 'Maintenance Task Assignments'!B578,\"\")","v":""}]
[null,null,null,null,null,null,null,null,null,null,{"$f":"IF('Maintenance Task Assignments'!B579<>\"\", 'Maintenance Task Assignments'!B579,\"\")","v":""}]
[null,null,null,null,null,null,null,null,null,null,{"$f":"IF('Maintenance Task Assignments'!B580<>\"\", 'Maintenance Task Assignments'!B580,\"\")","v":""}]
[null,null,null,null,null,null,null,null,null,null,{"$f":"IF('Maintenance Task Assignments'!B581<>\"\", 'Maintenance Task Assignments'!B581,\"\")","v":""}]
[null,null,null,null,null,null,null,null,null,null,{"$f":"IF('Maintenance Task Assignments'!B582<>\"\", 'Maintenance Task Assignments'!B582,\"\")","v":""}]
[null,null,null,null,null,null,null,null,null,null,{"$f":"IF('Maintenance Task Assignments'!B583<>\"\", 'Maintenance Task Assignments'!B583,\"\")","v":""}]
[null,null,null,null,null,null,null,null,null,null,{"$f":"IF('Maintenance Task Assignments'!B584<>\"\", 'Maintenance Task Assignments'!B584,\"\")","v":""}]
[null,null,null,null,null,null,null,null,null,null,{"$f":"IF('Maintenance Task Assignments'!B585<>\"\", 'Maintenance Task Assignments'!B585,\"\")","v":""}]
[null,null,null,null,null,null,null,null,null,null,{"$f":"IF('Maintenance Task Assignments'!B586<>\"\", 'Maintenance Task Assignments'!B586,\"\")","v":""}]
[null,null,null,null,null,null,null,null,null,null,{"$f":"IF('Maintenance Task Assignments'!B587<>\"\", 'Maintenance Task Assignments'!B587,\"\")","v":""}]
[null,null,null,null,null,null,null,null,null,null,{"$f":"IF('Maintenance Task Assignments'!B588<>\"\", 'Maintenance Task Assignments'!B588,\"\")","v":""}]
[null,null,null,null,null,null,null,null,null,null,{"$f":"IF('Maintenance Task Assignments'!B589<>\"\", 'Maintenance Task Assignments'!B589,\"\")","v":""}]
[null,null,null,null,null,null,null,null,null,null,{"$f":"IF('Maintenance Task Assignments'!B590<>\"\", 'Maintenance Task Assignments'!B590,\"\")","v":""}]
[null,null,null,null,null,null,null,null,null,null,{"$f":"IF('Maintenance Task Assignments'!B591<>\"\", 'Maintenance Task Assignments'!B591,\"\")","v":""}]
[null,null,null,null,null,null,null,null,null,null,{"$f":"IF('Maintenance Task Assignments'!B592<>\"\", 'Maintenance Task Assignments'!B592,\"\")","v":""}]
[null,null,null,null,null,null,null,null,null,null,{"$f":"IF('Maintenance Task Assignments'!B593<>\"\", 'Maintenance Task Assignments'!B593,\"\")","v":""}]
[null,null,null,null,null,null,null,null,null,null,{"$f":"IF('Maintenance Task Assignments'!B594<>\"\", 'Maintenance Task Assignments'!B594,\"\")","v":""}]
[null,null,null,null,null,null,null,null,null,null,{"$f":"IF('Maintenance Task Assignments'!B595<>\"\", 'Maintenance Task Assignments'!B595,\"\")","v":""}]
[null,null,null,null,null,null,null,null,null,null,{"$f":"IF('Maintenance Task Assignments'!B596<>\"\", 'Maintenance Task Assignments'!B596,\"\")","v":""}]
[null,null,null,null,null,null,null,null,null,null,{"$f":"IF('Maintenance Task Assignments'!B597<>\"\", 'Maintenance Task Assignments'!B597,\"\")","v":""}]
[null,null,null,null,null,null,null,null,null,null,{"$f":"IF('Maintenance Task Assignments'!B598<>\"\", 'Maintenance Task Assignments'!B598,\"\")","v":""}]
[null,null,null,null,null,null,null,null,null,null,{"$f":"IF('Maintenance Task Assignments'!B599<>\"\", 'Maintenance Task Assignments'!B599,\"\")","v":""}]
[null,null,null,null,null,null,null,null,null,null,{"$f":"IF('Maintenance Task Assignments'!B600<>\"\", 'Maintenance Task Assignments'!B600,\"\")","v":""}]
[null,null,null,null,null,null,null,null,null,null,{"$f":"IF('Maintenance Task Assignments'!B601<>\"\", 'Maintenance Task Assignments'!B601,\"\")","v":""}]
[null,null,null,null,null,null,null,null,null,null,{"$f":"IF('Maintenance Task Assignments'!B602<>\"\", 'Maintenance Task Assignments'!B602,\"\")","v":""}]
[null,null,null,null,null,null,null,null,null,null,{"$f":"IF('Maintenance Task Assignments'!B603<>\"\", 'Maintenance Task Assignments'!B603,\"\")","v":""}]
[null,null,null,null,null,null,null,null,null,null,{"$f":"IF('Maintenance Task Assignments'!B604<>\"\", 'Maintenance Task Assignments'!B604,\"\")","v":""}]
[null,null,null,null,null,null,null,null,null,null,{"$f":"IF('Maintenance Task Assignments'!B605<>\"\", 'Maintenance Task Assignments'!B605,\"\")","v":""}]
[null,null,null,null,null,null,null,null,null,null,{"$f":"IF('Maintenance Task Assignments'!B606<>\"\", 'Maintenance Task Assignments'!B606,\"\")","v":""}]
[null,null,null,null,null,null,null,null,null,null,{"$f":"IF('Maintenance Task Assignments'!B607<>\"\", 'Maintenance Task Assignments'!B607,\"\")","v":""}]
[null,null,null,null,null,null,null,null,null,null,{"$f":"IF('Maintenance Task Assignments'!B608<>\"\", 'Maintenance Task Assignments'!B608,\"\")","v":""}]
[null,null,null,null,null,null,null,null,null,null,{"$f":"IF('Maintenance Task Assignments'!B609<>\"\", 'Maintenance Task Assignments'!B609,\"\")","v":""}]
[null,null,null,null,null,null,null,null,null,null,{"$f":"IF('Maintenance Task Assignments'!B610<>\"\", 'Maintenance Task Assignments'!B610,\"\")","v":""}]
[null,null,null,null,null,null,null,null,null,null,{"$f":"IF('Maintenance Task Assignments'!B611<>\"\", 'Maintenance Task Assignments'!B611,\"\")","v":""}]
[null,null,null,null,null,null,null,null,null,null,{"$f":"IF('Maintenance Task Assignments'!B612<>\"\", 'Maintenance Task Assignments'!B612,\"\")","v":""}]
[null,null,null,null,null,null,null,null,null,null,{"$f":"IF('Maintenance Task Assignments'!B613<>\"\", 'Maintenance Task Assignments'!B613,\"\")","v":""}]
[null,null,null,null,null,null,null,null,null,null,{"$f":"IF('Maintenance Task Assignments'!B614<>\"\", 'Maintenance Task Assignments'!B614,\"\")","v":""}]
[null,null,null,null,null,null,null,null,null,null,{"$f":"IF('Maintenance Task Assignments'!B615<>\"\", 'Maintenance Task Assignments'!B615,\"\")","v":""}]
[null,null,null,null,null,null,null,null,null,null,{"$f":"IF('Maintenance Task Assignments'!B616<>\"\", 'Maintenance Task Assignments'!B616,\"\")","v":""}]
[null,null,null,null,null,null,null,null,null,null,{"$f":"IF('Maintenance Task Assignments'!B617<>\"\", 'Maintenance Task Assignments'!B617,\"\")","v":""}]
[null,null,null,null,null,null,null,null,null,null,{"$f":"IF('Maintenance Task Assignments'!B618<>\"\", 'Maintenance Task Assignments'!B618,\"\")","v":""}]
[null,null,null,null,null,null,null,null,null,null,{"$f":"IF('Maintenance Task Assignments'!B619<>\"\", 'Maintenance Task Assignments'!B619,\"\")","v":""}]
[null,null,null,null,null,null,null,null,null,null,{"$f":"IF('Maintenance Task Assignments'!B620<>\"\", 'Maintenance Task Assignments'!B620,\"\")","v":""}]
[null,null,null,null,null,null,null,null,null,null,{"$f":"IF('Maintenance Task Assignments'!B621<>\"\", 'Maintenance Task Assignments'!B621,\"\")","v":""}]
[null,null,null,null,null,null,null,null,null,null,{"$f":"IF('Maintenance Task Assignments'!B622<>\"\", 'Maintenance Task Assignments'!B622,\"\")","v":""}]
[null,null,null,null,null,null,null,null,null,null,{"$f":"IF('Maintenance Task Assignments'!B623<>\"\", 'Maintenance Task Assignments'!B623,\"\")","v":""}]
[null,null,null,null,null,null,null,null,null,null,{"$f":"IF('Maintenance Task Assignments'!B624<>\"\", 'Maintenance Task Assignments'!B624,\"\")","v":""}]
[null,null,null,null,null,null,null,null,null,null,{"$f":"IF('Maintenance Task Assignments'!B625<>\"\", 'Maintenance Task Assignments'!B625,\"\")","v":""}]
[null,null,null,null,null,null,null,null,null,null,{"$f":"IF('Maintenance Task Assignments'!B626<>\"\", 'Maintenance Task Assignments'!B626,\"\")","v":""}]
[null,null,null,null,null,null,null,null,null,null,{"$f":"IF('Maintenance Task Assignments'!B627<>\"\", 'Maintenance Task Assignments'!B627,\"\")","v":""}]
[null,null,null,null,null,null,null,null,null,null,{"$f":"IF('Maintenance Task Assignments'!B628<>\"\", 'Maintenance Task Assignments'!B628,\"\")","v":""}]
[null,null,null,null,null,null,null,null,null,null,{"$f":"IF('Maintenance Task Assignments'!B629<>\"\", 'Maintenance Task Assignments'!B629,\"\")","v":""}]
[null,null,null,null,null,null,null,null,null,null,{"$f":"IF('Maintenance Task Assignments'!B630<>\"\", 'Maintenance Task Assignments'!B630,\"\")","v":""}]
[null,null,null,null,null,null,null,null,null,null,{"$f":"IF('Maintenance Task Assignments'!B631<>\"\", 'Maintenance Task Assignments'!B631,\"\")","v":""}]
[null,null,null,null,null,null,null,null,null,null,{"$f":"IF('Maintenance Task Assignments'!B632<>\"\", 'Maintenance Task Assignments'!B632,\"\")","v":""}]
[null,null,null,null,null,null,null,null,null,null,{"$f":"IF('Maintenance Task Assignments'!B633<>\"\", 'Maintenance Task Assignments'!B633,\"\")","v":""}]
[null,null,null,null,null,null,null,null,null,null,{"$f":"IF('Maintenance Task Assignments'!B634<>\"\", 'Maintenance Task Assignments'!B634,\"\")","v":""}]
[null,null,null,null,null,null,null,null,null,null,{"$f":"IF('Maintenance Task Assignments'!B635<>\"\", 'Maintenance Task Assignments'!B635,\"\")","v":""}]
[null,null,null,null,null,null,null,null,null,null,{"$f":"IF('Maintenance Task Assignments'!B636<>\"\", 'Maintenance Task Assignments'!B636,\"\")","v":""}]
[null,null,null,null,null,null,null,null,null,null,{"$f":"IF('Maintenance Task Assignments'!B637<>\"\", 'Maintenance Task Assignments'!B637,\"\")","v":""}]
[null,null,null,null,null,null,null,null,null,null,{"$f":"IF('Maintenance Task Assignments'!B638<>\"\", 'Maintenance Task Assignments'!B638,\"\")","v":""}]
[null,null,null,null,null,null,null,null,null,null,{"$f":"IF('Maintenance Task Assignments'!B639<>\"\", 'Maintenance Task Assignments'!B639,\"\")","v":""}]
[null,null,null,null,null,null,null,null,null,null,{"$f":"IF('Maintenance Task Assignments'!B640<>\"\", 'Maintenance Task Assignments'!B640,\"\")","v":""}]
[null,null,null,null,null,null,null,null,null,null,{"$f":"IF('Maintenance Task Assignments'!B641<>\"\", 'Maintenance Task Assignments'!B641,\"\")","v":""}]
[null,null,null,null,null,null,null,null,null,null,{"$f":"IF('Maintenance Task Assignments'!B642<>\"\", 'Maintenance Task Assignments'!B642,\"\")","v":""}]
[null,null,null,null,null,null,null,null,null,null,{"$f":"IF('Maintenance Task Assignments'!B643<>\"\", 'Maintenance Task Assignments'!B643,\"\")","v":""}]
[null,null,null,null,null,null,null,null,null,null,{"$f":"IF('Maintenance Task Assignments'!B644<>\"\", 'Maintenance Task Assignments'!B644,\"\")","v":""}]
[null,null,null,null,null,null,null,null,null,null,{"$f":"IF('Maintenance Task Assignments'!B645<>\"\", 'Maintenance Task Assignments'!B645,\"\")","v":""}]
[null,null,null,null,null,null,null,null,null,null,{"$f":"IF('Maintenance Task Assignments'!B646<>\"\", 'Maintenance Task Assignments'!B646,\"\")","v":""}]
[null,null,null,null,null,null,null,null,null,null,{"$f":"IF('Maintenance Task Assignments'!B647<>\"\", 'Maintenance Task Assignments'!B647,\"\")","v":""}]
[null,null,null,null,null,null,null,null,null,null,{"$f":"IF('Maintenance Task Assignments'!B648<>\"\", 'Maintenance Task Assignments'!B648,\"\")","v":""}]
[null,null,null,null,null,null,null,null,null,null,{"$f":"IF('Maintenance Task Assignments'!B649<>\"\", 'Maintenance Task Assignments'!B649,\"\")","v":""}]
[null,null,null,null,null,null,null,null,null,null,{"$f":"IF('Maintenance Task Assignments'!B650<>\"\", 'Maintenance Task Assignments'!B650,\"\")","v":""}]
[null,null,null,null,null,null,null,null,null,null,{"$f":"IF('Maintenance Task Assignments'!B651<>\"\", 'Maintenance Task Assignments'!B651,\"\")","v":""}]
[null,null,null,null,null,null,null,null,null,null,{"$f":"IF('Maintenance Task Assignments'!B652<>\"\", 'Maintenance Task Assignments'!B652,\"\")","v":""}]
[null,null,null,null,null,null,null,null,null,null,{"$f":"IF('Maintenance Task Assignments'!B653<>\"\", 'Maintenance Task Assignments'!B653,\"\")","v":""}]
[null,null,null,null,null,null,null,null,null,null,{"$f":"IF('Maintenance Task Assignments'!B654<>\"\", 'Maintenance Task Assignments'!B654,\"\")","v":""}]
[null,null,null,null,null,null,null,null,null,null,{"$f":"IF('Maintenance Task Assignments'!B655<>\"\", 'Maintenance Task Assignments'!B655,\"\")","v":""}]
[null,null,null,null,null,null,null,null,null,null,{"$f":"IF('Maintenance Task Assignments'!B656<>\"\", 'Maintenance Task Assignments'!B656,\"\")","v":""}]
[null,null,null,null,null,null,null,null,null,null,{"$f":"IF('Maintenance Task Assignments'!B657<>\"\", 'Maintenance Task Assignments'!B657,\"\")","v":""}]
[null,null,null,null,null,null,null,null,null,null,{"$f":"IF('Maintenance Task Assignments'!B658<>\"\", 'Maintenance Task Assignments'!B658,\"\")","v":""}]
[null,null,null,null,null,null,null,null,null,null,{"$f":"IF('Maintenance Task Assignments'!B659<>\"\", 'Maintenance Task Assignments'!B659,\"\")","v":""}]
[null,null,null,null,null,null,null,null,null,null,{"$f":"IF('Maintenance Task Assignments'!B660<>\"\", 'Maintenance Task Assignments'!B660,\"\")","v":""}]
[null,null,null,null,null,null,null,null,null,null,{"$f":"IF('Maintenance Task Assignments'!B661<>\"\", 'Maintenance Task Assignments'!B661,\"\")","v":""}]
[null,null,null,null,null,null,null,null,null,null,{"$f":"IF('Maintenance Task Assignments'!B662<>\"\", 'Maintenance Task Assignments'!B662,\"\")","v":""}]
[null,null,null,null,null,null,null,null,null,null,{"$f":"IF('Maintenance Task Assignments'!B663<>\"\", 'Maintenance Task Assignments'!B663,\"\")","v":""}]
[null,null,null,null,null,null,null,null,null,null,{"$f":"IF('Maintenance Task Assignments'!B664<>\"\", 'Maintenance Task Assignments'!B664,\"\")","v":""}]
[null,null,null,null,null,null,null,null,null,null,{"$f":"IF('Maintenance Task Assignments'!B665<>\"\", 'Maintenance Task Assignments'!B665,\"\")","v":""}]
[null,null,null,null,null,null,null,null,null,null,{"$f":"IF('Maintenance Task Assignments'!B666<>\"\", 'Maintenance Task Assignments'!B666,\"\")","v":""}]
[null,null,null,null,null,null,null,null,null,null,{"$f":"IF('Maintenance Task Assignments'!B667<>\"\", 'Maintenance Task Assignments'!B667,\"\")","v":""}]
[null,null,null,null,null,null,null,null,null,null,{"$f":"IF('Maintenance Task Assignments'!B668<>\"\", 'Maintenance Task Assignments'!B668,\"\")","v":""}]
[null,null,null,null,null,null,null,null,null,null,{"$f":"IF('Maintenance Task Assignments'!B669<>\"\", 'Maintenance Task Assignments'!B669,\"\")","v":""}]
[null,null,null,null,null,null,null,null,null,null,{"$f":"IF('Maintenance Task Assignments'!B670<>\"\", 'Maintenance Task Assignments'!B670,\"\")","v":""}]
[null,null,null,null,null,null,null,null,null,null,{"$f":"IF('Maintenance Task Assignments'!B671<>\"\", 'Maintenance Task Assignments'!B671,\"\")","v":""}]
[null,null,null,null,null,null,null,null,null,null,{"$f":"IF('Maintenance Task Assignments'!B672<>\"\", 'Maintenance Task Assignments'!B672,\"\")","v":""}]
[null,null,null,null,null,null,null,null,null,null,{"$f":"IF('Maintenance Task Assignments'!B673<>\"\", 'Maintenance Task Assignments'!B673,\"\")","v":""}]
[null,null,null,null,null,null,null,null,null,null,{"$f":"IF('Maintenance Task Assignments'!B674<>\"\", 'Maintenance Task Assignments'!B674,\"\")","v":""}]
[null,null,null,null,null,null,null,null,null,null,{"$f":"IF('Maintenance Task Assignments'!B675<>\"\", 'Maintenance Task Assignments'!B675,\"\")","v":""}]
[null,null,null,null,null,null,null,null,null,null,{"$f":"IF('Maintenance Task Assignments'!B676<>\"\", 'Maintenance Task Assignments'!B676,\"\")","v":""}]
[null,null,null,null,null,null,null,null,null,null,{"$f":"IF('Maintenance Task Assignments'!B677<>\"\", 'Maintenance Task Assignments'!B677,\"\")","v":""}]
[null,null,null,null,null,null,null,null,null,null,{"$f":"IF('Maintenance Task Assignments'!B678<>\"\", 'Maintenance Task Assignments'!B678,\"\")","v":""}]
[null,null,null,null,null,null,null,null,null,null,{"$f":"IF('Maintenance Task Assignments'!B679<>\"\", 'Maintenance Task Assignments'!B679,\"\")","v":""}]
[null,null,null,null,null,null,null,null,null,null,{"$f":"IF('Maintenance Task Assignments'!B680<>\"\", 'Maintenance Task Assignments'!B680,\"\")","v":""}]
[null,null,null,null,null,null,null,null,null,null,{"$f":"IF('Maintenance Task Assignments'!B681<>\"\", 'Maintenance Task Assignments'!B681,\"\")","v":""}]
[null,null,null,null,null,null,null,null,null,null,{"$f":"IF('Maintenance Task Assignments'!B682<>\"\", 'Maintenance Task Assignments'!B682,\"\")","v":""}]
[null,null,null,null,null,null,null,null,null,null,{"$f":"IF('Maintenance Task Assignments'!B683<>\"\", 'Maintenance Task Assignments'!B683,\"\")","v":""}]
[null,null,null,null,null,null,null,null,null,null,{"$f":"IF('Maintenance Task Assignments'!B684<>\"\", 'Maintenance Task Assignments'!B684,\"\")","v":""}]
[null,null,null,null,null,null,null,null,null,null,{"$f":"IF('Maintenance Task Assignments'!B685<>\"\", 'Maintenance Task Assignments'!B685,\"\")","v":""}]
[null,null,null,null,null,null,null,null,null,null,{"$f":"IF('Maintenance Task Assignments'!B686<>\"\", 'Maintenance Task Assignments'!B686,\"\")","v":""}]
[null,null,null,null,null,null,null,null,null,null,{"$f":"IF('Maintenance Task Assignments'!B687<>\"\", 'Maintenance Task Assignments'!B687,\"\")","v":""}]
[null,null,null,null,null,null,null,null,null,null,{"$f":"IF('Maintenance Task Assignments'!B688<>\"\", 'Maintenance Task Assignments'!B688,\"\")","v":""}]
[null,null,null,null,null,null,null,null,null,null,{"$f":"IF('Maintenance Task Assignments'!B689<>\"\", 'Maintenance Task Assignments'!B689,\"\")","v":""}]
[null,null,null,null,null,null,null,null,null,null,{"$f":"IF('Maintenance Task Assignments'!B690<>\"\", 'Maintenance Task Assignments'!B690,\"\")","v":""}]
[null,null,null,null,null,null,null,null,null,null,{"$f":"IF('Maintenance Task Assignments'!B691<>\"\", 'Maintenance Task Assignments'!B691,\"\")","v":""}]
[null,null,null,null,null,null,null,null,null,null,{"$f":"IF('Maintenance Task Assignments'!B692<>\"\", 'Maintenance Task Assignments'!B692,\"\")","v":""}]
[null,null,null,null,null,null,null,null,null,null,{"$f":"IF('Maintenance Task Assignments'!B693<>\"\", 'Maintenance Task Assignments'!B693,\"\")","v":""}]
[null,null,null,null,null,null,null,null,null,null,{"$f":"IF('Maintenance Task Assignments'!B694<>\"\", 'Maintenance Task Assignments'!B694,\"\")","v":""}]
[null,null,null,null,null,null,null,null,null,null,{"$f":"IF('Maintenance Task Assignments'!B695<>\"\", 'Maintenance Task Assignments'!B695,\"\")","v":""}]
[null,null,null,null,null,null,null,null,null,null,{"$f":"IF('Maintenance Task Assignments'!B696<>\"\", 'Maintenance Task Assignments'!B696,\"\")","v":""}]
[null,null,null,null,null,null,null,null,null,null,{"$f":"IF('Maintenance Task Assignments'!B697<>\"\", 'Maintenance Task Assignments'!B697,\"\")","v":""}]
[null,null,null,null,null,null,null,null,null,null,{"$f":"IF('Maintenance Task Assignments'!B698<>\"\", 'Maintenance Task Assignments'!B698,\"\")","v":""}]
[null,null,null,null,null,null,null,null,null,null,{"$f":"IF('Maintenance Task Assignments'!B699<>\"\", 'Maintenance Task Assignments'!B699,\"\")","v":""}]
[null,null,null,null,null,null,null,null,null,null,{"$f":"IF('Maintenance Task Assignments'!B700<>\"\", 'Maintenance Task Assignments'!B700,\"\")","v":""}]
[null,null,null,null,null,null,null,null,null,null,{"$f":"IF('Maintenance Task Assignments'!B701<>\"\", 'Maintenance Task Assignments'!B701,\"\")","v":""}]
[null,null,null,null,null,null,null,null,null,null,{"$f":"IF('Maintenance Task Assignments'!B702<>\"\", 'Maintenance Task Assignments'!B702,\"\")","v":""}]
[null,null,null,null,null,null,null,null,null,null,{"$f":"IF('Maintenance Task Assignments'!B703<>\"\", 'Maintenance Task Assignments'!B703,\"\")","v":""}]
[null,null,null,null,null,null,null,null,null,null,{"$f":"IF('Maintenance Task Assignments'!B704<>\"\", 'Maintenance Task Assignments'!B704,\"\")","v":""}]
[null,null,null,null,null,null,null,null,null,null,{"$f":"IF('Maintenance Task Assignments'!B705<>\"\", 'Maintenance Task Assignments'!B705,\"\")","v":""}]
[null,null,null,null,null,null,null,null,null,null,{"$f":"IF('Maintenance Task Assignments'!B706<>\"\", 'Maintenance Task Assignments'!B706,\"\")","v":""}]
[null,null,null,null,null,null,null,null,null,null,{"$f":"IF('Maintenance Task Assignments'!B707<>\"\", 'Maintenance Task Assignments'!B707,\"\")","v":""}]
[null,null,null,null,null,null,null,null,null,null,{"$f":"IF('Maintenance Task Assignments'!B708<>\"\", 'Maintenance Task Assignments'!B708,\"\")","v":""}]
[null,null,null,null,null,null,null,null,null,null,{"$f":"IF('Maintenance Task Assignments'!B709<>\"\", 'Maintenance Task Assignments'!B709,\"\")","v":""}]
[null,null,null,null,null,null,null,null,null,null,{"$f":"IF('Maintenance Task Assignments'!B710<>\"\", 'Maintenance Task Assignments'!B710,\"\")","v":""}]
[null,null,null,null,null,null,null,null,null,null,{"$f":"IF('Maintenance Task Assignments'!B711<>\"\", 'Maintenance Task Assignments'!B711,\"\")","v":""}]
[null,null,null,null,null,null,null,null,null,null,{"$f":"IF('Maintenance Task Assignments'!B712<>\"\", 'Maintenance Task Assignments'!B712,\"\")","v":""}]
[null,null,null,null,null,null,null,null,null,null,{"$f":"IF('Maintenance Task Assignments'!B713<>\"\", 'Maintenance Task Assignments'!B713,\"\")","v":""}]
[null,null,null,null,null,null,null,null,null,null,{"$f":"IF('Maintenance Task Assignments'!B714<>\"\", 'Maintenance Task Assignments'!B714,\"\")","v":""}]
[null,null,null,null,null,null,null,null,null,null,{"$f":"IF('Maintenance Task Assignments'!B715<>\"\", 'Maintenance Task Assignments'!B715,\"\")","v":""}]
[null,null,null,null,null,null,null,null,null,null,{"$f":"IF('Maintenance Task Assignments'!B716<>\"\", 'Maintenance Task Assignments'!B716,\"\")","v":""}]
[null,null,null,null,null,null,null,null,null,null,{"$f":"IF('Maintenance Task Assignments'!B717<>\"\", 'Maintenance Task Assignments'!B717,\"\")","v":""}]
[null,null,null,null,null,null,null,null,null,null,{"$f":"IF('Maintenance Task Assignments'!B718<>\"\", 'Maintenance Task Assignments'!B718,\"\")","v":""}]
[null,null,null,null,null,null,null,null,null,null,{"$f":"IF('Maintenance Task Assignments'!B719<>\"\", 'Maintenance Task Assignments'!B719,\"\")","v":""}]
[null,null,null,null,null,null,null,null,null,null,{"$f":"IF('Maintenance Task Assignments'!B720<>\"\", 'Maintenance Task Assignments'!B720,\"\")","v":""}]
[null,null,null,null,null,null,null,null,null,null,{"$f":"IF('Maintenance Task Assignments'!B721<>\"\", 'Maintenance Task Assignments'!B721,\"\")","v":""}]
[null,null,null,null,null,null,null,null,null,null,{"$f":"IF('Maintenance Task Assignments'!B722<>\"\", 'Maintenance Task Assignments'!B722,\"\")","v":""}]
[null,null,null,null,null,null,null,null,null,null,{"$f":"IF('Maintenance Task Assignments'!B723<>\"\", 'Maintenance Task Assignments'!B723,\"\")","v":""}]
[null,null,null,null,null,null,null,null,null,null,{"$f":"IF('Maintenance Task Assignments'!B724<>\"\", 'Maintenance Task Assignments'!B724,\"\")","v":""}]
[null,null,null,null,null,null,null,null,null,null,{"$f":"IF('Maintenance Task Assignments'!B725<>\"\", 'Maintenance Task Assignments'!B725,\"\")","v":""}]
[null,null,null,null,null,null,null,null,null,null,{"$f":"IF('Maintenance Task Assignments'!B726<>\"\", 'Maintenance Task Assignments'!B726,\"\")","v":""}]
[null,null,null,null,null,null,null,null,null,null,{"$f":"IF('Maintenance Task Assignments'!B727<>\"\", 'Maintenance Task Assignments'!B727,\"\")","v":""}]
[null,null,null,null,null,null,null,null,null,null,{"$f":"IF('Maintenance Task Assignments'!B728<>\"\", 'Maintenance Task Assignments'!B728,\"\")","v":""}]
[null,null,null,null,null,null,null,null,null,null,{"$f":"IF('Maintenance Task Assignments'!B729<>\"\", 'Maintenance Task Assignments'!B729,\"\")","v":""}]
[null,null,null,null,null,null,null,null,null,null,{"$f":"IF('Maintenance Task Assignments'!B730<>\"\", 'Maintenance Task Assignments'!B730,\"\")","v":""}]
[null,null,null,null,null,null,null,null,null,null,{"$f":"IF('Maintenance Task Assignments'!B731<>\"\", 'Maintenance Task Assignments'!B731,\"\")","v":""}]
[null,null,null,null,null,null,null,null,null,null,{"$f":"IF('Maintenance Task Assignments'!B732<>\"\", 'Maintenance Task Assignments'!B732,\"\")","v":""}]
[null,null,null,null,null,null,null,null,null,null,{"$f":"IF('Maintenance Task Assignments'!B733<>\"\", 'Maintenance Task Assignments'!B733,\"\")","v":""}]
[null,null,null,null,null,null,null,null,null,null,{"$f":"IF('Maintenance Task Assignments'!B734<>\"\", 'Maintenance Task Assignments'!B734,\"\")","v":""}]
[null,null,null,null,null,null,null,null,null,null,{"$f":"IF('Maintenance Task Assignments'!B735<>\"\", 'Maintenance Task Assignments'!B735,\"\")","v":""}]
[null,null,null,null,null,null,null,null,null,null,{"$f":"IF('Maintenance Task Assignments'!B736<>\"\", 'Maintenance Task Assignments'!B736,\"\")","v":""}]
[null,null,null,null,null,null,null,null,null,null,{"$f":"IF('Maintenance Task Assignments'!B737<>\"\", 'Maintenance Task Assignments'!B737,\"\")","v":""}]
[null,null,null,null,null,null,null,null,null,null,{"$f":"IF('Maintenance Task Assignments'!B738<>\"\", 'Maintenance Task Assignments'!B738,\"\")","v":""}]
[null,null,null,null,null,null,null,null,null,null,{"$f":"IF('Maintenance Task Assignments'!B739<>\"\", 'Maintenance Task Assignments'!B739,\"\")","v":""}]
[null,null,null,null,null,null,null,null,null,null,{"$f":"IF('Maintenance Task Assignments'!B740<>\"\", 'Maintenance Task Assignments'!B740,\"\")","v":""}]
[null,null,null,null,null,null,null,null,null,null,{"$f":"IF('Maintenance Task Assignments'!B741<>\"\", 'Maintenance Task Assignments'!B741,\"\")","v":""}]
[null,null,null,null,null,null,null,null,null,null,{"$f":"IF('Maintenance Task Assignments'!B742<>\"\", 'Maintenance Task Assignments'!B742,\"\")","v":""}]
[null,null,null,null,null,null,null,null,null,null,{"$f":"IF('Maintenance Task Assignments'!B743<>\"\", 'Maintenance Task Assignments'!B743,\"\")","v":""}]
[null,null,null,null,null,null,null,null,null,null,{"$f":"IF('Maintenance Task Assignments'!B744<>\"\", 'Maintenance Task Assignments'!B744,\"\")","v":""}]
[null,null,null,null,null,null,null,null,null,null,{"$f":"IF('Maintenance Task Assignments'!B745<>\"\", 'Maintenance Task Assignments'!B745,\"\")","v":""}]
[null,null,null,null,null,null,null,null,null,null,{"$f":"IF('Maintenance Task Assignments'!B746<>\"\", 'Maintenance Task Assignments'!B746,\"\")","v":""}]
[null,null,null,null,null,null,null,null,null,null,{"$f":"IF('Maintenance Task Assignments'!B747<>\"\", 'Maintenance Task Assignments'!B747,\"\")","v":""}]
[null,null,null,null,null,null,null,null,null,null,{"$f":"IF('Maintenance Task Assignments'!B748<>\"\", 'Maintenance Task Assignments'!B748,\"\")","v":""}]
[null,null,null,null,null,null,null,null,null,null,{"$f":"IF('Maintenance Task Assignments'!B749<>\"\", 'Maintenance Task Assignments'!B749,\"\")","v":""}]
[null,null,null,null,null,null,null,null,null,null,{"$f":"IF('Maintenance Task Assignments'!B750<>\"\", 'Maintenance Task Assignments'!B750,\"\")","v":""}]
[null,null,null,null,null,null,null,null,null,null,{"$f":"IF('Maintenance Task Assignments'!B751<>\"\", 'Maintenance Task Assignments'!B751,\"\")","v":""}]
[null,null,null,null,null,null,null,null,null,null,{"$f":"IF('Maintenance Task Assignments'!B752<>\"\", 'Maintenance Task Assignments'!B752,\"\")","v":""}]
[null,null,null,null,null,null,null,null,null,null,{"$f":"IF('Maintenance Task Assignments'!B753<>\"\", 'Maintenance Task Assignments'!B753,\"\")","v":""}]
[null,null,null,null,null,null,null,null,null,null,{"$f":"IF('Maintenance Task Assignments'!B754<>\"\", 'Maintenance Task Assignments'!B754,\"\")","v":""}]
[null,null,null,null,null,null,null,null,null,null,{"$f":"IF('Maintenance Task Assignments'!B755<>\"\", 'Maintenance Task Assignments'!B755,\"\")","v":""}]
[null,null,null,null,null,null,null,null,null,null,{"$f":"IF('Maintenance Task Assignments'!B756<>\"\", 'Maintenance Task Assignments'!B756,\"\")","v":""}]
[null,null,null,null,null,null,null,null,null,null,{"$f":"IF('Maintenance Task Assignments'!B757<>\"\", 'Maintenance Task Assignments'!B757,\"\")","v":""}]
[null,null,null,null,null,null,null,null,null,null,{"$f":"IF('Maintenance Task Assignments'!B758<>\"\", 'Maintenance Task Assignments'!B758,\"\")","v":""}]
[null,null,null,null,null,null,null,null,null,null,{"$f":"IF('Maintenance Task Assignments'!B759<>\"\", 'Maintenance Task Assignments'!B759,\"\")","v":""}]
[null,null,null,null,null,null,null,null,null,null,{"$f":"IF('Maintenance Task Assignments'!B760<>\"\", 'Maintenance Task Assignments'!B760,\"\")","v":""}]
[null,null,null,null,null,null,null,null,null,null,{"$f":"IF('Maintenance Task Assignments'!B761<>\"\", 'Maintenance Task Assignments'!B761,\"\")","v":""}]
[null,null,null,null,null,null,null,null,null,null,{"$f":"IF('Maintenance Task Assignments'!B762<>\"\", 'Maintenance Task Assignments'!B762,\"\")","v":""}]
[null,null,null,null,null,null,null,null,null,null,{"$f":"IF('Maintenance Task Assignments'!B763<>\"\", 'Maintenance Task Assignments'!B763,\"\")","v":""}]
[null,null,null,null,null,null,null,null,null,null,{"$f":"IF('Maintenance Task Assignments'!B764<>\"\", 'Maintenance Task Assignments'!B764,\"\")","v":""}]
[null,null,null,null,null,null,null,null,null,null,{"$f":"IF('Maintenance Task Assignments'!B765<>\"\", 'Maintenance Task Assignments'!B765,\"\")","v":""}]
[null,null,null,null,null,null,null,null,null,null,{"$f":"IF('Maintenance Task Assignments'!B766<>\"\", 'Maintenance Task Assignments'!B766,\"\")","v":""}]
[null,null,null,null,null,null,null,null,null,null,{"$f":"IF('Maintenance Task Assignments'!B767<>\"\", 'Maintenance Task Assignments'!B767,\"\")","v":""}]
[null,null,null,null,null,null,null,null,null,null,{"$f":"IF('Maintenance Task Assignments'!B768<>\"\", 'Maintenance Task Assignments'!B768,\"\")","v":""}]
[null,null,null,null,null,null,null,null,null,null,{"$f":"IF('Maintenance Task Assignments'!B769<>\"\", 'Maintenance Task Assignments'!B769,\"\")","v":""}]
[null,null,null,null,null,null,null,null,null,null,{"$f":"IF('Maintenance Task Assignments'!B770<>\"\", 'Maintenance Task Assignments'!B770,\"\")","v":""}]
[null,null,null,null,null,null,null,null,null,null,{"$f":"IF('Maintenance Task Assignments'!B771<>\"\", 'Maintenance Task Assignments'!B771,\"\")","v":""}]
[null,null,null,null,null,null,null,null,null,null,{"$f":"IF('Maintenance Task Assignments'!B772<>\"\", 'Maintenance Task Assignments'!B772,\"\")","v":""}]
[null,null,null,null,null,null,null,null,null,null,{"$f":"IF('Maintenance Task Assignments'!B773<>\"\", 'Maintenance Task Assignments'!B773,\"\")","v":""}]
[null,null,null,null,null,null,null,null,null,null,{"$f":"IF('Maintenance Task Assignments'!B774<>\"\", 'Maintenance Task Assignments'!B774,\"\")","v":""}]
[null,null,null,null,null,null,null,null,null,null,{"$f":"IF('Maintenance Task Assignments'!B775<>\"\", 'Maintenance Task Assignments'!B775,\"\")","v":""}]
[null,null,null,null,null,null,null,null,null,null,{"$f":"IF('Maintenance Task Assignments'!B776<>\"\", 'Maintenance Task Assignments'!B776,\"\")","v":""}]
[null,null,null,null,null,null,null,null,null,null,{"$f":"IF('Maintenance Task Assignments'!B777<>\"\", 'Maintenance Task Assignments'!B777,\"\")","v":""}]
[null,null,null,null,null,null,null,null,null,null,{"$f":"IF('Maintenance Task Assignments'!B778<>\"\", 'Maintenance Task Assignments'!B778,\"\")","v":""}]
[null,null,null,null,null,null,null,null,null,null,{"$f":"IF('Maintenance Task Assignments'!B779<>\"\", 'Maintenance Task Assignments'!B779,\"\")","v":""}]
[null,null,null,null,null,null,null,null,null,null,{"$f":"IF('Maintenance Task Assignments'!B780<>\"\", 'Maintenance Task Assignments'!B780,\"\")","v":""}]
[null,null,null,null,null,null,null,null,null,null,{"$f":"IF('Maintenance Task Assignments'!B781<>\"\", 'Maintenance Task Assignments'!B781,\"\")","v":""}]

{"sheet":"Sheet3","index":3,"n_rows":12,"n_cols":3,"rows_kept":12,"cut":false,"hidden":false,"merged":[]}
["Calculated Field"]
["Solve Order","Field","Formula"]
[]
["Calculated Item"]
["Solve Order","Item","Formula"]
[]
[]
["Note:","When a cell is updated by more than one formula,"]
[null,"the value is set by the formula with the last solve order."]
[]
[null,"To change the solve order for multiple calculated items or fields,"]
[null,"on the Options tab, in the Calculations group, click Fields, Items, & Sets, and then click Solve Order."]

{"sheet":"XTab Detail Task Schedule","index":4,"n_rows":31,"n_cols":7,"rows_kept":31,"cut":false,"hidden":false,"merged":[]}
["Task Manager","(All)",null,"May 2021"]
["Scheduled","Scheduled","2021 Task By Month"]
["Start Date","End Date","Date Completed","Completing Task Manager ","General Task","Scheduale Frequecy","Schedule Period"]
["2021-05-01","2021-05-28","(blank)","(blank)","T03 01-2021 Back Flow Preventer Test","Spring","May"]
["2021-05-01","2021-05-28","(blank)",null,"T04 05-2021 Banking ","Monthly","(blank)"]
["2021-05-01","2021-05-28","(blank)",null,"T05 05-2021 Bill Payments","Monthly","(blank)"]
["2021-05-01","2021-05-28","(blank)",null,"T09 05-2021 Carpet Cleaning","Bi-Monthly","Every Other Mo"]
["2021-05-01","2021-05-28","(blank)",null,"T18 05-2021 General Cleaning","Bi-Monthly","Every Other Mo"]
["2021-05-01","2021-05-28","(blank)",null,"T20 05-2021 Leaky Gutter Replacement","Monthly","May/June/July/August"]
["2021-05-01","2021-05-28","(blank)",null,"T21 05-2021 HOA Collection","Monthly","(blank)"]
["2021-05-01","2021-05-28","(blank)",null,"T34 01-2021 Roof Replacement Review","Annual","May"]
["2021-05-01","2021-05-28","(blank)",null,"T45 05-2021 Supply Management","Bi-Monthly","Every Other Mo"]
["2021-05-01","2021-05-28","(blank)",null,"T46 01-2021 Test Water System","Spring","May"]
["2021-05-01","2021-05-28","(blank)",null,"T50 01-2021 Turn On Irrigation Water","Spring","May"]
["2021-05-01","2021-05-28","(blank)",null,"T54 05-2021 Website Files Update - Monthly","Monthly","(blank)"]
["2021-05-01","2021-05-28","(blank)",null,"T63 05-2021 Send Email Task Reminders","Monthly","(blank)"]
["2021-05-03","2021-05-03","(blank)","(blank)","T23 18-2021 Library Management","Weekly","Monday"]
["2021-05-03","2021-05-03","(blank)",null,"T36 18-2021 Santizier Refill - Daily Check","Weekly","Monday"]
["2021-05-03","2021-05-03","(blank)",null,"T47 18-2021 Trash to Curb","Weekly","Monday"]
["2021-05-10","2021-05-10","(blank)","(blank)","T23 19-2021 Library Management","Weekly","Monday"]
["2021-05-10","2021-05-10","(blank)",null,"T36 19-2021 Santizier Refill - Daily Check","Weekly","Monday"]
["2021-05-10","2021-05-10","(blank)",null,"T47 19-2021 Trash to Curb","Weekly","Monday"]
["2021-05-17","2021-05-17","(blank)","(blank)","T23 20-2021 Library Management","Weekly","Monday"]
["2021-05-17","2021-05-17","(blank)",null,"T36 20-2021 Santizier Refill - Daily Check","Weekly","Monday"]
["2021-05-17","2021-05-17","(blank)",null,"T47 20-2021 Trash to Curb","Weekly","Monday"]
["2021-05-24","2021-05-24","(blank)","(blank)","T23 21-2021 Library Management","Weekly","Monday"]
["2021-05-24","2021-05-24","(blank)",null,"T36 21-2021 Santizier Refill - Daily Check","Weekly","Monday"]
["2021-05-24","2021-05-24","(blank)",null,"T47 21-2021 Trash to Curb","Weekly","Monday"]
["2021-05-31","2021-05-31","(blank)","(blank)","T23 22-2021 Library Management","Weekly","Monday"]
["2021-05-31","2021-05-31","(blank)",null,"T36 22-2021 Santizier Refill - Daily Check","Weekly","Monday"]
["2021-05-31","2021-05-31","(blank)",null,"T47 22-2021 Trash to Curb","Weekly","Monday"]

{"sheet":"Detail Task Schedule","index":5,"n_rows":354,"n_cols":21,"rows_kept":354,"cut":false,"hidden":false,"merged":[]}
["Scheduled Task","Schedule Season","Schedule Period","Scheduale Frequecy","Start Date","End Date","General Task","Date Completed","Completing Task Manager ","project.title","task.title","task.assignedTo:byUsername","task.assignedTo:byName","task.responsibility","task.status","task.notes","task.startDate","task.endDate","task.progress","Task ID","TaskManager.email"]
["T01 01-2021",null,"January","A/N","2021-01-01","2021-01-28","T01 01-2021 Activity Director",null,null,null,"Clubhouse","UnAssigned",null,1,null,null,null,null,null,null,"VACNCABoard@gmail.com"]
["T01 01-2021",null,"January","A/N","2021-01-01","2021-01-28","T01 01-2021 Activity Director",null,null,null,"Clubhouse","CherieT",null,2,null,null,null,null,null,null,false]
["T02 01-2021","Winter","December","Annual","2021-12-01","2021-12-28","T02 01-2021 Annual Review",null,null,null,"Management","EarlS",null,1,null,null,null,null,null,null,"ecsheneman@msn.com"]
["T03 01-2021","Spring","May","Spring","2021-05-01","2021-05-28","T03 01-2021 Back Flow Preventer Test",null,null,null,"Grounds","JimT",null,1,null,null,null,null,null,null,"jim@tragesser.net   "]
["T03 01-2021","Spring","May","Spring","2021-05-01","2021-05-28","T03 01-2021 Back Flow Preventer Test",null,null,null,"Grounds","DonW",null,2,null,null,null,null,null,null,true]
["T04 01-2021",null,null,"Monthly","2021-01-01","2021-01-28","T04 01-2021 Banking ",null,null,null,"Treasurer","EarlS",null,1,null,null,null,null,null,null,"ecsheneman@msn.com"]
["T04 01-2021",null,null,"Monthly","2021-01-01","2021-01-28","T04 01-2021 Banking ",null,null,null,"Treasurer","BeverlyB",null,2,null,null,null,null,null,null,false]
["T04 02-2021",null,null,"Monthly","2021-02-01","2021-02-28","T04 02-2021 Banking ",null,null,null,"Treasurer","EarlS",null,1,null,null,null,null,null,null,"ecsheneman@msn.com"]
["T04 02-2021",null,null,"Monthly","2021-02-01","2021-02-28","T04 02-2021 Banking ",null,null,null,"Treasurer","BeverlyB",null,2,null,null,null,null,null,null,false]
["T04 03-2021",null,null,"Monthly","2021-03-01","2021-03-28","T04 03-2021 Banking ",null,null,null,"Treasurer","EarlS",null,1,null,null,null,null,null,null,"ecsheneman@msn.com"]
["T04 03-2021",null,null,"Monthly","2021-03-01","2021-03-28","T04 03-2021 Banking ",null,null,null,"Treasurer","BeverlyB",null,2,null,null,null,null,null,null,false]
["T04 04-2021",null,null,"Monthly","2021-04-01","2021-04-28","T04 04-2021 Banking ",null,null,null,"Treasurer","EarlS",null,1,null,null,null,null,null,null,"ecsheneman@msn.com"]
["T04 04-2021",null,null,"Monthly","2021-04-01","2021-04-28","T04 04-2021 Banking ",null,null,null,"Treasurer","BeverlyB",null,2,null,null,null,null,null,null,false]
["T04 05-2021",null,null,"Monthly","2021-05-01","2021-05-28","T04 05-2021 Banking ",null,null,null,"Treasurer","EarlS",null,1,null,null,null,null,null,null,"ecsheneman@msn.com"]
["T04 05-2021",null,null,"Monthly","2021-05-01","2021-05-28","T04 05-2021 Banking ",null,null,null,"Treasurer","BeverlyB",null,2,null,null,null,null,null,null,false]
["T04 06-2021",null,null,"Monthly","2021-06-01","2021-06-28","T04 06-2021 Banking ",null,null,null,"Treasurer","EarlS",null,1,null,null,null,null,null,null,"ecsheneman@msn.com"]
["T04 06-2021",null,null,"Monthly","2021-06-01","2021-06-28","T04 06-2021 Banking ",null,null,null,"Treasurer","BeverlyB",null,2,null,null,null,null,null,null,false]
["T04 07-2021",null,null,"Monthly","2021-07-01","2021-07-28","T04 07-2021 Banking ",null,null,null,"Treasurer","EarlS",null,1,null,null,null,null,null,null,"ecsheneman@msn.com"]
["T04 07-2021",null,null,"Monthly","2021-07-01","2021-07-28","T04 07-2021 Banking ",null,null,null,"Treasurer","BeverlyB",null,2,null,null,null,null,null,null,false]
["T04 08-2021",null,null,"Monthly","2021-08-01","2021-08-28","T04 08-2021 Banking ",null,null,null,"Treasurer","EarlS",null,1,null,null,null,null,null,null,"ecsheneman@msn.com"]
["T04 08-2021",null,null,"Monthly","2021-08-01","2021-08-28","T04 08-2021 Banking ",null,null,null,"Treasurer","BeverlyB",null,2,null,null,null,null,null,null,false]
["T04 09-2021",null,null,"Monthly","2021-09-01","2021-09-28","T04 09-2021 Banking ",null,null,null,"Treasurer","EarlS",null,1,null,null,null,null,null,null,"ecsheneman@msn.com"]
["T04 09-2021",null,null,"Monthly","2021-09-01","2021-09-28","T04 09-2021 Banking ",null,null,null,"Treasurer","BeverlyB",null,2,null,null,null,null,null,null,false]
["T04 10-2021",null,null,"Monthly","2021-10-01","2021-10-28","T04 10-2021 Banking ",null,null,null,"Treasurer","EarlS",null,1,null,null,null,null,null,null,"ecsheneman@msn.com"]
["T04 10-2021",null,null,"Monthly","2021-10-01","2021-10-28","T04 10-2021 Banking ",null,null,null,"Treasurer","BeverlyB",null,2,null,null,null,null,null,null,false]
["T04 11-2021",null,null,"Monthly","2021-11-01","2021-11-28","T04 11-2021 Banking ",null,null,null,"Treasurer","EarlS",null,1,null,null,null,null,null,null,"ecsheneman@msn.com"]
["T04 11-2021",null,null,"Monthly","2021-11-01","2021-11-28","T04 11-2021 Banking ",null,null,null,"Treasurer","BeverlyB",null,2,null,null,null,null,null,null,false]
["T04 12-2021",null,null,"Monthly","2021-12-01","2021-12-28","T04 12-2021 Banking ",null,null,null,"Treasurer","EarlS",null,1,null,null,null,null,null,null,"ecsheneman@msn.com"]
["T04 12-2021",null,null,"Monthly","2021-12-01","2021-12-28","T04 12-2021 Banking ",null,null,null,"Treasurer","BeverlyB",null,2,null,null,null,null,null,null,false]
["T05 01-2021",null,null,"Monthly","2021-01-01","2021-01-28","T05 01-2021 Bill Payments",null,null,null,"Treasurer","EarlS",null,1,null,null,null,null,null,null,"ecsheneman@msn.com"]
["T05 02-2021",null,null,"Monthly","2021-02-01","2021-02-28","T05 02-2021 Bill Payments",null,null,null,"Treasurer","EarlS",null,1,null,null,null,null,null,null,"ecsheneman@msn.com"]
["T05 03-2021",null,null,"Monthly","2021-03-01","2021-03-28","T05 03-2021 Bill Payments",null,null,null,"Treasurer","EarlS",null,1,null,null,null,null,null,null,"ecsheneman@msn.com"]
["T05 04-2021",null,null,"Monthly","2021-04-01","2021-04-28","T05 04-2021 Bill Payments",null,null,null,"Treasurer","EarlS",null,1,null,null,null,null,null,null,"ecsheneman@msn.com"]
["T05 05-2021",null,null,"Monthly","2021-05-01","2021-05-28","T05 05-2021 Bill Payments",null,null,null,"Treasurer","EarlS",null,1,null,null,null,null,null,null,"ecsheneman@msn.com"]
["T05 06-2021",null,null,"Monthly","2021-06-01","2021-06-28","T05 06-2021 Bill Payments",null,null,null,"Treasurer","EarlS",null,1,null,null,null,null,null,null,"ecsheneman@msn.com"]
["T05 07-2021",null,null,"Monthly","2021-07-01","2021-07-28","T05 07-2021 Bill Payments",null,null,null,"Treasurer","EarlS",null,1,null,null,null,null,null,null,"ecsheneman@msn.com"]
["T05 08-2021",null,null,"Monthly","2021-08-01","2021-08-28","T05 08-2021 Bill Payments",null,null,null,"Treasurer","EarlS",null,1,null,null,null,null,null,null,"ecsheneman@msn.com"]
["T05 09-2021",null,null,"Monthly","2021-09-01","2021-09-28","T05 09-2021 Bill Payments",null,null,null,"Treasurer","EarlS",null,1,null,null,null,null,null,null,"ecsheneman@msn.com"]
["T05 10-2021",null,null,"Monthly","2021-10-01","2021-10-28","T05 10-2021 Bill Payments",null,null,null,"Treasurer","EarlS",null,1,null,null,null,null,null,null,"ecsheneman@msn.com"]
["T05 11-2021",null,null,"Monthly","2021-11-01","2021-11-28","T05 11-2021 Bill Payments",null,null,null,"Treasurer","EarlS",null,1,null,null,null,null,null,null,"ecsheneman@msn.com"]
["T05 12-2021",null,null,"Monthly","2021-12-01","2021-12-28","T05 12-2021 Bill Payments",null,null,null,"Treasurer","EarlS",null,1,null,null,null,null,null,null,"ecsheneman@msn.com"]
["T06 01-2021","Fall","October","Fall","2021-10-01","2021-10-28","T06 01-2021 Blow Out Irrigation System",null,null,null,"Grounds","JimT",null,1,null,null,null,null,null,null,"jim@tragesser.net   "]
["T06 01-2021","Fall","October","Fall","2021-10-01","2021-10-28","T06 01-2021 Blow Out Irrigation System",null,null,null,"Grounds","DonW",null,2,null,null,null,null,null,null,true]
["T07 01-2021","Fall","October","Annual","2021-10-01","2021-10-28","T07 01-2021 Budget",null,null,null,"Treasurer","EarlS",null,1,null,null,null,null,null,null,"ecsheneman@msn.com"]
["T07 01-2021","Fall","October","Annual","2021-10-01","2021-10-28","T07 01-2021 Budget",null,null,null,"Treasurer","Committee",null,2,null,null,null,null,null,null,true]
["T08 02-2021",null,"January/July","Bi-Annual","2021-01-01","2021-01-28","T08 02-2021 Calendar Setup/Printing",null,null,null,"InfoTech","PeteA",null,1,null,null,null,null,null,null,"optionzz@outlook.com"]
["T08 02-2021",null,"January/July","Bi-Annual","2021-07-01","2021-07-28","T09 Carpet Cleaning",null,null,null,"InfoTech","PeteA",null,1,null,null,null,null,null,null,"optionzz@outlook.com"]
["T09 01-2021",null,"Every Other Mo","Bi-Monthly","2021-01-01","2021-01-28","T09 01-2021 Carpet Cleaning",null,null,null,"Clubhouse","NettieP",null,1,null,null,null,null,null,null,"nettie.p@comcast.net"]
["T09 03-2021",null,"Every Other Mo","Bi-Monthly","2021-03-01","2021-03-28","T09 03-2021 Carpet Cleaning",null,null,null,"Clubhouse","NettieP",null,1,null,null,null,null,null,null,"nettie.p@comcast.net"]
["T09 05-2021",null,"Every Other Mo","Bi-Monthly","2021-05-01","2021-05-28","T09 05-2021 Carpet Cleaning",null,null,null,"Clubhouse","NettieP",null,1,null,null,null,null,null,null,"nettie.p@comcast.net"]
["T09 07-2021",null,"Every Other Mo","Bi-Monthly","2021-07-01","2021-07-28","T09 07-2021 Carpet Cleaning",null,null,null,"Clubhouse","NettieP",null,1,null,null,null,null,null,null,"nettie.p@comcast.net"]
["T09 09-2021",null,"Every Other Mo","Bi-Monthly","2021-09-01","2021-09-28","T09 09-2021 Carpet Cleaning",null,null,null,"Clubhouse","NettieP",null,1,null,null,null,null,null,null,"nettie.p@comcast.net"]
["T09 11-2021",null,"Every Other Mo","Bi-Monthly","2021-11-01","2021-11-28","T09 11-2021 Carpet Cleaning",null,null,null,"Clubhouse","NettieP",null,1,null,null,null,null,null,null,"nettie.p@comcast.net"]
["T10 01-2021",null,null,"A/N","2021-01-01","2021-01-28","T10 01-2021 CC&R's, By-laws & Rules & Regs",null,null,null,"Management","JoanneW",null,1,null,null,null,null,null,null,"jsw4804@gmail.com"]
["T10 01-2021",null,null,"A/N","2021-01-01","2021-01-28","T10 01-2021 CC&R's, By-laws & Rules & Regs",null,null,null,"Management","LindaS",null,2,null,null,null,null,null,null,false]
["T11 01-2021","Spring","March","A/N","2021-03-01","2021-03-28","T11 01-2021 Check Entrance Sign for Repainting",null,null,null,"Sitewide","BeverlyB",null,1,null,null,null,null,null,null,"searigg@comcast.net"]
["T11 01-2021","Spring","March","A/N","2021-03-01","2021-03-28","T11 01-2021 Check Entrance Sign for Repainting",null,null,null,"Sitewide","JoanneW",null,2,null,null,null,null,null,null,false]
["T13 01-2021",null,null,"A/N","2021-01-01","2021-01-28","T13 01-2021 Emergency Preparedness",null,null,null,"Units","LynnK",null,1,null,null,null,null,null,null,"l.kirlin@icloud.com"]
["T13 01-2021",null,null,"A/N","2021-01-01","2021-01-28","T13 01-2021 Emergency Preparedness",null,null,null,"Units","CherieT",null,2,null,null,null,null,null,null,true]
["T14 02-2021",null,"February/July","Bi-Annual","2021-02-01","2021-02-28","T14 02-2021 Fire Extinguisher Inspection",null,null,null,"Clubhouse","SheilaJ",null,1,null,null,null,null,null,null,"sheilajohansen47@gmail.com"]
["T14 02-2021",null,"February/July","Bi-Annual","2021-07-01","2021-07-28","T14 02-2021 Fire Extinguisher Inspection",null,null,null,"Clubhouse","SheilaJ",null,1,null,null,null,null,null,null,"sheilajohansen47@gmail.com"]
["T16 01-2021",null,null,"A/N","2021-01-01","2021-01-28","T16 01-2021 Garage Door Openers",null,null,null,"Units","CarlG",null,1,null,null,null,null,null,null,"grant_carl@hotmail.com"]
["T17 01-2021",null,null,"A/N","2021-01-01","2021-01-28","T17 01-2021 Garage Doors",null,null,null,"Units","CarlG",null,1,null,null,null,null,null,null,"grant_carl@hotmail.com"]
["T18 01-2021",null,"Every Other Mo","Bi-Monthly","2021-01-01","2021-01-28","T18 01-2021 General Cleaning",null,null,null,"Clubhouse","NettieP",null,1,null,null,null,null,null,null,"nettie.p@comcast.net"]
["T18 03-2021",null,"Every Other Mo","Bi-Monthly","2021-03-01","2021-03-28","T18 03-2021 General Cleaning",null,null,null,"Clubhouse","NettieP",null,1,null,null,null,null,null,null,"nettie.p@comcast.net"]
["T18 05-2021",null,"Every Other Mo","Bi-Monthly","2021-05-01","2021-05-28","T18 05-2021 General Cleaning",null,null,null,"Clubhouse","NettieP",null,1,null,null,null,null,null,null,"nettie.p@comcast.net"]
["T18 07-2021",null,"Every Other Mo","Bi-Monthly","2021-07-01","2021-07-28","T18 07-2021 General Cleaning",null,null,null,"Clubhouse","NettieP",null,1,null,null,null,null,null,null,"nettie.p@comcast.net"]
["T18 09-2021",null,"Every Other Mo","Bi-Monthly","2021-09-01","2021-09-28","T18 09-2021 General Cleaning",null,null,null,"Clubhouse","NettieP",null,1,null,null,null,null,null,null,"nettie.p@comcast.net"]
["T18 11-2021",null,"Every Other Mo","Bi-Monthly","2021-11-01","2021-11-28","T18 11-2021 General Cleaning",null,null,null,"Clubhouse","NettieP",null,1,null,null,null,null,null,null,"nettie.p@comcast.net"]
["T19 01-2021","Fall","November","Annual","2021-11-01","2021-11-28","T19 01-2021 Clean Gutters",null,null,null,"Units","JimT",null,1,null,null,null,null,null,null,"jim@tragesser.net   "]
["T19 01-2021","Fall","November","Annual","2021-11-01","2021-11-28","T19 01-2021 Clean Gutters",null,null,null,"Units","DonW",null,2,null,null,null,null,null,null,true]
["T20 05-2021",null,"May/June/July/August","Monthly","2021-05-01","2021-05-28","T20 05-2021 Leaky Gutter Replacement",null,null,null,"Units","BeverlyB",null,1,null,null,null,null,null,null,"searigg@comcast.net"]
["T20 05-2021",null,"May/June/July/August","Monthly","2021-05-01","2021-05-28","T20 05-2021 Leaky Gutter Replacement",null,null,null,"Units","DaleB",null,2,null,null,null,null,null,null,true]
["T20 06-2021",null,"May/June/July/August","Monthly","2021-06-01","2021-06-28","T20 06-2021 Leaky Gutter Replacement",null,null,null,"Units","BeverlyB",null,1,null,null,null,null,null,null,"searigg@comcast.net"]
["T20 06-2021",null,"May/June/July/August","Monthly","2021-06-01","2021-06-28","T20 06-2021 Leaky Gutter Replacement",null,null,null,"Units","DaleB",null,2,null,null,null,null,null,null,true]
["T20 07-2021",null,"May/June/July/August","Monthly","2021-07-01","2021-07-28","T20 07-2021 Leaky Gutter Replacement",null,null,null,"Units","BeverlyB",null,1,null,null,null,null,null,null,"searigg@comcast.net"]
["T20 07-2021",null,"May/June/July/August","Monthly","2021-07-01","2021-07-28","T20 07-2021 Leaky Gutter Replacement",null,null,null,"Units","DaleB",null,2,null,null,null,null,null,null,true]
["T20 08-2021",null,"May/June/July/August","Monthly","2021-08-01","2021-08-28","T20 08-2021 Leaky Gutter Replacement",null,null,null,"Units","BeverlyB",null,1,null,null,null,null,null,null,"searigg@comcast.net"]
["T20 08-2021",null,"May/June/July/August","Monthly","2021-08-01","2021-08-28","T20 08-2021 Leaky Gutter Replacement",null,null,null,"Units","DaleB",null,2,null,null,null,null,null,null,true]
["T21 01-2021",null,null,"Monthly","2021-01-01","2021-01-28","T21 01-2021 HOA Collection",null,null,null,"Treasurer","EarlS",null,1,null,null,null,null,null,null,"ecsheneman@msn.com"]
["T21 01-2021",null,null,"Monthly","2021-01-01","2021-01-28","T21 01-2021 HOA Collection",null,null,null,"Treasurer","BeverlyB",null,2,null,null,null,null,null,null,false]
["T21 02-2021",null,null,"Monthly","2021-02-01","2021-02-28","T21 02-2021 HOA Collection",null,null,null,"Treasurer","EarlS",null,1,null,null,null,null,null,null,"ecsheneman@msn.com"]
["T21 02-2021",null,null,"Monthly","2021-02-01","2021-02-28","T21 02-2021 HOA Collection",null,null,null,"Treasurer","BeverlyB",null,2,null,null,null,null,null,null,false]
["T21 03-2021",null,null,"Monthly","2021-03-01","2021-03-28","T21 03-2021 HOA Collection",null,null,null,"Treasurer","EarlS",null,1,null,null,null,null,null,null,"ecsheneman@msn.com"]
["T21 03-2021",null,null,"Monthly","2021-03-01","2021-03-28","T21 03-2021 HOA Collection",null,null,null,"Treasurer","BeverlyB",null,2,null,null,null,null,null,null,false]
["T21 04-2021",null,null,"Monthly","2021-04-01","2021-04-28","T21 04-2021 HOA Collection",null,null,null,"Treasurer","EarlS",null,1,null,null,null,null,null,null,"ecsheneman@msn.com"]
["T21 04-2021",null,null,"Monthly","2021-04-01","2021-04-28","T21 04-2021 HOA Collection",null,null,null,"Treasurer","BeverlyB",null,2,null,null,null,null,null,null,false]
["T21 05-2021",null,null,"Monthly","2021-05-01","2021-05-28","T21 05-2021 HOA Collection",null,null,null,"Treasurer","EarlS",null,1,null,null,null,null,null,null,"ecsheneman@msn.com"]
["T21 05-2021",null,null,"Monthly","2021-05-01","2021-05-28","T21 05-2021 HOA Collection",null,null,null,"Treasurer","BeverlyB",null,2,null,null,null,null,null,null,false]
["T21 06-2021",null,null,"Monthly","2021-06-01","2021-06-28","T21 06-2021 HOA Collection",null,null,null,"Treasurer","EarlS",null,1,null,null,null,null,null,null,"ecsheneman@msn.com"]
["T21 06-2021",null,null,"Monthly","2021-06-01","2021-06-28","T21 06-2021 HOA Collection",null,null,null,"Treasurer","BeverlyB",null,2,null,null,null,null,null,null,false]
["T21 07-2021",null,null,"Monthly","2021-07-01","2021-07-28","T21 07-2021 HOA Collection",null,null,null,"Treasurer","EarlS",null,1,null,null,null,null,null,null,"ecsheneman@msn.com"]
["T21 07-2021",null,null,"Monthly","2021-07-01","2021-07-28","T21 07-2021 HOA Collection",null,null,null,"Treasurer","BeverlyB",null,2,null,null,null,null,null,null,false]
["T21 08-2021",null,null,"Monthly","2021-08-01","2021-08-28","T21 08-2021 HOA Collection",null,null,null,"Treasurer","EarlS",null,1,null,null,null,null,null,null,"ecsheneman@msn.com"]
["T21 08-2021",null,null,"Monthly","2021-08-01","2021-08-28","T21 08-2021 HOA Collection",null,null,null,"Treasurer","BeverlyB",null,2,null,null,null,null,null,null,false]
["T21 09-2021",null,null,"Monthly","2021-09-01","2021-09-28","T21 09-2021 HOA Collection",null,null,null,"Treasurer","EarlS",null,1,null,null,null,null,null,null,"ecsheneman@msn.com"]
["T21 09-2021",null,null,"Monthly","2021-09-01","2021-09-28","T21 09-2021 HOA Collection",null,null,null,"Treasurer","BeverlyB",null,2,null,null,null,null,null,null,false]
["T21 10-2021",null,null,"Monthly","2021-10-01","2021-10-28","T21 10-2021 HOA Collection",null,null,null,"Treasurer","EarlS",null,1,null,null,null,null,null,null,"ecsheneman@msn.com"]
["T21 10-2021",null,null,"Monthly","2021-10-01","2021-10-28","T21 10-2021 HOA Collection",null,null,null,"Treasurer","BeverlyB",null,2,null,null,null,null,null,null,false]
["T21 11-2021",null,null,"Monthly","2021-11-01","2021-11-28","T21 11-2021 HOA Collection",null,null,null,"Treasurer","EarlS",null,1,null,null,null,null,null,null,"ecsheneman@msn.com"]
["T21 11-2021",null,null,"Monthly","2021-11-01","2021-11-28","T21 11-2021 HOA Collection",null,null,null,"Treasurer","BeverlyB",null,2,null,null,null,null,null,null,false]
["T21 12-2021",null,null,"Monthly","2021-12-01","2021-12-28","T21 12-2021 HOA Collection",null,null,null,"Treasurer","EarlS",null,1,null,null,null,null,null,null,"ecsheneman@msn.com"]
["T21 12-2021",null,null,"Monthly","2021-12-01","2021-12-28","T21 12-2021 HOA Collection",null,null,null,"Treasurer","BeverlyB",null,2,null,null,null,null,null,null,false]
["T22 01-2021",null,null,"A/N","2021-01-01","2021-01-28","T22 01-2021 Landscaping Work Orders",null,null,null,"Grounds","JimT",null,1,null,null,null,null,null,null,"jim@tragesser.net   "]
["T22 01-2021",null,null,"A/N","2021-01-01","2021-01-28","T22 01-2021 Landscaping Work Orders",null,null,null,"Grounds","DonW",null,2,null,null,null,null,null,null,true]
["T23 01-2021",null,"Monday","Weekly","2021-01-04","2021-01-04","T23 01-2021 Library Management",null,null,null,"Clubhouse","SheilaJ",null,1,null,null,null,null,null,null,"sheilajohansen47@gmail.com"]
["T23 02-2021",null,"Monday","Weekly","2021-01-11","2021-01-11","T23 02-2021 Library Management",null,null,null,"Clubhouse","SheilaJ",null,1,null,null,null,null,null,null,"sheilajohansen47@gmail.com"]
["T23 03-2021",null,"Monday","Weekly","2021-01-18","2021-01-18","T23 03-2021 Library Management",null,null,null,"Clubhouse","SheilaJ",null,1,null,null,null,null,null,null,"sheilajohansen47@gmail.com"]
["T23 04-2021",null,"Monday","Weekly","2021-01-25","2021-01-25","T23 04-2021 Library Management",null,null,null,"Clubhouse","SheilaJ",null,1,null,null,null,null,null,null,"sheilajohansen47@gmail.com"]
["T23 05-2021",null,"Monday","Weekly","2021-02-01","2021-02-01","T23 05-2021 Library Management",null,null,null,"Clubhouse","SheilaJ",null,1,null,null,null,null,null,null,"sheilajohansen47@gmail.com"]
["T23 06-2021",null,"Monday","Weekly","2021-02-08","2021-02-08","T23 06-2021 Library Management",null,null,null,"Clubhouse","SheilaJ",null,1,null,null,null,null,null,null,"sheilajohansen47@gmail.com"]
["T23 07-2021",null,"Monday","Weekly","2021-02-15","2021-02-15","T23 07-2021 Library Management",null,null,null,"Clubhouse","SheilaJ",null,1,null,null,null,null,null,null,"sheilajohansen47@gmail.com"]
["T23 08-2021",null,"Monday","Weekly","2021-02-22","2021-02-22","T23 08-2021 Library Management",null,null,null,"Clubhouse","SheilaJ",null,1,null,null,null,null,null,null,"sheilajohansen47@gmail.com"]
["T23 09-2021",null,"Monday","Weekly","2021-03-01","2021-03-01","T23 09-2021 Library Management",null,null,null,"Clubhouse","SheilaJ",null,1,null,null,null,null,null,null,"sheilajohansen47@gmail.com"]
["T23 10-2021",null,"Monday","Weekly","2021-03-08","2021-03-08","T23 10-2021 Library Management",null,null,null,"Clubhouse","SheilaJ",null,1,null,null,null,null,null,null,"sheilajohansen47@gmail.com"]
["T23 11-2021",null,"Monday","Weekly","2021-03-15","2021-03-15","T23 11-2021 Library Management",null,null,null,"Clubhouse","SheilaJ",null,1,null,null,null,null,null,null,"sheilajohansen47@gmail.com"]
["T23 12-2021",null,"Monday","Weekly","2021-03-22","2021-03-22","T23 12-2021 Library Management",null,null,null,"Clubhouse","SheilaJ",null,1,null,null,null,null,null,null,"sheilajohansen47@gmail.com"]
["T23 13-2021",null,"Monday","Weekly","2021-03-29","2021-03-29","T23 13-2021 Library Management",null,null,null,"Clubhouse","SheilaJ",null,1,null,null,null,null,null,null,"sheilajohansen47@gmail.com"]
["T23 14-2021",null,"Monday","Weekly","2021-04-05","2021-04-05","T23 14-2021 Library Management",null,null,null,"Clubhouse","SheilaJ",null,1,null,null,null,null,null,null,"sheilajohansen47@gmail.com"]
["T23 15-2021",null,"Monday","Weekly","2021-04-12","2021-04-12","T23 15-2021 Library Management",null,null,null,"Clubhouse","SheilaJ",null,1,null,null,null,null,null,null,"sheilajohansen47@gmail.com"]
["T23 16-2021",null,"Monday","Weekly","2021-04-19","2021-04-19","T23 16-2021 Library Management",null,null,null,"Clubhouse","SheilaJ",null,1,null,null,null,null,null,null,"sheilajohansen47@gmail.com"]
["T23 17-2021",null,"Monday","Weekly","2021-04-26","2021-04-26","T23 17-2021 Library Management",null,null,null,"Clubhouse","SheilaJ",null,1,null,null,null,null,null,null,"sheilajohansen47@gmail.com"]
["T23 18-2021",null,"Monday","Weekly","2021-05-03","2021-05-03","T23 18-2021 Library Management",null,null,null,"Clubhouse","SheilaJ",null,1,null,null,null,null,null,null,"sheilajohansen47@gmail.com"]
["T23 19-2021",null,"Monday","Weekly","2021-05-10","2021-05-10","T23 19-2021 Library Management",null,null,null,"Clubhouse","SheilaJ",null,1,null,null,null,null,null,null,"sheilajohansen47@gmail.com"]
["T23 20-2021",null,"Monday","Weekly","2021-05-17","2021-05-17","T23 20-2021 Library Management",null,null,null,"Clubhouse","SheilaJ",null,1,null,null,null,null,null,null,"sheilajohansen47@gmail.com"]
["T23 21-2021",null,"Monday","Weekly","2021-05-24","2021-05-24","T23 21-2021 Library Management",null,null,null,"Clubhouse","SheilaJ",null,1,null,null,null,null,null,null,"sheilajohansen47@gmail.com"]
["T23 22-2021",null,"Monday","Weekly","2021-05-31","2021-05-31","T23 22-2021 Library Management",null,null,null,"Clubhouse","SheilaJ",null,1,null,null,null,null,null,null,"sheilajohansen47@gmail.com"]
["T23 23-2021",null,"Monday","Weekly","2021-06-07","2021-06-07","T23 23-2021 Library Management",null,null,null,"Clubhouse","SheilaJ",null,1,null,null,null,null,null,null,"sheilajohansen47@gmail.com"]
["T23 24-2021",null,"Monday","Weekly","2021-06-14","2021-06-14","T23 24-2021 Library Management",null,null,null,"Clubhouse","SheilaJ",null,1,null,null,null,null,null,null,"sheilajohansen47@gmail.com"]
["T23 25-2021",null,"Monday","Weekly","2021-06-21","2021-06-21","T23 25-2021 Library Management",null,null,null,"Clubhouse","SheilaJ",null,1,null,null,null,null,null,null,"sheilajohansen47@gmail.com"]
["T23 26-2021",null,"Monday","Weekly","2021-06-28","2021-06-28","T23 26-2021 Library Management",null,null,null,"Clubhouse","SheilaJ",null,1,null,null,null,null,null,null,"sheilajohansen47@gmail.com"]
["T23 27-2021",null,"Monday","Weekly","2021-07-05","2021-07-05","T23 27-2021 Library Management",null,null,null,"Clubhouse","SheilaJ",null,1,null,null,null,null,null,null,"sheilajohansen47@gmail.com"]
["T23 28-2021",null,"Monday","Weekly","2021-07-12","2021-07-12","T23 28-2021 Library Management",null,null,null,"Clubhouse","SheilaJ",null,1,null,null,null,null,null,null,"sheilajohansen47@gmail.com"]
["T23 29-2021",null,"Monday","Weekly","2021-07-19","2021-07-19","T23 29-2021 Library Management",null,null,null,"Clubhouse","SheilaJ",null,1,null,null,null,null,null,null,"sheilajohansen47@gmail.com"]
["T23 30-2021",null,"Monday","Weekly","2021-07-26","2021-07-26","T23 30-2021 Library Management",null,null,null,"Clubhouse","SheilaJ",null,1,null,null,null,null,null,null,"sheilajohansen47@gmail.com"]
["T23 31-2021",null,"Monday","Weekly","2021-08-02","2021-08-02","T23 31-2021 Library Management",null,null,null,"Clubhouse","SheilaJ",null,1,null,null,null,null,null,null,"sheilajohansen47@gmail.com"]
["T23 32-2021",null,"Monday","Weekly","2021-08-09","2021-08-09","T23 32-2021 Library Management",null,null,null,"Clubhouse","SheilaJ",null,1,null,null,null,null,null,null,"sheilajohansen47@gmail.com"]
["T23 33-2021",null,"Monday","Weekly","2021-08-16","2021-08-16","T23 33-2021 Library Management",null,null,null,"Clubhouse","SheilaJ",null,1,null,null,null,null,null,null,"sheilajohansen47@gmail.com"]
["T23 34-2021",null,"Monday","Weekly","2021-08-23","2021-08-23","T23 34-2021 Library Management",null,null,null,"Clubhouse","SheilaJ",null,1,null,null,null,null,null,null,"sheilajohansen47@gmail.com"]
["T23 35-2021",null,"Monday","Weekly","2021-08-30","2021-08-30","T23 35-2021 Library Management",null,null,null,"Clubhouse","SheilaJ",null,1,null,null,null,null,null,null,"sheilajohansen47@gmail.com"]
["T23 36-2021",null,"Monday","Weekly","2021-09-06","2021-09-06","T23 36-2021 Library Management",null,null,null,"Clubhouse","SheilaJ",null,1,null,null,null,null,null,null,"sheilajohansen47@gmail.com"]
["T23 37-2021",null,"Monday","Weekly","2021-09-13","2021-09-13","T23 37-2021 Library Management",null,null,null,"Clubhouse","SheilaJ",null,1,null,null,null,null,null,null,"sheilajohansen47@gmail.com"]
["T23 38-2021",null,"Monday","Weekly","2021-09-20","2021-09-20","T23 38-2021 Library Management",null,null,null,"Clubhouse","SheilaJ",null,1,null,null,null,null,null,null,"sheilajohansen47@gmail.com"]
["T23 39-2021",null,"Monday","Weekly","2021-09-27","2021-09-27","T23 39-2021 Library Management",null,null,null,"Clubhouse","SheilaJ",null,1,null,null,null,null,null,null,"sheilajohansen47@gmail.com"]
["T23 40-2021",null,"Monday","Weekly","2021-10-04","2021-10-04","T23 40-2021 Library Management",null,null,null,"Clubhouse","SheilaJ",null,1,null,null,null,null,null,null,"sheilajohansen47@gmail.com"]
["T23 41-2021",null,"Monday","Weekly","2021-10-11","2021-10-11","T23 41-2021 Library Management",null,null,null,"Clubhouse","SheilaJ",null,1,null,null,null,null,null,null,"sheilajohansen47@gmail.com"]
["T23 42-2021",null,"Monday","Weekly","2021-10-18","2021-10-18","T23 42-2021 Library Management",null,null,null,"Clubhouse","SheilaJ",null,1,null,null,null,null,null,null,"sheilajohansen47@gmail.com"]
["T23 43-2021",null,"Monday","Weekly","2021-10-25","2021-10-25","T23 43-2021 Library Management",null,null,null,"Clubhouse","SheilaJ",null,1,null,null,null,null,null,null,"sheilajohansen47@gmail.com"]
["T23 44-2021",null,"Monday","Weekly","2021-11-01","2021-11-01","T23 44-2021 Library Management",null,null,null,"Clubhouse","SheilaJ",null,1,null,null,null,null,null,null,"sheilajohansen47@gmail.com"]
["T23 45-2021",null,"Monday","Weekly","2021-11-08","2021-11-08","T23 45-2021 Library Management",null,null,null,"Clubhouse","SheilaJ",null,1,null,null,null,null,null,null,"sheilajohansen47@gmail.com"]
["T23 46-2021",null,"Monday","Weekly","2021-11-15","2021-11-15","T23 46-2021 Library Management",null,null,null,"Clubhouse","SheilaJ",null,1,null,null,null,null,null,null,"sheilajohansen47@gmail.com"]
["T23 47-2021",null,"Monday","Weekly","2021-11-22","2021-11-22","T23 47-2021 Library Management",null,null,null,"Clubhouse","SheilaJ",null,1,null,null,null,null,null,null,"sheilajohansen47@gmail.com"]
["T23 48-2021",null,"Monday","Weekly","2021-11-29","2021-11-29","T23 48-2021 Library Management",null,null,null,"Clubhouse","SheilaJ",null,1,null,null,null,null,null,null,"sheilajohansen47@gmail.com"]
["T23 49-2021",null,"Monday","Weekly","2021-12-06","2021-12-06","T23 49-2021 Library Management",null,null,null,"Clubhouse","SheilaJ",null,1,null,null,null,null,null,null,"sheilajohansen47@gmail.com"]
["T23 50-2021",null,"Monday","Weekly","2021-12-13","2021-12-13","T23 50-2021 Library Management",null,null,null,"Clubhouse","SheilaJ",null,1,null,null,null,null,null,null,"sheilajohansen47@gmail.com"]
["T23 51-2021",null,"Monday","Weekly","2021-12-20","2021-12-20","T23 51-2021 Library Management",null,null,null,"Clubhouse","SheilaJ",null,1,null,null,null,null,null,null,"sheilajohansen47@gmail.com"]
["T23 52-2021",null,"Monday","Weekly","2021-12-27","2021-12-27","T23 52-2021 Library Management",null,null,null,"Clubhouse","SheilaJ",null,1,null,null,null,null,null,null,"sheilajohansen47@gmail.com"]
["T24 01-2021","Fall","October","Fall","2021-10-27","2021-10-27","T24 01-2021 Moss Check - Patios Curbs Sidewalks",null,null,null,"Sitewide","JimT",null,1,null,null,null,null,null,null,"jim@tragesser.net   "]
["T25 01-2021",null,null,"A/N","2021-01-01","2021-01-28","T25 01-2021 Outside Lights and Fixtures",null,null,null,"Units","BeverlyB",null,1,null,null,null,null,null,null,"searigg@comcast.net"]
["T25 01-2021",null,null,"A/N","2021-01-01","2021-01-28","T25 01-2021 Outside Lights and Fixtures",null,null,null,"Units","RonR",null,2,null,null,null,null,null,null,false]
["T26 02-2021","Spring/Fall","April/October","Bi-Annual","2021-04-01","2021-04-28","T26 02-2021 Outside Water Faucets",null,null,null,"Sitewide","JimT",null,1,null,null,null,null,null,null,"jim@tragesser.net   "]
["T26 02-2021","Spring/Fall","April/October","Bi-Annual","2021-04-01","2021-04-28","T26 02-2021 Outside Water Faucets",null,null,null,"Sitewide","DonW",null,2,null,null,null,null,null,null,true]
["T26 02-2021","Spring/Fall","April/October","Bi-Annual","2021-10-01","2021-10-28","T26 02-2021 Outside Water Faucets",null,null,null,"Sitewide","JimT",null,1,null,null,null,null,null,null,"jim@tragesser.net   "]
["T26 02-2021","Spring/Fall","April/October","Bi-Annual","2021-10-01","2021-10-28","T26 02-2021 Outside Water Faucets",null,null,null,"Sitewide","DonW",null,2,null,null,null,null,null,null,true]
["T27 02-2021",null,"February/July","Bi-Annual","2021-02-01","2021-02-28","T27 02-2021 Schecule Unit Painting ",null,null,null,"Units","BeverlyB",null,1,null,null,null,null,null,null,"searigg@comcast.net"]
["T27 02-2021",null,"February/July","Bi-Annual","2021-02-01","2021-02-28","T27 02-2021 Schecule Unit Painting ",null,null,null,"Units","JoanneW",null,2,null,null,null,null,null,null,false]
["T27 02-2021",null,"February/July","Bi-Annual","2021-07-01","2021-07-28","T27 02-2021 Schecule Unit Painting ",null,null,null,"Units","BeverlyB",null,1,null,null,null,null,null,null,"searigg@comcast.net"]
["T27 02-2021",null,"February/July","Bi-Annual","2021-07-01","2021-07-28","T27 02-2021 Schecule Unit Painting ",null,null,null,"Units","JoanneW",null,2,null,null,null,null,null,null,false]
["T28 01-2021",null,null,"A/N","2021-01-01","2021-01-28","T28 01-2021 Pest Control Work Orders",null,null,null,"Sitewide","BeverlyB",null,1,null,null,null,null,null,null,"searigg@comcast.net"]
["T28 01-2021",null,null,"A/N","2021-01-01","2021-01-28","T28 01-2021 Pest Control Work Orders",null,null,null,"Sitewide","DaleB",null,2,null,null,null,null,null,null,true]
["T29 01-2021","Winter","January","A/N","2021-01-01","2021-01-28","T29 01-2021 Plant New Trees",null,null,null,"Grounds","JimT",null,1,null,null,null,null,null,null,"jim@tragesser.net   "]
["T29 01-2021","Winter","January","A/N","2021-01-01","2021-01-28","T29 01-2021 Plant New Trees",null,null,null,"Grounds","DonW",null,2,null,null,null,null,null,null,true]
["T30 01-2021",null,"January","Annual","2021-01-01","2021-01-28","T30 01-2021 Project Performance Report",null,null,null,"InfoTech","PeteA",null,1,null,null,null,null,null,null,"optionzz@outlook.com"]
["T31 02-2021","Spring Fall","March/September","Bi-Annual","2021-03-01","2021-03-28","T31 02-2021 Publish Printed Resident Lists",null,null,null,"InfoTech","PeteA",null,1,null,null,null,null,null,null,"optionzz@outlook.com"]
["T31 02-2021","Spring Fall","March/September","Bi-Annual","2021-09-01","2021-09-28","T31 02-2021 Publish Printed Resident Lists",null,null,null,"InfoTech","PeteA",null,1,null,null,null,null,null,null,"optionzz@outlook.com"]
["T32 01-2021",null,"January","Annual","2021-01-01","2021-01-28","T32 01-2021 Renew Web and Software Licenses",null,null,null,"InfoTech","PeteA",null,1,null,null,null,null,null,null,"optionzz@outlook.com"]
["T33 01-2021",null,null,"A/N","2021-01-01","2021-01-28","T33 01-2021 Resale Certificate",null,null,null,"Management","EarlS",null,1,null,null,null,null,null,null,"ecsheneman@msn.com"]
["T33 01-2021",null,null,"A/N","2021-01-01","2021-01-28","T33 01-2021 Resale Certificate",null,null,null,"Management","JoanneW",null,2,null,null,null,null,null,null,false]
["T34 01-2021","20 Years","May","Annual","2021-05-01","2021-05-28","T34 01-2021 Roof Replacement Review",null,null,null,"Units","BeverlyB",null,1,null,null,null,null,null,null,"searigg@comcast.net"]
["T34 01-2021","20 Years","May","Annual","2021-05-01","2021-05-28","T34 01-2021 Roof Replacement Review",null,null,null,"Units","DaleB",null,2,null,null,null,null,null,null,true]
["T35 02-2021","Spring/Fall","April/November","Bi-Annual","2021-04-01","2021-04-28","T35 02-2021 Roof Treatment for Moss",null,null,null,"Units","BeverlyB",null,1,null,null,null,null,null,null,"searigg@comcast.net"]
["T35 02-2021","Spring/Fall","April/November","Bi-Annual","2021-04-01","2021-04-28","T35 02-2021 Roof Treatment for Moss",null,null,null,"Units","DaleB",null,2,null,null,null,null,null,null,true]
["T35 02-2021","Spring/Fall","April/November","Bi-Annual","2021-11-01","2021-11-28","T35 02-2021 Roof Treatment for Moss",null,null,null,"Units","BeverlyB",null,1,null,null,null,null,null,null,"searigg@comcast.net"]
["T35 02-2021","Spring/Fall","April/November","Bi-Annual","2021-11-01","2021-11-28","T35 02-2021 Roof Treatment for Moss",null,null,null,"Units","DaleB",null,2,null,null,null,null,null,null,true]
["T36 01-2021",null,"Monday","Weekly","2021-01-04","2021-01-04","T36 01-2021 Santizier Refill - Daily Check",null,null,null,"Clubhouse","JoanneW",null,1,null,null,null,null,null,null,"jsw4804@gmail.com"]
["T36 02-2021",null,"Monday","Weekly","2021-01-11","2021-01-11","T36 02-2021 Santizier Refill - Daily Check",null,null,null,"Clubhouse","JoanneW",null,1,null,null,null,null,null,null,"jsw4804@gmail.com"]
["T36 03-2021",null,"Monday","Weekly","2021-01-18","2021-01-18","T36 03-2021 Santizier Refill - Daily Check",null,null,null,"Clubhouse","JoanneW",null,1,null,null,null,null,null,null,"jsw4804@gmail.com"]
["T36 04-2021",null,"Monday","Weekly","2021-01-25","2021-01-25","T36 04-2021 Santizier Refill - Daily Check",null,null,null,"Clubhouse","JoanneW",null,1,null,null,null,null,null,null,"jsw4804@gmail.com"]
["T36 05-2021",null,"Monday","Weekly","2021-02-01","2021-02-01","T36 05-2021 Santizier Refill - Daily Check",null,null,null,"Clubhouse","JoanneW",null,1,null,null,null,null,null,null,"jsw4804@gmail.com"]
["T36 06-2021",null,"Monday","Weekly","2021-02-08","2021-02-08","T36 06-2021 Santizier Refill - Daily Check",null,null,null,"Clubhouse","JoanneW",null,1,null,null,null,null,null,null,"jsw4804@gmail.com"]
["T36 07-2021",null,"Monday","Weekly","2021-02-15","2021-02-15","T36 07-2021 Santizier Refill - Daily Check",null,null,null,"Clubhouse","JoanneW",null,1,null,null,null,null,null,null,"jsw4804@gmail.com"]
["T36 08-2021",null,"Monday","Weekly","2021-02-22","2021-02-22","T36 08-2021 Santizier Refill - Daily Check",null,null,null,"Clubhouse","JoanneW",null,1,null,null,null,null,null,null,"jsw4804@gmail.com"]
["T36 09-2021",null,"Monday","Weekly","2021-03-01","2021-03-01","T36 09-2021 Santizier Refill - Daily Check",null,null,null,"Clubhouse","JoanneW",null,1,null,null,null,null,null,null,"jsw4804@gmail.com"]
["T36 10-2021",null,"Monday","Weekly","2021-03-08","2021-03-08","T36 10-2021 Santizier Refill - Daily Check",null,null,null,"Clubhouse","JoanneW",null,1,null,null,null,null,null,null,"jsw4804@gmail.com"]
["T36 11-2021",null,"Monday","Weekly","2021-03-15","2021-03-15","T36 11-2021 Santizier Refill - Daily Check",null,null,null,"Clubhouse","JoanneW",null,1,null,null,null,null,null,null,"jsw4804@gmail.com"]
["T36 12-2021",null,"Monday","Weekly","2021-03-22","2021-03-22","T36 12-2021 Santizier Refill - Daily Check",null,null,null,"Clubhouse","JoanneW",null,1,null,null,null,null,null,null,"jsw4804@gmail.com"]
["T36 13-2021",null,"Monday","Weekly","2021-03-29","2021-03-29","T36 13-2021 Santizier Refill - Daily Check",null,null,null,"Clubhouse","JoanneW",null,1,null,null,null,null,null,null,"jsw4804@gmail.com"]
["T36 14-2021",null,"Monday","Weekly","2021-04-05","2021-04-05","T36 14-2021 Santizier Refill - Daily Check",null,null,null,"Clubhouse","JoanneW",null,1,null,null,null,null,null,null,"jsw4804@gmail.com"]
["T36 15-2021",null,"Monday","Weekly","2021-04-12","2021-04-12","T36 15-2021 Santizier Refill - Daily Check",null,null,null,"Clubhouse","JoanneW",null,1,null,null,null,null,null,null,"jsw4804@gmail.com"]
["T36 16-2021",null,"Monday","Weekly","2021-04-19","2021-04-19","T36 16-2021 Santizier Refill - Daily Check",null,null,null,"Clubhouse","JoanneW",null,1,null,null,null,null,null,null,"jsw4804@gmail.com"]
["T36 17-2021",null,"Monday","Weekly","2021-04-26","2021-04-26","T36 17-2021 Santizier Refill - Daily Check",null,null,null,"Clubhouse","JoanneW",null,1,null,null,null,null,null,null,"jsw4804@gmail.com"]
["T36 18-2021",null,"Monday","Weekly","2021-05-03","2021-05-03","T36 18-2021 Santizier Refill - Daily Check",null,null,null,"Clubhouse","JoanneW",null,1,null,null,null,null,null,null,"jsw4804@gmail.com"]
["T36 19-2021",null,"Monday","Weekly","2021-05-10","2021-05-10","T36 19-2021 Santizier Refill - Daily Check",null,null,null,"Clubhouse","JoanneW",null,1,null,null,null,null,null,null,"jsw4804@gmail.com"]
["T36 20-2021",null,"Monday","Weekly","2021-05-17","2021-05-17","T36 20-2021 Santizier Refill - Daily Check",null,null,null,"Clubhouse","JoanneW",null,1,null,null,null,null,null,null,"jsw4804@gmail.com"]
["T36 21-2021",null,"Monday","Weekly","2021-05-24","2021-05-24","T36 21-2021 Santizier Refill - Daily Check",null,null,null,"Clubhouse","JoanneW",null,1,null,null,null,null,null,null,"jsw4804@gmail.com"]
["T36 22-2021",null,"Monday","Weekly","2021-05-31","2021-05-31","T36 22-2021 Santizier Refill - Daily Check",null,null,null,"Clubhouse","JoanneW",null,1,null,null,null,null,null,null,"jsw4804@gmail.com"]
["T36 23-2021",null,"Monday","Weekly","2021-06-07","2021-06-07","T36 23-2021 Santizier Refill - Daily Check",null,null,null,"Clubhouse","JoanneW",null,1,null,null,null,null,null,null,"jsw4804@gmail.com"]
["T36 24-2021",null,"Monday","Weekly","2021-06-14","2021-06-14","T36 24-2021 Santizier Refill - Daily Check",null,null,null,"Clubhouse","JoanneW",null,1,null,null,null,null,null,null,"jsw4804@gmail.com"]
["T36 25-2021",null,"Monday","Weekly","2021-06-21","2021-06-21","T36 25-2021 Santizier Refill - Daily Check",null,null,null,"Clubhouse","JoanneW",null,1,null,null,null,null,null,null,"jsw4804@gmail.com"]
["T36 26-2021",null,"Monday","Weekly","2021-06-28","2021-06-28","T36 26-2021 Santizier Refill - Daily Check",null,null,null,"Clubhouse","JoanneW",null,1,null,null,null,null,null,null,"jsw4804@gmail.com"]
["T36 27-2021",null,"Monday","Weekly","2021-07-05","2021-07-05","T36 27-2021 Santizier Refill - Daily Check",null,null,null,"Clubhouse","JoanneW",null,1,null,null,null,null,null,null,"jsw4804@gmail.com"]
["T36 28-2021",null,"Monday","Weekly","2021-07-12","2021-07-12","T36 28-2021 Santizier Refill - Daily Check",null,null,null,"Clubhouse","JoanneW",null,1,null,null,null,null,null,null,"jsw4804@gmail.com"]
["T36 29-2021",null,"Monday","Weekly","2021-07-19","2021-07-19","T36 29-2021 Santizier Refill - Daily Check",null,null,null,"Clubhouse","JoanneW",null,1,null,null,null,null,null,null,"jsw4804@gmail.com"]
["T36 30-2021",null,"Monday","Weekly","2021-07-26","2021-07-26","T36 30-2021 Santizier Refill - Daily Check",null,null,null,"Clubhouse","JoanneW",null,1,null,null,null,null,null,null,"jsw4804@gmail.com"]
["T36 31-2021",null,"Monday","Weekly","2021-08-02","2021-08-02","T36 31-2021 Santizier Refill - Daily Check",null,null,null,"Clubhouse","JoanneW",null,1,null,null,null,null,null,null,"jsw4804@gmail.com"]
["T36 32-2021",null,"Monday","Weekly","2021-08-09","2021-08-09","T36 32-2021 Santizier Refill - Daily Check",null,null,null,"Clubhouse","JoanneW",null,1,null,null,null,null,null,null,"jsw4804@gmail.com"]
["T36 33-2021",null,"Monday","Weekly","2021-08-16","2021-08-16","T36 33-2021 Santizier Refill - Daily Check",null,null,null,"Clubhouse","JoanneW",null,1,null,null,null,null,null,null,"jsw4804@gmail.com"]
["T36 34-2021",null,"Monday","Weekly","2021-08-23","2021-08-23","T36 34-2021 Santizier Refill - Daily Check",null,null,null,"Clubhouse","JoanneW",null,1,null,null,null,null,null,null,"jsw4804@gmail.com"]
["T36 35-2021",null,"Monday","Weekly","2021-08-30","2021-08-30","T36 35-2021 Santizier Refill - Daily Check",null,null,null,"Clubhouse","JoanneW",null,1,null,null,null,null,null,null,"jsw4804@gmail.com"]
["T36 36-2021",null,"Monday","Weekly","2021-09-06","2021-09-06","T36 36-2021 Santizier Refill - Daily Check",null,null,null,"Clubhouse","JoanneW",null,1,null,null,null,null,null,null,"jsw4804@gmail.com"]
["T36 37-2021",null,"Monday","Weekly","2021-09-13","2021-09-13","T36 37-2021 Santizier Refill - Daily Check",null,null,null,"Clubhouse","JoanneW",null,1,null,null,null,null,null,null,"jsw4804@gmail.com"]
["T36 38-2021",null,"Monday","Weekly","2021-09-20","2021-09-20","T36 38-2021 Santizier Refill - Daily Check",null,null,null,"Clubhouse","JoanneW",null,1,null,null,null,null,null,null,"jsw4804@gmail.com"]
["T36 39-2021",null,"Monday","Weekly","2021-09-27","2021-09-27","T36 39-2021 Santizier Refill - Daily Check",null,null,null,"Clubhouse","JoanneW",null,1,null,null,null,null,null,null,"jsw4804@gmail.com"]
["T36 40-2021",null,"Monday","Weekly","2021-10-04","2021-10-04","T36 40-2021 Santizier Refill - Daily Check",null,null,null,"Clubhouse","JoanneW",null,1,null,null,null,null,null,null,"jsw4804@gmail.com"]
["T36 41-2021",null,"Monday","Weekly","2021-10-11","2021-10-11","T36 41-2021 Santizier Refill - Daily Check",null,null,null,"Clubhouse","JoanneW",null,1,null,null,null,null,null,null,"jsw4804@gmail.com"]
["T36 42-2021",null,"Monday","Weekly","2021-10-18","2021-10-18","T36 42-2021 Santizier Refill - Daily Check",null,null,null,"Clubhouse","JoanneW",null,1,null,null,null,null,null,null,"jsw4804@gmail.com"]
["T36 43-2021",null,"Monday","Weekly","2021-10-25","2021-10-25","T36 43-2021 Santizier Refill - Daily Check",null,null,null,"Clubhouse","JoanneW",null,1,null,null,null,null,null,null,"jsw4804@gmail.com"]
["T36 44-2021",null,"Monday","Weekly","2021-11-01","2021-11-01","T36 44-2021 Santizier Refill - Daily Check",null,null,null,"Clubhouse","JoanneW",null,1,null,null,null,null,null,null,"jsw4804@gmail.com"]
["T36 45-2021",null,"Monday","Weekly","2021-11-08","2021-11-08","T36 45-2021 Santizier Refill - Daily Check",null,null,null,"Clubhouse","JoanneW",null,1,null,null,null,null,null,null,"jsw4804@gmail.com"]
["T36 46-2021",null,"Monday","Weekly","2021-11-15","2021-11-15","T36 46-2021 Santizier Refill - Daily Check",null,null,null,"Clubhouse","JoanneW",null,1,null,null,null,null,null,null,"jsw4804@gmail.com"]
["T36 47-2021",null,"Monday","Weekly","2021-11-22","2021-11-22","T36 47-2021 Santizier Refill - Daily Check",null,null,null,"Clubhouse","JoanneW",null,1,null,null,null,null,null,null,"jsw4804@gmail.com"]
["T36 48-2021",null,"Monday","Weekly","2021-11-29","2021-11-29","T36 48-2021 Santizier Refill - Daily Check",null,null,null,"Clubhouse","JoanneW",null,1,null,null,null,null,null,null,"jsw4804@gmail.com"]
["T36 49-2021",null,"Monday","Weekly","2021-12-06","2021-12-06","T36 49-2021 Santizier Refill - Daily Check",null,null,null,"Clubhouse","JoanneW",null,1,null,null,null,null,null,null,"jsw4804@gmail.com"]
["T36 50-2021",null,"Monday","Weekly","2021-12-13","2021-12-13","T36 50-2021 Santizier Refill - Daily Check",null,null,null,"Clubhouse","JoanneW",null,1,null,null,null,null,null,null,"jsw4804@gmail.com"]
["T36 51-2021",null,"Monday","Weekly","2021-12-20","2021-12-20","T36 51-2021 Santizier Refill - Daily Check",null,null,null,"Clubhouse","JoanneW",null,1,null,null,null,null,null,null,"jsw4804@gmail.com"]
["T36 52-2021",null,"Monday","Weekly","2021-12-27","2021-12-27","T36 52-2021 Santizier Refill - Daily Check",null,null,null,"Clubhouse","JoanneW",null,1,null,null,null,null,null,null,"jsw4804@gmail.com"]
["T37 01-2021",null,null,"A/N","2021-01-01","2021-01-28","T37 01-2021 Secretary Responsibilities",null,null,null,"Management","PattyL",null,1,null,null,null,null,null,null,"pjlteach@yahoo.com"]
["T38 01-2021",null,null,"A/N","2021-01-01","2021-01-28","T38 01-2021 Social Scheduling",null,null,null,"Clubhouse","SheilaJ",null,1,null,null,null,null,null,null,"sheilajohansen47@gmail.com"]
["T39 01-2021",null,null,"A/N","2021-01-01","2021-01-28","T39 01-2021 Street Curb Repairs",null,null,null,"Sitewide","BeverlyB",null,1,null,null,null,null,null,null,"searigg@comcast.net"]
["T39 01-2021",null,null,"A/N","2021-01-01","2021-01-28","T39 01-2021 Street Curb Repairs",null,null,null,"Sitewide","DaleB",null,2,null,null,null,null,null,null,true]
["T40 01-2021",null,"April","Annual","2021-04-01","2021-04-28","T40 01-2021 Street Reseal Cracks",null,null,null,"Sitewide","BeverlyB",null,1,null,null,null,null,null,null,"searigg@comcast.net"]
["T40 01-2021",null,"April","Annual","2021-04-01","2021-04-28","T40 01-2021 Street Reseal Cracks",null,null,null,"Sitewide","DaleB",null,2,null,null,null,null,null,null,true]
["T41 01-2021",null,null,"A/N","2021-01-01","2021-01-28","T41 01-2021 Street Seal Coat",null,null,null,"Sitewide","BeverlyB",null,1,null,null,null,null,null,null,"searigg@comcast.net"]
["T41 01-2021",null,null,"A/N","2021-01-01","2021-01-28","T41 01-2021 Street Seal Coat",null,null,null,"Sitewide","DaleB",null,2,null,null,null,null,null,null,true]
["T42 01-2021",null,null,"A/N","2021-01-01","2021-01-28","T42 01-2021 Street Snow Removal",null,null,null,"Sitewide","JimT",null,1,null,null,null,null,null,null,"jim@tragesser.net   "]
["T42 01-2021",null,null,"A/N","2021-01-01","2021-01-28","T42 01-2021 Street Snow Removal",null,null,null,"Sitewide","DonW",null,2,null,null,null,null,null,null,true]
["T43 01-2021","Winter","January","A/N","2021-01-01","2021-01-28","T43 01-2021 Stump Ginding",null,null,null,"Grounds","JimT",null,1,null,null,null,null,null,null,"jim@tragesser.net   "]
["T44 01-2021",null,null,"A/N","2021-01-01","2021-01-28","T44 01-2021 Sunshine Committee",null,null,null,"Management","CharlotteM",null,1,null,null,null,null,null,null,"clakelimerick@msn.com"]
["T45 01-2021",null,"Every Other Mo","Bi-Monthly","2021-01-01","2021-01-28","T45 01-2021 Supply Management",null,null,null,"Clubhouse","BeverlyB",null,1,null,null,null,null,null,null,"searigg@comcast.net"]
["T45 03-2021",null,"Every Other Mo","Bi-Monthly","2021-03-01","2021-03-28","T45 03-2021 Supply Management",null,null,null,"Clubhouse","BeverlyB",null,1,null,null,null,null,null,null,"searigg@comcast.net"]
["T45 05-2021",null,"Every Other Mo","Bi-Monthly","2021-05-01","2021-05-28","T45 05-2021 Supply Management",null,null,null,"Clubhouse","BeverlyB",null,1,null,null,null,null,null,null,"searigg@comcast.net"]
["T45 07-2021",null,"Every Other Mo","Bi-Monthly","2021-07-01","2021-07-28","T45 07-2021 Supply Management",null,null,null,"Clubhouse","BeverlyB",null,1,null,null,null,null,null,null,"searigg@comcast.net"]
["T45 09-2021",null,"Every Other Mo","Bi-Monthly","2021-09-01","2021-09-28","T45 09-2021 Supply Management",null,null,null,"Clubhouse","BeverlyB",null,1,null,null,null,null,null,null,"searigg@comcast.net"]
["T45 11-2021",null,"Every Other Mo","Bi-Monthly","2021-11-01","2021-11-28","T45 11-2021 Supply Management",null,null,null,"Clubhouse","BeverlyB",null,1,null,null,null,null,null,null,"searigg@comcast.net"]
["T46 01-2021","Spring","May","Spring","2021-05-01","2021-05-28","T46 01-2021 Test Water System",null,null,null,"Grounds","JimT",null,1,null,null,null,null,null,null,"jim@tragesser.net   "]
["T46 01-2021","Spring","May","Spring","2021-05-01","2021-05-28","T46 01-2021 Test Water System",null,null,null,"Grounds","DonW",null,2,null,null,null,null,null,null,true]
["T47 01-2021",null,"Monday","Weekly","2021-01-04","2021-01-04","T47 01-2021 Trash to Curb",null,null,null,"Clubhouse","NettieP",null,1,null,null,null,null,null,null,"nettie.p@comcast.net"]
["T47 02-2021",null,"Monday","Weekly","2021-01-11","2021-01-11","T47 02-2021 Trash to Curb",null,null,null,"Clubhouse","NettieP",null,1,null,null,null,null,null,null,"nettie.p@comcast.net"]
["T47 03-2021",null,"Monday","Weekly","2021-01-18","2021-01-18","T47 03-2021 Trash to Curb",null,null,null,"Clubhouse","NettieP",null,1,null,null,null,null,null,null,"nettie.p@comcast.net"]
["T47 04-2021",null,"Monday","Weekly","2021-01-25","2021-01-25","T47 04-2021 Trash to Curb",null,null,null,"Clubhouse","NettieP",null,1,null,null,null,null,null,null,"nettie.p@comcast.net"]
["T47 05-2021",null,"Monday","Weekly","2021-02-01","2021-02-01","T47 05-2021 Trash to Curb",null,null,null,"Clubhouse","NettieP",null,1,null,null,null,null,null,null,"nettie.p@comcast.net"]
["T47 06-2021",null,"Monday","Weekly","2021-02-08","2021-02-08","T47 06-2021 Trash to Curb",null,null,null,"Clubhouse","NettieP",null,1,null,null,null,null,null,null,"nettie.p@comcast.net"]
["T47 07-2021",null,"Monday","Weekly","2021-02-15","2021-02-15","T47 07-2021 Trash to Curb",null,null,null,"Clubhouse","NettieP",null,1,null,null,null,null,null,null,"nettie.p@comcast.net"]
["T47 08-2021",null,"Monday","Weekly","2021-02-22","2021-02-22","T47 08-2021 Trash to Curb",null,null,null,"Clubhouse","NettieP",null,1,null,null,null,null,null,null,"nettie.p@comcast.net"]
["T47 09-2021",null,"Monday","Weekly","2021-03-01","2021-03-01","T47 09-2021 Trash to Curb",null,null,null,"Clubhouse","NettieP",null,1,null,null,null,null,null,null,"nettie.p@comcast.net"]
["T47 10-2021",null,"Monday","Weekly","2021-03-08","2021-03-08","T47 10-2021 Trash to Curb",null,null,null,"Clubhouse","NettieP",null,1,null,null,null,null,null,null,"nettie.p@comcast.net"]
["T47 11-2021",null,"Monday","Weekly","2021-03-15","2021-03-15","T47 11-2021 Trash to Curb",null,null,null,"Clubhouse","NettieP",null,1,null,null,null,null,null,null,"nettie.p@comcast.net"]
["T47 12-2021",null,"Monday","Weekly","2021-03-22","2021-03-22","T47 12-2021 Trash to Curb",null,null,null,"Clubhouse","NettieP",null,1,null,null,null,null,null,null,"nettie.p@comcast.net"]
["T47 13-2021",null,"Monday","Weekly","2021-03-29","2021-03-29","T47 13-2021 Trash to Curb",null,null,null,"Clubhouse","NettieP",null,1,null,null,null,null,null,null,"nettie.p@comcast.net"]
["T47 14-2021",null,"Monday","Weekly","2021-04-05","2021-04-05","T47 14-2021 Trash to Curb",null,null,null,"Clubhouse","NettieP",null,1,null,null,null,null,null,null,"nettie.p@comcast.net"]
["T47 15-2021",null,"Monday","Weekly","2021-04-12","2021-04-12","T47 15-2021 Trash to Curb",null,null,null,"Clubhouse","NettieP",null,1,null,null,null,null,null,null,"nettie.p@comcast.net"]
["T47 16-2021",null,"Monday","Weekly","2021-04-19","2021-04-19","T47 16-2021 Trash to Curb",null,null,null,"Clubhouse","NettieP",null,1,null,null,null,null,null,null,"nettie.p@comcast.net"]
["T47 17-2021",null,"Monday","Weekly","2021-04-26","2021-04-26","T47 17-2021 Trash to Curb",null,null,null,"Clubhouse","NettieP",null,1,null,null,null,null,null,null,"nettie.p@comcast.net"]
["T47 18-2021",null,"Monday","Weekly","2021-05-03","2021-05-03","T47 18-2021 Trash to Curb",null,null,null,"Clubhouse","NettieP",null,1,null,null,null,null,null,null,"nettie.p@comcast.net"]
["T47 19-2021",null,"Monday","Weekly","2021-05-10","2021-05-10","T47 19-2021 Trash to Curb",null,null,null,"Clubhouse","NettieP",null,1,null,null,null,null,null,null,"nettie.p@comcast.net"]
["T47 20-2021",null,"Monday","Weekly","2021-05-17","2021-05-17","T47 20-2021 Trash to Curb",null,null,null,"Clubhouse","NettieP",null,1,null,null,null,null,null,null,"nettie.p@comcast.net"]
["T47 21-2021",null,"Monday","Weekly","2021-05-24","2021-05-24","T47 21-2021 Trash to Curb",null,null,null,"Clubhouse","NettieP",null,1,null,null,null,null,null,null,"nettie.p@comcast.net"]
["T47 22-2021",null,"Monday","Weekly","2021-05-31","2021-05-31","T47 22-2021 Trash to Curb",null,null,null,"Clubhouse","NettieP",null,1,null,null,null,null,null,null,"nettie.p@comcast.net"]
["T47 23-2021",null,"Monday","Weekly","2021-06-07","2021-06-07","T47 23-2021 Trash to Curb",null,null,null,"Clubhouse","NettieP",null,1,null,null,null,null,null,null,"nettie.p@comcast.net"]
["T47 24-2021",null,"Monday","Weekly","2021-06-14","2021-06-14","T47 24-2021 Trash to Curb",null,null,null,"Clubhouse","NettieP",null,1,null,null,null,null,null,null,"nettie.p@comcast.net"]
["T47 25-2021",null,"Monday","Weekly","2021-06-21","2021-06-21","T47 25-2021 Trash to Curb",null,null,null,"Clubhouse","NettieP",null,1,null,null,null,null,null,null,"nettie.p@comcast.net"]
["T47 26-2021",null,"Monday","Weekly","2021-06-28","2021-06-28","T47 26-2021 Trash to Curb",null,null,null,"Clubhouse","NettieP",null,1,null,null,null,null,null,null,"nettie.p@comcast.net"]
["T47 27-2021",null,"Monday","Weekly","2021-07-05","2021-07-05","T47 27-2021 Trash to Curb",null,null,null,"Clubhouse","NettieP",null,1,null,null,null,null,null,null,"nettie.p@comcast.net"]
["T47 28-2021",null,"Monday","Weekly","2021-07-12","2021-07-12","T47 28-2021 Trash to Curb",null,null,null,"Clubhouse","NettieP",null,1,null,null,null,null,null,null,"nettie.p@comcast.net"]
["T47 29-2021",null,"Monday","Weekly","2021-07-19","2021-07-19","T47 29-2021 Trash to Curb",null,null,null,"Clubhouse","NettieP",null,1,null,null,null,null,null,null,"nettie.p@comcast.net"]
["T47 30-2021",null,"Monday","Weekly","2021-07-26","2021-07-26","T47 30-2021 Trash to Curb",null,null,null,"Clubhouse","NettieP",null,1,null,null,null,null,null,null,"nettie.p@comcast.net"]
["T47 31-2021",null,"Monday","Weekly","2021-08-02","2021-08-02","T47 31-2021 Trash to Curb",null,null,null,"Clubhouse","NettieP",null,1,null,null,null,null,null,null,"nettie.p@comcast.net"]
["T47 32-2021",null,"Monday","Weekly","2021-08-09","2021-08-09","T47 32-2021 Trash to Curb",null,null,null,"Clubhouse","NettieP",null,1,null,null,null,null,null,null,"nettie.p@comcast.net"]
["T47 33-2021",null,"Monday","Weekly","2021-08-16","2021-08-16","T47 33-2021 Trash to Curb",null,null,null,"Clubhouse","NettieP",null,1,null,null,null,null,null,null,"nettie.p@comcast.net"]
["T47 34-2021",null,"Monday","Weekly","2021-08-23","2021-08-23","T47 34-2021 Trash to Curb",null,null,null,"Clubhouse","NettieP",null,1,null,null,null,null,null,null,"nettie.p@comcast.net"]
["T47 35-2021",null,"Monday","Weekly","2021-08-30","2021-08-30","T47 35-2021 Trash to Curb",null,null,null,"Clubhouse","NettieP",null,1,null,null,null,null,null,null,"nettie.p@comcast.net"]
["T47 36-2021",null,"Monday","Weekly","2021-09-06","2021-09-06","T47 36-2021 Trash to Curb",null,null,null,"Clubhouse","NettieP",null,1,null,null,null,null,null,null,"nettie.p@comcast.net"]
["T47 37-2021",null,"Monday","Weekly","2021-09-13","2021-09-13","T47 37-2021 Trash to Curb",null,null,null,"Clubhouse","NettieP",null,1,null,null,null,null,null,null,"nettie.p@comcast.net"]
["T47 38-2021",null,"Monday","Weekly","2021-09-20","2021-09-20","T47 38-2021 Trash to Curb",null,null,null,"Clubhouse","NettieP",null,1,null,null,null,null,null,null,"nettie.p@comcast.net"]
["T47 39-2021",null,"Monday","Weekly","2021-09-27","2021-09-27","T47 39-2021 Trash to Curb",null,null,null,"Clubhouse","NettieP",null,1,null,null,null,null,null,null,"nettie.p@comcast.net"]
["T47 40-2021",null,"Monday","Weekly","2021-10-04","2021-10-04","T47 40-2021 Trash to Curb",null,null,null,"Clubhouse","NettieP",null,1,null,null,null,null,null,null,"nettie.p@comcast.net"]
["T47 41-2021",null,"Monday","Weekly","2021-10-11","2021-10-11","T47 41-2021 Trash to Curb",null,null,null,"Clubhouse","NettieP",null,1,null,null,null,null,null,null,"nettie.p@comcast.net"]
["T47 42-2021",null,"Monday","Weekly","2021-10-18","2021-10-18","T47 42-2021 Trash to Curb",null,null,null,"Clubhouse","NettieP",null,1,null,null,null,null,null,null,"nettie.p@comcast.net"]
["T47 43-2021",null,"Monday","Weekly","2021-10-25","2021-10-25","T47 43-2021 Trash to Curb",null,null,null,"Clubhouse","NettieP",null,1,null,null,null,null,null,null,"nettie.p@comcast.net"]
["T47 44-2021",null,"Monday","Weekly","2021-11-01","2021-11-01","T47 44-2021 Trash to Curb",null,null,null,"Clubhouse","NettieP",null,1,null,null,null,null,null,null,"nettie.p@comcast.net"]
["T47 45-2021",null,"Monday","Weekly","2021-11-08","2021-11-08","T47 45-2021 Trash to Curb",null,null,null,"Clubhouse","NettieP",null,1,null,null,null,null,null,null,"nettie.p@comcast.net"]
["T47 46-2021",null,"Monday","Weekly","2021-11-15","2021-11-15","T47 46-2021 Trash to Curb",null,null,null,"Clubhouse","NettieP",null,1,null,null,null,null,null,null,"nettie.p@comcast.net"]
["T47 47-2021",null,"Monday","Weekly","2021-11-22","2021-11-22","T47 47-2021 Trash to Curb",null,null,null,"Clubhouse","NettieP",null,1,null,null,null,null,null,null,"nettie.p@comcast.net"]
["T47 48-2021",null,"Monday","Weekly","2021-11-29","2021-11-29","T47 48-2021 Trash to Curb",null,null,null,"Clubhouse","NettieP",null,1,null,null,null,null,null,null,"nettie.p@comcast.net"]
["T47 49-2021",null,"Monday","Weekly","2021-12-06","2021-12-06","T47 49-2021 Trash to Curb",null,null,null,"Clubhouse","NettieP",null,1,null,null,null,null,null,null,"nettie.p@comcast.net"]
["T47 50-2021",null,"Monday","Weekly","2021-12-13","2021-12-13","T47 50-2021 Trash to Curb",null,null,null,"Clubhouse","NettieP",null,1,null,null,null,null,null,null,"nettie.p@comcast.net"]
["T47 51-2021",null,"Monday","Weekly","2021-12-20","2021-12-20","T47 51-2021 Trash to Curb",null,null,null,"Clubhouse","NettieP",null,1,null,null,null,null,null,null,"nettie.p@comcast.net"]
["T47 52-2021",null,"Monday","Weekly","2021-12-27","2021-12-27","T47 52-2021 Trash to Curb",null,null,null,"Clubhouse","NettieP",null,1,null,null,null,null,null,null,"nettie.p@comcast.net"]
["T48 01-2021","Winter","January","A/N","2021-01-01","2021-01-28","T48 01-2021 Tree Removal",null,null,null,"Grounds","JimT",null,1,null,null,null,null,null,null,"jim@tragesser.net   "]
["T49 01-2021","Fall","October","Fall","2021-10-01","2021-10-28","T49 01-2021 Turn Off Irrigation Water",null,null,null,"Grounds","JimT",null,1,null,null,null,null,null,null,"jim@tragesser.net   "]
["T49 01-2021","Fall","October","Fall","2021-10-01","2021-10-28","T49 01-2021 Turn Off Irrigation Water",null,null,null,"Grounds","DonW",null,2,null,null,null,null,null,null,true]
["T50 01-2021","Spring","May","Spring","2021-05-01","2021-05-28","T50 01-2021 Turn On Irrigation Water",null,null,null,"Grounds","JimT",null,1,null,null,null,null,null,null,"jim@tragesser.net   "]
["T50 01-2021","Spring","May","Spring","2021-05-01","2021-05-28","T50 01-2021 Turn On Irrigation Water",null,null,null,"Grounds","DonW",null,2,null,null,null,null,null,null,true]
["T51 01-2021","Spring","January","Annual","2021-01-01","2021-01-28","T51 01-2021 Update of Motion Log Book",null,null,null,"Management","PattyL",null,1,null,null,null,null,null,null,"pjlteach@yahoo.com"]
["T51 01-2021","Spring","January","Annual","2021-01-01","2021-01-28","T51 01-2021 Update of Motion Log Book",null,null,null,"Management","PeteA",null,2,null,null,null,null,null,null,false]
["T52 01-2021","Fall","November","Fall","2021-11-01","2021-11-28","T52 01-2021 Foundation Vents Close",null,null,null,"Sitewide","JimT",null,1,null,null,null,null,null,null,"jim@tragesser.net   "]
["T52 01-2021","Fall","November","Fall","2021-11-01","2021-11-28","T52 01-2021 Foundation Vents Close",null,null,null,"Sitewide","DonW",null,2,null,null,null,null,null,null,true]
["T53 01-2021","Spring","March","Spring","2021-03-01","2021-03-28","T53 01-2021 Foundation Vents Open",null,null,null,"Sitewide","JimT",null,1,null,null,null,null,null,null,"jim@tragesser.net   "]
["T53 01-2021","Spring","March","Spring","2021-03-01","2021-03-28","T53 01-2021 Foundation Vents Open",null,null,null,"Sitewide","DonW",null,2,null,null,null,null,null,null,true]
["T54 01-2021",null,null,"Monthly","2021-01-01","2021-01-28","T54 01-2021 Website Files Update - Monthly",null,null,null,"InfoTech","PeteA",null,1,null,null,null,null,null,null,"optionzz@outlook.com"]
["T54 02-2021",null,null,"Monthly","2021-02-01","2021-02-28","T54 02-2021 Website Files Update - Monthly",null,null,null,"InfoTech","PeteA",null,1,null,null,null,null,null,null,"optionzz@outlook.com"]
["T54 03-2021",null,null,"Monthly","2021-03-01","2021-03-28","T54 03-2021 Website Files Update - Monthly",null,null,null,"InfoTech","PeteA",null,1,null,null,null,null,null,null,"optionzz@outlook.com"]
["T54 04-2021",null,null,"Monthly","2021-04-01","2021-04-28","T54 04-2021 Website Files Update - Monthly",null,null,null,"InfoTech","PeteA",null,1,null,null,null,null,null,null,"optionzz@outlook.com"]
["T54 05-2021",null,null,"Monthly","2021-05-01","2021-05-28","T54 05-2021 Website Files Update - Monthly",null,null,null,"InfoTech","PeteA",null,1,null,null,null,null,null,null,"optionzz@outlook.com"]
["T54 06-2021",null,null,"Monthly","2021-06-01","2021-06-28","T54 06-2021 Website Files Update - Monthly",null,null,null,"InfoTech","PeteA",null,1,null,null,null,null,null,null,"optionzz@outlook.com"]
["T54 07-2021",null,null,"Monthly","2021-07-01","2021-07-28","T54 07-2021 Website Files Update - Monthly",null,null,null,"InfoTech","PeteA",null,1,null,null,null,null,null,null,"optionzz@outlook.com"]
["T54 08-2021",null,null,"Monthly","2021-08-01","2021-08-28","T54 08-2021 Website Files Update - Monthly",null,null,null,"InfoTech","PeteA",null,1,null,null,null,null,null,null,"optionzz@outlook.com"]
["T54 09-2021",null,null,"Monthly","2021-09-01","2021-09-28","T54 09-2021 Website Files Update - Monthly",null,null,null,"InfoTech","PeteA",null,1,null,null,null,null,null,null,"optionzz@outlook.com"]
["T54 10-2021",null,null,"Monthly","2021-10-01","2021-10-28","T54 10-2021 Website Files Update - Monthly",null,null,null,"InfoTech","PeteA",null,1,null,null,null,null,null,null,"optionzz@outlook.com"]
["T54 11-2021",null,null,"Monthly","2021-11-01","2021-11-28","T54 11-2021 Website Files Update - Monthly",null,null,null,"InfoTech","PeteA",null,1,null,null,null,null,null,null,"optionzz@outlook.com"]
["T54 12-2021",null,null,"Monthly","2021-12-01","2021-12-28","T54 12-2021 Website Files Update - Monthly",null,null,null,"InfoTech","PeteA",null,1,null,null,null,null,null,null,"optionzz@outlook.com"]
["T55 01-2021",null,"January","A/N","2021-01-01","2021-01-28","T55 01-2021 Welcome Committee",null,null,null,"Management","BeverlyB",null,1,null,null,null,null,null,null,"searigg@comcast.net"]
["T55 01-2021",null,"January","A/N","2021-01-01","2021-01-28","T55 01-2021 Welcome Committee",null,null,null,"Management","EarlS",null,2,null,null,null,null,null,null,false]
["T56 01-2021",null,"January","A/N","2021-01-01","2021-01-28","T56 01-2021 Welcome Homeowners Books",null,null,null,"Management","PattyL",null,1,null,null,null,null,null,null,"pjlteach@yahoo.com"]
["T56 01-2021",null,"January","A/N","2021-01-01","2021-01-28","T56 01-2021 Welcome Homeowners Books",null,null,null,"Management","EarlS",null,2,null,null,null,null,null,null,false]
["T56 01-2021",null,"January","A/N","2021-01-01","2021-01-28","T56 01-2021 Welcome Homeowners Books",null,null,null,"Management","JoanneW",null,3,null,null,null,null,null,null,"jsw4804@gmail.com"]
["T59 11-2021","Spring/Fall","March/September","Bi-Annual","2021-03-01","2021-03-28","T59 11-2021 Window Washing ",null,null,null,"Sitewide","PeggyC",null,1,null,null,null,null,null,null,"grandmapeggy1226@gmail.com"]
["T59 11-2021","Spring/Fall","March/September","Bi-Annual","2021-09-01","2021-09-28","T59 11-2021 Window Washing ",null,null,null,"Sitewide","PeggyC",null,1,null,null,null,null,null,null,"grandmapeggy1226@gmail.com"]
["T60 01-2021","Spring","February","Spring","2021-02-01","2021-02-28","T60 01-2021 Windows Check for Dry Rot or Leakage",null,null,null,"Units","BeverlyB",null,1,null,null,null,null,null,null,"searigg@comcast.net"]
["T60 01-2021","Spring","February","Spring","2021-02-01","2021-02-28","T60 01-2021 Windows Check for Dry Rot or Leakage",null,null,null,"Units","LindaS",null,2,null,null,null,null,null,null,false]
["T61 01-2021",null,"December","Annual","2021-12-01","2021-12-28","T61 01-2021 Xmas Lights",null,null,null,"Clubhouse","UnAssigned",null,1,null,null,null,null,null,null,"VACNCABoard@gmail.com"]
["T63 01-2021",null,null,"Monthly","2021-01-01","2021-01-28","T63 01-2021 Send Email Task Reminders",null,null,null,"InfoTech","PeteA",null,1,null,null,null,null,null,null,"optionzz@outlook.com"]
["T63 02-2021",null,null,"Monthly","2021-02-01","2021-02-28","T63 02-2021 Send Email Task Reminders",null,null,null,"InfoTech","PeteA",null,1,null,null,null,null,null,null,"optionzz@outlook.com"]
["T63 03-2021",null,null,"Monthly","2021-03-01","2021-03-28","T63 03-2021 Send Email Task Reminders",null,null,null,"InfoTech","PeteA",null,1,null,null,null,null,null,null,"optionzz@outlook.com"]
["T63 04-2021",null,null,"Monthly","2021-04-01","2021-04-28","T63 04-2021 Send Email Task Reminders",null,null,null,"InfoTech","PeteA",null,1,null,null,null,null,null,null,"optionzz@outlook.com"]
["T63 05-2021",null,null,"Monthly","2021-05-01","2021-05-28","T63 05-2021 Send Email Task Reminders",null,null,null,"InfoTech","PeteA",null,1,null,null,null,null,null,null,"optionzz@outlook.com"]
["T63 06-2021",null,null,"Monthly","2021-06-01","2021-06-28","T63 06-2021 Send Email Task Reminders",null,null,null,"InfoTech","PeteA",null,1,null,null,null,null,null,null,"optionzz@outlook.com"]
["T63 07-2021",null,null,"Monthly","2021-07-01","2021-07-28","T63 07-2021 Send Email Task Reminders",null,null,null,"InfoTech","PeteA",null,1,null,null,null,null,null,null,"optionzz@outlook.com"]
["T63 08-2021",null,null,"Monthly","2021-08-01","2021-08-28","T63 08-2021 Send Email Task Reminders",null,null,null,"InfoTech","PeteA",null,1,null,null,null,null,null,null,"optionzz@outlook.com"]
["T63 09-2021",null,null,"Monthly","2021-09-01","2021-09-28","T63 09-2021 Send Email Task Reminders",null,null,null,"InfoTech","PeteA",null,1,null,null,null,null,null,null,"optionzz@outlook.com"]
["T63 10-2021",null,null,"Monthly","2021-10-01","2021-10-28","T63 10-2021 Send Email Task Reminders",null,null,null,"InfoTech","PeteA",null,1,null,null,null,null,null,null,"optionzz@outlook.com"]
["T63 11-2021",null,null,"Monthly","2021-11-01","2021-11-28","T63 11-2021 Send Email Task Reminders",null,null,null,"InfoTech","PeteA",null,1,null,null,null,null,null,null,"optionzz@outlook.com"]
["T63 12-2021",null,null,"Monthly","2021-12-01","2021-12-28","T63 12-2021 Send Email Task Reminders",null,null,null,"InfoTech","PeteA",null,1,null,null,null,null,null,null,"optionzz@outlook.com"]

{"sheet":"Maintenance Task Assignments","index":6,"n_rows":96,"n_cols":4,"rows_kept":96,"cut":false,"hidden":false,"merged":[]}
["PersonID","Task ID","Person Name","Person Alternate Level"]
["UnAssigned","T01","UnAssignec, Board","1st"]
["EarlS","T02","Sheneman, Earl","1st"]
["JimT","T03","Tragesser, Jim","1st"]
["EarlS","T04","Sheneman, Earl","1st"]
["EarlS","T05","Sheneman, Earl","1st"]
["JimT","T06","Tragesser, Jim","1st"]
["EarlS","T07","Sheneman, Earl","1st"]
["Pete A","T08","Asprey, Pete","1st"]
["NettieP","T09","Post, Nettie","1st"]
["JoanneW","T10","Wyatt, Jo Anne","1st"]
["BeverlyB","T11","Brownrigg, Beverly","1st"]
["BeverlyB","T12","Brownrigg, Beverly","1st"]
["CherieT","T13","Thomas, Cherie","1st"]
["SheilaJ","T14","Johansen, Sheila","1st"]
["CarlG","T16","Grant, Carl","1st"]
["CarlG","T17","Grant, Carl","1st"]
["NettieP","T18","Post, Nettie","1st"]
["JimT","T19","Tragesser, Jim","1st"]
["BeverlyB","T20","Brownrigg, Beverly","1st"]
["EarlS","T21","Sheneman, Earl","1st"]
["JimT","T22","Tragesser, Jim","1st"]
["SheilaJ","T23","Johansen, Sheila","1st"]
["JimT","T24","Tragesser, Jim","1st"]
["BeverlyB","T25","Brownrigg, Beverly","1st"]
["JimT","T26","Tragesser, Jim","1st"]
["BeverlyB","T27","Brownrigg, Beverly","1st"]
["BeverlyB","T28","Brownrigg, Beverly","1st"]
["JimT","T29","Tragesser, Jim","1st"]
["Pete A","T30","Asprey, Pete","1st"]
["Pete A","T31","Asprey, Pete","1st"]
["Pete A","T32","Asprey, Pete","1st"]
["EarlS","T33","Sheneman, Earl","1st"]
["BeverlyB","T34","Brownrigg, Beverly","1st"]
["BeverlyB","T35","Brownrigg, Beverly","1st"]
["JoanneW","T36","Wyatt, Jo Anne","1st"]
["PattyL","T37","Liggett, Patty","1st"]
["SheilaJ","T38","Johansen, Sheila","1st"]
["BeverlyB","T39","Brownrigg, Beverly","1st"]
["BeverlyB","T40","Brownrigg, Beverly","1st"]
["BeverlyB","T41","Brownrigg, Beverly","1st"]
["JimT","T42","Tragesser, Jim","1st"]
["JimT","T43","Tragesser, Jim","1st"]
["CharlotteM","T44","Martin, Charlotte","1st"]
["BeverlyB","T45","Brownrigg, Beverly","1st"]
["JimT","T46","Tragesser, Jim","1st"]
["NettieP","T47","Post, Nettie","1st"]
["JimT","T48","Tragesser, Jim","1st"]
["JimT","T49","Tragesser, Jim","1st"]
["JimT","T50","Tragesser, Jim","1st"]
["PattyL","T51","Liggett, Patty","1st"]
["JimT","T52","Tragesser, Jim","1st"]
["JimT","T53","Tragesser, Jim","1st"]
["Pete A","T54","Asprey, Pete","1st"]
["BeverlyB","T55","Brownrigg, Beverly","1st"]
["PattyL","T56","Liggett, Patty","1st"]
["BeverlyB","T57","Brownrigg, Beverly","1st"]
["PeggyC","T59","Cook, Peggy","1st"]
["BeverlyB","T60","Brownrigg, Beverly","1st"]
["UnAssigned","T61","UnAssignec, Board","1st"]
["SheilaJ","T62","Johansen, Sheila","1st"]
["CherieT","T01","Thomas, Cherie","2nd"]
["DonW","T03","- -","2nd"]
["BeverlyB","T04","Brownrigg, Beverly","2nd"]
["DonW","T06","- -","2nd"]
["Committee","T07","- -","2nd"]
["LindaS","T10","Sheeks, Linda","2nd"]
["JoanneW","T11","Wyatt, Jo Anne","2nd"]
["LynnK","T13","Kirlin, Lynn","2nd"]
["DonW","T19","- -","2nd"]
["DaleB","T20","- -","2nd"]
["BeverlyB","T21","Brownrigg, Beverly","2nd"]
["DonW","T22","- -","2nd"]
["RonR","T25","Roberts, Ron","2nd"]
["DonW","T26","- -","2nd"]
["JoanneW","T27","Wyatt, Jo Anne","2nd"]
["DaleB","T28","- -","2nd"]
["DonW","T29","- -","2nd"]
["JoanneW","T33","Wyatt, Jo Anne","2nd"]
["DaleB","T34","- -","2nd"]
["DaleB","T35","- -","2nd"]
["DaleB","T39","- -","2nd"]
["DaleB","T40","- -","2nd"]
["DaleB","T41","- -","2nd"]
["DonW","T42","- -","2nd"]
["DonW","T46","- -","2nd"]
["DonW","T49","- -","2nd"]
["DonW","T50","- -","2nd"]
["PeteA","T51","- -","2nd"]
["DonW","T52","- -","2nd"]
["DonW","T53","- -","2nd"]
["EarlS","T55","Sheneman, Earl","2nd"]
["EarlS","T56","Sheneman, Earl","2nd"]
["LindaS","T57","Sheeks, Linda","2nd"]
["none","T37","- -","3rd"]
["JoanneW","T56","Wyatt, Jo Anne","3rd"]

{"sheet":"Property Task Managers","index":7,"n_rows":22,"n_cols":10,"rows_kept":22,"cut":false,"hidden":false,"merged":[]}
["User Id","Property Task Manager Resident Key","PTM Name \nLast, First","Unit ","Main Phone","Cell Phone","Email","User Id","Password"]
["BeverlyB","1243-BROWNRIGG-BEVERLY","Brownrigg, Beverly",1243,"739-5388","739-5388","searigg@comcast.net",{"$f":"A2","v":"BeverlyB"},"beverlyb:circle"]
["CarlG","1206-GRANT-CARL","Grant, Carl",1206,"650-9249","603-0564","grant_carl@hotmail.com",{"$f":"A3","v":"CarlG"},"carlg:circle"]
["CharlotteM","1212-MARTIN-CHARLOTTE","Martin, Charlotte",1212,"656-5774",0,"clakelimerick@msn.com",{"$f":"A4","v":"CharlotteM"},"charlottem:circle"]
["CherieT","1207-THOMAS-CHERIE","Thomas, Cherie",1207,"380-2097","303-9930","cheriethomas49@comcast.net",{"$f":"A5","v":"CherieT"},"cheriet:circle"]
["CherylS","1224-SCHEELE-CHERYL","Scheele, Cheryl",1224,"961-0680","961-0680","mamacheryl04@gmail.com",{"$f":"A6","v":"CherylS"},"cheryl:circle"]
["DaleB","1243-BROWNRIGG-BEVERLY","Brownrigg, Beverly",1243,"739-5388","739-5388","searigg@comcast.net",{"$f":"A7","v":"DaleB"},"***"]
["DonW","1243-BROWNRIGG-BEVERLY","Brownrigg, Beverly",1243,"739-5388","739-5388","searigg@comcast.net",{"$f":"A8","v":"DonW"},"***"]
["EarlS","1264-SHENEMAN-EARL","Sheneman, Earl",1264,"647-7579","961-8888","ecsheneman@msn.com",{"$f":"A9","v":"EarlS"},"earls:circle"]
["HelenR","1200-ROBERTS-HELEN","Roberts, Helen",1200,"733-0168","223-4095","r.h.roberts@comcast.net",{"$f":"A10","v":"HelenR"},"helenr:circle"]
["JimT","1258-TRAGESSER-JIM","Tragesser, Jim",1258,"201-9961","201-9961","jim@tragesser.net   ",{"$f":"A11","v":"JimT"},"jimt:circle","Jims email doesn't work so added UpStream User Role Later"]
["JoanneW","1203-WYATT-JO ANNE","Wyatt, JoAnne",1203,"739-1540","739-1540","jsw4804@gmail.com",{"$f":"A12","v":"JoanneW"},"joannew:circle"]
["LindaS","1262-SHEEKS-LINDA","Sheeks, Linda",1262,"509-869-8560","509-869-8560","LindaLSheeks@gmail.com",{"$f":"A13","v":"LindaS"},"lindas:circle"]
["LynnK","1236-KIRLIN-LYNN","Kirlin, Lynn",1236,"927-0905","927-0905","l.kirlin@icloud.com",{"$f":"A14","v":"LynnK"},"lynnk:circle"]
["NettieP","1260-POST-NETTIE","Post, Nettie",1260,"526-2113","425-286-3602","nettie.p@comcast.net",{"$f":"A15","v":"NettieP"},"nettiep:circle"]
["PattyL","1261-LIGGETT-PATTY","Liggett, Patty",1261,"760-885-0006","760-885-0006","pjlteach@yahoo.com",{"$f":"A16","v":"PattyL"},"pattyl:circle"]
["PeggyC","1226-COOK-PEGGY","Cook, Peggy",1226,"734-9203",0,"grandmapeggy1226@gmail.com",{"$f":"A17","v":"PeggyC"},"peggyc:circle"]
["Pete A","1210-ASPREY-PETE","Asprey, Pete",1210,"543-5633","209-602-3432","optionzz@outlook.com",{"$f":"A18","v":"Pete A"},"***"]
["PeteA","1210-ASPREY-PETE","Asprey, Pete",1210,"543-5633","209-602-3432","optionzz@outlook.com",{"$f":"A19","v":"PeteA"},"***"]
["RonR","1200-ROBERTS-RON","Roberts, Ron",1200,"733-0168","224-4467","r.h.roberts2@comcast.net",{"$f":"A20","v":"RonR"},"ronr:circle","Shared email doesn't work put a 1 after roberts"]
["SheilaJ","1260-JOHANSEN-SHEILA","Johansen, Sheila",1260,"206-419-3061","206-419-3061","sheilajohansen47@gmail.com",{"$f":"A21","v":"SheilaJ"},"sheilaj:circle"]
["UnAssigned",null,"UnAssignec, Board",1210,null,"209-602-3432","VACNCABoard@gmail.com",{"$f":"A22","v":"UnAssigned"},"***"]

{"sheet":"Contractors","index":8,"n_rows":22,"n_cols":11,"rows_kept":22,"cut":false,"hidden":false,"merged":[]}
["Notes:","Contractor ID","Contractor Company Name","Contractor General Function","Contractor Special Function","Contractor Representative Name","Contractor Representative Phone","Contractor Company Phone Number","Contractor Mailing Address","Contractor Web site","Contractor Email"]
[null,null,"Andgar Heating & Air Cond","Heating & Air Conditioning","Dryer Vent Cleaning",null,null,"360.366.9900","6920 Salashan Pkwy. A-102, PO Box 2708, Ferndale, WA 98248","Heating and Air Conditioning Company"," "]
["Preferred",null,"Beaties Mobil Lock Service","Locks",null,null,null,"671-5597",null,null," "]
[null,null,"Blythe plumbing","Back flow preventer testing",null,null,null,null,null,null," "]
[null,null,"Braam Construction Inc","General Contractor",null,"Dale Braam",null,null," 5056 Wahl Rd, Bellingham, WA","None"," "]
[null,null,"Coast Insulation","Insulation repair",null,"Clark Casey","815-6577","366-3472",null,null," "]
[null,null,"Country Glass & Door","Windows",null,"Doug Lankharr","303-1004 cell","354-4287",null,null," "]
[null,"DonW","Custom Cut Landscaping & Irrigation","Grounds Maintenance",null,"Don Waters","756-1188 cell",null,null,null,"sturg237@gmail.com"]
[null,null,"Environmental Pest Control","Carpenter Ants, Bees, Mammals etc.",null,null,null,"676-5120",null,null," "]
[null,null,"Garry's Plumbing","Potable water; Electrical problems ",null,null,null,"734-9700",null,null," "]
[null,null,"Gregory Thulin","Attorney",null,"Gregory Thulin",null,"360-714-8599","2200 Rimland Drive, #115 Bellingham, Washington 98226 ","Law Offices of Gregory E. Thulin"," "]
[null,null,"Gustafson Construction","Carpenter",null,"Larry Gustafson","739-3740 cell","758-7446",null,null," "]
[null,null,"Kamps Painting Company Inc.","Painting",null,null,null,"360-354-5513","606 Loomis Trail Road, Lynden, WA 98264","https://www.kampspainting.com/"," "]
[null,null,"Lynden Sheet Metal","Heating & Air Conditioning",null,null,null,null,null,null," "]
[null,null,"Michael's Window Washing","Window Washing",null,null,null,null,null,null," "]
[null,null,"Mt Baker Roofing","Roofing",null,"Tami",null,"733-0191 ext. 3","928 Thomas Road, Bellingham, WA 98226","Contact - Mt Baker Roofing"," "]
[null,null,"Overhead Doors","Garage Doors",null,"Tony",null,"734-5960",null,null," "]
["Fired by PM several years ago",null,"Prim-mo Pro Painter","Painting & Gutters",null,"Oscar Garcia",null,"224-2420",null,null," "]
["I always used Beaties",null,"Security Solutions NW","Locks",null,null,null,"360-734-4940","1619 N. State Street, Bellingham, WA 98225","CONTACT | Security Solutions (ssnw.co)","info@ssnw.co"]
[null,null,"The Tree Surgeon, Tim Davis","Large tree removel",null,null,null,"676-6634",null,null," "]
["There are Many. Guessed at this",null,"Whatcom Gutter Company ","Gutter Replacement; Moss Control",null,null,null,"733-4355","108 S Harkness St, Everson, WA 98247"," Whatcom Gutter Co, INC. "," "]
["used the last 2 years",null,"Whatcom Painting","House painting",null,"Don Sohn",null,"739-1497",null,null," "]

{"sheet":"Working","index":9,"n_rows":63,"n_cols":5,"rows_kept":63,"cut":false,"hidden":false,"merged":[]}
[]
[]
[null,"Task Responsible","Task Title","2nd Task Resp","3rd Task Resp"]
[null,"BeverlyB","T11 Check Entrance Sign for Repainting","JoanneW"]
[null,null,"T12 Dryer Vent Cleaning"]
[null,null,"T20 Leaky Gutter Replacement","DaleB"]
[null,null,"T25 Outside Lights and Fixtures","RonR"]
[null,null,"T27 Schecule Unit Painting ","JoanneW"]
[null,null,"T28 Pest Control Work Orders","DaleB"]
[null,null,"T34 Roof Replacement","DaleB"]
[null,null,"T35 Roof Treatment for Moss","DaleB"]
[null,null,"T39 Street Curb Repairs","DaleB"]
[null,null,"T40 Street Reseal Cracks","DaleB"]
[null,null,"T41 Street Seal Coat","DaleB"]
[null,null,"T45 Supply Management"]
[null,null,"T55 Welcome Committee","EarlS"]
[null,null,"T57 Window Replacement ","LindaS"]
[null,null,"T60 Windows Check for Dry Rot or Leakage","LindaS"]
[null,"CarlG","T16 Garage Door Openers"]
[null,null,"T17 Garage Doors"]
[null,"CharlotteM","T44 Sunshine Committee"]
[null,"EarlS","T02 Annual Review"]
[null,null,"T04 Banking ","BeverlyB"]
[null,null,"T05 Bill Payments"]
[null,null,"T07 Budget","Committee"]
[null,null,"T21 HOA Collection","BeverlyB"]
[null,null,"T33 Resale Certificate","JoanneW"]
[null,"JimT","T03 Back Flow Preventer Test","DonW"]
[null,null,"T06 Blow Out Irrigation System","DonW"]
[null,null,"T19 Clean Gutters","DonW"]
[null,null,"T22 Landscaping Work Orders","DonW"]
[null,null,"T24 Moss Check - Patios Curbs Sidewalks"]
[null,null,"T26 Outside Water Faucets","DonW"]
[null,null,"T29 Plant New Trees","DonW"]
[null,null,"T42 Street Snow Removal","DonW"]
[null,null,"T43 Stump Ginding"]
[null,null,"T46 Test Water System","DonW"]
[null,null,"T48 Tree Removal"]
[null,null,"T49 Turn Off Irrigation Water","DonW"]
[null,null,"T50 Turn On Irrigation Water","DonW"]
[null,null,"T52 Foundation Vents Close","DonW"]
[null,null,"T53 Foundation Vents Open","DonW"]
[null,"JoanneW","T10 CC&R's, By-laws & Rules & Regs","LindaS"]
[null,null,"T36 Santizier Refill - Daily Check"]
[null,"LynnK","T13 Emergency Preparedness","SherieT"]
[null,"NettieP","T09 Carpet Cleaning"]
[null,null,"T18 General Cleaning"]
[null,null,"T47 Trash to Curb"]
[null,"PattyL","T37 Secretary Responsibilities",null,"none"]
[null,null,"T51 Update of Motion Log Book","PeteA"]
[null,null,"T56 Welcome Homeowners Books","EarlS","JoanneW"]
[null,"PeggyC","T59 Window Washing "]
[null,"Pete A","T08 Calendar Setup/Printing"]
[null,null,"T30 Project Performance Report"]
[null,null,"T31 Publish Printed Resident Lists"]
[null,null,"T32 Renew Web and Software Licenses"]
[null,null,"T54 Website Files Update - Monthly"]
[null,"SheilaJ","T14 Fire Extinguisher Inspection"]
[null,null,"T23 Library Management"]
[null,null,"T38 Social Scheduling"]
[null,null,"T62 Club house Furnace AC Fireplace Inspection"]
[null,"UnAssigned","T01 Activity Director","CherieT"]
[null,null,"T61 Xmas Lights"]

{"sheet":"Questions","index":10,"n_rows":1,"n_cols":1,"rows_kept":1,"cut":false,"hidden":false,"merged":[]}
["Questions"]

{"sheet":"Positions Per Joanne","index":11,"n_rows":56,"n_cols":11,"rows_kept":56,"cut":false,"hidden":false,"merged":[]}
["Tentaive Number","VACNCA Maintenance Task","Current Vendor \n(do not call direct)","Position","Scheduling",null,"Season","Month","VACNCA Volunteers","Primary Volunteer","Alternate Volunteer"]
[32,"Annual Review",null,null,"As Needed","As Needed",null,null,"Earl Sheneman/",{"$f":"IFERROR(LEFT(I2,FIND(\"/\",I2)-1),\"\")","v":"Earl Sheneman"},{"$f":"TRIM(RIGHT(SUBSTITUTE(I2,\"/\",REPT(\" \",200)),200))","v":""}]
[50,"CC&R's, By-laws & Rules & Reg","Attorney Thulin",null,null,null,null,null,"JoAnne Wyatt/Marie Bishop/Linda Sheeks","JoAnne Wyatt","Linda Sheeks"]
[19,"CH  Activity Director ",null,"Y",null,null,null,null,"Cherie Thomas","","Cherie Thomas"]
[22,"CH check fire extingisher","Security Solutions",null,"Scheduled","Fall","Fall",null,"Sheila Johansen/","Sheila Johansen",""]
[15,"CH Empty Trash",null,null,"Scheduled","Weekly",null,null,"Nettie Post/","Nettie Post",""]
[23,"CH furnace, AC and fireplace ","Lynden Sheet Metal",null,"Scheduled","Fall","Fall",null,"Sheila Johansen/","Sheila Johansen",""]
[13,"CH Library",null,null,"As Needed","As Needed",null,null,"Sheila Johansen/","Sheila Johansen",""]
[14,"CH Purchasing Supplies",null,null,"As Needed","As Needed",null,null,"Beverly Brownrigg/","Beverly Brownrigg",""]
[21,"CH Santizier ",null,null,"As Needed","As Needed",null,null,"JoAnne Wyatt/","JoAnne Wyatt",""]
[16,"CH Shampoo carpet ",null,null,"As Needed","As Needed",null,null,null,"",""]
[18,"CH Social Scheduling",null,null,"Scheduled","Covid",null,null,"Cheryl Sheele/Helen Roberts","Cheryl Sheele","Helen Roberts"]
[17,"CH Weekly Cleaning",null,null,"Scheduled","Weekly",null,null,"Nettie Post/","Nettie Post",""]
[52,"CH window washing","Michael's Window Washing",null,"Same","Same",null,null,"Peggy Cook/","Peggy Cook",""]
[20,"CH Xmas Lights",null,null,"Scheduled","Dec","Fall","Dec",null,"",""]
[53,"Dryer Vent cleaning","Andgar Heating & Air Cond",null,"Even yrs","Even yrs",null,null,"Beverly Brownrigg/","Beverly Brownrigg",""]
[51,"Emergency Preparedness",null,null,null,null,null,null,"Lynn Kirlin/Cherie Thomas","Lynn Kirlin","Cherie Thomas"]
[24,"Garage Door openers","Overhead doors",null,"As Needed","Arrange",null,null,"Carl Grant/","Carl Grant",""]
[25,"Garage doors","Overhead doors",null,"As Needed","Arrange",null,null,"Carl Grant/","Carl Grant",""]
[36,"Gutters - clean",null,null,"Fall","Fall",null,null,"Jim Tragesser/Don Waters","Jim Tragesser","Don Waters"]
[1,"Gutters - replacement/schedule","Whatcom Gutters",null,"As Needed","As Needed",null,null,"Beverly Brownrigg/Dale Braam","Beverly Brownrigg","Dale Braam"]
[37,"Landscaping work orders",null,null,"As Needed","As Needed",null,null,"Jim Tragesser/Don Waters","Jim Tragesser","Don Waters"]
[10,"Lights & fixtures",null,null,"As Needed","As Needed",null,null,"Beverly Brownrigg/Ron Roberts","Beverly Brownrigg","Ron Roberts"]
[38,"Outside water faucets",null,null,"Fall/Spring","Fall/Spring",null,null,"Jim Tragesser/Don Waters","Jim Tragesser","Don Waters"]
[48,"Painting -Check entrance sign","Dan Cohn/Wtcm CountyPaint ",null,"Spring","Spring",null,null,"Beverly Brownrigg/JoAnne Wyatt","Beverly Brownrigg","JoAnne Wyatt"]
[49,"Painting schedule","Dan Cohn/Wtcm CountyPaint ",null,"Spring","Spring",null,null,"Beverly Brownrigg/JoAnne Wyatt","Beverly Brownrigg","JoAnne Wyatt"]
[39,"Patios, curbs, sidewalks for Moss (clean as needed)",null,null,"As Needed","As Needed",null,null,"Jim Tragesser/Don Waters","Jim Tragesser","Don Waters"]
[11,"Pest Work Orders",null,null,"As Needed","As Needed",null,null,"Beverly Brownrigg/Dale Braam","Beverly Brownrigg","Dale Braam"]
[31,"Resale Certificate",null,null,"As Needed","As Needed",null,null,"Earl Sheneman/JoAnne Wyatt","Earl Sheneman","JoAnne Wyatt"]
[2,"Roof replacement. Scheduled","Mount Baker Roofing",null,"As Needed","As Needed",null,null,"Beverly Brownrigg/Dale Braam","Beverly Brownrigg","Dale Braam"]
[3,"Roof treatment for moss","Mount Baker Roofing",null,"Scheduled","Fall","Fall",null,"Beverly Brownrigg/Dale Braam","Beverly Brownrigg","Dale Braam"]
[54,"Secretary Responsibilities",null,null,"As Needed","As Needed",null,null,"Patty Liggett/","Patty Liggett",""]
[4,"Street -Curb repairs",null,null,"As Needed","As Needed",null,null,"Beverly Brownrigg/Dale Braam","Beverly Brownrigg","Dale Braam"]
[5,"Street -Seal coat","Kamps",null,"As Needed","As Needed",null,null,"Beverly Brownrigg/Dale Braam",{"$f":"IFERROR(LEFT(I34,FIND(\"/\",I34)-1),\"\")","v":"Beverly Brownrigg"},{"$f":"TRIM(RIGHT(SUBSTITUTE(I34,\"/\",REPT(\" \",200)),200))","v":"Dale Braam"}]
[40,"Street -Snow removal",null,null,"Winter","Winter",null,null,"Jim Tragesser/Don Waters","Jim Tragesser","Don Waters"]
[12,"Sunshine Committee",null,"Y",null,"As Needed",null,null,"Charlotte Martin/","Charlotte Martin",""]
[28,"TR: Banking ",null,null,"Scheduled","Monthly",null,null,"Earl Sheneman/Beverly Brownrigg","Earl Sheneman","Beverly Brownrigg"]
[27,"TR: Bill payments",null,null,"Scheduled","Monthlu",null,null,"Earl Sheneman/","Earl Sheneman",""]
[30,"TR: Budget",null,null,"S",null,null,null,"Earl Sheneman/Committee","Earl Sheneman","Committee"]
[29,"TR: HOA Collection",null,null,"Scheduled","Monthly",null,null,"Earl Sheneman/Beverly Brownrigg","Earl Sheneman","Beverly Brownrigg"]
[33,"Trees - remove",null,null,"Fall","Fall",null,null,"Jim Tragesser/","Jim Tragesser",""]
[34,"Trees check for removal schedule",null,null,"Fall","Fall",null,null,"Jim Tragesser/ ","Jim Tragesser",""]
[35,"Trees -Grind stumps",null,null,"As Needed","As Needed",null,null,"Jim Tragesser/","Jim Tragesser",""]
[41,"Trees- plant new trees",null,null,"Spring","Spring",null,null,"Jim Tragesser/Don Waters","Jim Tragesser","Don Waters"]
[42,"Vents - close",null,null,"Fall","Fall",null,null,"Jim Tragesser/Don Waters","Jim Tragesser","Don Waters"]
[43,"Vents - open",null,null,"Spring","Spring",null,null,"Jim Tragesser/Don Waters","Jim Tragesser","Don Waters"]
[44,"Water -Blow out system",null,null,"Fall","Fall",null,null,"Jim Tragesser/Don Waters","Jim Tragesser","Don Waters"]
[45,"Water -Test system. ",null,null,"Spring","Spring",null,null,"Jim Tragesser/Don Waters","Jim Tragesser","Don Waters"]
[46,"Water -Turn on water (city test back flow preventers ","City/Blythe plumbing",null,"Spring","Spring",null,null,"Jim Tragesser/Don Waters","Jim Tragesser","Don Waters"]
[47,"Water -Turn-off water",null,null,"Fall","Fall",null,null,"Jim Tragesser/Don Waters","Jim Tragesser","Don Waters"]
[8,"Welcome Committee",null,"Y",null,"As Needed",null,null,"Beverly Brownrigg/Earl Sheneman","Beverly Brownrigg","Earl Sheneman"]
[9,"Welcome Homeowners Books",null,null,"As Needed",null,null,null,"Patty Liggett/Earl Sheneman/JoAnne Wyatt","Patty Liggett","Earl Sheneman/JoAnne Wyatt"]
[6,"Window replacement ","Beverly Brownrigg/Doug Lankhar",null,"As Needed","As Needed",null,null,"Beverly Brownrigg/Linda Skeeks","Beverly Brownrigg",{"$f":"TRIM(RIGHT(SUBSTITUTE(I53,\"/\",REPT(\" \",200)),200))","v":"Linda Skeeks"}]
[55,"Window Washing ","Michael's Window Washing",null,"Spring 3/23-4-5","Spring 3/23-4-5",null,null,"Peggy Cook/","Peggy Cook",{"$f":"TRIM(RIGHT(SUBSTITUTE(I54,\"/\",REPT(\" \",200)),200))","v":""}]
[56,"Window Washing ","Michael's Window Washing",null,"Fall 9/21-2-3","Fall 9/21-2-3",null,null,"Peggy Cook/","Peggy Cook",{"$f":"TRIM(RIGHT(SUBSTITUTE(I55,\"/\",REPT(\" \",200)),200))","v":""}]
[7,"Windows -check dry rot/seal loss           ",null,null,"As Needed","As Needed",null,null,"Beverly Brownrigg/Linda Sheeks","Beverly Brownrigg",{"$f":"TRIM(RIGHT(SUBSTITUTE(I56,\"/\",REPT(\" \",200)),200))","v":"Linda Sheeks"}]

{"sheet":"Original","index":12,"n_rows":67,"n_cols":4,"rows_kept":67,"cut":false,"hidden":false,"merged":[]}
["VACNCA Work Orders","Vendor (do not call direct)","Time","VACNCA #"]
[]
["Gutters - replacement/schedule","Whatcom Gutters","A/T","Bev/Dale"]
["Roof replacement. Scheduled","Mount Baker Roofing","A/T","Bev/Dale"]
["Roof treatment for moss","Mount Baker Roofing","Fall","Bev/Dale"]
["Street -Curb repairs",null,"A/T","Bev/Dale"]
["Street -Seal coat","Kamps","A/T","Bev/Dale"]
["Window replacement -Doug","Bev/Doug Lankhar","A/T","Bev/Linda Skeeks"]
["Windows -check dry rot/seal loss           ",null,"A/T","Bev/Linda Sheeks"]
[]
["Welcome Committee",null,"A/T","Bev/Earl"]
["Welcome Homeowners Books",null,null,"Patti/Earl/JoAnne"]
["Lights - & fixtures",null,"A/T","Bev/Ron Roberts"]
["Pest Work Orders",null,"A/T","Bev/Dale"]
[]
["Sunshine Committee",null,"A/T","Charlotte"]
["Library",null,"A/T","Sheila Johansen"]
["Purchasing CHouse supplies",null,"A/T","Bev"]
["C/H Empty Trash",null,"Weekly","Nettie Post"]
["C/H Shampoo carpet ",null,"As Needed"]
["CH Weekly Cleaning",null,"Weekly","Nettie Post"]
["CH Social  ",null,"Covid","Cheryl/Helen"]
["CH  Activity Director ",null,"Covid","Cherie Thomas"]
["CH - Xmas Lights",null,"Dec"]
["CH Santizier ",null,"A/T","JoAnne Wyatt"]
["CH - check fire extingisher","Security Solutions","Fall","Sheila Johansen"]
["CH -furnace, AC and fireplace ","Lynden Sheet Metal","Fall","Sheila Johansen"]
["Garage Door openers","Overhead doors","Arrange","Carl Grant"]
["Garage doors","Overhead doors","Arrange","Carl Grant"]
[]
[]
["Treasurer Responsibilities",null,"A/T","Earl"]
["        Bill payments",null,"Monthlu","Earl/"]
["        Banking ",null,"Monthly","Earl/Bev"]
["        HOA Collection",null,"Monthly","Earl/Bev"]
["        Budget",null,null,"Earl/com."]
["Resale Certificate",null,"A/T","Earl/JoAnne"]
["Annual Review",null,"A/T","Earl"]
[]
["Trees - remove",null,"Fall","Jim"]
["Trees check for removal schedule",null,"Fall","Jim/ "]
["Trees -Grind stumps",null,"A/T","Jim"]
["Gutters - clean",null,"Fall","Jim/Don"]
["Landscaping work orders",null,"A/T","Jim/Don"]
["Outside water faucets",null,"Fall/Spring","Jim/Don"]
["Patios, curbs, sidewalks for Moss (clean as needed)",null,"A/T","Jim/Don"]
["Street -Snow removal",null,"Winter","Jim/Don"]
["Trees- plant new trees",null,"Spring","Jim/Don"]
["Vents - close",null,"Fall","Jim/Don"]
["Vents - open",null,"Spring","Jim/Don"]
["Water -Blow out system",null,"Fall","Jim/Don"]
["Water -Test system. ",null,"Spring","Jim/Don"]
["Water -Turn on water (city test back flow preventers ","City/Blythe plumbing","Spring","Jim/Don"]
["Water -Turn-off water",null,"Fall","Jim/Don"]
[]
["Painting -Check entrance sign","DanCohn/Wtcm CountyPaint ","Spring","Bev/Jo Anne/"]
["Painting schedule","DanCohn/Wtcm CountyPaint ","Spring","Bev/Jo Anne/"]
["CC&R's, By-laws & Rules & Reg","Attorney Thulin",null,"Jo Anne/Marie Bishop/Linda Sheeks"]
[]
["Emergency Preparedness",null,null,"Lynn/Cherie"]
[]
["CH window washing","Michael's Window Washing","same","Peggy Cook"]
["Dryer Vent cleaning","Andgar Heating & Air Cond","Even yrs","Bev/"]
["Secretary Responsibilities",null,"A/T","Patty"]
[]
["Window Washing ","Michael's Window Washing","3/23-4-5","Peggy Cook"]
["Window Washing ","Michael's Window Washing","9/21-2-3","Peggy Cook"]